Workbook

Sheet Instructions
C1: Philmont 2024 Itineraries - 9 Day Treks
B4: Questions or suggestions regarding this spreadsheet may be e-mailed to the author Sid Covington at sid_c@swbell.net
B6: ="Updated "&getlastsavedate()&" - Revision " & getSpreadsheetProperty("Revision") -> Updated 1/2/2024 11:01PM - Revision 2024_1-0
B7: Revision History: | F7: Note: Use Ctrl-F1 to show/hide the Excel ribbon
C8: 2024_1-0 | D8: Original 2024 Update

Sheet Preferences
A1: Set Crew preferences below
A3: Philmont is divided into four areas. Is it important to you | E3: Altitude Factors:
A4: which area you go to? | B4: n | C4: =IF(UPPER(B4)="Y","",IF(UPPER(B4)="N","","ERROR-Must be Y or N")) ->  | E4: Altitude factors may be included or excluded from the calculations. There are three different factors in the calculation that relate to altitude.
A5: If it is important, rank your preference in 1, 2, 3, 4 order with
A6: 1 being the most preferred, 4 being least.
A7: South Country | B7: 3 | C7: =IF(B7<1,"ERROR-Must be in 1-4 range",IF(B7>4,"ERROR-Must be in 1-4 range","")) ->  | E7: Factor: | F7: Include?
A8: Central Country | B8: 4 | C8: =IF(B8<1,"ERROR-Must be in 1-4 range",IF(B8>4,"ERROR-Must be in 1-4 range","")) ->  | E8: Highest camp elevation: | F8: n | G8: =IF(UPPER(F8)="Y","",IF(UPPER(F8)="N","","ERROR-enter a 'y' or 'n'")) -> 
A9: North Country | B9: 1 | C9: =IF(B9<1,"ERROR-Must be in 1-4 range",IF(B9>4,"ERROR-Must be in 1-4 range","")) ->  | E9: Trek camp elevation change: | F9: n | G9: =IF(UPPER(F9)="Y","",IF(UPPER(F9)="N","","ERROR-enter a 'y' or 'n'")) -> 
A10: Valle Vidal | B10: 2 | C10: =IF(B10<1,"ERROR-Must be in 1-4 range",IF(B10>4,"ERROR-Must be in 1-4 range","")) ->  | E10: Average daily change: | F10: y | G10: =IF(UPPER(F10)="Y","",IF(UPPER(F10)="N","","ERROR-enter a 'y' or 'n'")) -> 
A11: =IF(LOWER(areaImportant)="y",(IF(validAreaRanking(),"","ERROR—rank preferences 1 to 4")),"") -> 
A13: Rate the capability of your crew on a scale of 1 to 10 with | E13: How much more important are programs than the other factors such as distance, country, altitude, Tooth of Time, etc. in your selection of an itinerary? Enter y if programs are more important, n if should be treated as lower priority than other factors.
A14: 1 indicating a young crew with little backpacking experience
A15: and 10 indicating an older crew with a lot of experience.
A17: Capability | B17: 3
A18: =IF(B17>0,IF(B17<11,"","ERROR-must be less than 10"),"ERROR-must be greater than 0") ->  | E18: Programs more important? | F18: y
A20: Many itineraries return to Base Camp via bus but some hike in (not necessarily over the Tooth of Time).
E21: Include Itineraries with an Itinerary Rating of:
A22: Is it important to hike into Base Camp? | G22: Include?
B23: n | E23: Challenging | F23: C | G23: y
E24: Rugged | F24: R | G24: y
A25: Most itineraries depart Base Camp to the trailhead by bus. There are some that hike out of Base Camp to the first camp. | E25: Strenuous | F25: S | G25: y
E26: Super Strenuous | F26: SS | G26: y
A27: Is it important to hike out of Base Camp?
B28: n
A30: A key part of a Philmont Trek is climbing peaks. Is it important to you to climb the following peaks?
A32: Baldy Peak | B32: y
A33: Mount Phillips | B33: y
A34: Tooth of Time | B34: y
A35: Trail Peak | B35: n
A36: Others (Mountaineering) | B36: n

Sheet Scores
A1: Program: | B1: Crewmember 1 | C1: Crewmember 2 | D1: Crewmember 3 | E1: Crewmember 4 | F1: Crewmember 5 | G1: Crewmember 6 | H1: Crewmember 7 | I1: Crewmember 8 | J1: Crewmember 9 | K1: Crewmember 10 | L1: Crewmember 11 | M1: Crewmember 12
A2: =INDEX(program_table,ROW()-1) -> Archaeology | B2: 15 | C2: 15 | D2: 15 | E2: 15 | F2: 15 | G2: 15 | H2: 15 | I2: 15 | J2: 15 | K2: 15 | L2: 2 | M2: 0
A3: =INDEX(program_table,ROW()-1) -> Archery - 3 Dimensional | B3: 20 | C3: 20 | D3: 20 | E3: 20 | F3: 20 | G3: 20 | H3: 20 | I3: 19 | J3: 18 | K3: 17 | L3: 16 | M3: 15
A4: =INDEX(program_table,ROW()-1) -> Atlatl (Dart-throwing) | B4: 2 | C4: 13 | D4: 10 | E4: 2 | F4: 0 | G4: 7 | H4: 13 | I4: 10 | J4: 2 | K4: 0 | L4: 7 | M4: 10
A5: =INDEX(program_table,ROW()-1) -> Baldy Mountain | B5: 18 | C5: 18 | D5: 18 | E5: 18 | F5: 18 | G5: 18 | H5: 18 | I5: 18 | J5: 18 | K5: 18 | L5: 5 | M5: 3
A6: =INDEX(program_table,ROW()-1) -> Blacksmithing | B6: 2 | C6: 0 | D6: 15 | E6: 0 | F6: 18 | G6: 20 | H6: 0 | I6: 15 | J6: 0 | K6: 18 | L6: 20 | M6: 0
A7: =INDEX(program_table,ROW()-1) -> Campfire (evening) | B7: 2 | C7: 20 | D7: 0 | E7: 14 | F7: 6 | G7: 10 | H7: 20 | I7: 0 | J7: 14 | K7: 6 | L7: 10 | M7: 9
A8: =INDEX(program_table,ROW()-1) -> Cantina | B8: 2 | C8: 20 | D8: 0 | E8: 14 | F8: 6 | G8: 10 | H8: 20 | I8: 0 | J8: 14 | K8: 6 | L8: 10 | M8: 9
A9: =INDEX(program_table,ROW()-1) -> Challenge Events | B9: 2 | C9: 5 | D9: 15 | E9: 0 | F9: 20 | G9: 7 | H9: 5 | I9: 15 | J9: 0 | K9: 0 | L9: 7 | M9: 8
A10: =INDEX(program_table,ROW()-1) -> Chuckwagon Dinner | B10: 2 | C10: 19 | D10: 0 | E10: 0 | F10: 9 | G10: 9 | H10: 19 | I10: 0 | J10: 0 | K10: 9 | L10: 9 | M10: 11
A11: =INDEX(program_table,ROW()-1) -> Demonstration Forest | B11: 2 | C11: 10 | D11: 5 | E11: 0 | F11: 0 | G11: 7 | H11: 10 | I11: 5 | J11: 0 | L11: 7 | M11: 15
A12: =INDEX(program_table,ROW()-1) -> Fishing | B12: 2 | C12: 20 | D12: 5 | E12: 0 | F12: 0 | G12: 5 | H12: 20 | I12: 5 | J12: 0 | L12: 5 | M12: 11
A13: =INDEX(program_table,ROW()-1) -> Fly Tying | B13: 2 | C13: 11 | E13: 13 | G13: 4 | H13: 10 | J13: 15 | K13: 0 | M13: 18
A14: =INDEX(program_table,ROW()-1) -> Fur Trapper Rendezvous | B14: 2 | C14: 10 | D14: 0 | E14: 13 | F14: 0 | G14: 4 | H14: 10 | I14: 0 | J14: 13 | K14: 0 | L14: 4 | M14: 18
A15: =INDEX(program_table,ROW()-1) -> Gold Mining & Panning | B15: 2 | C15: 13 | D15: 10 | E15: 2 | G15: 7 | H15: 13 | I15: 10 | J15: 2 | K15: 0 | L15: 7 | M15: 10
A16: =INDEX(program_table,ROW()-1) -> Homesteading | B16: 2 | C16: 12 | D16: 5 | E16: 3 | G16: 10 | H16: 12 | I16: 5 | J16: 3 | K16: 0 | L16: 10 | M16: 20
A17: =INDEX(program_table,ROW()-1) -> Horse Rides | B17: 2 | C17: 8 | D17: 0 | E17: 16 | F17: 5 | G17: 8 | H17: 0 | I17: 8 | J17: 16 | K17: 8 | L17: 3 | M17: 10
A18: =INDEX(program_table,ROW()-1) -> Hunter Safety | B18: 2 | C18: 1 | D18: 1 | E18: 17 | F18: 6 | G18: 4 | H18: 1 | I18: 1 | J18: 17 | K18: 6 | L18: 4 | M18: 11
A19: =INDEX(program_table,ROW()-1) -> Inspiration Point Hike | B19: 2 | C19: 10 | D19: 6 | E19: 15 | F19: 10 | G19: 5 | H19: 10 | I19: 0 | K19: 1 | L19: 20 | M19: 18
A20: =INDEX(program_table,ROW()-1) -> Jicarilla Apache Life | B20: 2 | C20: 3 | D20: 5 | E20: 0 | F20: 0 | G20: 5 | H20: 20 | I20: 5 | J20: 0 | K20: 0 | L20: 7 | M20: 15
A21: =INDEX(program_table,ROW()-1) -> Laser Shot Shooting Range | B21: 2 | C21: 2 | D21: 15 | E21: 18 | F21: 0 | G21: 10 | H21: 2 | I21: 15 | J21: 18 | K21: 0 | L21: 10 | M21: 12
A22: =INDEX(program_table,ROW()-1) -> Lodge/Cabin Tours | B22: 2 | C22: 19 | D22: 0 | E22: 6 | F22: 0 | G22: 12 | H22: 19 | I22: 0 | J22: 6 | K22: 0 | L22: 12 | M22: 0
A23: =INDEX(program_table,ROW()-1) -> Low Impact Camping | B23: 15 | C23: 2 | D23: 0 | E23: 12 | F23: 0 | G23: 12 | H23: 2 | I23: 10 | J23: 8 | K23: 0 | L23: 20 | M23: 5
A24: =INDEX(program_table,ROW()-1) -> Mine Tour | B24: 2 | C24: 6 | D24: 5 | E24: 8 | F24: 9 | G24: 10 | H24: 7 | I24: 7 | J24: 3 | K24: 2 | L24: 1 | M24: 9
A25: =INDEX(program_table,ROW()-1) -> Mount Phillips | B25: 2 | D25: 15 | F25: 18 | G25: 20 | H25: 0 | I25: 15 | J25: 0 | K25: 18 | L25: 20
A26: =INDEX(program_table,ROW()-1) -> Mountaineering | B26: 2 | C26: 16 | D26: 10 | E26: 15 | F26: 0 | G26: 20 | H26: 16 | I26: 10 | J26: 15 | K26: 0 | L26: 20 | M26: 10
A27: =INDEX(program_table,ROW()-1) -> Muzzle Loading Rifle | B27: 2 | D27: 10 | E27: 5 | F27: 10 | H27: 10 | I27: 20 | J27: 5 | K27: 15 | L27: 2 | M27: 18
A28: =INDEX(program_table,ROW()-1) -> New Mexico Homestead | B28: 2 | C28: 0 | D28: 15 | F28: 17 | G28: 12 | H28: 0 | I28: 15 | J28: 0 | K28: 17 | L28: 12 | M28: 10
A29: =INDEX(program_table,ROW()-1) -> Petroglyph Tour | B29: 15 | C29: 0 | D29: 15 | F29: 19 | G29: 12 | H29: 0 | I29: 15 | J29: 0 | K29: 19 | L29: 12 | M29: 10
A30: =INDEX(program_table,ROW()-1) -> Post Civil War Encampment | B30: 15 | C30: 0 | D30: 15 | F30: 12 | G30: 12 | H30: 0 | I30: 15 | K30: 12 | L30: 12 | M30: 10
A31: =INDEX(program_table,ROW()-1) -> Railroading | B31: 15 | C31: 0 | D31: 15 | F31: 11 | G31: 12 | H31: 10 | I31: 15 | J31: 15 | K31: 11 | L31: 12 | M31: 10
A32: =INDEX(program_table,ROW()-1) -> Rock Climbing & Rappelling | B32: 18 | C32: 17 | D32: 6 | F32: 12 | G32: 13 | H32: 5 | I32: 16 | J32: 3 | K32: 13 | L32: 14 | M32: 18
A33: =INDEX(program_table,ROW()-1) -> Rocky Mountain Fur Co. | B33: 10 | C33: 0 | D33: 5 | F33: 16 | G33: 9 | H33: 0 | I33: 5 | J33: 0 | K33: 16 | M33: 0
A34: =INDEX(program_table,ROW()-1) -> Shooting/Reloading - .30-06 | B34: 19 | C34: 20 | E34: 14 | F34: 7 | G34: 10 | H34: 20 | J34: 14 | K34: 7 | L34: 2 | M34: 8
A35: =INDEX(program_table,ROW()-1) -> Shotgun Shooting/Reloading - 12 Gauge | B35: 19 | C35: 20 | D35: 0 | E35: 14 | F35: 7 | G35: 10 | H35: 20 | I35: 18 | J35: 14 | K35: 7 | L35: 10 | M35: 8
A36: =INDEX(program_table,ROW()-1) -> Spar Pole Climbing | B36: 18 | C36: 5 | D36: 10 | E36: 5 | F36: 19 | G36: 20 | I36: 10 | J36: 15 | K36: 5 | L36: 14 | M36: 19
A37: =INDEX(program_table,ROW()-1) -> Tie Making & Crosscut Saws | B37: 20 | C37: 5 | D37: 16 | E37: 20 | F37: 20 | G37: 1 | H37: 15 | I37: 15 | K37: 18 | L37: 20 | M37: 20
A38: =INDEX(program_table,ROW()-1) -> Tomahawk Throwing | B38: 14 | C38: 15 | D38: 10 | E38: 17 | F38: 20 | G38: 4 | H38: 20 | I38: 15 | J38: 17 | L38: 5 | M38: 20
A39: =INDEX(program_table,ROW()-1) -> Tooth of Time | B39: 19 | C39: 20 | E39: 14 | F39: 7 | G39: 10 | H39: 20 | J39: 14 | K39: 7 | L39: 10 | M39: 8
A40: =INDEX(program_table,ROW()-1) -> Trail Peak | B40: 8 | C40: 2 | D40: 10 | E40: 20 | F40: 0 | G40: 12 | H40: 2 | I40: 10 | J40: 15 | K40: 0 | L40: 12 | M40: 10
A41: =INDEX(program_table,ROW()-1) -> Western Lore/Branding | B41: 15 | C41: 10 | E41: 10 | F41: 8 | G41: 5 | H41: 8 | J41: 14 | K41: 8 | L41: 5 | M41: 10

Sheet Results
A1: Philmont Trek Itinerary Selection
E2: Choice | I2: # X's | J2: Pgm Index | K2: Top Itinerary/Program Cross Reference
A3: Itinerary | B3: Classification | C3: Distance | D3: =IF(meanMedian="Mean","Average",meanMedian) & " Score" -> Median Score | G3: Program | H3: Value | K3: 9-4 | L3: 9-15 | M3: 9-3 | N3: 9-2 | O3: 9-8 | P3: 9-7
A4: 9-4 | B4: Challenging | C4: 44 | D4: 10417.5 | E4: #1 | G4: Archery - 3 Dimensional | H4: 225 | I4: =COUNTIF(K4:P4,"X") -> 2 | J4: 2 | K4: =IF($G4=0,"",IF(INDEX(itineraryPrograms,numericItinerary(K$3),$J4)="y","X","")) ->  | L4: =IF($G4=0,"",IF(INDEX(itineraryPrograms,numericItinerary(L$3),$J4)="y","X","")) -> X | M4: =IF($G4=0,"",IF(INDEX(itineraryPrograms,numericItinerary(M$3),$J4)="y","X","")) ->  | N4: =IF($G4=0,"",IF(INDEX(itineraryPrograms,numericItinerary(N$3),$J4)="y","X","")) ->  | O4: =IF($G4=0,"",IF(INDEX(itineraryPrograms,numericItinerary(O$3),$J4)="y","X","")) -> X | P4: =IF($G4=0,"",IF(INDEX(itineraryPrograms,numericItinerary(P$3),$J4)="y","X","")) ->  | Q4: 1
A5: 9-15 | B5: Super Strenuous | C5: 70 | D5: 9522 | E5: #2 | G5: Baldy Mountain | H5: 188 | I5: 3 | J5: 4 | K5: =IF($G5=0,"",IF(INDEX(itineraryPrograms,numericItinerary(K$3),$J5)="y","X","")) ->  | L5: =IF($G5=0,"",IF(INDEX(itineraryPrograms,numericItinerary(L$3),$J5)="y","X","")) -> X | M5: =IF($G5=0,"",IF(INDEX(itineraryPrograms,numericItinerary(M$3),$J5)="y","X","")) ->  | N5: =IF($G5=0,"",IF(INDEX(itineraryPrograms,numericItinerary(N$3),$J5)="y","X","")) -> X | O5: =IF($G5=0,"",IF(INDEX(itineraryPrograms,numericItinerary(O$3),$J5)="y","X","")) ->  | P5: =IF($G5=0,"",IF(INDEX(itineraryPrograms,numericItinerary(P$3),$J5)="y","X","")) -> X | Q5: 2
A6: 9-3 | B6: Challenging | C6: 41 | D6: 9330.8 | E6: #3 | G6: Tie Making & Crosscut Saws | H6: 170 | I6: 4 | J6: 36 | K6: =IF($G6=0,"",IF(INDEX(itineraryPrograms,numericItinerary(K$3),$J6)="y","X","")) ->  | L6: =IF($G6=0,"",IF(INDEX(itineraryPrograms,numericItinerary(L$3),$J6)="y","X","")) -> X | M6: =IF($G6=0,"",IF(INDEX(itineraryPrograms,numericItinerary(M$3),$J6)="y","X","")) ->  | N6: =IF($G6=0,"",IF(INDEX(itineraryPrograms,numericItinerary(N$3),$J6)="y","X","")) -> X | O6: =IF($G6=0,"",IF(INDEX(itineraryPrograms,numericItinerary(O$3),$J6)="y","X","")) -> X | P6: =IF($G6=0,"",IF(INDEX(itineraryPrograms,numericItinerary(P$3),$J6)="y","X","")) -> X | Q6: 3
A7: 9-2 | B7: Challenging | C7: 39 | D7: 9056.8 | E7: #4 | G7: Tomahawk Throwing | H7: 157 | I7: 5 | J7: 37 | K7: =IF($G7=0,"",IF(INDEX(itineraryPrograms,numericItinerary(K$3),$J7)="y","X","")) -> X | L7: =IF($G7=0,"",IF(INDEX(itineraryPrograms,numericItinerary(L$3),$J7)="y","X","")) ->  | M7: =IF($G7=0,"",IF(INDEX(itineraryPrograms,numericItinerary(M$3),$J7)="y","X","")) -> X | N7: =IF($G7=0,"",IF(INDEX(itineraryPrograms,numericItinerary(N$3),$J7)="y","X","")) -> X | O7: =IF($G7=0,"",IF(INDEX(itineraryPrograms,numericItinerary(O$3),$J7)="y","X","")) -> X | P7: =IF($G7=0,"",IF(INDEX(itineraryPrograms,numericItinerary(P$3),$J7)="y","X","")) -> X | Q7: 4
A8: 9-8 | B8: Rugged | C8: 46 | D8: 8963.4 | E8: #5 | G8: Archaeology | H8: 152 | I8: 1 | J8: 1 | K8: =IF($G8=0,"",IF(INDEX(itineraryPrograms,numericItinerary(K$3),$J8)="y","X","")) ->  | L8: =IF($G8=0,"",IF(INDEX(itineraryPrograms,numericItinerary(L$3),$J8)="y","X","")) ->  | M8: =IF($G8=0,"",IF(INDEX(itineraryPrograms,numericItinerary(M$3),$J8)="y","X","")) ->  | N8: =IF($G8=0,"",IF(INDEX(itineraryPrograms,numericItinerary(N$3),$J8)="y","X","")) -> X | O8: =IF($G8=0,"",IF(INDEX(itineraryPrograms,numericItinerary(O$3),$J8)="y","X","")) ->  | P8: =IF($G8=0,"",IF(INDEX(itineraryPrograms,numericItinerary(P$3),$J8)="y","X","")) ->  | Q8: 5
A9: 9-7 | B9: Rugged | C9: 46 | D9: 8950.7 | E9: #6 | G9: Shotgun Shooting/Reloading - 12 Gauge | H9: 147 | I9: 0 | J9: 34 | K9: =IF($G9=0,"",IF(INDEX(itineraryPrograms,numericItinerary(K$3),$J9)="y","X","")) ->  | L9: =IF($G9=0,"",IF(INDEX(itineraryPrograms,numericItinerary(L$3),$J9)="y","X","")) ->  | M9: =IF($G9=0,"",IF(INDEX(itineraryPrograms,numericItinerary(M$3),$J9)="y","X","")) ->  | N9: =IF($G9=0,"",IF(INDEX(itineraryPrograms,numericItinerary(N$3),$J9)="y","X","")) ->  | O9: =IF($G9=0,"",IF(INDEX(itineraryPrograms,numericItinerary(O$3),$J9)="y","X","")) ->  | P9: =IF($G9=0,"",IF(INDEX(itineraryPrograms,numericItinerary(P$3),$J9)="y","X","")) ->  | Q9: 6
A10: 9-5 | B10: Rugged | C10: 46 | D10: 8871.7 | G10: Spar Pole Climbing | H10: 140 | I10: 3 | J10: 35 | K10: =IF($G10=0,"",IF(INDEX(itineraryPrograms,numericItinerary(K$3),$J10)="y","X","")) ->  | L10: =IF($G10=0,"",IF(INDEX(itineraryPrograms,numericItinerary(L$3),$J10)="y","X","")) -> X | M10: =IF($G10=0,"",IF(INDEX(itineraryPrograms,numericItinerary(M$3),$J10)="y","X","")) ->  | N10: =IF($G10=0,"",IF(INDEX(itineraryPrograms,numericItinerary(N$3),$J10)="y","X","")) -> X | O10: =IF($G10=0,"",IF(INDEX(itineraryPrograms,numericItinerary(O$3),$J10)="y","X","")) ->  | P10: =IF($G10=0,"",IF(INDEX(itineraryPrograms,numericItinerary(P$3),$J10)="y","X","")) -> X | Q10: 7
A11: 9-1 | B11: Challenging | C11: 37 | D11: 8776 | G11: Rock Climbing & Rappelling | H11: 135 | I11: 3 | J11: 31 | K11: =IF($G11=0,"",IF(INDEX(itineraryPrograms,numericItinerary(K$3),$J11)="y","X","")) -> X | L11: =IF($G11=0,"",IF(INDEX(itineraryPrograms,numericItinerary(L$3),$J11)="y","X","")) ->  | M11: =IF($G11=0,"",IF(INDEX(itineraryPrograms,numericItinerary(M$3),$J11)="y","X","")) -> X | N11: =IF($G11=0,"",IF(INDEX(itineraryPrograms,numericItinerary(N$3),$J11)="y","X","")) ->  | O11: =IF($G11=0,"",IF(INDEX(itineraryPrograms,numericItinerary(O$3),$J11)="y","X","")) -> X | P11: =IF($G11=0,"",IF(INDEX(itineraryPrograms,numericItinerary(P$3),$J11)="y","X","")) ->  | Q11: 8
A12: 9-11 | B12: Strenuous | C12: 51 | D12: 8719.8 | G12: Mountaineering | H12: 134 | I12: 0 | J12: 25 | K12: =IF($G12=0,"",IF(INDEX(itineraryPrograms,numericItinerary(K$3),$J12)="y","X","")) ->  | L12: =IF($G12=0,"",IF(INDEX(itineraryPrograms,numericItinerary(L$3),$J12)="y","X","")) ->  | M12: =IF($G12=0,"",IF(INDEX(itineraryPrograms,numericItinerary(M$3),$J12)="y","X","")) ->  | N12: =IF($G12=0,"",IF(INDEX(itineraryPrograms,numericItinerary(N$3),$J12)="y","X","")) ->  | O12: =IF($G12=0,"",IF(INDEX(itineraryPrograms,numericItinerary(O$3),$J12)="y","X","")) ->  | P12: =IF($G12=0,"",IF(INDEX(itineraryPrograms,numericItinerary(P$3),$J12)="y","X","")) ->  | Q12: 9
A13: 9-6 | B13: Rugged | C13: 46 | D13: 8688.7 | G13: Tooth of Time | H13: 129 | I13: 1 | J13: 38 | K13: =IF($G13=0,"",IF(INDEX(itineraryPrograms,numericItinerary(K$3),$J13)="y","X","")) ->  | L13: =IF($G13=0,"",IF(INDEX(itineraryPrograms,numericItinerary(L$3),$J13)="y","X","")) -> X | M13: =IF($G13=0,"",IF(INDEX(itineraryPrograms,numericItinerary(M$3),$J13)="y","X","")) ->  | N13: =IF($G13=0,"",IF(INDEX(itineraryPrograms,numericItinerary(N$3),$J13)="y","X","")) ->  | O13: =IF($G13=0,"",IF(INDEX(itineraryPrograms,numericItinerary(O$3),$J13)="y","X","")) ->  | P13: =IF($G13=0,"",IF(INDEX(itineraryPrograms,numericItinerary(P$3),$J13)="y","X","")) ->  | Q13: 10
A14: 9-12 | B14: Strenuous | C14: 52 | D14: 8633.8 | G14: Railroading | H14: 126 | J14: 30 | Q14: 11
A15: 9-10 | B15: Strenuous | C15: 50 | D15: 8298.6 | G15: Shooting/Reloading - .30-06 | H15: 121 | J15: 33 | Q15: 12
A16: 9-14 | B16: Super Strenuous | C16: 56 | D16: 8096 | G16: Petroglyph Tour | H16: 117 | I16: 2 | J16: 28 | K16: =IF($G16=0,"",IF(INDEX(itineraryPrograms,numericItinerary(K$3),$J16)="y","X","")) ->  | L16: =IF($G16=0,"",IF(INDEX(itineraryPrograms,numericItinerary(L$3),$J16)="y","X","")) ->  | M16: =IF($G16=0,"",IF(INDEX(itineraryPrograms,numericItinerary(M$3),$J16)="y","X","")) ->  | N16: =IF($G16=0,"",IF(INDEX(itineraryPrograms,numericItinerary(N$3),$J16)="y","X","")) -> X | O16: =IF($G16=0,"",IF(INDEX(itineraryPrograms,numericItinerary(O$3),$J16)="y","X","")) ->  | P16: =IF($G16=0,"",IF(INDEX(itineraryPrograms,numericItinerary(P$3),$J16)="y","X","")) -> X | Q16: 13
A17: 9-9 | B17: Strenuous | C17: 49 | D17: 8055.3 | E17: =meanMedian & " Score Selected" -> Median Score Selected | G17: Campfire (evening) | H17: 111 | I17: 6 | J17: 6 | K17: =IF($G17=0,"",IF(INDEX(itineraryPrograms,numericItinerary(K$3),$J17)="y","X","")) -> X | L17: =IF($G17=0,"",IF(INDEX(itineraryPrograms,numericItinerary(L$3),$J17)="y","X","")) -> X | M17: =IF($G17=0,"",IF(INDEX(itineraryPrograms,numericItinerary(M$3),$J17)="y","X","")) -> X | N17: =IF($G17=0,"",IF(INDEX(itineraryPrograms,numericItinerary(N$3),$J17)="y","X","")) -> X | O17: =IF($G17=0,"",IF(INDEX(itineraryPrograms,numericItinerary(O$3),$J17)="y","X","")) -> X | P17: =IF($G17=0,"",IF(INDEX(itineraryPrograms,numericItinerary(P$3),$J17)="y","X","")) -> X | Q17: 14
A18: 9-13 | B18: Super Strenuous | C18: 50 | D18: 7394.3 | G18: Cantina | H18: 111 | I18: 3 | J18: 7 | K18: =IF($G18=0,"",IF(INDEX(itineraryPrograms,numericItinerary(K$3),$J18)="y","X","")) ->  | L18: =IF($G18=0,"",IF(INDEX(itineraryPrograms,numericItinerary(L$3),$J18)="y","X","")) -> X | M18: =IF($G18=0,"",IF(INDEX(itineraryPrograms,numericItinerary(M$3),$J18)="y","X","")) ->  | N18: =IF($G18=0,"",IF(INDEX(itineraryPrograms,numericItinerary(N$3),$J18)="y","X","")) -> X | O18: =IF($G18=0,"",IF(INDEX(itineraryPrograms,numericItinerary(O$3),$J18)="y","X","")) ->  | P18: =IF($G18=0,"",IF(INDEX(itineraryPrograms,numericItinerary(P$3),$J18)="y","X","")) -> X | Q18: 15
A19: PREFERENCES: | G19: Blacksmithing | H19: 108 | I19: 5 | J19: 5 | K19: =IF($G19=0,"",IF(INDEX(itineraryPrograms,numericItinerary(K$3),$J19)="y","X","")) ->  | L19: =IF($G19=0,"",IF(INDEX(itineraryPrograms,numericItinerary(L$3),$J19)="y","X","")) -> X | M19: =IF($G19=0,"",IF(INDEX(itineraryPrograms,numericItinerary(M$3),$J19)="y","X","")) -> X | N19: =IF($G19=0,"",IF(INDEX(itineraryPrograms,numericItinerary(N$3),$J19)="y","X","")) -> X | O19: =IF($G19=0,"",IF(INDEX(itineraryPrograms,numericItinerary(O$3),$J19)="y","X","")) -> X | P19: =IF($G19=0,"",IF(INDEX(itineraryPrograms,numericItinerary(P$3),$J19)="y","X","")) -> X | Q19: 16
A20: Area Important? | B20: =UPPER(areaImportant) -> N | G20: Mount Phillips | H20: 108 | I20: 0 | J20: 24 | K20: =IF($G20=0,"",IF(INDEX(itineraryPrograms,numericItinerary(K$3),$J20)="y","X","")) ->  | L20: =IF($G20=0,"",IF(INDEX(itineraryPrograms,numericItinerary(L$3),$J20)="y","X","")) ->  | M20: =IF($G20=0,"",IF(INDEX(itineraryPrograms,numericItinerary(M$3),$J20)="y","X","")) ->  | N20: =IF($G20=0,"",IF(INDEX(itineraryPrograms,numericItinerary(N$3),$J20)="y","X","")) ->  | O20: =IF($G20=0,"",IF(INDEX(itineraryPrograms,numericItinerary(O$3),$J20)="y","X","")) ->  | P20: =IF($G20=0,"",IF(INDEX(itineraryPrograms,numericItinerary(P$3),$J20)="y","X","")) ->  | Q20: 17
A21: South: | B21: =IF(UPPER(areaImportant)="Y",Preferences!B7,"") ->  | G21: Laser Shot Shooting Range | H21: 104 | I21: 2 | J21: 20 | K21: =IF($G21=0,"",IF(INDEX(itineraryPrograms,numericItinerary(K$3),$J21)="y","X","")) ->  | L21: =IF($G21=0,"",IF(INDEX(itineraryPrograms,numericItinerary(L$3),$J21)="y","X","")) -> X | M21: =IF($G21=0,"",IF(INDEX(itineraryPrograms,numericItinerary(M$3),$J21)="y","X","")) ->  | N21: =IF($G21=0,"",IF(INDEX(itineraryPrograms,numericItinerary(N$3),$J21)="y","X","")) ->  | O21: =IF($G21=0,"",IF(INDEX(itineraryPrograms,numericItinerary(O$3),$J21)="y","X","")) -> X | P21: =IF($G21=0,"",IF(INDEX(itineraryPrograms,numericItinerary(P$3),$J21)="y","X","")) ->  | Q21: 18
A22: Central: | B22: =IF(UPPER(areaImportant)="Y",Preferences!B8,"") ->  | G22: Post Civil War Encampment | H22: 103 | I22: 1 | J22: 29 | K22: =IF($G22=0,"",IF(INDEX(itineraryPrograms,numericItinerary(K$3),$J22)="y","X","")) ->  | L22: =IF($G22=0,"",IF(INDEX(itineraryPrograms,numericItinerary(L$3),$J22)="y","X","")) ->  | M22: =IF($G22=0,"",IF(INDEX(itineraryPrograms,numericItinerary(M$3),$J22)="y","X","")) -> X | N22: =IF($G22=0,"",IF(INDEX(itineraryPrograms,numericItinerary(N$3),$J22)="y","X","")) ->  | O22: =IF($G22=0,"",IF(INDEX(itineraryPrograms,numericItinerary(O$3),$J22)="y","X","")) ->  | P22: =IF($G22=0,"",IF(INDEX(itineraryPrograms,numericItinerary(P$3),$J22)="y","X","")) ->  | Q22: 19
A23: North: | B23: =IF(UPPER(areaImportant)="Y",Preferences!B9,"") ->  | G23: Trail Peak | H23: 101 | I23: 0 | J23: 39 | K23: =IF($G23=0,"",IF(INDEX(itineraryPrograms,numericItinerary(K$3),$J23)="y","X","")) ->  | L23: =IF($G23=0,"",IF(INDEX(itineraryPrograms,numericItinerary(L$3),$J23)="y","X","")) ->  | M23: =IF($G23=0,"",IF(INDEX(itineraryPrograms,numericItinerary(M$3),$J23)="y","X","")) ->  | N23: =IF($G23=0,"",IF(INDEX(itineraryPrograms,numericItinerary(N$3),$J23)="y","X","")) ->  | O23: =IF($G23=0,"",IF(INDEX(itineraryPrograms,numericItinerary(O$3),$J23)="y","X","")) ->  | P23: =IF($G23=0,"",IF(INDEX(itineraryPrograms,numericItinerary(P$3),$J23)="y","X","")) ->  | Q23: 20
A24: Valle Vidal: | B24: =IF(UPPER(areaImportant)="Y",Preferences!B10,"") ->  | G24: New Mexico Homestead | H24: 100 | I24: 0 | J24: 27 | K24: =IF($G24=0,"",IF(INDEX(itineraryPrograms,numericItinerary(K$3),$J24)="y","X","")) ->  | L24: =IF($G24=0,"",IF(INDEX(itineraryPrograms,numericItinerary(L$3),$J24)="y","X","")) ->  | M24: =IF($G24=0,"",IF(INDEX(itineraryPrograms,numericItinerary(M$3),$J24)="y","X","")) ->  | N24: =IF($G24=0,"",IF(INDEX(itineraryPrograms,numericItinerary(N$3),$J24)="y","X","")) ->  | O24: =IF($G24=0,"",IF(INDEX(itineraryPrograms,numericItinerary(O$3),$J24)="y","X","")) ->  | P24: =IF($G24=0,"",IF(INDEX(itineraryPrograms,numericItinerary(P$3),$J24)="y","X","")) ->  | Q24: 21
A25: Capability: | B25: =skillLevel -> 3 | G25: Inspiration Point Hike | H25: 97 | I25: 0 | J25: 18 | K25: =IF($G25=0,"",IF(INDEX(itineraryPrograms,numericItinerary(K$3),$J25)="y","X","")) ->  | L25: =IF($G25=0,"",IF(INDEX(itineraryPrograms,numericItinerary(L$3),$J25)="y","X","")) ->  | M25: =IF($G25=0,"",IF(INDEX(itineraryPrograms,numericItinerary(M$3),$J25)="y","X","")) ->  | N25: =IF($G25=0,"",IF(INDEX(itineraryPrograms,numericItinerary(N$3),$J25)="y","X","")) ->  | O25: =IF($G25=0,"",IF(INDEX(itineraryPrograms,numericItinerary(O$3),$J25)="y","X","")) ->  | P25: =IF($G25=0,"",IF(INDEX(itineraryPrograms,numericItinerary(P$3),$J25)="y","X","")) ->  | Q25: 22
A26: Hike Out? | B26: =UPPER(hikeOut) -> N | G26: Muzzle Loading Rifle | H26: 97 | I26: 5 | J26: 26 | K26: =IF($G26=0,"",IF(INDEX(itineraryPrograms,numericItinerary(K$3),$J26)="y","X","")) -> X | L26: =IF($G26=0,"",IF(INDEX(itineraryPrograms,numericItinerary(L$3),$J26)="y","X","")) ->  | M26: =IF($G26=0,"",IF(INDEX(itineraryPrograms,numericItinerary(M$3),$J26)="y","X","")) -> X | N26: =IF($G26=0,"",IF(INDEX(itineraryPrograms,numericItinerary(N$3),$J26)="y","X","")) -> X | O26: =IF($G26=0,"",IF(INDEX(itineraryPrograms,numericItinerary(O$3),$J26)="y","X","")) -> X | P26: =IF($G26=0,"",IF(INDEX(itineraryPrograms,numericItinerary(P$3),$J26)="y","X","")) -> X | Q26: 23
A27: Hike In/Tooth? | B27: =UPPER(hikeIn) -> N | G27: Western Lore/Branding | H27: 93 | I27: 6 | J27: 40 | K27: =IF($G27=0,"",IF(INDEX(itineraryPrograms,numericItinerary(K$3),$J27)="y","X","")) -> X | L27: =IF($G27=0,"",IF(INDEX(itineraryPrograms,numericItinerary(L$3),$J27)="y","X","")) -> X | M27: =IF($G27=0,"",IF(INDEX(itineraryPrograms,numericItinerary(M$3),$J27)="y","X","")) -> X | N27: =IF($G27=0,"",IF(INDEX(itineraryPrograms,numericItinerary(N$3),$J27)="y","X","")) -> X | O27: =IF($G27=0,"",IF(INDEX(itineraryPrograms,numericItinerary(O$3),$J27)="y","X","")) -> X | P27: =IF($G27=0,"",IF(INDEX(itineraryPrograms,numericItinerary(P$3),$J27)="y","X","")) -> X | Q27: 24
A28: Max Altitude? | B28: =UPPER(altitudeMax) -> N | G28: Chuckwagon Dinner | H28: 87 | I28: 5 | J28: 9 | K28: =IF($G28=0,"",IF(INDEX(itineraryPrograms,numericItinerary(K$3),$J28)="y","X","")) -> X | L28: =IF($G28=0,"",IF(INDEX(itineraryPrograms,numericItinerary(L$3),$J28)="y","X","")) -> X | M28: =IF($G28=0,"",IF(INDEX(itineraryPrograms,numericItinerary(M$3),$J28)="y","X","")) -> X | N28: =IF($G28=0,"",IF(INDEX(itineraryPrograms,numericItinerary(N$3),$J28)="y","X","")) ->  | O28: =IF($G28=0,"",IF(INDEX(itineraryPrograms,numericItinerary(O$3),$J28)="y","X","")) -> X | P28: =IF($G28=0,"",IF(INDEX(itineraryPrograms,numericItinerary(P$3),$J28)="y","X","")) -> X | Q28: 25
A29: Total elevation? | B29: =UPPER(altitudeChange) -> N | G29: Low Impact Camping | H29: 86 | I29: 1 | J29: 22 | K29: =IF($G29=0,"",IF(INDEX(itineraryPrograms,numericItinerary(K$3),$J29)="y","X","")) ->  | L29: =IF($G29=0,"",IF(INDEX(itineraryPrograms,numericItinerary(L$3),$J29)="y","X","")) ->  | M29: =IF($G29=0,"",IF(INDEX(itineraryPrograms,numericItinerary(M$3),$J29)="y","X","")) ->  | N29: =IF($G29=0,"",IF(INDEX(itineraryPrograms,numericItinerary(N$3),$J29)="y","X","")) ->  | O29: =IF($G29=0,"",IF(INDEX(itineraryPrograms,numericItinerary(O$3),$J29)="y","X","")) -> X | P29: =IF($G29=0,"",IF(INDEX(itineraryPrograms,numericItinerary(P$3),$J29)="y","X","")) ->  | Q29: 26
A30: Daily change? | B30: =UPPER(altitudeDaily) -> Y | G30: Horse Rides | H30: 84 | I30: 3 | J30: 16 | K30: =IF($G30=0,"",IF(INDEX(itineraryPrograms,numericItinerary(K$3),$J30)="y","X","")) -> X | L30: =IF($G30=0,"",IF(INDEX(itineraryPrograms,numericItinerary(L$3),$J30)="y","X","")) ->  | M30: =IF($G30=0,"",IF(INDEX(itineraryPrograms,numericItinerary(M$3),$J30)="y","X","")) -> X | N30: =IF($G30=0,"",IF(INDEX(itineraryPrograms,numericItinerary(N$3),$J30)="y","X","")) ->  | O30: =IF($G30=0,"",IF(INDEX(itineraryPrograms,numericItinerary(O$3),$J30)="y","X","")) ->  | P30: =IF($G30=0,"",IF(INDEX(itineraryPrograms,numericItinerary(P$3),$J30)="y","X","")) -> X | Q30: 27
A31: Programs? | B31: =UPPER(programsImportant) -> Y | G31: Challenge Events | H31: 84 | I31: 1 | J31: 8 | K31: =IF($G31=0,"",IF(INDEX(itineraryPrograms,numericItinerary(K$3),$J31)="y","X","")) ->  | L31: =IF($G31=0,"",IF(INDEX(itineraryPrograms,numericItinerary(L$3),$J31)="y","X","")) -> X | M31: =IF($G31=0,"",IF(INDEX(itineraryPrograms,numericItinerary(M$3),$J31)="y","X","")) ->  | N31: =IF($G31=0,"",IF(INDEX(itineraryPrograms,numericItinerary(N$3),$J31)="y","X","")) ->  | O31: =IF($G31=0,"",IF(INDEX(itineraryPrograms,numericItinerary(O$3),$J31)="y","X","")) ->  | P31: =IF($G31=0,"",IF(INDEX(itineraryPrograms,numericItinerary(P$3),$J31)="y","X","")) ->  | Q31: 28
G32: Homesteading | H32: 82 | I32: 1 | J32: 15 | K32: =IF($G32=0,"",IF(INDEX(itineraryPrograms,numericItinerary(K$3),$J32)="y","X","")) ->  | L32: =IF($G32=0,"",IF(INDEX(itineraryPrograms,numericItinerary(L$3),$J32)="y","X","")) ->  | M32: =IF($G32=0,"",IF(INDEX(itineraryPrograms,numericItinerary(M$3),$J32)="y","X","")) -> X | N32: =IF($G32=0,"",IF(INDEX(itineraryPrograms,numericItinerary(N$3),$J32)="y","X","")) ->  | O32: =IF($G32=0,"",IF(INDEX(itineraryPrograms,numericItinerary(O$3),$J32)="y","X","")) ->  | P32: =IF($G32=0,"",IF(INDEX(itineraryPrograms,numericItinerary(P$3),$J32)="y","X","")) ->  | Q32: 29
G33: Lodge/Cabin Tours | H33: 76 | I33: 1 | J33: 21 | K33: =IF($G33=0,"",IF(INDEX(itineraryPrograms,numericItinerary(K$3),$J33)="y","X","")) ->  | L33: =IF($G33=0,"",IF(INDEX(itineraryPrograms,numericItinerary(L$3),$J33)="y","X","")) ->  | M33: =IF($G33=0,"",IF(INDEX(itineraryPrograms,numericItinerary(M$3),$J33)="y","X","")) -> X | N33: =IF($G33=0,"",IF(INDEX(itineraryPrograms,numericItinerary(N$3),$J33)="y","X","")) ->  | O33: =IF($G33=0,"",IF(INDEX(itineraryPrograms,numericItinerary(O$3),$J33)="y","X","")) ->  | P33: =IF($G33=0,"",IF(INDEX(itineraryPrograms,numericItinerary(P$3),$J33)="y","X","")) ->  | Q33: 30
D34: =MIN(rankedScore) -> 7394.3 | G34: Atlatl (Dart-throwing) | H34: 76 | I34: 1 | J34: 3 | K34: =IF($G34=0,"",IF(INDEX(itineraryPrograms,numericItinerary(K$3),$J34)="y","X","")) ->  | L34: =IF($G34=0,"",IF(INDEX(itineraryPrograms,numericItinerary(L$3),$J34)="y","X","")) ->  | M34: =IF($G34=0,"",IF(INDEX(itineraryPrograms,numericItinerary(M$3),$J34)="y","X","")) ->  | N34: =IF($G34=0,"",IF(INDEX(itineraryPrograms,numericItinerary(N$3),$J34)="y","X","")) -> X | O34: =IF($G34=0,"",IF(INDEX(itineraryPrograms,numericItinerary(O$3),$J34)="y","X","")) ->  | P34: =IF($G34=0,"",IF(INDEX(itineraryPrograms,numericItinerary(P$3),$J34)="y","X","")) ->  | Q34: 31
D35: =MAX(rankedScore) -> 10417.5 | G35: Gold Mining & Panning | H35: 76 | I35: 5 | J35: 14 | K35: =IF($G35=0,"",IF(INDEX(itineraryPrograms,numericItinerary(K$3),$J35)="y","X","")) -> X | L35: =IF($G35=0,"",IF(INDEX(itineraryPrograms,numericItinerary(L$3),$J35)="y","X","")) -> X | M35: =IF($G35=0,"",IF(INDEX(itineraryPrograms,numericItinerary(M$3),$J35)="y","X","")) ->  | N35: =IF($G35=0,"",IF(INDEX(itineraryPrograms,numericItinerary(N$3),$J35)="y","X","")) -> X | O35: =IF($G35=0,"",IF(INDEX(itineraryPrograms,numericItinerary(O$3),$J35)="y","X","")) -> X | P35: =IF($G35=0,"",IF(INDEX(itineraryPrograms,numericItinerary(P$3),$J35)="y","X","")) -> X | Q35: 32
G36: Fur Trapper Rendezvous | H36: 74 | J36: 13 | K36: =IF($G36=0,"",IF(INDEX(itineraryPrograms,numericItinerary(K$3),$J36)="y","X","")) ->  | L36: =IF($G36=0,"",IF(INDEX(itineraryPrograms,numericItinerary(L$3),$J36)="y","X","")) ->  | M36: =IF($G36=0,"",IF(INDEX(itineraryPrograms,numericItinerary(M$3),$J36)="y","X","")) ->  | N36: =IF($G36=0,"",IF(INDEX(itineraryPrograms,numericItinerary(N$3),$J36)="y","X","")) -> X | O36: =IF($G36=0,"",IF(INDEX(itineraryPrograms,numericItinerary(O$3),$J36)="y","X","")) ->  | P36: =IF($G36=0,"",IF(INDEX(itineraryPrograms,numericItinerary(P$3),$J36)="y","X","")) -> X | Q36: 33
G37: Fishing | H37: 73 | J37: 11 | K37: =IF($G37=0,"",IF(INDEX(itineraryPrograms,numericItinerary(K$3),$J37)="y","X","")) ->  | L37: =IF($G37=0,"",IF(INDEX(itineraryPrograms,numericItinerary(L$3),$J37)="y","X","")) ->  | M37: =IF($G37=0,"",IF(INDEX(itineraryPrograms,numericItinerary(M$3),$J37)="y","X","")) ->  | N37: =IF($G37=0,"",IF(INDEX(itineraryPrograms,numericItinerary(N$3),$J37)="y","X","")) ->  | O37: =IF($G37=0,"",IF(INDEX(itineraryPrograms,numericItinerary(O$3),$J37)="y","X","")) ->  | P37: =IF($G37=0,"",IF(INDEX(itineraryPrograms,numericItinerary(P$3),$J37)="y","X","")) ->  | Q37: 34
G38: Fly Tying | H38: 73 | J38: 12 | K38: =IF($G38=0,"",IF(INDEX(itineraryPrograms,numericItinerary(K$3),$J38)="y","X","")) ->  | L38: =IF($G38=0,"",IF(INDEX(itineraryPrograms,numericItinerary(L$3),$J38)="y","X","")) ->  | M38: =IF($G38=0,"",IF(INDEX(itineraryPrograms,numericItinerary(M$3),$J38)="y","X","")) ->  | N38: =IF($G38=0,"",IF(INDEX(itineraryPrograms,numericItinerary(N$3),$J38)="y","X","")) ->  | O38: =IF($G38=0,"",IF(INDEX(itineraryPrograms,numericItinerary(O$3),$J38)="y","X","")) ->  | P38: =IF($G38=0,"",IF(INDEX(itineraryPrograms,numericItinerary(P$3),$J38)="y","X","")) ->  | Q38: 35
G39: Hunter Safety | H39: 71 | J39: 17 | K39: =IF($G39=0,"",IF(INDEX(itineraryPrograms,numericItinerary(K$3),$J39)="y","X","")) ->  | L39: =IF($G39=0,"",IF(INDEX(itineraryPrograms,numericItinerary(L$3),$J39)="y","X","")) ->  | M39: =IF($G39=0,"",IF(INDEX(itineraryPrograms,numericItinerary(M$3),$J39)="y","X","")) ->  | N39: =IF($G39=0,"",IF(INDEX(itineraryPrograms,numericItinerary(N$3),$J39)="y","X","")) ->  | O39: =IF($G39=0,"",IF(INDEX(itineraryPrograms,numericItinerary(O$3),$J39)="y","X","")) ->  | P39: =IF($G39=0,"",IF(INDEX(itineraryPrograms,numericItinerary(P$3),$J39)="y","X","")) ->  | Q39: 36
G40: Mine Tour | H40: 69 | J40: 23 | K40: =IF($G40=0,"",IF(INDEX(itineraryPrograms,numericItinerary(K$3),$J40)="y","X","")) ->  | L40: =IF($G40=0,"",IF(INDEX(itineraryPrograms,numericItinerary(L$3),$J40)="y","X","")) -> X | M40: =IF($G40=0,"",IF(INDEX(itineraryPrograms,numericItinerary(M$3),$J40)="y","X","")) ->  | N40: =IF($G40=0,"",IF(INDEX(itineraryPrograms,numericItinerary(N$3),$J40)="y","X","")) ->  | O40: =IF($G40=0,"",IF(INDEX(itineraryPrograms,numericItinerary(O$3),$J40)="y","X","")) -> X | P40: =IF($G40=0,"",IF(INDEX(itineraryPrograms,numericItinerary(P$3),$J40)="y","X","")) -> X | Q40: 37
G41: Jicarilla Apache Life | H41: 62 | J41: 19 | K41: =IF($G41=0,"",IF(INDEX(itineraryPrograms,numericItinerary(K$3),$J41)="y","X","")) ->  | L41: =IF($G41=0,"",IF(INDEX(itineraryPrograms,numericItinerary(L$3),$J41)="y","X","")) ->  | M41: =IF($G41=0,"",IF(INDEX(itineraryPrograms,numericItinerary(M$3),$J41)="y","X","")) ->  | N41: =IF($G41=0,"",IF(INDEX(itineraryPrograms,numericItinerary(N$3),$J41)="y","X","")) ->  | O41: =IF($G41=0,"",IF(INDEX(itineraryPrograms,numericItinerary(O$3),$J41)="y","X","")) ->  | P41: =IF($G41=0,"",IF(INDEX(itineraryPrograms,numericItinerary(P$3),$J41)="y","X","")) ->  | Q41: 38
G42: Demonstration Forest | H42: 61 | I42: =COUNTIF(K42:P42,"X") -> 3 | J42: 10 | K42: =IF($G42=0,"",IF(INDEX(itineraryPrograms,numericItinerary(K$3),$J42)="y","X","")) -> X | L42: =IF($G42=0,"",IF(INDEX(itineraryPrograms,numericItinerary(L$3),$J42)="y","X","")) -> X | M42: =IF($G42=0,"",IF(INDEX(itineraryPrograms,numericItinerary(M$3),$J42)="y","X","")) ->  | N42: =IF($G42=0,"",IF(INDEX(itineraryPrograms,numericItinerary(N$3),$J42)="y","X","")) ->  | O42: =IF($G42=0,"",IF(INDEX(itineraryPrograms,numericItinerary(O$3),$J42)="y","X","")) -> X | P42: =IF($G42=0,"",IF(INDEX(itineraryPrograms,numericItinerary(P$3),$J42)="y","X","")) ->  | Q42: 39
G43: Rocky Mountain Fur Co. | H43: 61 | I43: =COUNTIF(K43:P43,"X") -> 3 | J43: 32 | K43: =IF($G43=0,"",IF(INDEX(itineraryPrograms,numericItinerary(K$3),$J43)="y","X","")) -> X | L43: =IF($G43=0,"",IF(INDEX(itineraryPrograms,numericItinerary(L$3),$J43)="y","X","")) ->  | M43: =IF($G43=0,"",IF(INDEX(itineraryPrograms,numericItinerary(M$3),$J43)="y","X","")) -> X | N43: =IF($G43=0,"",IF(INDEX(itineraryPrograms,numericItinerary(N$3),$J43)="y","X","")) ->  | O43: =IF($G43=0,"",IF(INDEX(itineraryPrograms,numericItinerary(O$3),$J43)="y","X","")) -> X | P43: =IF($G43=0,"",IF(INDEX(itineraryPrograms,numericItinerary(P$3),$J43)="y","X","")) ->  | Q43: 40
G44: Trail Peak | H44: 93 | J44: 49 | K44: =COUNTIF(K3:K42,"X") -> 9 | L44: 15 | M44: 11 | N44: 14 | O44: 14 | P44: 15
G45: Western Lore/Branding | H45: 0 | J45: 50 | K45: =K3 -> 9-4 | L45: 9-15 | M45: 9-3 | N45: 9-2 | O45: 9-8 | P45: 9-7
H46: =MIN(H4:H43) -> 61 | I46: Min
H47: =MAX(H4:H43) -> 225 | I47: Max

Sheet Itinerary Details
A1: Itinerary Information
A2: Itinerary Number: | C2: 9-1
A3: Expedition Number: | C3: 608-9A
A5: Classification: | C5: =VLOOKUP(INDEX(classification,numericItinerary(itineraryNumber)),difficultyTable,2) -> Challenging | E5: Staffed Camps: | G5: =getNcamps("Staff",itineraryNumber) -> 4 | J5: Area(s): | K5: =getCountry(numericItinerary(itineraryNumber)) -> Central, North | N5: Starting: | O5: =AA25 -> Turkey Creek Trailhead
A6: Distance: | C6: =INDEX(distance,numericItinerary(itineraryNumber)) -> 37 | E6: Trail Camps: | G6: =getNcamps("Trail",itineraryNumber) -> 6 | J6: Map(s): | K6: =getMaps(numericItinerary(itineraryNumber)) -> North, South | N6: Ending: | O6: =AB25 -> Hike In
A7: Initial/Max Days Food: | C7: =getFoodDays(itineraryNumber) -> 2/2 | E7: Layovers: | G7: =getNcamps("Layover",itineraryNumber) -> 2
A8: Return via Tooth: | C8: =IF(INDEX(viaTooth,numericItinerary(itineraryNumber))="y","Yes","No") -> No | E8: Dry Camps | G8: =getNcamps("Dry",itineraryNumber) -> 1 | J8: Peaks: | K8: =getPeakS(numericItinerary(itineraryNumber)) -> Baldy Mountain
A9: Min/Max Altitude: | C9: =getAltitude("Min",itineraryNumber) & "/" & getAltitude("Max",itineraryNumber) -> 6,979/8,515 | E9: Showers | G9: =COUNTIF(nShowers,"y") -> 2
A10: Total Altitude Change: | C10: =getAltitude("Chg",itineraryNumber) -> 1,536 | D10: Elevation information shown here is based on beginning/ending campsite altitudes, not any peaks or side hikes.
A11: Daily Altitude Change: | C11: =getAltitude("Avg",itineraryNumber) -> 791
A12: Description: | B12: =INDEX(descriptions,numericItinerary(itineraryNumber)) -> This itinerary will give you a first-hand look at Mother Nature’s recovery efforts after the 2018 Ute Park Fire. Your adventure begins with a short bus ride to the Turkey Creek trailhead. After additional training from your Ranger, you’ll make your way to Harlan along the Vaca Trail - the very first Order of the Arrow Trail Crew project. Take in the Palisades Rock formation that evening as the sun lights it up. Learn to reload 12-gauge shotgun shells and then put them to use at the skeet range the next morning before heading to Devils Wash Basin. Continue through the burn scar to your next destination, Cimarroncita for 3-D Archery and the Laser Shooting Range. Black Jacks, deep in Turkey Canyon is your next target. From there head to Elkhorn where you will work on a new trail to complete your Conservation Project. Head over to Ponil the next day for a mountain horseback ride, Western lore, and branding. After your Chuckwagon dinner, enjoy a root beer in the cantina with your crew and take in the Cantina Show. Get a good night’s sleep for an early start the next morning as you conquer Hart Peak, the highest point on Philmont back in 1939 when Ponil was original base camp and headquarters, and then head to Indian Writings. Check out the Atlatl darts and then head back in time for the Petroglyph Tour. On your way to the Six Mile Gate turnaround be sure to go back a little further in time as you check out the first T-Rex track ever discovered. Enjoy your bus ride back to Base Camp as you and your crew reminisce on your exciting adventure!
A13: Programs: | B13: =getPrograms(numericItinerary(itineraryNumber)) -> Archaeology, Archery - 3 Dimensional, Atlatl (Dart-throwing), Cantina, Chuckwagon Dinner, Horse Rides, Laser Shot Shooting Range, Mountaineering, Petroglyph Tour, Shotgun Shooting/Reloading - 12 Gauge, Western Lore/Branding
K14: UTM Coordinates
B15: Date: | D15: Day | E15: Campsite | K15: Elevation | L15: Easting | M15: Northing | O15: Food Pickup | P15: Cross US-64 | X15: Elevation | Y15: Change | Z15: Date | AA15: Day | AB15: CAMP | AC15: Type | AD15: Dry | AE15: Showers | AF15: Commissary | AG15: Trading Post | AH15: Map
B16: =AA16 & " (" & TEXT(Z16,"m/d/yyyy") & ")" -> Saturday (6/8/2024) | D16: 1 | E16: Camping HQ | K16: =TEXT(INDEX(campLocation,MATCH(AB16,camps,0),5),"##,##0") -> 6,696 | L16: =INDEX(campInfo,MATCH(AB16,camps),3) -> 503848 | M16: =INDEX(campInfo,MATCH(AB16,camps),4) -> 4034364 | P16: =getUS64crossingdirection(itineraryNumber,D16) ->  | X16: =INT(K16) -> 6696 | Y16: 0 | Z16: =expeditionStartDate(itinExpeditionNo) -> 2024-06-08 | AA16: =INDEX({"Sunday","Monday","Tuesday","Wednesday","Thursday","Friday","Saturday"},WEEKDAY(Z16)) -> Saturday | AB16: Camping HQ | AD16: =INDEX(campInfo,MATCH($AB16,camps),10) ->  | AE16: =INDEX(campInfo,MATCH($AB16,camps),11) ->  | AF16: =INDEX(campInfo,MATCH($AB16,camps),6) ->  | AG16: =INDEX(campInfo,MATCH($AB16,camps),7) ->  | AH16: =VLOOKUP($AB16,campInfo,12) -> South
B17: =AA17 & " (" & TEXT(Z17,"m/d/yyyy") & ")" -> Sunday (6/9/2024) | D17: =D16+1 -> 2 | E17: =getCampWithInfo(AB17,AC17,AD17,AE17,AF17,AG17) -> HARLAN | K17: 7,550 | L17: 498402 | M17: 4041184 | O17: =INDEX(foodPickups,numericItinerary(itineraryNumber),D17-1) -> Camping HQ | P17: =getUS64crossingdirection(itineraryNumber,D17) ->  | X17: 7550 | Y17: =X17-X16 -> 854 | Z17: =Z16+1 -> 2024-06-09 | AA17: =INDEX({"Sunday","Monday","Tuesday","Wednesday","Thursday","Friday","Saturday"},WEEKDAY(Z17)) -> Sunday | AB17: Harlan | AC17: =IF(VLOOKUP($AB17,campInfo,8)="Y","Staff","Trail") -> Staff | AD17: =VLOOKUP($AB17,campInfo,10) ->  | AE17: =VLOOKUP($AB17,campInfo,11) ->  | AF17: =VLOOKUP($AB17,campInfo,6) ->  | AG17: =VLOOKUP($AB17,campInfo,7) ->  | AH17: South
B18: =AA18 & " (" & TEXT(Z18,"m/d/yyyy") & ")" -> Monday (6/10/2024) | D18: =D17+1 -> 3 | E18: =getCampWithInfo(AB18,AC18,AD18,AE18,AF18,AG18) -> Devil's Wash Basin (Dry) | K18: =TEXT(INDEX(campLocation,MATCH(AB18,camps,0),5),"##,##0") -> 8,515 | L18: 494932 | M18: 4042281 | O18: =INDEX(foodPickups,numericItinerary(itineraryNumber),D18-1) -> 0 | P18: =getUS64crossingdirection(itineraryNumber,D18) ->  | X18: =INT(K18) -> 8515 | Y18: =X18-X17 -> 965 | Z18: =Z17+1 -> 2024-06-10 | AA18: =INDEX({"Sunday","Monday","Tuesday","Wednesday","Thursday","Friday","Saturday"},WEEKDAY(Z18)) -> Monday | AB18: Devil's Wash Basin | AC18: Trail | AD18: Y | AH18: South
B19: Tuesday (6/11/2024) | D19: 4 | E19: =getCampWithInfo(AB19,AC19,AD19,AE19,AF19,AG19) -> CIMARRONCITA | K19: =TEXT(INDEX(campLocation,MATCH(AB19,camps,0),5),"##,##0") -> 7,373 | L19: 492337.1511 | M19: 4045746.667 | O19: =INDEX(foodPickups,numericItinerary(itineraryNumber),D19-1) -> Cimarroncita | P19: =getUS64crossingdirection(itineraryNumber,D19) ->  | X19: 7373 | Y19: -1142 | Z19: 2024-06-11 | AA19: =INDEX({"Sunday","Monday","Tuesday","Wednesday","Thursday","Friday","Saturday"},WEEKDAY(Z19)) -> Tuesday | AB19: Cimarroncita | AC19: Staff | AE19: 0 | AF19: 0 | AG19: 0 | AH19: North & South
B20: Wednesday (6/12/2024) | D20: 5 | E20: =getCampWithInfo(AB20,AC20,AD20,AE20,AF20,AG20) -> Black Jacks | K20: 8,211 | L20: 496177 | M20: 4047265 | O20: =INDEX(foodPickups,numericItinerary(itineraryNumber),D20-1) -> 0 | P20: =getUS64crossingdirection(itineraryNumber,D20) ->  | X20: 8211 | Y20: 838 | Z20: 2024-06-12 | AA20: =INDEX({"Sunday","Monday","Tuesday","Wednesday","Thursday","Friday","Saturday"},WEEKDAY(Z20)) -> Wednesday | AB20: Black Jacks | AC20: Trail | AH20: North
B21: Thursday (6/13/2024) | D21: 6 | E21: =getCampWithInfo(AB21,AC21,AD21,AE21,AF21,AG21) -> Elkhorn | K21: 8,496 | L21: 492424 | M21: 4051874 | O21: =INDEX(foodPickups,numericItinerary(itineraryNumber),D21-1) -> 0 | P21: =getUS64crossingdirection(itineraryNumber,D21) ->  | X21: 8496 | Y21: 285 | Z21: 2024-06-13 | AA21: =INDEX({"Sunday","Monday","Tuesday","Wednesday","Thursday","Friday","Saturday"},WEEKDAY(Z21)) -> Thursday | AB21: Elkhorn | AC21: Trail | AH21: North
B22: Friday (6/14/2024) | D22: 7 | E22: =getCampWithInfo(AB22,AC22,AD22,AE22,AF22,AG22) -> PONIL (Showers, Commissary, Trading Post) | K22: 7,150 | L22: 496696.547 | M22: 4053001.275 | O22: =INDEX(foodPickups,numericItinerary(itineraryNumber),D22-1) -> Ponil | P22: =getUS64crossingdirection(itineraryNumber,D22) ->  | X22: 7150 | Y22: -1346 | Z22: 2024-06-14 | AA22: =INDEX({"Sunday","Monday","Tuesday","Wednesday","Thursday","Friday","Saturday"},WEEKDAY(Z22)) -> Friday | AB22: Ponil | AC22: Staff | AE22: Y | AF22: Y | AG22: Y | AH22: North
B23: Saturday (6/15/2024) | D23: 8 | E23: =getCampWithInfo(AB23,AC23,AD23,AE23,AF23,AG23) -> INDIAN WRITINGS (Showers) | K23: 6,979 | L23: 500421 | M23: 4053139 | O23: =INDEX(foodPickups,numericItinerary(itineraryNumber),D23-1) -> 0 | P23: =getUS64crossingdirection(itineraryNumber,D23) ->  | X23: 6979 | Y23: -171 | Z23: 2024-06-15 | AA23: =INDEX({"Sunday","Monday","Tuesday","Wednesday","Thursday","Friday","Saturday"},WEEKDAY(Z23)) -> Saturday | AB23: Indian Writings | AC23: Staff | AE23: Y | AH23: North
B24: Sunday (6/16/2024) | D24: 9 | E24: Camping HQ | K24: 6,696 | L24: 503848 | M24: 4034364 | P24: =getUS64crossingdirection(itineraryNumber,D24) ->  | X24: 6696 | Y24: -283 | Z24: 2024-06-16 | AA24: =INDEX({"Sunday","Monday","Tuesday","Wednesday","Thursday","Friday","Saturday"},WEEKDAY(Z24)) -> Sunday | AB24: Camping HQ | AD24: =INDEX(campInfo,MATCH($AB24,camps),10) ->  | AE24: =INDEX(campInfo,MATCH($AB24,camps),11) ->  | AF24: =INDEX(campInfo,MATCH($AB24,camps),6) ->  | AG24: =INDEX(campInfo,MATCH($AB24,camps),7) ->  | AH24: South
L25: NAD 3/Zone 13 * Estimated coordinates | AA25: =getstartendinfo("S",itineraryNumber) -> Turkey Creek Trailhead | AB25: Hike In
AB26: BASE

Sheet Itinerary Xref Chart
A1: ITINERARY NUMBERS: | B1: # times in Itineraries | C1: =INDEX(itineraryNumbers,COLUMN()-2) -> 9-1 | D1: =INDEX(itineraryNumbers,COLUMN()-2) -> 9-2 | E1: =INDEX(itineraryNumbers,COLUMN()-2) -> 9-3 | F1: =INDEX(itineraryNumbers,COLUMN()-2) -> 9-4 | G1: =INDEX(itineraryNumbers,COLUMN()-2) -> 9-5 | H1: =INDEX(itineraryNumbers,COLUMN()-2) -> 9-6 | I1: =INDEX(itineraryNumbers,COLUMN()-2) -> 9-7 | J1: =INDEX(itineraryNumbers,COLUMN()-2) -> 9-8 | K1: =INDEX(itineraryNumbers,COLUMN()-2) -> 9-9 | L1: =INDEX(itineraryNumbers,COLUMN()-2) -> 9-10 | M1: =INDEX(itineraryNumbers,COLUMN()-2) -> 9-11 | N1: =INDEX(itineraryNumbers,COLUMN()-2) -> 9-12 | O1: =INDEX(itineraryNumbers,COLUMN()-2) -> 9-13 | P1: =INDEX(itineraryNumbers,COLUMN()-2) -> 9-14 | Q1: =INDEX(itineraryNumbers,COLUMN()-2) -> 9-15 | S1: Check
A2: Hiking Difficulty | C2: =INDEX(classification,numericItinerary(C1)) -> C | D2: =INDEX(classification,numericItinerary(D1)) -> C | E2: =INDEX(classification,numericItinerary(E1)) -> C | F2: =INDEX(classification,numericItinerary(F1)) -> C | G2: =INDEX(classification,numericItinerary(G1)) -> R | H2: =INDEX(classification,numericItinerary(H1)) -> R | I2: =INDEX(classification,numericItinerary(I1)) -> R | J2: =INDEX(classification,numericItinerary(J1)) -> R | K2: =INDEX(classification,numericItinerary(K1)) -> S | L2: =INDEX(classification,numericItinerary(L1)) -> S | M2: =INDEX(classification,numericItinerary(M1)) -> S | N2: =INDEX(classification,numericItinerary(N1)) -> S | O2: =INDEX(classification,numericItinerary(O1)) -> SS | P2: =INDEX(classification,numericItinerary(P1)) -> SS | Q2: =INDEX(classification,numericItinerary(Q1)) -> SS
A3: Distance (Approximately) | C3: =INDEX(distance,numericItinerary(C1)) -> 37 | D3: =INDEX(distance,numericItinerary(D1)) -> 39 | E3: =INDEX(distance,numericItinerary(E1)) -> 41 | F3: =INDEX(distance,numericItinerary(F1)) -> 44 | G3: =INDEX(distance,numericItinerary(G1)) -> 46 | H3: =INDEX(distance,numericItinerary(H1)) -> 46 | I3: =INDEX(distance,numericItinerary(I1)) -> 46 | J3: =INDEX(distance,numericItinerary(J1)) -> 46 | K3: =INDEX(distance,numericItinerary(K1)) -> 49 | L3: =INDEX(distance,numericItinerary(L1)) -> 50 | M3: =INDEX(distance,numericItinerary(M1)) -> 51 | N3: =INDEX(distance,numericItinerary(N1)) -> 52 | O3: =INDEX(distance,numericItinerary(O1)) -> 50 | P3: =INDEX(distance,numericItinerary(P1)) -> 56 | Q3: =INDEX(distance,numericItinerary(Q1)) -> 70 | S3: =SUM(C3:Q3) -> 723
A4: Trail Camps | C4: =countcamps(itineraryTrail,numericItinerary(C$1)) -> 6 | D4: =countcamps(itineraryTrail,numericItinerary(D$1)) -> 7 | E4: =countcamps(itineraryTrail,numericItinerary(E$1)) -> 5 | F4: =countcamps(itineraryTrail,numericItinerary(F$1)) -> 7 | G4: =countcamps(itineraryTrail,numericItinerary(G$1)) -> 7 | H4: =countcamps(itineraryTrail,numericItinerary(H$1)) -> 8 | I4: =countcamps(itineraryTrail,numericItinerary(I$1)) -> 6 | J4: =countcamps(itineraryTrail,numericItinerary(J$1)) -> 7 | K4: =countcamps(itineraryTrail,numericItinerary(K$1)) -> 8 | L4: =countcamps(itineraryTrail,numericItinerary(L$1)) -> 6 | M4: =countcamps(itineraryTrail,numericItinerary(M$1)) -> 6 | N4: =countcamps(itineraryTrail,numericItinerary(N$1)) -> 7 | O4: =countcamps(itineraryTrail,numericItinerary(O$1)) -> 7 | P4: =countcamps(itineraryTrail,numericItinerary(P$1)) -> 7 | Q4: =countcamps(itineraryTrail,numericItinerary(Q$1)) -> 6 | S4: =SUM(C4:Q4) -> 100
A5: Dry Camps | C5: =countcamps(itineraryStaff,numericItinerary(C$1)) -> 4 | D5: =countcamps(itineraryStaff,numericItinerary(D$1)) -> 3 | E5: =countcamps(itineraryStaff,numericItinerary(E$1)) -> 5 | F5: =countcamps(itineraryStaff,numericItinerary(F$1)) -> 3 | G5: =countcamps(itineraryStaff,numericItinerary(G$1)) -> 3 | H5: =countcamps(itineraryStaff,numericItinerary(H$1)) -> 2 | I5: =countcamps(itineraryStaff,numericItinerary(I$1)) -> 4 | J5: =countcamps(itineraryStaff,numericItinerary(J$1)) -> 3 | K5: =countcamps(itineraryStaff,numericItinerary(K$1)) -> 2 | L5: =countcamps(itineraryStaff,numericItinerary(L$1)) -> 4 | M5: =countcamps(itineraryStaff,numericItinerary(M$1)) -> 4 | N5: =countcamps(itineraryStaff,numericItinerary(N$1)) -> 3 | O5: =countcamps(itineraryStaff,numericItinerary(O$1)) -> 3 | P5: =countcamps(itineraryStaff,numericItinerary(P$1)) -> 3 | Q5: =countcamps(itineraryStaff,numericItinerary(Q$1)) -> 4 | S5: =SUM(C5:Q5) -> 50
A6: =INDEX(program_table,ROW()-5) -> Archaeology | B6: =COUNTIF(C6:Q6,"X") -> 2 | C6: =getProgramXref($A6,numericItinerary(C$1)) -> x | D6: =getProgramXref($A6,numericItinerary(D$1)) -> x | E6: =getProgramXref($A6,numericItinerary(E$1)) ->  | F6: =getProgramXref($A6,numericItinerary(F$1)) ->  | G6: =getProgramXref($A6,numericItinerary(G$1)) ->  | H6: =getProgramXref($A6,numericItinerary(H$1)) ->  | I6: =getProgramXref($A6,numericItinerary(I$1)) ->  | J6: =getProgramXref($A6,numericItinerary(J$1)) ->  | K6: =getProgramXref($A6,numericItinerary(K$1)) ->  | L6: =getProgramXref($A6,numericItinerary(L$1)) ->  | M6: =getProgramXref($A6,numericItinerary(M$1)) ->  | N6: =getProgramXref($A6,numericItinerary(N$1)) ->  | O6: =getProgramXref($A6,numericItinerary(O$1)) ->  | P6: =getProgramXref($A6,numericItinerary(P$1)) ->  | Q6: =getProgramXref($A6,numericItinerary(Q$1)) ->  | S6: =COUNTIF(C6:Q6,"X") -> 2
A7: =INDEX(program_table,ROW()-5) -> Archery - 3 Dimensional | B7: 7 | C7: =getProgramXref($A7,numericItinerary(C$1)) -> x | D7: =getProgramXref($A7,numericItinerary(D$1)) ->  | E7: =getProgramXref($A7,numericItinerary(E$1)) ->  | F7: =getProgramXref($A7,numericItinerary(F$1)) ->  | G7: =getProgramXref($A7,numericItinerary(G$1)) ->  | H7: =getProgramXref($A7,numericItinerary(H$1)) ->  | I7: =getProgramXref($A7,numericItinerary(I$1)) ->  | J7: =getProgramXref($A7,numericItinerary(J$1)) -> x | K7: =getProgramXref($A7,numericItinerary(K$1)) -> x | L7: =getProgramXref($A7,numericItinerary(L$1)) -> x | M7: =getProgramXref($A7,numericItinerary(M$1)) ->  | N7: =getProgramXref($A7,numericItinerary(N$1)) -> x | O7: =getProgramXref($A7,numericItinerary(O$1)) ->  | P7: =getProgramXref($A7,numericItinerary(P$1)) -> x | Q7: =getProgramXref($A7,numericItinerary(Q$1)) -> x | S7: 7
A8: =INDEX(program_table,ROW()-5) -> Atlatl (Dart-throwing) | B8: 2 | C8: =getProgramXref($A8,numericItinerary(C$1)) -> x | D8: =getProgramXref($A8,numericItinerary(D$1)) -> x | E8: =getProgramXref($A8,numericItinerary(E$1)) ->  | F8: =getProgramXref($A8,numericItinerary(F$1)) ->  | G8: =getProgramXref($A8,numericItinerary(G$1)) ->  | H8: =getProgramXref($A8,numericItinerary(H$1)) ->  | I8: =getProgramXref($A8,numericItinerary(I$1)) ->  | J8: =getProgramXref($A8,numericItinerary(J$1)) ->  | K8: =getProgramXref($A8,numericItinerary(K$1)) ->  | L8: =getProgramXref($A8,numericItinerary(L$1)) ->  | M8: =getProgramXref($A8,numericItinerary(M$1)) ->  | N8: =getProgramXref($A8,numericItinerary(N$1)) ->  | O8: =getProgramXref($A8,numericItinerary(O$1)) ->  | P8: =getProgramXref($A8,numericItinerary(P$1)) ->  | Q8: =getProgramXref($A8,numericItinerary(Q$1)) ->  | S8: 2
A9: =INDEX(program_table,ROW()-5) -> Baldy Mountain | B9: 7 | C9: =getProgramXref($A9,numericItinerary(C$1)) ->  | D9: =getProgramXref($A9,numericItinerary(D$1)) -> x | E9: =getProgramXref($A9,numericItinerary(E$1)) ->  | F9: =getProgramXref($A9,numericItinerary(F$1)) ->  | G9: =getProgramXref($A9,numericItinerary(G$1)) -> x | H9: =getProgramXref($A9,numericItinerary(H$1)) -> x | I9: =getProgramXref($A9,numericItinerary(I$1)) -> x | J9: =getProgramXref($A9,numericItinerary(J$1)) ->  | K9: =getProgramXref($A9,numericItinerary(K$1)) -> x | L9: =getProgramXref($A9,numericItinerary(L$1)) ->  | M9: =getProgramXref($A9,numericItinerary(M$1)) ->  | N9: =getProgramXref($A9,numericItinerary(N$1)) ->  | O9: =getProgramXref($A9,numericItinerary(O$1)) ->  | P9: =getProgramXref($A9,numericItinerary(P$1)) -> x | Q9: =getProgramXref($A9,numericItinerary(Q$1)) -> x | S9: 7
A10: =INDEX(program_table,ROW()-5) -> Blacksmithing | B10: 10 | C10: =getProgramXref($A10,numericItinerary(C$1)) ->  | D10: =getProgramXref($A10,numericItinerary(D$1)) -> x | E10: =getProgramXref($A10,numericItinerary(E$1)) -> x | F10: =getProgramXref($A10,numericItinerary(F$1)) ->  | G10: =getProgramXref($A10,numericItinerary(G$1)) -> x | H10: =getProgramXref($A10,numericItinerary(H$1)) -> x | I10: =getProgramXref($A10,numericItinerary(I$1)) -> x | J10: =getProgramXref($A10,numericItinerary(J$1)) -> x | K10: =getProgramXref($A10,numericItinerary(K$1)) ->  | L10: =getProgramXref($A10,numericItinerary(L$1)) ->  | M10: =getProgramXref($A10,numericItinerary(M$1)) -> x | N10: =getProgramXref($A10,numericItinerary(N$1)) ->  | O10: =getProgramXref($A10,numericItinerary(O$1)) -> x | P10: =getProgramXref($A10,numericItinerary(P$1)) -> x | Q10: =getProgramXref($A10,numericItinerary(Q$1)) -> x | S10: 10
A11: =INDEX(program_table,ROW()-5) -> Campfire (evening) | B11: 13 | C11: =getProgramXref($A11,numericItinerary(C$1)) ->  | D11: =getProgramXref($A11,numericItinerary(D$1)) -> x | E11: =getProgramXref($A11,numericItinerary(E$1)) -> x | F11: =getProgramXref($A11,numericItinerary(F$1)) -> x | G11: =getProgramXref($A11,numericItinerary(G$1)) -> x | H11: =getProgramXref($A11,numericItinerary(H$1)) -> x | I11: =getProgramXref($A11,numericItinerary(I$1)) -> x | J11: =getProgramXref($A11,numericItinerary(J$1)) -> x | K11: =getProgramXref($A11,numericItinerary(K$1)) ->  | L11: =getProgramXref($A11,numericItinerary(L$1)) -> x | M11: =getProgramXref($A11,numericItinerary(M$1)) -> x | N11: =getProgramXref($A11,numericItinerary(N$1)) -> x | O11: =getProgramXref($A11,numericItinerary(O$1)) -> x | P11: =getProgramXref($A11,numericItinerary(P$1)) -> x | Q11: =getProgramXref($A11,numericItinerary(Q$1)) -> x | S11: 13
A12: =INDEX(program_table,ROW()-5) -> Cantina | B12: 9 | C12: =getProgramXref($A12,numericItinerary(C$1)) -> x | D12: =getProgramXref($A12,numericItinerary(D$1)) -> x | E12: =getProgramXref($A12,numericItinerary(E$1)) ->  | F12: =getProgramXref($A12,numericItinerary(F$1)) ->  | G12: =getProgramXref($A12,numericItinerary(G$1)) -> x | H12: =getProgramXref($A12,numericItinerary(H$1)) -> x | I12: =getProgramXref($A12,numericItinerary(I$1)) -> x | J12: =getProgramXref($A12,numericItinerary(J$1)) ->  | K12: =getProgramXref($A12,numericItinerary(K$1)) ->  | L12: =getProgramXref($A12,numericItinerary(L$1)) ->  | M12: =getProgramXref($A12,numericItinerary(M$1)) -> x | N12: =getProgramXref($A12,numericItinerary(N$1)) -> x | O12: =getProgramXref($A12,numericItinerary(O$1)) ->  | P12: =getProgramXref($A12,numericItinerary(P$1)) -> x | Q12: =getProgramXref($A12,numericItinerary(Q$1)) -> x | S12: 9
A13: =INDEX(program_table,ROW()-5) -> Challenge Events | B13: 6 | C13: =getProgramXref($A13,numericItinerary(C$1)) ->  | D13: =getProgramXref($A13,numericItinerary(D$1)) ->  | E13: =getProgramXref($A13,numericItinerary(E$1)) ->  | F13: =getProgramXref($A13,numericItinerary(F$1)) ->  | G13: =getProgramXref($A13,numericItinerary(G$1)) -> x | H13: =getProgramXref($A13,numericItinerary(H$1)) -> x | I13: =getProgramXref($A13,numericItinerary(I$1)) ->  | J13: =getProgramXref($A13,numericItinerary(J$1)) ->  | K13: =getProgramXref($A13,numericItinerary(K$1)) -> x | L13: =getProgramXref($A13,numericItinerary(L$1)) -> x | M13: =getProgramXref($A13,numericItinerary(M$1)) ->  | N13: =getProgramXref($A13,numericItinerary(N$1)) ->  | O13: =getProgramXref($A13,numericItinerary(O$1)) ->  | P13: =getProgramXref($A13,numericItinerary(P$1)) -> x | Q13: =getProgramXref($A13,numericItinerary(Q$1)) -> x | S13: 6
A14: =INDEX(program_table,ROW()-5) -> Chuckwagon Dinner | B14: 10 | C14: =getProgramXref($A14,numericItinerary(C$1)) -> x | D14: =getProgramXref($A14,numericItinerary(D$1)) ->  | E14: =getProgramXref($A14,numericItinerary(E$1)) -> x | F14: =getProgramXref($A14,numericItinerary(F$1)) -> x | G14: =getProgramXref($A14,numericItinerary(G$1)) -> x | H14: =getProgramXref($A14,numericItinerary(H$1)) ->  | I14: =getProgramXref($A14,numericItinerary(I$1)) -> x | J14: =getProgramXref($A14,numericItinerary(J$1)) -> x | K14: =getProgramXref($A14,numericItinerary(K$1)) ->  | L14: =getProgramXref($A14,numericItinerary(L$1)) ->  | M14: =getProgramXref($A14,numericItinerary(M$1)) -> x | N14: =getProgramXref($A14,numericItinerary(N$1)) -> x | O14: =getProgramXref($A14,numericItinerary(O$1)) -> x | P14: =getProgramXref($A14,numericItinerary(P$1)) ->  | Q14: =getProgramXref($A14,numericItinerary(Q$1)) -> x | S14: 10
A15: =INDEX(program_table,ROW()-5) -> Demonstration Forest | B15: 4 | C15: =getProgramXref($A15,numericItinerary(C$1)) ->  | D15: =getProgramXref($A15,numericItinerary(D$1)) ->  | E15: =getProgramXref($A15,numericItinerary(E$1)) ->  | F15: =getProgramXref($A15,numericItinerary(F$1)) -> x | G15: =getProgramXref($A15,numericItinerary(G$1)) ->  | H15: =getProgramXref($A15,numericItinerary(H$1)) ->  | I15: =getProgramXref($A15,numericItinerary(I$1)) ->  | J15: =getProgramXref($A15,numericItinerary(J$1)) -> x | K15: =getProgramXref($A15,numericItinerary(K$1)) -> x | L15: =getProgramXref($A15,numericItinerary(L$1)) ->  | M15: =getProgramXref($A15,numericItinerary(M$1)) ->  | N15: =getProgramXref($A15,numericItinerary(N$1)) ->  | O15: =getProgramXref($A15,numericItinerary(O$1)) ->  | P15: =getProgramXref($A15,numericItinerary(P$1)) ->  | Q15: =getProgramXref($A15,numericItinerary(Q$1)) -> x | S15: 4
A16: =INDEX(program_table,ROW()-5) -> Fishing | B16: 1 | C16: =getProgramXref($A16,numericItinerary(C$1)) ->  | D16: =getProgramXref($A16,numericItinerary(D$1)) ->  | E16: =getProgramXref($A16,numericItinerary(E$1)) ->  | F16: =getProgramXref($A16,numericItinerary(F$1)) ->  | G16: =getProgramXref($A16,numericItinerary(G$1)) ->  | H16: =getProgramXref($A16,numericItinerary(H$1)) ->  | I16: =getProgramXref($A16,numericItinerary(I$1)) ->  | J16: =getProgramXref($A16,numericItinerary(J$1)) ->  | K16: =getProgramXref($A16,numericItinerary(K$1)) ->  | L16: =getProgramXref($A16,numericItinerary(L$1)) -> x | M16: =getProgramXref($A16,numericItinerary(M$1)) ->  | N16: =getProgramXref($A16,numericItinerary(N$1)) ->  | O16: =getProgramXref($A16,numericItinerary(O$1)) ->  | P16: =getProgramXref($A16,numericItinerary(P$1)) ->  | Q16: =getProgramXref($A16,numericItinerary(Q$1)) ->  | S16: 1
A17: =INDEX(program_table,ROW()-5) -> Fly Tying | B17: 1 | C17: =getProgramXref($A17,numericItinerary(C$1)) ->  | D17: =getProgramXref($A17,numericItinerary(D$1)) ->  | E17: =getProgramXref($A17,numericItinerary(E$1)) ->  | F17: =getProgramXref($A17,numericItinerary(F$1)) ->  | G17: =getProgramXref($A17,numericItinerary(G$1)) ->  | H17: =getProgramXref($A17,numericItinerary(H$1)) ->  | I17: =getProgramXref($A17,numericItinerary(I$1)) ->  | J17: =getProgramXref($A17,numericItinerary(J$1)) ->  | K17: =getProgramXref($A17,numericItinerary(K$1)) ->  | L17: =getProgramXref($A17,numericItinerary(L$1)) -> x | M17: =getProgramXref($A17,numericItinerary(M$1)) ->  | N17: =getProgramXref($A17,numericItinerary(N$1)) ->  | O17: =getProgramXref($A17,numericItinerary(O$1)) ->  | P17: =getProgramXref($A17,numericItinerary(P$1)) ->  | Q17: =getProgramXref($A17,numericItinerary(Q$1)) ->  | S17: 1
A18: =INDEX(program_table,ROW()-5) -> Fur Trapper Rendezvous | B18: 3 | C18: =getProgramXref($A18,numericItinerary(C$1)) ->  | D18: =getProgramXref($A18,numericItinerary(D$1)) -> x | E18: =getProgramXref($A18,numericItinerary(E$1)) ->  | F18: =getProgramXref($A18,numericItinerary(F$1)) ->  | G18: =getProgramXref($A18,numericItinerary(G$1)) ->  | H18: =getProgramXref($A18,numericItinerary(H$1)) -> x | I18: =getProgramXref($A18,numericItinerary(I$1)) -> x | J18: =getProgramXref($A18,numericItinerary(J$1)) ->  | K18: =getProgramXref($A18,numericItinerary(K$1)) ->  | L18: =getProgramXref($A18,numericItinerary(L$1)) ->  | M18: =getProgramXref($A18,numericItinerary(M$1)) ->  | N18: =getProgramXref($A18,numericItinerary(N$1)) ->  | O18: =getProgramXref($A18,numericItinerary(O$1)) ->  | P18: =getProgramXref($A18,numericItinerary(P$1)) ->  | Q18: =getProgramXref($A18,numericItinerary(Q$1)) ->  | S18: 3
A19: =INDEX(program_table,ROW()-5) -> Gold Mining & Panning | B19: 9 | C19: =getProgramXref($A19,numericItinerary(C$1)) ->  | D19: =getProgramXref($A19,numericItinerary(D$1)) -> x | E19: =getProgramXref($A19,numericItinerary(E$1)) ->  | F19: =getProgramXref($A19,numericItinerary(F$1)) -> x | G19: =getProgramXref($A19,numericItinerary(G$1)) -> x | H19: =getProgramXref($A19,numericItinerary(H$1)) -> x | I19: =getProgramXref($A19,numericItinerary(I$1)) -> x | J19: =getProgramXref($A19,numericItinerary(J$1)) -> x | K19: =getProgramXref($A19,numericItinerary(K$1)) -> x | L19: =getProgramXref($A19,numericItinerary(L$1)) ->  | M19: =getProgramXref($A19,numericItinerary(M$1)) ->  | N19: =getProgramXref($A19,numericItinerary(N$1)) ->  | O19: =getProgramXref($A19,numericItinerary(O$1)) ->  | P19: =getProgramXref($A19,numericItinerary(P$1)) -> x | Q19: =getProgramXref($A19,numericItinerary(Q$1)) -> x | S19: 9
A20: =INDEX(program_table,ROW()-5) -> Homesteading | B20: 6 | C20: =getProgramXref($A20,numericItinerary(C$1)) ->  | D20: =getProgramXref($A20,numericItinerary(D$1)) ->  | E20: =getProgramXref($A20,numericItinerary(E$1)) -> x | F20: =getProgramXref($A20,numericItinerary(F$1)) ->  | G20: =getProgramXref($A20,numericItinerary(G$1)) -> x | H20: =getProgramXref($A20,numericItinerary(H$1)) ->  | I20: =getProgramXref($A20,numericItinerary(I$1)) ->  | J20: =getProgramXref($A20,numericItinerary(J$1)) ->  | K20: =getProgramXref($A20,numericItinerary(K$1)) ->  | L20: =getProgramXref($A20,numericItinerary(L$1)) -> x | M20: =getProgramXref($A20,numericItinerary(M$1)) -> x | N20: =getProgramXref($A20,numericItinerary(N$1)) -> x | O20: =getProgramXref($A20,numericItinerary(O$1)) -> x | P20: =getProgramXref($A20,numericItinerary(P$1)) ->  | Q20: =getProgramXref($A20,numericItinerary(Q$1)) ->  | S20: 6
A21: =INDEX(program_table,ROW()-5) -> Horse Rides | B21: 7 | C21: =getProgramXref($A21,numericItinerary(C$1)) -> x | D21: =getProgramXref($A21,numericItinerary(D$1)) ->  | E21: =getProgramXref($A21,numericItinerary(E$1)) -> x | F21: =getProgramXref($A21,numericItinerary(F$1)) -> x | G21: =getProgramXref($A21,numericItinerary(G$1)) -> x | H21: =getProgramXref($A21,numericItinerary(H$1)) ->  | I21: =getProgramXref($A21,numericItinerary(I$1)) -> x | J21: =getProgramXref($A21,numericItinerary(J$1)) ->  | K21: =getProgramXref($A21,numericItinerary(K$1)) ->  | L21: =getProgramXref($A21,numericItinerary(L$1)) ->  | M21: =getProgramXref($A21,numericItinerary(M$1)) -> x | N21: =getProgramXref($A21,numericItinerary(N$1)) ->  | O21: =getProgramXref($A21,numericItinerary(O$1)) -> x | P21: =getProgramXref($A21,numericItinerary(P$1)) ->  | Q21: =getProgramXref($A21,numericItinerary(Q$1)) ->  | S21: 7
A22: =INDEX(program_table,ROW()-5) -> Hunter Safety | B22: 0 | C22: =getProgramXref($A22,numericItinerary(C$1)) ->  | D22: =getProgramXref($A22,numericItinerary(D$1)) ->  | E22: =getProgramXref($A22,numericItinerary(E$1)) ->  | F22: =getProgramXref($A22,numericItinerary(F$1)) ->  | G22: =getProgramXref($A22,numericItinerary(G$1)) ->  | H22: =getProgramXref($A22,numericItinerary(H$1)) ->  | I22: =getProgramXref($A22,numericItinerary(I$1)) ->  | J22: =getProgramXref($A22,numericItinerary(J$1)) ->  | K22: =getProgramXref($A22,numericItinerary(K$1)) ->  | L22: =getProgramXref($A22,numericItinerary(L$1)) ->  | M22: =getProgramXref($A22,numericItinerary(M$1)) ->  | N22: =getProgramXref($A22,numericItinerary(N$1)) ->  | O22: =getProgramXref($A22,numericItinerary(O$1)) ->  | P22: =getProgramXref($A22,numericItinerary(P$1)) ->  | Q22: =getProgramXref($A22,numericItinerary(Q$1)) ->  | S22: 0
A23: =INDEX(program_table,ROW()-5) -> Inspiration Point Hike | B23: 1 | C23: =getProgramXref($A23,numericItinerary(C$1)) ->  | D23: =getProgramXref($A23,numericItinerary(D$1)) ->  | E23: =getProgramXref($A23,numericItinerary(E$1)) ->  | F23: =getProgramXref($A23,numericItinerary(F$1)) ->  | G23: =getProgramXref($A23,numericItinerary(G$1)) ->  | H23: =getProgramXref($A23,numericItinerary(H$1)) ->  | I23: =getProgramXref($A23,numericItinerary(I$1)) ->  | J23: =getProgramXref($A23,numericItinerary(J$1)) ->  | K23: =getProgramXref($A23,numericItinerary(K$1)) ->  | L23: =getProgramXref($A23,numericItinerary(L$1)) -> x | M23: =getProgramXref($A23,numericItinerary(M$1)) ->  | N23: =getProgramXref($A23,numericItinerary(N$1)) ->  | O23: =getProgramXref($A23,numericItinerary(O$1)) ->  | P23: =getProgramXref($A23,numericItinerary(P$1)) ->  | Q23: =getProgramXref($A23,numericItinerary(Q$1)) ->  | S23: 1
A24: =INDEX(program_table,ROW()-5) -> Jicarilla Apache Life | B24: 2 | C24: =getProgramXref($A24,numericItinerary(C$1)) ->  | D24: =getProgramXref($A24,numericItinerary(D$1)) ->  | E24: =getProgramXref($A24,numericItinerary(E$1)) ->  | F24: =getProgramXref($A24,numericItinerary(F$1)) ->  | G24: =getProgramXref($A24,numericItinerary(G$1)) ->  | H24: =getProgramXref($A24,numericItinerary(H$1)) ->  | I24: =getProgramXref($A24,numericItinerary(I$1)) ->  | J24: =getProgramXref($A24,numericItinerary(J$1)) ->  | K24: =getProgramXref($A24,numericItinerary(K$1)) ->  | L24: =getProgramXref($A24,numericItinerary(L$1)) -> x | M24: =getProgramXref($A24,numericItinerary(M$1)) ->  | N24: =getProgramXref($A24,numericItinerary(N$1)) -> x | O24: =getProgramXref($A24,numericItinerary(O$1)) ->  | P24: =getProgramXref($A24,numericItinerary(P$1)) ->  | Q24: =getProgramXref($A24,numericItinerary(Q$1)) ->  | S24: 2
A25: =INDEX(program_table,ROW()-5) -> Laser Shot Shooting Range | B25: 5 | C25: =getProgramXref($A25,numericItinerary(C$1)) -> x | D25: =getProgramXref($A25,numericItinerary(D$1)) ->  | E25: =getProgramXref($A25,numericItinerary(E$1)) ->  | F25: =getProgramXref($A25,numericItinerary(F$1)) ->  | G25: =getProgramXref($A25,numericItinerary(G$1)) ->  | H25: =getProgramXref($A25,numericItinerary(H$1)) ->  | I25: =getProgramXref($A25,numericItinerary(I$1)) ->  | J25: =getProgramXref($A25,numericItinerary(J$1)) -> x | K25: =getProgramXref($A25,numericItinerary(K$1)) -> x | L25: =getProgramXref($A25,numericItinerary(L$1)) ->  | M25: =getProgramXref($A25,numericItinerary(M$1)) ->  | N25: =getProgramXref($A25,numericItinerary(N$1)) ->  | O25: =getProgramXref($A25,numericItinerary(O$1)) ->  | P25: =getProgramXref($A25,numericItinerary(P$1)) -> x | Q25: =getProgramXref($A25,numericItinerary(Q$1)) -> x | S25: 5
A26: =INDEX(program_table,ROW()-5) -> Lodge/Cabin Tours | B26: 6 | C26: =getProgramXref($A26,numericItinerary(C$1)) ->  | D26: =getProgramXref($A26,numericItinerary(D$1)) ->  | E26: =getProgramXref($A26,numericItinerary(E$1)) -> x | F26: =getProgramXref($A26,numericItinerary(F$1)) ->  | G26: =getProgramXref($A26,numericItinerary(G$1)) -> x | H26: =getProgramXref($A26,numericItinerary(H$1)) ->  | I26: =getProgramXref($A26,numericItinerary(I$1)) ->  | J26: =getProgramXref($A26,numericItinerary(J$1)) ->  | K26: =getProgramXref($A26,numericItinerary(K$1)) ->  | L26: =getProgramXref($A26,numericItinerary(L$1)) -> x | M26: =getProgramXref($A26,numericItinerary(M$1)) -> x | N26: =getProgramXref($A26,numericItinerary(N$1)) -> x | O26: =getProgramXref($A26,numericItinerary(O$1)) -> x | P26: =getProgramXref($A26,numericItinerary(P$1)) ->  | Q26: =getProgramXref($A26,numericItinerary(Q$1)) ->  | S26: 6
A27: =INDEX(program_table,ROW()-5) -> Low Impact Camping | B27: 1 | C27: =getProgramXref($A27,numericItinerary(C$1)) ->  | D27: =getProgramXref($A27,numericItinerary(D$1)) ->  | E27: =getProgramXref($A27,numericItinerary(E$1)) ->  | F27: =getProgramXref($A27,numericItinerary(F$1)) ->  | G27: =getProgramXref($A27,numericItinerary(G$1)) ->  | H27: =getProgramXref($A27,numericItinerary(H$1)) ->  | I27: =getProgramXref($A27,numericItinerary(I$1)) ->  | J27: =getProgramXref($A27,numericItinerary(J$1)) -> x | K27: =getProgramXref($A27,numericItinerary(K$1)) ->  | L27: =getProgramXref($A27,numericItinerary(L$1)) ->  | M27: =getProgramXref($A27,numericItinerary(M$1)) ->  | N27: =getProgramXref($A27,numericItinerary(N$1)) ->  | O27: =getProgramXref($A27,numericItinerary(O$1)) ->  | P27: =getProgramXref($A27,numericItinerary(P$1)) ->  | Q27: =getProgramXref($A27,numericItinerary(Q$1)) ->  | S27: 1
A28: =INDEX(program_table,ROW()-5) -> Mine Tour | B28: 6 | C28: =getProgramXref($A28,numericItinerary(C$1)) ->  | D28: =getProgramXref($A28,numericItinerary(D$1)) ->  | E28: =getProgramXref($A28,numericItinerary(E$1)) ->  | F28: =getProgramXref($A28,numericItinerary(F$1)) ->  | G28: =getProgramXref($A28,numericItinerary(G$1)) -> x | H28: =getProgramXref($A28,numericItinerary(H$1)) -> x | I28: =getProgramXref($A28,numericItinerary(I$1)) -> x | J28: =getProgramXref($A28,numericItinerary(J$1)) -> x | K28: =getProgramXref($A28,numericItinerary(K$1)) ->  | L28: =getProgramXref($A28,numericItinerary(L$1)) ->  | M28: =getProgramXref($A28,numericItinerary(M$1)) ->  | N28: =getProgramXref($A28,numericItinerary(N$1)) ->  | O28: =getProgramXref($A28,numericItinerary(O$1)) ->  | P28: =getProgramXref($A28,numericItinerary(P$1)) -> x | Q28: =getProgramXref($A28,numericItinerary(Q$1)) -> x | S28: 6
A29: =INDEX(program_table,ROW()-5) -> Mount Phillips | B29: 1 | C29: =getProgramXref($A29,numericItinerary(C$1)) ->  | D29: =getProgramXref($A29,numericItinerary(D$1)) ->  | E29: =getProgramXref($A29,numericItinerary(E$1)) ->  | F29: =getProgramXref($A29,numericItinerary(F$1)) ->  | G29: =getProgramXref($A29,numericItinerary(G$1)) ->  | H29: =getProgramXref($A29,numericItinerary(H$1)) ->  | I29: =getProgramXref($A29,numericItinerary(I$1)) ->  | J29: =getProgramXref($A29,numericItinerary(J$1)) ->  | K29: =getProgramXref($A29,numericItinerary(K$1)) ->  | L29: =getProgramXref($A29,numericItinerary(L$1)) -> x | M29: =getProgramXref($A29,numericItinerary(M$1)) ->  | N29: =getProgramXref($A29,numericItinerary(N$1)) ->  | O29: =getProgramXref($A29,numericItinerary(O$1)) ->  | P29: =getProgramXref($A29,numericItinerary(P$1)) ->  | Q29: =getProgramXref($A29,numericItinerary(Q$1)) ->  | S29: 1
A30: =INDEX(program_table,ROW()-5) -> Mountaineering | B30: 3 | C30: =getProgramXref($A30,numericItinerary(C$1)) -> x | D30: =getProgramXref($A30,numericItinerary(D$1)) ->  | E30: =getProgramXref($A30,numericItinerary(E$1)) ->  | F30: =getProgramXref($A30,numericItinerary(F$1)) ->  | G30: =getProgramXref($A30,numericItinerary(G$1)) ->  | H30: =getProgramXref($A30,numericItinerary(H$1)) ->  | I30: =getProgramXref($A30,numericItinerary(I$1)) ->  | J30: =getProgramXref($A30,numericItinerary(J$1)) ->  | K30: =getProgramXref($A30,numericItinerary(K$1)) ->  | L30: =getProgramXref($A30,numericItinerary(L$1)) -> x | M30: =getProgramXref($A30,numericItinerary(M$1)) ->  | N30: =getProgramXref($A30,numericItinerary(N$1)) -> x | O30: =getProgramXref($A30,numericItinerary(O$1)) ->  | P30: =getProgramXref($A30,numericItinerary(P$1)) ->  | Q30: =getProgramXref($A30,numericItinerary(Q$1)) ->  | S30: 3
A31: =INDEX(program_table,ROW()-5) -> Muzzle Loading Rifle | B31: 7 | C31: =getProgramXref($A31,numericItinerary(C$1)) ->  | D31: =getProgramXref($A31,numericItinerary(D$1)) -> x | E31: =getProgramXref($A31,numericItinerary(E$1)) -> x | F31: =getProgramXref($A31,numericItinerary(F$1)) -> x | G31: =getProgramXref($A31,numericItinerary(G$1)) ->  | H31: =getProgramXref($A31,numericItinerary(H$1)) ->  | I31: =getProgramXref($A31,numericItinerary(I$1)) -> x | J31: =getProgramXref($A31,numericItinerary(J$1)) -> x | K31: =getProgramXref($A31,numericItinerary(K$1)) ->  | L31: =getProgramXref($A31,numericItinerary(L$1)) ->  | M31: =getProgramXref($A31,numericItinerary(M$1)) -> x | N31: =getProgramXref($A31,numericItinerary(N$1)) ->  | O31: =getProgramXref($A31,numericItinerary(O$1)) -> x | P31: =getProgramXref($A31,numericItinerary(P$1)) ->  | Q31: =getProgramXref($A31,numericItinerary(Q$1)) ->  | S31: 7
A32: =INDEX(program_table,ROW()-5) -> New Mexico Homestead | B32: 2 | C32: =getProgramXref($A32,numericItinerary(C$1)) ->  | D32: =getProgramXref($A32,numericItinerary(D$1)) ->  | E32: =getProgramXref($A32,numericItinerary(E$1)) ->  | F32: =getProgramXref($A32,numericItinerary(F$1)) ->  | G32: =getProgramXref($A32,numericItinerary(G$1)) ->  | H32: =getProgramXref($A32,numericItinerary(H$1)) ->  | I32: =getProgramXref($A32,numericItinerary(I$1)) ->  | J32: =getProgramXref($A32,numericItinerary(J$1)) ->  | K32: =getProgramXref($A32,numericItinerary(K$1)) ->  | L32: =getProgramXref($A32,numericItinerary(L$1)) ->  | M32: =getProgramXref($A32,numericItinerary(M$1)) -> x | N32: =getProgramXref($A32,numericItinerary(N$1)) -> x | O32: =getProgramXref($A32,numericItinerary(O$1)) ->  | P32: =getProgramXref($A32,numericItinerary(P$1)) ->  | Q32: =getProgramXref($A32,numericItinerary(Q$1)) ->  | S32: 2
A33: =INDEX(program_table,ROW()-5) -> Petroglyph Tour | B33: 3 | C33: =getProgramXref($A33,numericItinerary(C$1)) -> x | D33: =getProgramXref($A33,numericItinerary(D$1)) -> x | E33: =getProgramXref($A33,numericItinerary(E$1)) ->  | F33: =getProgramXref($A33,numericItinerary(F$1)) ->  | G33: =getProgramXref($A33,numericItinerary(G$1)) ->  | H33: =getProgramXref($A33,numericItinerary(H$1)) ->  | I33: =getProgramXref($A33,numericItinerary(I$1)) -> x | J33: =getProgramXref($A33,numericItinerary(J$1)) ->  | K33: =getProgramXref($A33,numericItinerary(K$1)) ->  | L33: =getProgramXref($A33,numericItinerary(L$1)) ->  | M33: =getProgramXref($A33,numericItinerary(M$1)) ->  | N33: =getProgramXref($A33,numericItinerary(N$1)) ->  | O33: =getProgramXref($A33,numericItinerary(O$1)) ->  | P33: =getProgramXref($A33,numericItinerary(P$1)) ->  | Q33: =getProgramXref($A33,numericItinerary(Q$1)) ->  | S33: 3
A34: =INDEX(program_table,ROW()-5) -> Post Civil War Encampment | B34: 3 | C34: =getProgramXref($A34,numericItinerary(C$1)) ->  | D34: =getProgramXref($A34,numericItinerary(D$1)) ->  | E34: =getProgramXref($A34,numericItinerary(E$1)) -> x | F34: =getProgramXref($A34,numericItinerary(F$1)) ->  | G34: =getProgramXref($A34,numericItinerary(G$1)) ->  | H34: =getProgramXref($A34,numericItinerary(H$1)) ->  | I34: =getProgramXref($A34,numericItinerary(I$1)) ->  | J34: =getProgramXref($A34,numericItinerary(J$1)) ->  | K34: =getProgramXref($A34,numericItinerary(K$1)) ->  | L34: =getProgramXref($A34,numericItinerary(L$1)) ->  | M34: =getProgramXref($A34,numericItinerary(M$1)) -> x | N34: =getProgramXref($A34,numericItinerary(N$1)) ->  | O34: =getProgramXref($A34,numericItinerary(O$1)) -> x | P34: =getProgramXref($A34,numericItinerary(P$1)) ->  | Q34: =getProgramXref($A34,numericItinerary(Q$1)) ->  | S34: 3
A35: =INDEX(program_table,ROW()-5) -> Railroading | B35: 2 | C35: =getProgramXref($A35,numericItinerary(C$1)) ->  | D35: =getProgramXref($A35,numericItinerary(D$1)) -> x | E35: =getProgramXref($A35,numericItinerary(E$1)) ->  | F35: =getProgramXref($A35,numericItinerary(F$1)) ->  | G35: =getProgramXref($A35,numericItinerary(G$1)) ->  | H35: =getProgramXref($A35,numericItinerary(H$1)) ->  | I35: =getProgramXref($A35,numericItinerary(I$1)) -> x | J35: =getProgramXref($A35,numericItinerary(J$1)) ->  | K35: =getProgramXref($A35,numericItinerary(K$1)) ->  | L35: =getProgramXref($A35,numericItinerary(L$1)) ->  | M35: =getProgramXref($A35,numericItinerary(M$1)) ->  | N35: =getProgramXref($A35,numericItinerary(N$1)) ->  | O35: =getProgramXref($A35,numericItinerary(O$1)) ->  | P35: =getProgramXref($A35,numericItinerary(P$1)) ->  | Q35: =getProgramXref($A35,numericItinerary(Q$1)) ->  | S35: 2
A36: =INDEX(program_table,ROW()-5) -> Rock Climbing & Rappelling | B36: 4 | C36: =getProgramXref($A36,numericItinerary(C$1)) ->  | D36: =getProgramXref($A36,numericItinerary(D$1)) ->  | E36: =getProgramXref($A36,numericItinerary(E$1)) -> x | F36: =getProgramXref($A36,numericItinerary(F$1)) -> x | G36: =getProgramXref($A36,numericItinerary(G$1)) ->  | H36: =getProgramXref($A36,numericItinerary(H$1)) ->  | I36: =getProgramXref($A36,numericItinerary(I$1)) ->  | J36: =getProgramXref($A36,numericItinerary(J$1)) -> x | K36: =getProgramXref($A36,numericItinerary(K$1)) ->  | L36: =getProgramXref($A36,numericItinerary(L$1)) -> x | M36: =getProgramXref($A36,numericItinerary(M$1)) ->  | N36: =getProgramXref($A36,numericItinerary(N$1)) ->  | O36: =getProgramXref($A36,numericItinerary(O$1)) ->  | P36: =getProgramXref($A36,numericItinerary(P$1)) ->  | Q36: =getProgramXref($A36,numericItinerary(Q$1)) ->  | S36: 4
A37: =INDEX(program_table,ROW()-5) -> Rocky Mountain Fur Co. | B37: 6 | C37: =getProgramXref($A37,numericItinerary(C$1)) ->  | D37: =getProgramXref($A37,numericItinerary(D$1)) ->  | E37: =getProgramXref($A37,numericItinerary(E$1)) -> x | F37: =getProgramXref($A37,numericItinerary(F$1)) -> x | G37: =getProgramXref($A37,numericItinerary(G$1)) ->  | H37: =getProgramXref($A37,numericItinerary(H$1)) ->  | I37: =getProgramXref($A37,numericItinerary(I$1)) ->  | J37: =getProgramXref($A37,numericItinerary(J$1)) -> x | K37: =getProgramXref($A37,numericItinerary(K$1)) ->  | L37: =getProgramXref($A37,numericItinerary(L$1)) ->  | M37: =getProgramXref($A37,numericItinerary(M$1)) -> x | N37: =getProgramXref($A37,numericItinerary(N$1)) -> x | O37: =getProgramXref($A37,numericItinerary(O$1)) -> x | P37: =getProgramXref($A37,numericItinerary(P$1)) ->  | Q37: =getProgramXref($A37,numericItinerary(Q$1)) ->  | S37: 6
A38: =INDEX(program_table,ROW()-5) -> Shooting/Reloading - .30-06 | B38: 3 | C38: =getProgramXref($A38,numericItinerary(C$1)) ->  | D38: =getProgramXref($A38,numericItinerary(D$1)) ->  | E38: =getProgramXref($A38,numericItinerary(E$1)) ->  | F38: =getProgramXref($A38,numericItinerary(F$1)) -> x | G38: =getProgramXref($A38,numericItinerary(G$1)) ->  | H38: =getProgramXref($A38,numericItinerary(H$1)) ->  | I38: =getProgramXref($A38,numericItinerary(I$1)) ->  | J38: =getProgramXref($A38,numericItinerary(J$1)) ->  | K38: =getProgramXref($A38,numericItinerary(K$1)) -> x | L38: =getProgramXref($A38,numericItinerary(L$1)) ->  | M38: =getProgramXref($A38,numericItinerary(M$1)) ->  | N38: =getProgramXref($A38,numericItinerary(N$1)) ->  | O38: =getProgramXref($A38,numericItinerary(O$1)) ->  | P38: =getProgramXref($A38,numericItinerary(P$1)) ->  | Q38: =getProgramXref($A38,numericItinerary(Q$1)) -> x | S38: 3
A39: =INDEX(program_table,ROW()-5) -> Shotgun Shooting/Reloading - 12 Gauge | B39: 3 | C39: =getProgramXref($A39,numericItinerary(C$1)) -> x | D39: =getProgramXref($A39,numericItinerary(D$1)) ->  | E39: =getProgramXref($A39,numericItinerary(E$1)) ->  | F39: =getProgramXref($A39,numericItinerary(F$1)) ->  | G39: =getProgramXref($A39,numericItinerary(G$1)) ->  | H39: =getProgramXref($A39,numericItinerary(H$1)) ->  | I39: =getProgramXref($A39,numericItinerary(I$1)) ->  | J39: =getProgramXref($A39,numericItinerary(J$1)) ->  | K39: =getProgramXref($A39,numericItinerary(K$1)) ->  | L39: =getProgramXref($A39,numericItinerary(L$1)) ->  | M39: =getProgramXref($A39,numericItinerary(M$1)) ->  | N39: =getProgramXref($A39,numericItinerary(N$1)) ->  | O39: =getProgramXref($A39,numericItinerary(O$1)) -> x | P39: =getProgramXref($A39,numericItinerary(P$1)) -> x | Q39: =getProgramXref($A39,numericItinerary(Q$1)) ->  | S39: 3
A40: =INDEX(program_table,ROW()-5) -> Spar Pole Climbing | B40: 6 | C40: =getProgramXref($A40,numericItinerary(C$1)) ->  | D40: =getProgramXref($A40,numericItinerary(D$1)) -> x | E40: =getProgramXref($A40,numericItinerary(E$1)) ->  | F40: =getProgramXref($A40,numericItinerary(F$1)) ->  | G40: =getProgramXref($A40,numericItinerary(G$1)) -> x | H40: =getProgramXref($A40,numericItinerary(H$1)) ->  | I40: =getProgramXref($A40,numericItinerary(I$1)) -> x | J40: =getProgramXref($A40,numericItinerary(J$1)) ->  | K40: =getProgramXref($A40,numericItinerary(K$1)) ->  | L40: =getProgramXref($A40,numericItinerary(L$1)) ->  | M40: =getProgramXref($A40,numericItinerary(M$1)) -> x | N40: =getProgramXref($A40,numericItinerary(N$1)) ->  | O40: =getProgramXref($A40,numericItinerary(O$1)) ->  | P40: =getProgramXref($A40,numericItinerary(P$1)) -> x | Q40: =getProgramXref($A40,numericItinerary(Q$1)) -> x | S40: 6
A41: =INDEX(program_table,ROW()-5) -> Tie Making & Crosscut Saws | B41: 7 | C41: =getProgramXref($A41,numericItinerary(C$1)) ->  | D41: =getProgramXref($A41,numericItinerary(D$1)) -> x | E41: =getProgramXref($A41,numericItinerary(E$1)) ->  | F41: =getProgramXref($A41,numericItinerary(F$1)) ->  | G41: =getProgramXref($A41,numericItinerary(G$1)) ->  | H41: =getProgramXref($A41,numericItinerary(H$1)) -> x | I41: =getProgramXref($A41,numericItinerary(I$1)) -> x | J41: =getProgramXref($A41,numericItinerary(J$1)) -> x | K41: =getProgramXref($A41,numericItinerary(K$1)) ->  | L41: =getProgramXref($A41,numericItinerary(L$1)) ->  | M41: =getProgramXref($A41,numericItinerary(M$1)) -> x | N41: =getProgramXref($A41,numericItinerary(N$1)) ->  | O41: =getProgramXref($A41,numericItinerary(O$1)) ->  | P41: =getProgramXref($A41,numericItinerary(P$1)) -> x | Q41: =getProgramXref($A41,numericItinerary(Q$1)) -> x | S41: 7
A42: =INDEX(program_table,ROW()-5) -> Tomahawk Throwing | B42: 10 | C42: =getProgramXref($A42,numericItinerary(C$1)) ->  | D42: =getProgramXref($A42,numericItinerary(D$1)) -> x | E42: =getProgramXref($A42,numericItinerary(E$1)) -> x | F42: =getProgramXref($A42,numericItinerary(F$1)) -> x | G42: =getProgramXref($A42,numericItinerary(G$1)) ->  | H42: =getProgramXref($A42,numericItinerary(H$1)) -> x | I42: =getProgramXref($A42,numericItinerary(I$1)) -> x | J42: =getProgramXref($A42,numericItinerary(J$1)) -> x | K42: =getProgramXref($A42,numericItinerary(K$1)) -> x | L42: =getProgramXref($A42,numericItinerary(L$1)) ->  | M42: =getProgramXref($A42,numericItinerary(M$1)) -> x | N42: =getProgramXref($A42,numericItinerary(N$1)) -> x | O42: =getProgramXref($A42,numericItinerary(O$1)) -> x | P42: =getProgramXref($A42,numericItinerary(P$1)) ->  | Q42: =getProgramXref($A42,numericItinerary(Q$1)) ->  | S42: 10
A43: =INDEX(program_table,ROW()-5) -> Tooth of Time | B43: 4 | C43: =getProgramXref($A43,numericItinerary(C$1)) ->  | D43: =getProgramXref($A43,numericItinerary(D$1)) ->  | E43: =getProgramXref($A43,numericItinerary(E$1)) ->  | F43: =getProgramXref($A43,numericItinerary(F$1)) ->  | G43: =getProgramXref($A43,numericItinerary(G$1)) ->  | H43: =getProgramXref($A43,numericItinerary(H$1)) ->  | I43: =getProgramXref($A43,numericItinerary(I$1)) ->  | J43: =getProgramXref($A43,numericItinerary(J$1)) ->  | K43: =getProgramXref($A43,numericItinerary(K$1)) ->  | L43: =getProgramXref($A43,numericItinerary(L$1)) -> x | M43: =getProgramXref($A43,numericItinerary(M$1)) -> x | N43: =getProgramXref($A43,numericItinerary(N$1)) ->  | O43: =getProgramXref($A43,numericItinerary(O$1)) -> x | P43: =getProgramXref($A43,numericItinerary(P$1)) ->  | Q43: =getProgramXref($A43,numericItinerary(Q$1)) -> x | S43: 4
A44: =INDEX(program_table,ROW()-5) -> Trail Peak | B44: 2 | C44: =getProgramXref($A44,numericItinerary(C$1)) ->  | D44: =getProgramXref($A44,numericItinerary(D$1)) ->  | E44: =getProgramXref($A44,numericItinerary(E$1)) ->  | F44: =getProgramXref($A44,numericItinerary(F$1)) ->  | G44: =getProgramXref($A44,numericItinerary(G$1)) ->  | H44: =getProgramXref($A44,numericItinerary(H$1)) ->  | I44: =getProgramXref($A44,numericItinerary(I$1)) ->  | J44: =getProgramXref($A44,numericItinerary(J$1)) ->  | K44: =getProgramXref($A44,numericItinerary(K$1)) ->  | L44: =getProgramXref($A44,numericItinerary(L$1)) -> x | M44: =getProgramXref($A44,numericItinerary(M$1)) -> x | N44: =getProgramXref($A44,numericItinerary(N$1)) ->  | O44: =getProgramXref($A44,numericItinerary(O$1)) ->  | P44: =getProgramXref($A44,numericItinerary(P$1)) ->  | Q44: =getProgramXref($A44,numericItinerary(Q$1)) ->  | S44: 2
A45: =INDEX(program_table,ROW()-5) -> Western Lore/Branding | B45: 14 | C45: =getProgramXref($A45,numericItinerary(C$1)) -> x | D45: =getProgramXref($A45,numericItinerary(D$1)) -> x | E45: =getProgramXref($A45,numericItinerary(E$1)) -> x | F45: =getProgramXref($A45,numericItinerary(F$1)) -> x | G45: =getProgramXref($A45,numericItinerary(G$1)) -> x | H45: =getProgramXref($A45,numericItinerary(H$1)) ->  | I45: =getProgramXref($A45,numericItinerary(I$1)) -> x | J45: =getProgramXref($A45,numericItinerary(J$1)) -> x | K45: =getProgramXref($A45,numericItinerary(K$1)) -> x | L45: =getProgramXref($A45,numericItinerary(L$1)) -> x | M45: =getProgramXref($A45,numericItinerary(M$1)) -> x | N45: =getProgramXref($A45,numericItinerary(N$1)) -> x | O45: =getProgramXref($A45,numericItinerary(O$1)) -> x | P45: =getProgramXref($A45,numericItinerary(P$1)) -> x | Q45: =getProgramXref($A45,numericItinerary(Q$1)) -> x | S45: 14
A46: # programs in itinerary: | C46: =COUNTIF(C6:C45,"X") -> 11 | D46: 15 | E46: 12 | F46: 11 | G46: 13 | H46: 10 | I46: 16 | J46: 15 | K46: 9 | L46: 15 | M46: 17 | N46: 12 | O46: 13 | P46: 13 | Q46: 16 | S46: =COUNTIF(#REF!,"X") -> 
S47: =COUNTIF(#REF!,"X") -> 
S48: =COUNTIF(#REF!,"X") -> 
S49: =COUNTIF(#REF!,"X") -> 

Sheet Tables
A1: Row | B1: Category | C1: Code | D1: Value | F1: Median | G1: Score Selected | K1: n | L1: Index
B2: programFactor | C2: Multiply X Activity score for value to use | D2: 1.5 | E2: This is applied to each score in the calculation. Use to make activities more/less important. | L2: These are the results of the "Scores" worksheet — from the scores entered from the Preference Survey worksheets. | M2: Total | N2: Average | O2: Median | P2: Mode
A3: 1 | B3: Program | C3: =INDEX(program_table,A3,1) -> Archaeology | D3: =SUM(Scores!B2:M2) -> 152 | K3: 1 | M3: =SUM(Scores!$B2:M2)*programFactor -> 228 | N3: =IF(COUNT(Scores!$B2:M2)>0,AVERAGE(Scores!$B2:M2)*programFactor,0) -> 19 | O3: =IF(COUNT(Scores!$B2:M2)>0,MEDIAN(Scores!$B2:M2)*programFactor,0) -> 22.5 | P3: =IF(getmode(Scores!$B2:M2)="","",getmode(Scores!$B2:M2)*programFactor) -> 22.5
A4: =A3+1 -> 2 | B4: Program | C4: =INDEX(program_table,A4,1) -> Archery - 3 Dimensional | D4: =SUM(Scores!B3:M3) -> 225 | K4: 2 | M4: =SUM(Scores!$B3:M3)*programFactor -> 337.5 | N4: =IF(COUNT(Scores!$B3:M3)>0,AVERAGE(Scores!$B3:M3)*programFactor,0) -> 28.125 | O4: =IF(COUNT(Scores!$B3:M3)>0,MEDIAN(Scores!$B3:M3)*programFactor,0) -> 30 | P4: =IF(getmode(Scores!$B3:M3)="","",getmode(Scores!$B3:M3)*programFactor) -> 30
A5: =A4+1 -> 3 | B5: Program | C5: =INDEX(program_table,A5,1) -> Atlatl (Dart-throwing) | D5: =SUM(Scores!B4:M4) -> 76 | K5: 3 | M5: =SUM(Scores!$B4:M4)*programFactor -> 114 | N5: =IF(COUNT(Scores!$B4:M4)>0,AVERAGE(Scores!$B4:M4)*programFactor,0) -> 9.5 | O5: =IF(COUNT(Scores!$B4:M4)>0,MEDIAN(Scores!$B4:M4)*programFactor,0) -> 10.5 | P5: =IF(getmode(Scores!$B4:M4)="","",getmode(Scores!$B4:M4)*programFactor) -> 3
A6: 4 | B6: Program | C6: =INDEX(program_table,A6,1) -> Baldy Mountain | D6: =SUM(Scores!B5:M5) -> 188 | K6: 4 | M6: =SUM(Scores!$B5:M5)*programFactor -> 282 | N6: =IF(COUNT(Scores!$B5:M5)>0,AVERAGE(Scores!$B5:M5)*programFactor,0) -> 23.5 | O6: =IF(COUNT(Scores!$B5:M5)>0,MEDIAN(Scores!$B5:M5)*programFactor,0) -> 27 | P6: =IF(getmode(Scores!$B5:M5)="","",getmode(Scores!$B5:M5)*programFactor) -> 27
A7: 5 | B7: Program | C7: =INDEX(program_table,A7,1) -> Blacksmithing | D7: =SUM(Scores!B6:M6) -> 108 | K7: 5 | M7: =SUM(Scores!$B6:M6)*programFactor -> 162 | N7: =IF(COUNT(Scores!$B6:M6)>0,AVERAGE(Scores!$B6:M6)*programFactor,0) -> 13.5 | O7: =IF(COUNT(Scores!$B6:M6)>0,MEDIAN(Scores!$B6:M6)*programFactor,0) -> 12.75 | P7: =IF(getmode(Scores!$B6:M6)="","",getmode(Scores!$B6:M6)*programFactor) -> 0
A8: 6 | B8: Program | C8: =INDEX(program_table,A8,1) -> Campfire (evening) | D8: =SUM(Scores!B7:M7) -> 111 | K8: 5 | M8: =SUM(Scores!$B7:M7)*programFactor -> 166.5 | N8: =IF(COUNT(Scores!$B7:M7)>0,AVERAGE(Scores!$B7:M7)*programFactor,0) -> 13.875 | O8: =IF(COUNT(Scores!$B7:M7)>0,MEDIAN(Scores!$B7:M7)*programFactor,0) -> 14.25 | P8: =IF(getmode(Scores!$B7:M7)="","",getmode(Scores!$B7:M7)*programFactor) -> 0
A9: 7 | B9: Program | C9: =INDEX(program_table,A9,1) -> Cantina | D9: =SUM(Scores!B8:M8) -> 111 | K9: 5 | M9: =SUM(Scores!$B8:M8)*programFactor -> 166.5 | N9: =IF(COUNT(Scores!$B8:M8)>0,AVERAGE(Scores!$B8:M8)*programFactor,0) -> 13.875 | O9: =IF(COUNT(Scores!$B8:M8)>0,MEDIAN(Scores!$B8:M8)*programFactor,0) -> 14.25 | P9: =IF(getmode(Scores!$B8:M8)="","",getmode(Scores!$B8:M8)*programFactor) -> 0
A10: 8 | B10: Program | C10: =INDEX(program_table,A10,1) -> Challenge Events | D10: =SUM(Scores!B9:M9) -> 84 | K10: 5 | M10: =SUM(Scores!$B9:M9)*programFactor -> 126 | N10: =IF(COUNT(Scores!$B9:M9)>0,AVERAGE(Scores!$B9:M9)*programFactor,0) -> 10.5 | O10: =IF(COUNT(Scores!$B9:M9)>0,MEDIAN(Scores!$B9:M9)*programFactor,0) -> 9 | P10: =IF(getmode(Scores!$B9:M9)="","",getmode(Scores!$B9:M9)*programFactor) -> 0
A11: 9 | B11: Program | C11: =INDEX(program_table,A11,1) -> Chuckwagon Dinner | D11: =SUM(Scores!B10:M10) -> 87 | K11: 5 | M11: =SUM(Scores!$B10:M10)*programFactor -> 130.5 | N11: =IF(COUNT(Scores!$B10:M10)>0,AVERAGE(Scores!$B10:M10)*programFactor,0) -> 10.875 | O11: =IF(COUNT(Scores!$B10:M10)>0,MEDIAN(Scores!$B10:M10)*programFactor,0) -> 13.5 | P11: =IF(getmode(Scores!$B10:M10)="","",getmode(Scores!$B10:M10)*programFactor) -> 0
A12: 10 | B12: Program | C12: =INDEX(program_table,A12,1) -> Demonstration Forest | D12: =SUM(Scores!B11:M11) -> 61 | K12: 5 | M12: =SUM(Scores!$B11:M11)*programFactor -> 91.5 | N12: =IF(COUNT(Scores!$B11:M11)>0,AVERAGE(Scores!$B11:M11)*programFactor,0) -> 8.318181818 | O12: =IF(COUNT(Scores!$B11:M11)>0,MEDIAN(Scores!$B11:M11)*programFactor,0) -> 7.5 | P12: =IF(getmode(Scores!$B11:M11)="","",getmode(Scores!$B11:M11)*programFactor) -> 0
A13: 11 | B13: Program | C13: =INDEX(program_table,A13,1) -> Fishing | D13: =SUM(Scores!B12:M12) -> 73 | K13: 5 | M13: =SUM(Scores!$B12:M12)*programFactor -> 109.5 | N13: =IF(COUNT(Scores!$B12:M12)>0,AVERAGE(Scores!$B12:M12)*programFactor,0) -> 9.954545455 | O13: =IF(COUNT(Scores!$B12:M12)>0,MEDIAN(Scores!$B12:M12)*programFactor,0) -> 7.5 | P13: =IF(getmode(Scores!$B12:M12)="","",getmode(Scores!$B12:M12)*programFactor) -> 7.5
A14: 12 | B14: Program | C14: =INDEX(program_table,A14,1) -> Fly Tying | D14: =SUM(Scores!B13:M13) -> 73 | K14: 5 | M14: =SUM(Scores!$B13:M13)*programFactor -> 109.5 | N14: =IF(COUNT(Scores!$B13:M13)>0,AVERAGE(Scores!$B13:M13)*programFactor,0) -> 13.6875 | O14: =IF(COUNT(Scores!$B13:M13)>0,MEDIAN(Scores!$B13:M13)*programFactor,0) -> 15.75 | P14: =IF(getmode(Scores!$B13:M13)="","",getmode(Scores!$B13:M13)*programFactor) -> 0
A15: 13 | B15: Program | C15: =INDEX(program_table,A15,1) -> Fur Trapper Rendezvous | D15: =SUM(Scores!B14:M14) -> 74 | K15: 5 | M15: =SUM(Scores!$B14:M14)*programFactor -> 111 | N15: =IF(COUNT(Scores!$B14:M14)>0,AVERAGE(Scores!$B14:M14)*programFactor,0) -> 9.25 | O15: =IF(COUNT(Scores!$B14:M14)>0,MEDIAN(Scores!$B14:M14)*programFactor,0) -> 6 | P15: =IF(getmode(Scores!$B14:M14)="","",getmode(Scores!$B14:M14)*programFactor) -> 0
A16: 14 | B16: Program | C16: =INDEX(program_table,A16,1) -> Gold Mining & Panning | D16: =SUM(Scores!B15:M15) -> 76 | K16: 5 | M16: =SUM(Scores!$B15:M15)*programFactor -> 114 | N16: =IF(COUNT(Scores!$B15:M15)>0,AVERAGE(Scores!$B15:M15)*programFactor,0) -> 10.36363636 | O16: =IF(COUNT(Scores!$B15:M15)>0,MEDIAN(Scores!$B15:M15)*programFactor,0) -> 10.5 | P16: =IF(getmode(Scores!$B15:M15)="","",getmode(Scores!$B15:M15)*programFactor) -> 3
A17: 15 | B17: Program | C17: =INDEX(program_table,A17,1) -> Homesteading | D17: =SUM(Scores!B16:M16) -> 82 | K17: 5 | M17: =SUM(Scores!$B16:M16)*programFactor -> 123 | N17: =IF(COUNT(Scores!$B16:M16)>0,AVERAGE(Scores!$B16:M16)*programFactor,0) -> 11.18181818 | O17: =IF(COUNT(Scores!$B16:M16)>0,MEDIAN(Scores!$B16:M16)*programFactor,0) -> 7.5 | P17: =IF(getmode(Scores!$B16:M16)="","",getmode(Scores!$B16:M16)*programFactor) -> 4.5
A18: 16 | B18: Program | C18: =INDEX(program_table,A18,1) -> Horse Rides | D18: =SUM(Scores!B17:M17) -> 84 | K18: 5 | M18: =SUM(Scores!$B17:M17)*programFactor -> 126 | N18: =IF(COUNT(Scores!$B17:M17)>0,AVERAGE(Scores!$B17:M17)*programFactor,0) -> 10.5 | O18: =IF(COUNT(Scores!$B17:M17)>0,MEDIAN(Scores!$B17:M17)*programFactor,0) -> 12 | P18: =IF(getmode(Scores!$B17:M17)="","",getmode(Scores!$B17:M17)*programFactor) -> 12
A19: 17 | B19: Program | C19: =INDEX(program_table,A19,1) -> Hunter Safety | D19: =SUM(Scores!B18:M18) -> 71 | K19: 5 | M19: =SUM(Scores!$B18:M18)*programFactor -> 106.5 | N19: =IF(COUNT(Scores!$B18:M18)>0,AVERAGE(Scores!$B18:M18)*programFactor,0) -> 8.875 | O19: =IF(COUNT(Scores!$B18:M18)>0,MEDIAN(Scores!$B18:M18)*programFactor,0) -> 6 | P19: =IF(getmode(Scores!$B18:M18)="","",getmode(Scores!$B18:M18)*programFactor) -> 1.5
A20: 18 | B20: Program | C20: =INDEX(program_table,A20,1) -> Inspiration Point Hike | D20: =SUM(Scores!B19:M19) -> 97 | K20: 5 | M20: =SUM(Scores!$B19:M19)*programFactor -> 145.5 | N20: =IF(COUNT(Scores!$B19:M19)>0,AVERAGE(Scores!$B19:M19)*programFactor,0) -> 13.22727273 | O20: =IF(COUNT(Scores!$B19:M19)>0,MEDIAN(Scores!$B19:M19)*programFactor,0) -> 15 | P20: =IF(getmode(Scores!$B19:M19)="","",getmode(Scores!$B19:M19)*programFactor) -> 15
A21: 19 | B21: Program | C21: =INDEX(program_table,A21,1) -> Jicarilla Apache Life | D21: =SUM(Scores!B20:M20) -> 62 | K21: 5 | M21: =SUM(Scores!$B20:M20)*programFactor -> 93 | N21: =IF(COUNT(Scores!$B20:M20)>0,AVERAGE(Scores!$B20:M20)*programFactor,0) -> 7.75 | O21: =IF(COUNT(Scores!$B20:M20)>0,MEDIAN(Scores!$B20:M20)*programFactor,0) -> 6 | P21: =IF(getmode(Scores!$B20:M20)="","",getmode(Scores!$B20:M20)*programFactor) -> 0
A22: 20 | B22: Program | C22: =INDEX(program_table,A22,1) -> Laser Shot Shooting Range | D22: =SUM(Scores!B21:M21) -> 104 | K22: 5 | M22: =SUM(Scores!$B21:M21)*programFactor -> 156 | N22: =IF(COUNT(Scores!$B21:M21)>0,AVERAGE(Scores!$B21:M21)*programFactor,0) -> 13 | O22: =IF(COUNT(Scores!$B21:M21)>0,MEDIAN(Scores!$B21:M21)*programFactor,0) -> 15 | P22: =IF(getmode(Scores!$B21:M21)="","",getmode(Scores!$B21:M21)*programFactor) -> 3
A23: 21 | B23: Program | C23: =INDEX(program_table,A23,1) -> Lodge/Cabin Tours | D23: =SUM(Scores!B22:M22) -> 76 | K23: 5 | M23: =SUM(Scores!$B22:M22)*programFactor -> 114 | N23: =IF(COUNT(Scores!$B22:M22)>0,AVERAGE(Scores!$B22:M22)*programFactor,0) -> 9.5 | O23: =IF(COUNT(Scores!$B22:M22)>0,MEDIAN(Scores!$B22:M22)*programFactor,0) -> 6 | P23: =IF(getmode(Scores!$B22:M22)="","",getmode(Scores!$B22:M22)*programFactor) -> 0
A24: 22 | B24: Program | C24: =INDEX(program_table,A24,1) -> Low Impact Camping | D24: =SUM(Scores!B23:M23) -> 86 | K24: 5 | M24: =SUM(Scores!$B23:M23)*programFactor -> 129 | N24: =IF(COUNT(Scores!$B23:M23)>0,AVERAGE(Scores!$B23:M23)*programFactor,0) -> 10.75 | O24: =IF(COUNT(Scores!$B23:M23)>0,MEDIAN(Scores!$B23:M23)*programFactor,0) -> 9.75 | P24: =IF(getmode(Scores!$B23:M23)="","",getmode(Scores!$B23:M23)*programFactor) -> 0
A25: 23 | B25: Program | C25: =INDEX(program_table,A25,1) -> Mine Tour | D25: =SUM(Scores!B24:M24) -> 69 | K25: 5 | M25: =SUM(Scores!$B24:M24)*programFactor -> 103.5 | N25: =IF(COUNT(Scores!$B24:M24)>0,AVERAGE(Scores!$B24:M24)*programFactor,0) -> 8.625 | O25: =IF(COUNT(Scores!$B24:M24)>0,MEDIAN(Scores!$B24:M24)*programFactor,0) -> 9.75 | P25: =IF(getmode(Scores!$B24:M24)="","",getmode(Scores!$B24:M24)*programFactor) -> 3
A26: 24 | B26: Program | C26: =INDEX(program_table,A26,1) -> Mount Phillips | D26: =SUM(Scores!B25:M25) -> 108 | K26: 5 | M26: =SUM(Scores!$B25:M25)*programFactor -> 162 | N26: =IF(COUNT(Scores!$B25:M25)>0,AVERAGE(Scores!$B25:M25)*programFactor,0) -> 18 | O26: =IF(COUNT(Scores!$B25:M25)>0,MEDIAN(Scores!$B25:M25)*programFactor,0) -> 22.5 | P26: =IF(getmode(Scores!$B25:M25)="","",getmode(Scores!$B25:M25)*programFactor) -> 0
A27: 25 | B27: Program | C27: =INDEX(program_table,A27,1) -> Mountaineering | D27: =SUM(Scores!B26:M26) -> 134 | K27: 5 | M27: =SUM(Scores!$B26:M26)*programFactor -> 201 | N27: =IF(COUNT(Scores!$B26:M26)>0,AVERAGE(Scores!$B26:M26)*programFactor,0) -> 16.75 | O27: =IF(COUNT(Scores!$B26:M26)>0,MEDIAN(Scores!$B26:M26)*programFactor,0) -> 18.75 | P27: =IF(getmode(Scores!$B26:M26)="","",getmode(Scores!$B26:M26)*programFactor) -> 15
A28: 26 | B28: Program | C28: =INDEX(program_table,A28,1) -> Muzzle Loading Rifle | D28: =SUM(Scores!B27:M27) -> 97 | K28: 5 | M28: =SUM(Scores!$B27:M27)*programFactor -> 145.5 | N28: =IF(COUNT(Scores!$B27:M27)>0,AVERAGE(Scores!$B27:M27)*programFactor,0) -> 14.55 | O28: =IF(COUNT(Scores!$B27:M27)>0,MEDIAN(Scores!$B27:M27)*programFactor,0) -> 15 | P28: =IF(getmode(Scores!$B27:M27)="","",getmode(Scores!$B27:M27)*programFactor) -> 15
A29: 27 | B29: Program | C29: =INDEX(program_table,A29,1) -> New Mexico Homestead | D29: =SUM(Scores!B28:M28) -> 100 | K29: 5 | M29: =SUM(Scores!$B28:M28)*programFactor -> 150 | N29: =IF(COUNT(Scores!$B28:M28)>0,AVERAGE(Scores!$B28:M28)*programFactor,0) -> 13.63636364 | O29: =IF(COUNT(Scores!$B28:M28)>0,MEDIAN(Scores!$B28:M28)*programFactor,0) -> 18 | P29: =IF(getmode(Scores!$B28:M28)="","",getmode(Scores!$B28:M28)*programFactor) -> 0
A30: 28 | B30: Program | C30: =INDEX(program_table,A30,1) -> Petroglyph Tour | D30: =SUM(Scores!B29:M29) -> 117 | K30: 5 | M30: =SUM(Scores!$B29:M29)*programFactor -> 175.5 | N30: =IF(COUNT(Scores!$B29:M29)>0,AVERAGE(Scores!$B29:M29)*programFactor,0) -> 15.95454545 | O30: =IF(COUNT(Scores!$B29:M29)>0,MEDIAN(Scores!$B29:M29)*programFactor,0) -> 18 | P30: =IF(getmode(Scores!$B29:M29)="","",getmode(Scores!$B29:M29)*programFactor) -> 0
A31: 29 | B31: Program | C31: =INDEX(program_table,A31,1) -> Post Civil War Encampment | D31: =SUM(Scores!B30:M30) -> 103 | K31: 5 | M31: =SUM(Scores!$B30:M30)*programFactor -> 154.5 | N31: =IF(COUNT(Scores!$B30:M30)>0,AVERAGE(Scores!$B30:M30)*programFactor,0) -> 15.45 | O31: =IF(COUNT(Scores!$B30:M30)>0,MEDIAN(Scores!$B30:M30)*programFactor,0) -> 18 | P31: =IF(getmode(Scores!$B30:M30)="","",getmode(Scores!$B30:M30)*programFactor) -> 18
A32: 30 | B32: Program | C32: =INDEX(program_table,A32,1) -> Railroading | D32: =SUM(Scores!B31:M31) -> 126 | K32: 5 | M32: =SUM(Scores!$B31:M31)*programFactor -> 189 | N32: =IF(COUNT(Scores!$B31:M31)>0,AVERAGE(Scores!$B31:M31)*programFactor,0) -> 17.18181818 | O32: =IF(COUNT(Scores!$B31:M31)>0,MEDIAN(Scores!$B31:M31)*programFactor,0) -> 18 | P32: =IF(getmode(Scores!$B31:M31)="","",getmode(Scores!$B31:M31)*programFactor) -> 22.5
A33: 31 | B33: Program | C33: =INDEX(program_table,A33,1) -> Rock Climbing & Rappelling | D33: =SUM(Scores!B32:M32) -> 135 | K33: 5 | M33: =SUM(Scores!$B32:M32)*programFactor -> 202.5 | N33: =IF(COUNT(Scores!$B32:M32)>0,AVERAGE(Scores!$B32:M32)*programFactor,0) -> 18.40909091 | O33: =IF(COUNT(Scores!$B32:M32)>0,MEDIAN(Scores!$B32:M32)*programFactor,0) -> 19.5 | P33: =IF(getmode(Scores!$B32:M32)="","",getmode(Scores!$B32:M32)*programFactor) -> 19.5
A34: 32 | B34: Program | C34: =INDEX(program_table,A34,1) -> Rocky Mountain Fur Co. | D34: =SUM(Scores!B33:M33) -> 61 | K34: 5 | M34: =SUM(Scores!$B33:M33)*programFactor -> 91.5 | N34: =IF(COUNT(Scores!$B33:M33)>0,AVERAGE(Scores!$B33:M33)*programFactor,0) -> 9.15 | O34: =IF(COUNT(Scores!$B33:M33)>0,MEDIAN(Scores!$B33:M33)*programFactor,0) -> 7.5 | P34: =IF(getmode(Scores!$B33:M33)="","",getmode(Scores!$B33:M33)*programFactor) -> 0
A35: 33 | B35: Program | C35: =INDEX(program_table,A35,1) -> Shooting/Reloading - .30-06 | D35: =SUM(Scores!B34:M34) -> 121 | K35: 5 | M35: =SUM(Scores!$B34:M34)*programFactor -> 181.5 | N35: =IF(COUNT(Scores!$B34:M34)>0,AVERAGE(Scores!$B34:M34)*programFactor,0) -> 18.15 | O35: =IF(COUNT(Scores!$B34:M34)>0,MEDIAN(Scores!$B34:M34)*programFactor,0) -> 18 | P35: =IF(getmode(Scores!$B34:M34)="","",getmode(Scores!$B34:M34)*programFactor) -> 10.5
A36: 34 | B36: Program | C36: =INDEX(program_table,A36,1) -> Shotgun Shooting/Reloading - 12 Gauge | D36: =SUM(Scores!B35:M35) -> 147 | K36: 5 | M36: =SUM(Scores!$B35:M35)*programFactor -> 220.5 | N36: =IF(COUNT(Scores!$B35:M35)>0,AVERAGE(Scores!$B35:M35)*programFactor,0) -> 18.375 | O36: =IF(COUNT(Scores!$B35:M35)>0,MEDIAN(Scores!$B35:M35)*programFactor,0) -> 18 | P36: =IF(getmode(Scores!$B35:M35)="","",getmode(Scores!$B35:M35)*programFactor) -> 10.5
A37: 35 | B37: Program | C37: =INDEX(program_table,A37,1) -> Spar Pole Climbing | D37: =SUM(Scores!B36:M36) -> 140 | K37: 5 | M37: =SUM(Scores!$B36:M36)*programFactor -> 210 | N37: =IF(COUNT(Scores!$B36:M36)>0,AVERAGE(Scores!$B36:M36)*programFactor,0) -> 19.09090909 | O37: =IF(COUNT(Scores!$B36:M36)>0,MEDIAN(Scores!$B36:M36)*programFactor,0) -> 21 | P37: =IF(getmode(Scores!$B36:M36)="","",getmode(Scores!$B36:M36)*programFactor) -> 7.5
A38: 36 | B38: Program | C38: =INDEX(program_table,A38,1) -> Tie Making & Crosscut Saws | D38: =SUM(Scores!B37:M37) -> 170 | K38: 5 | M38: =SUM(Scores!$B37:M37)*programFactor -> 255 | N38: =IF(COUNT(Scores!$B37:M37)>0,AVERAGE(Scores!$B37:M37)*programFactor,0) -> 23.18181818 | O38: =IF(COUNT(Scores!$B37:M37)>0,MEDIAN(Scores!$B37:M37)*programFactor,0) -> 27 | P38: =IF(getmode(Scores!$B37:M37)="","",getmode(Scores!$B37:M37)*programFactor) -> 30
A39: 37 | B39: Program | C39: =INDEX(program_table,A39,1) -> Tomahawk Throwing | D39: =SUM(Scores!B38:M38) -> 157 | K39: 5 | M39: =SUM(Scores!$B38:M38)*programFactor -> 235.5 | N39: =IF(COUNT(Scores!$B38:M38)>0,AVERAGE(Scores!$B38:M38)*programFactor,0) -> 21.40909091 | O39: =IF(COUNT(Scores!$B38:M38)>0,MEDIAN(Scores!$B38:M38)*programFactor,0) -> 22.5 | P39: =IF(getmode(Scores!$B38:M38)="","",getmode(Scores!$B38:M38)*programFactor) -> 30
A40: 38 | B40: Program | C40: =INDEX(program_table,A40,1) -> Tooth of Time | D40: =SUM(Scores!B39:M39) -> 129 | K40: 5 | M40: =SUM(Scores!$B39:M39)*programFactor -> 193.5 | N40: =IF(COUNT(Scores!$B39:M39)>0,AVERAGE(Scores!$B39:M39)*programFactor,0) -> 19.35 | O40: =IF(COUNT(Scores!$B39:M39)>0,MEDIAN(Scores!$B39:M39)*programFactor,0) -> 18 | P40: =IF(getmode(Scores!$B39:M39)="","",getmode(Scores!$B39:M39)*programFactor) -> 10.5
A41: 39 | B41: Program | C41: =INDEX(program_table,A41,1) -> Trail Peak | D41: =SUM(Scores!B40:M40) -> 101 | K41: 5 | M41: =SUM(Scores!$B40:M40)*programFactor -> 151.5 | N41: =IF(COUNT(Scores!$B40:M40)>0,AVERAGE(Scores!$B40:M40)*programFactor,0) -> 12.625 | O41: =IF(COUNT(Scores!$B40:M40)>0,MEDIAN(Scores!$B40:M40)*programFactor,0) -> 15 | P41: =IF(getmode(Scores!$B40:M40)="","",getmode(Scores!$B40:M40)*programFactor) -> 15
A42: 40 | B42: Program | C42: =INDEX(program_table,A42,1) -> Western Lore/Branding | D42: =SUM(Scores!B41:M41) -> 93 | K42: 5 | M42: =SUM(Scores!$B41:M41)*programFactor -> 139.5 | N42: =IF(COUNT(Scores!$B41:M41)>0,AVERAGE(Scores!$B41:M41)*programFactor,0) -> 13.95 | O42: =IF(COUNT(Scores!$B41:M41)>0,MEDIAN(Scores!$B41:M41)*programFactor,0) -> 13.5 | P42: =IF(getmode(Scores!$B41:M41)="","",getmode(Scores!$B41:M41)*programFactor) -> 12
A43: 41 | B43: Peaks | C43: Baldy Mountain | D43: 2
A44: 42 | B44: Peaks | C44: Mount Phillips | D44: 1.5
A45: 43 | B45: Peaks | C45: Tooth of Time | D45: 1.5
A46: 44 | B46: Peaks | C46: Trail Peak | D46: 1
A47: 45 | B47: Peaks | C47: Mountaineering | D47: 0.8
A48: 46 | B48: Area | C48: Rank 1 | D48: =IF(UPPER(areaImportant)="Y",INDEX(areaDefaults,Preferences!B7),0) -> 0
A49: 47 | B49: Area | C49: Rank 2 | D49: =IF(UPPER(areaImportant)="Y",INDEX(areaDefaults,Preferences!B8),0) -> 0 | I49: 1 | J49: 1000
A50: 48 | B50: Area | C50: Rank 3 | D50: =IF(UPPER(areaImportant)="Y",INDEX(areaDefaults,Preferences!B9),0) -> 0 | I50: 2 | J50: 600 | K50: =IF(areaImportant="y","Preferences setting is that area is important", "Preferences setting is that area is not important") -> Preferences setting is that area is not important
A51: 49 | B51: Area | C51: Rank 4 | D51: =IF(UPPER(areaImportant)="Y",INDEX(areaDefaults,Preferences!B10),0) -> 0 | I51: 3 | J51: 200 | K51: =IF(areaImportant="y","These are the default values — MAKE CHANGES HERE", "") -> 
A52: 50 | B52: Days Food | C52: 1 | D52: 100 | I52: 4 | J52: 150
A53: 51 | B53: Days Food | C53: 2 | D53: 90
A54: 52 | B54: Days Food | C54: 3 | D54: 80
A55: 53 | B55: Days Food | C55: 4 | D55: 70
A56: 54 | B56: Days Food | C56: 5 | D56: 60
A57: 55 | B57: Days Food | C57: 6 | D57: 50
A58: 56 | B58: Food from HQ | C58: 1 | D58: 20
A59: 57 | B59: Food from HQ | C59: 2 | D59: 30
A60: 58 | B60: Food from HQ | C60: 3 | D60: 40
A61: 59 | B61: Food from HQ | C61: 4 | D61: 50
A62: 60 | B62: Food from HQ | C62: 5 | D62: 60
A63: 61 | B63: Food from HQ | C63: 6 | D63: 70
A64: 62 | B64: Food from HQ | C64: 7 | D64: 80
A65: 63 | B65: Food from HQ | C65: 8 | D65: 90
A66: 64 | B66: Food from HQ | C66: 9 | D66: 100
A67: 65 | B67: Trail Camps | C67: 0 | D67: 250
A68: 66 | B68: Trail Camps | C68: 1 | D68: 200
A69: 67 | B69: Trail Camps | C69: 2 | D69: 175
A70: =A69+1 -> 68 | B70: Trail Camps | C70: 3 | D70: 150
A71: =A70+1 -> 69 | B71: Trail Camps | C71: 4 | D71: 125
A72: =A71+1 -> 70 | B72: Trail Camps | C72: 5 | D72: 100
A73: =A72+1 -> 71 | B73: Trail Camps | C73: 6 | D73: 75
A74: =A73+1 -> 72 | B74: Trail Camps | C74: 7 | D74: 50
A75: 73 | B75: Trail Camps | C75: 8 | D75: 25
A76: 74 | B76: Dry Camps | C76: 0 | D76: 300
A77: 75 | B77: Dry Camps | C77: 1 | D77: 250
A78: 76 | B78: Dry Camps | C78: 2 | D78: 225
A79: 77 | B79: Dry Camps | C79: 3 | D79: 200
A80: 78 | B80: Dry Camps | C80: 4 | D80: 150
A81: 79 | B81: Dry Camps | C81: 5 | D81: 100
A82: 80 | B82: Dry Camps | C82: 6 | D82: 50
A83: 81 | B83: Dry Camps | C83: 7 | D83: 20
A84: 82 | B84: Total Camps | C84: 3 | D84: 60
A85: 83 | B85: Total Camps | C85: 4 | D85: 70
A86: 84 | B86: Total Camps | C86: 5 | D86: 80
A87: 85 | B87: Total Camps | C87: 6 | D87: 90
A88: 86 | B88: Total Camps | C88: 7 | D88: 100
A89: 87 | B89: Total Camps | C89: 8 | D89: 75
A90: 88 | B90: Total Camps | C90: 9 | D90: 60
A91: 89 | B91: Total Camps | C91: 10 | D91: 50
A92: 90 | B92: Difficulty | C92: C | D92: 4000
A93: 91 | B93: Difficulty | C93: R | D93: 3166.666667 | K93: Match skill level with itinerary difficulty
A94: 92 | B94: Difficulty | C94: S | D94: 2333.333333 | K94: Skill | L94: C | M94: R | N94: S | O94: SS
A95: 93 | B95: Difficulty | C95: SS | D95: 1500 | I95: maxSkill: | J95: 4000 | K95: 1 | L95: =maxSkill+maxDifficult -> 5000 | M95: =L95-((L95-O95)/3) -> 3500 | N95: =M95-((L95-O95)/3) -> 2000 | O95: =difficultDelta -> 500
A96: 94 | B96: Max Altitude | C96: 0 | D96: 20 | I96: maxDifficult: | J96: 1000 | K96: 2 | L96: =L95-((L$95-L$104)/9) -> 4500 | M96: =L96-((L96-O96)/3) -> 3333.333333 | N96: =M96-((L96-O96)/3) -> 2166.666667 | O96: =L103 -> 1000
A97: 95 | B97: Max Altitude | C97: 9000 | D97: 30 | I97: minDifficult: | J97: 500 | K97: 3 | L97: =L96-((L$95-L$104)/9) -> 4000 | M97: 3166.666667 | N97: 2333.333333 | O97: =L102 -> 1500
A98: 96 | B98: Max Altitude | C98: 9100 | D98: 40 | K98: 4 | L98: 3500 | M98: 3000 | N98: 2500 | O98: =L101 -> 2000
A99: 97 | B99: Max Altitude | C99: 9200 | D99: 50 | K99: 5 | L99: 3000 | M99: 2833.333333 | N99: 2666.666667 | O99: =L100 -> 2500
A100: 98 | B100: Max Altitude | C100: 9800 | D100: 60 | K100: 6 | L100: 2500 | M100: 2666.666667 | N100: 2833.333333 | O100: =L99 -> 3000
A101: 99 | B101: Max Altitude | C101: 10000 | D101: 70 | I101: ="Your Crew is Level " & skillLevel -> Your Crew is Level 3 | K101: 7 | L101: 2000 | M101: 2500 | N101: 3000 | O101: =L98 -> 3500
A102: 100 | B102: Max Altitude | C102: 10500 | D102: 80 | I102: (from Preferences) | K102: 8 | L102: 1500 | M102: 2333.333333 | N102: 3166.666667 | O102: =L97 -> 4000
A103: 101 | B103: Max Altitude | C103: 10600 | D103: 90 | K103: 9 | L103: 1000 | M103: 2166.666667 | N103: 3333.333333 | O103: =L96 -> 4500
A104: 102 | B104: Max Altitude | C104: 10800 | D104: 100 | K104: 10 | L104: =difficultDelta -> 500 | M104: 2000 | N104: 3500 | O104: =L95 -> 5000
A105: 103 | B105: Max Altitude | C105: 11000 | D105: 110 | L105: Challenging | M105: Rugged | N105: Strenuous | O105: Super Strenuous
A106: 104 | B106: Max Altitude | C106: 11800 | D106: 120
A107: 105 | B107: Max Altitude | C107: 12441 | D107: 130
A108: 106 | B108: Total Gain | C108: 0 | D108: 40
A109: 107 | B109: Total Gain | C109: 1500 | D109: 50
A110: 108 | B110: Total Gain | C110: 2000 | D110: 60
A111: 109 | B111: Total Gain | C111: 2500 | D111: 70
A112: 110 | B112: Total Gain | C112: 3000 | D112: 80
A113: 111 | B113: Total Gain | C113: 3500 | D113: 90
A114: 112 | B114: Total Gain | C114: 4000 | D114: 100
A115: 113 | B115: Total Gain | C115: 4500 | D115: 90
A116: 114 | B116: Total Gain | C116: 5000 | D116: 80
A117: 115 | B117: Total Gain | C117: 5500 | D117: 70
A118: 116 | B118: Total Gain | C118: 6000 | D118: 60
A119: 117 | B119: Total Gain | C119: 6500 | D119: 50
A120: 118 | B120: Daily Change | C120: 300 | D120: 100
A121: 119 | B121: Daily Change | C121: 600 | D121: 300
A122: 120 | B122: Daily Change | C122: 900 | D122: 200
A123: 121 | B123: Daily Change | C123: 1200 | D123: 100
A124: 122 | B124: Hike Out | C124: n | D124: 0
A125: 123 | B125: Hike Out | C125: y | D125: 500
A126: 124 | B126: Hike In | C126: n | D126: 0
A127: 125 | B127: Hike In | C127: y | D127: 500
A128: 126 | B128: Distance | C128: Miles | D128: 100
A129: These are used for code lookup puposes only. | B129: Difficulty | C129: C | D129: Challenging
B130: Difficulty | C130: R | D130: Rugged
B131: Difficulty | C131: S | D131: Strenuous
B132: Difficulty | C132: SS | D132: Super Strenuous
B133: campType | C133: D | D133: Dry
B134: campType | C134: S | D134: Staffed
B135: campType | C135: T | D135: Trail
B136: campType | C136: X | D136: No Camping

Sheet Detail Informaton
A1: This sheet provides more detailed information about this spreadsheet and may be useful for anyone wishing to modify it.
A2: This spreadsheet makes extensive use of "Protected" and "Hidden" cells and "Hidden" worksheets. To "unprotect" or "unhide" any of these, put the cursor on a worksheet tab and right click it. Click "Unprotect Sheet..." and select the worksheet to display. There are no passwords locking any of the "hidden" or "protected" areas.
A3: There are buttons that may be pressed to select the scoring to be used in the calculation. These are "Total" for the total score, "Average" to select the average (or Mean) score, "Median" to select the most common score, or "Mode" (most frequently used score). These control the actual score values used in calculation Try all and see what the difference in the results is.
A5: There are a number of "tabs" or "worksheets". The use of these is as follows:
A6: Visible:
A7: Instructions | B7: General use instructions for the user that does not want to make any changes to the spreadsheet.
A8: Preferences | B8: A set of "preferences" that may be used to adjust the calculations based on information specific to the crew.
A9: Scores | B9: The "scores" for each crewmember from the program survey form. These are on the basis of 0 to 20.
A10: Results | B10: The calculated "result" from fitting the "scores" to the itinerary information.
A11: Itinerary Chart | B11: Graph of sorted itineraries — shows relative differences between selections
A12: Program Chart | B12: This is a graph showing what programs the crewmembers wish to participate in.
A13: Itinerary Details | B13: This provides a snapshot of individual itineraries. Enter the itinerary the snapship is desired for.
A14: Itinerary Xref Chart | B14: This is the same chart that's in the in the TREKS book
A15: Tables | B15: This is the set of "factors" for each of the various metrics. These may be modified by the user.
A16: Detail Information | B16: This worksheet.
A17: Hidden: (Note that there are no passwords on these, the user may "unhide" them by right-clicking in the tab area)
A18: Itinerary Camps | B18: Much information updated annually by hand from the TREKS Book. Information relating to itineraries is calculated from these entries.
A19: ItineraryPrograms | B19: Programs available at camps. This can be created automatically but must be checked & updated manually. Can verify with the Itinerary Xref Chart. This takes a lot of detailed work!
A20: Descriptions | B20: This is the textual description of each itinerary. This is manually copied from the TREKS Book each year.
A21: Calculator | B21: This brings the preferences, scores, factors from "Tables", and itinerary information together to calculate detailed preference values for each itinerary. The sum of these is the "Result" for each itinerary.
A22: Itineraries | B22: This is information relative to the current year's itineraries. All is derived from tables in other worksheets.
A23: Programs | B23: Table of Philmont's available programs. These are specific to 12-Day (all), 9-Day (subset) and 7-Day (subset) treks.
A24: Camp Programs | B24: This is a table of programs available at each staffed camp. Verified manually, used to develop basic info for ItineraryPrograms worksheet. Does not often change from year to year.
A25: Camp Elevations | B25: This is information relative to Philmont's camps. It is used in the calculations and in the Itinerary Details printout. Is a good source of camp names & UTM Coordinates/elevations.
A26: uteParkPassAlternatives | B26: Alternative plans for Ute Park Pass itineraries. Only used for 12-Day & 9-Day itineraries. Ignored for 7-Day.
A28: Information in the Visible tabs is generally either documented in the worksheet or is self-evident. Information about the worksheets that may be useful is below.
A29: Scores | B29: Clicking the "Clear Scores" button erases all scores for all 12 participants. User should enter the participant names in row 1.
A30: Results | B30: The left side shows the itineraries that best "fit" the crew's desires. On the right is a table showing the programs the crew desired in preference order. It indicates which programs are included in each of the top 6 itineraries.
A31: Itinerary Details | B31: Enter the itinerary number and expedition number to get information about the itinerary including daily information.
A32: Tables | B32: If some of the areas are more important to your crew, you can change the factors used in the calculations here. The factors are highlighted where arbitrary values were set based on the author's preferences, they may be modified to meet your crew. Only make changes in the unlocked cells in the Value column or the Green boxes for Area or Skill/Difficulty. You may navigate between these with the TAB key.
A33: Itineraries | B33: This sheet has information about the current year's itineraries. Key information is manually updated from the TREKS books (daily campsites, first food pickup day number, method of return to base, itineraries that cross US-64, peaks hiked, etc.) Row 1 has the columns that must be updated annually highlighted in red.
A34: itineraryXrefChart | B34: This conforms to the Cross Reference chart in the TREKS book showing itineraries that have programs. It is based on information in the Itinerary Programs worksheet.
A35: Calculator | B35: This calculates a preference value for each of the metrics. There is nothing to modify here — the value calculated will be based on values from other worksheets and any modification desired to any metric should be made in those underlying sheets, not in this one.
A36: Camp Elevations | B36: This worksheet is a list of all the camps with details about the camp. Note that some of the camps are not used and the information may not be complete for them. It doesn't matter because only the camps included in the current year's itineraries is ever referenced. All are shown here for completeness. It is a good source of camp names & UTM Coordinates/elevations.
A37: uteParkPassAlternatives | B37: These are the camps used for each of the alternative treks for the Ute Park Pass itineraries. It is ignored for 7-Day Itineraries.
A38: Descriptions | B38: These descriptions are copied from the TREKS Book and are displayed on the Itinerary Details display.
A39: Camp Programs | B39: This is a table of staffed camps with flags for the programs offered at each. It is used to provide much of the program inclusion information in the Itineries worksheet.

Sheet itineraryCamps (hidden)
A1: (Enter Red columns manually) Itinerary | B1: 1 | C1: =B1+1 -> 2 | D1: 3 | E1: 4 | F1: 5 | G1: =F1+1 -> 6 | H1: =G1+1 -> 7 | I1: =H1+1 -> 8 | J1: =I1+1 -> 9 | K1: 10 | L1: 11 | M1: 12 | N1: 13 | O1: 14 | P1: 15 | Q1: 16 | R1: =Q1+1 -> 17 | S1: 18 | T1: 19 | U1: 20 | V1: 21 | W1: 22 | X1: 23 | Y1: 24 | Z1: 25 | AA1: 26 | AB1: 27 | AC1: =AB1+1 -> 28 | AD1: 29 | AE1: 30 | AF1: 31 | AG1: 32 | AH1: 33 | AI1: 34 | AJ1: 35 | AK1: =X1+1 -> 24 | AL1: =AK1+1 -> 25 | AM1: 26 | AN1: 27 | AO1: 28 | AP1: 29 | AQ1: 30 | AR1: 31 | AS1: 32 | AT1: 33 | AU1: 34 | AV1: 35 | AW1: 36 | AX1: 37 | AY1: 38 | AZ1: 39 | BA1: 40 | BB1: 41 | BC1: 42 | BD1: 43 | BE1: 44 | BF1: 45 | BG1: 46 | BH1: 47 | BI1: 48 | BJ1: 49 | BK1: 50 | BL1: 51 | BM1: 52 | BN1: 53 | BO1: 54 | BP1: 55 | BQ1: 56 | BR1: 57 | BS1: 58 | BT1: 59 | BU1: 60 | BV1: 61 | BW1: 62 | BX1: 63 | BY1: 64 | BZ1: 65 | CA1: 66 | CB1: 67 | CC1: 68 | CD1: 69 | CE1: 70 | CF1: 71 | CG1: 72 | CR1: =CG1+1 -> 73 | CS1: =CR1+1 -> 74 | CT1: 75 | CU1: 76 | CV1: 77 | CW1: 78 | CX1: 79 | CY1: 80 | CZ1: 81 | DA1: 82 | DB1: 83 | DC1: 84 | DD1: 85 | DE1: 86 | DF1: 87 | DG1: 88 | DH1: 89 | DI1: 90 | DJ1: 91 | DK1: 92 | DL1: 93 | DM1: 94
B2: Itinerary Information | E2: Backcountry Camps by Itinerary Day | O2: Food Pickup's | Y2: Start/End | AB2: Cross US-64 (Enter Manually) | AF2: Peaks (Enter Manually) | AK2: Camp Elevation | AU2: Daily Elevation Change | BD2: Staffed Camp | BN2: Trail Camp | BX2: Dry Camp | CH2: Layovers | CR2: Country | DB2: Map | DL2: Food Pickup Info
B3: Itinerary Label | C3: Difficulty | D3: Distance | E3: Day 2 | F3: Day 3 | G3: Day 4 | H3: Day 5 | I3: Day 6 | J3: Day 7 | K3: Day 8 | L3: Day 9 | M3: Day 10 | N3: Day 11 | O3: 2 | P3: =O3+1 -> 3 | Q3: =P3+1 -> 4 | R3: 5 | S3: 6 | T3: 7 | U3: 8 | V3: 9 | W3: 10 | X3: 11 | Y3: Starting Trailhead | Z3: Ending Trailhead | AA3: Via Tooth | AB3: Itin:Day | AC3: Day | AD3: Cross At | AE3: Direction | AF3: Baldy | AG3: Phillips | AH3: Tooth | AI3: Trail | AJ3: Mountaineering | AK3: =O3 -> 2 | AL3: 3 | AM3: 4 | AN3: 5 | AO3: 6 | AP3: 7 | AQ3: 8 | AR3: 9 | AS3: 10 | AT3: 11 | AU3: 2 :: 3 | AV3: 3 :: 4 | AW3: 4 :: 5 | AX3: 5 :: 6 | AY3: 6 :: 7 | AZ3: 7 :: 8 | BA3: 8 :: 9 | BB3: 9 :: 10 | BC3: 10 :: 11 | BD3: 2 | BE3: 3 | BF3: 4 | BG3: 5 | BH3: 6 | BI3: 7 | BJ3: 8 | BK3: 9 | BL3: 10 | BM3: 11 | BN3: 2 | BO3: 3 | BP3: 4 | BQ3: 5 | BR3: 6 | BS3: 7 | BT3: 8 | BU3: 9 | BV3: 10 | BW3: 11 | BX3: 2 | BY3: 3 | BZ3: 4 | CA3: 5 | CB3: 6 | CC3: 7 | CD3: 8 | CE3: 9 | CF3: 10 | CG3: 11 | CH3: 2 | CI3: 3 | CJ3: 4 | CK3: 5 | CL3: 6 | CM3: 7 | CN3: 8 | CO3: 9 | CP3: 10 | CQ3: 11 | CR3: 2 | CS3: 3 | CT3: 4 | CU3: 5 | CV3: 6 | CW3: 7 | CX3: 8 | CY3: 9 | CZ3: 10 | DA3: 11 | DB3: 2 | DC3: 3 | DD3: 4 | DE3: 5 | DF3: 6 | DG3: 7 | DH3: 8 | DI3: 9 | DJ3: 10 | DK3: 11 | DL3: Days to 1st Food PU | DM3: Max Food Days
A4: =IF(ROW()-3>nItineraries,"",itineraryNoPrefix & ROW()-3) -> 9-1 | C4: C | D4: 37 | E4: Harlan | F4: Devil's Wash Basin | G4: Cimarroncita | H4: Black Jacks | I4: Elkhorn | J4: Ponil | K4: Indian Writings | O4: Camping HQ | Q4: Cimarroncita | T4: Ponil | Y4: Turkey Creek | Z4: Six Mile Gate | AA4: =IF(Z4="Hike In","y","") ->  | AB4: =IF(AC4="","",numericItinerary(A4) & ":" & AC4) ->  | AH4: =IF(AA4="y","y","") ->  | AJ4: y | AK4: =IF(E4<>"",INDEX(Elevations,MATCH(E4,camps,0)),"") -> 7550 | AL4: =IF(F4<>"",INDEX(Elevations,MATCH(F4,camps,0)),"") -> 8515 | AM4: =IF(G4<>"",INDEX(Elevations,MATCH(G4,camps,0)),"") -> 7373 | AN4: =IF(H4<>"",INDEX(Elevations,MATCH(H4,camps,0)),"") -> 8211 | AO4: =IF(I4<>"",INDEX(Elevations,MATCH(I4,camps,0)),"") -> 8496 | AP4: =IF(J4<>"",INDEX(Elevations,MATCH(J4,camps,0)),"") -> 7150 | AQ4: =IF(K4<>"",INDEX(Elevations,MATCH(K4,camps,0)),"") -> 6979 | AR4: =IF(L4<>"",INDEX(Elevations,MATCH(L4,camps,0)),"") ->  | AS4: =IF(M4<>"",INDEX(Elevations,MATCH(M4,camps,0)),"") ->  | AT4: =IF(N4<>"",INDEX(Elevations,MATCH(N4,camps,0)),"") ->  | AU4: =IF(AL4<>"",ABS(AK4-AL4),"") -> 965 | AV4: =IF(AM4<>"",ABS(AL4-AM4),"") -> 1142 | AW4: 838 | AX4: 285 | AY4: 1346 | AZ4: 171 | BD4: =IF(INDEX(campsByItinerary,numericItinerary($A4),BD$3-1)="","",VLOOKUP(INDEX(campsByItinerary,numericItinerary($A4),BD$3-1),campInfo,8)) -> Y | BE4: =IF(INDEX(campsByItinerary,numericItinerary($A4),BE$3-1)="","",VLOOKUP(INDEX(campsByItinerary,numericItinerary($A4),BE$3-1),campInfo,8)) ->  | BF4: =IF(INDEX(campsByItinerary,numericItinerary($A4),BF$3-1)="","",VLOOKUP(INDEX(campsByItinerary,numericItinerary($A4),BF$3-1),campInfo,8)) -> Y | BG4: =IF(INDEX(campsByItinerary,numericItinerary($A4),BG$3-1)="","",VLOOKUP(INDEX(campsByItinerary,numericItinerary($A4),BG$3-1),campInfo,8)) ->  | BH4: =IF(INDEX(campsByItinerary,numericItinerary($A4),BH$3-1)="","",VLOOKUP(INDEX(campsByItinerary,numericItinerary($A4),BH$3-1),campInfo,8)) ->  | BI4: =IF(INDEX(campsByItinerary,numericItinerary($A4),BI$3-1)="","",VLOOKUP(INDEX(campsByItinerary,numericItinerary($A4),BI$3-1),campInfo,8)) -> Y | BJ4: =IF(INDEX(campsByItinerary,numericItinerary($A4),BJ$3-1)="","",VLOOKUP(INDEX(campsByItinerary,numericItinerary($A4),BJ$3-1),campInfo,8)) -> Y | BK4: =IF(INDEX(campsByItinerary,numericItinerary($A4),BK$3-1)="","",VLOOKUP(INDEX(campsByItinerary,numericItinerary($A4),BK$3-1),campInfo,8)) ->  | BL4: =IF(INDEX(campsByItinerary,numericItinerary($A4),BL$3-1)="","",VLOOKUP(INDEX(campsByItinerary,numericItinerary($A4),BL$3-1),campInfo,8)) ->  | BM4: =IF(INDEX(campsByItinerary,numericItinerary($A4),BM$3-1)="","",VLOOKUP(INDEX(campsByItinerary,numericItinerary($A4),BM$3-1),campInfo,8)) ->  | BN4: =IF(BD4="Y","","Y") ->  | BO4: =IF(BE4="Y","","Y") -> Y | BQ4: Y | BR4: Y | BU4: Y | BV4: Y | BW4: Y | BX4: =IF(INDEX(campsByItinerary,numericItinerary($A4),BD$3-1)="","",VLOOKUP(INDEX(campsByItinerary,numericItinerary($A4),BD$3-1),campInfo,10)) ->  | BY4: =IF(INDEX(campsByItinerary,numericItinerary($A4),BE$3-1)="","",VLOOKUP(INDEX(campsByItinerary,numericItinerary($A4),BE$3-1),campInfo,10)) -> Y | BZ4: =IF(INDEX(campsByItinerary,numericItinerary($A4),BF$3-1)="","",VLOOKUP(INDEX(campsByItinerary,numericItinerary($A4),BF$3-1),campInfo,10)) ->  | CA4: =IF(INDEX(campsByItinerary,numericItinerary($A4),BG$3-1)="","",VLOOKUP(INDEX(campsByItinerary,numericItinerary($A4),BG$3-1),campInfo,10)) ->  | CB4: =IF(INDEX(campsByItinerary,numericItinerary($A4),BH$3-1)="","",VLOOKUP(INDEX(campsByItinerary,numericItinerary($A4),BH$3-1),campInfo,10)) ->  | CC4: =IF(INDEX(campsByItinerary,numericItinerary($A4),BI$3-1)="","",VLOOKUP(INDEX(campsByItinerary,numericItinerary($A4),BI$3-1),campInfo,10)) ->  | CD4: =IF(INDEX(campsByItinerary,numericItinerary($A4),BJ$3-1)="","",VLOOKUP(INDEX(campsByItinerary,numericItinerary($A4),BJ$3-1),campInfo,10)) ->  | CE4: =IF(INDEX(campsByItinerary,numericItinerary($A4),BK$3-1)="","",VLOOKUP(INDEX(campsByItinerary,numericItinerary($A4),BK$3-1),campInfo,10)) ->  | CF4: =IF(INDEX(campsByItinerary,numericItinerary($A4),BL$3-1)="","",VLOOKUP(INDEX(campsByItinerary,numericItinerary($A4),BL$3-1),campInfo,10)) ->  | CG4: =IF(INDEX(campsByItinerary,numericItinerary($A4),BM$3-1)="","",VLOOKUP(INDEX(campsByItinerary,numericItinerary($A4),BM$3-1),campInfo,10)) ->  | CI4: =IF(E4=F4,"Y","") ->  | CJ4: =IF(F4=G4,"Y","") ->  | CK4: =IF(G4=H4,"Y","") ->  | CL4: =IF(H4=I4,"Y","") ->  | CM4: =IF(I4=J4,"Y","") ->  | CN4: =IF(J4=K4,"Y","") ->  | CO4: =IF(K4=L4,"Y","") ->  | CP4: =IF(L4=M4,"Y","") -> Y | CQ4: =IF(M4=N4,"Y","") -> Y | CR4: =INDEX(campsByItinerary,numericItinerary($A4),BD$3-1) -> Harlan | CS4: =IF(INDEX(campsByItinerary,numericItinerary($A4),BE$3-1)="","",VLOOKUP(INDEX(campsByItinerary,numericItinerary($A4),BE$3-1),campInfo,2)) -> Central | CT4: =IF(INDEX(campsByItinerary,numericItinerary($A4),BF$3-1)="","",VLOOKUP(INDEX(campsByItinerary,numericItinerary($A4),BF$3-1),campInfo,2)) -> Central | CU4: =IF(INDEX(campsByItinerary,numericItinerary($A4),BG$3-1)="","",VLOOKUP(INDEX(campsByItinerary,numericItinerary($A4),BG$3-1),campInfo,2)) -> North | CV4: =IF(INDEX(campsByItinerary,numericItinerary($A4),BH$3-1)="","",VLOOKUP(INDEX(campsByItinerary,numericItinerary($A4),BH$3-1),campInfo,2)) -> North | CW4: =IF(INDEX(campsByItinerary,numericItinerary($A4),BI$3-1)="","",VLOOKUP(INDEX(campsByItinerary,numericItinerary($A4),BI$3-1),campInfo,2)) -> North | CX4: =IF(INDEX(campsByItinerary,numericItinerary($A4),BJ$3-1)="","",VLOOKUP(INDEX(campsByItinerary,numericItinerary($A4),BJ$3-1),campInfo,2)) -> North | CY4: =IF(INDEX(campsByItinerary,numericItinerary($A4),BK$3-1)="","",VLOOKUP(INDEX(campsByItinerary,numericItinerary($A4),BK$3-1),campInfo,2)) ->  | CZ4: =IF(INDEX(campsByItinerary,numericItinerary($A4),BL$3-1)="","",VLOOKUP(INDEX(campsByItinerary,numericItinerary($A4),BL$3-1),campInfo,2)) ->  | DA4: =IF(INDEX(campsByItinerary,numericItinerary($A4),BM$3-1)="","",VLOOKUP(INDEX(campsByItinerary,numericItinerary($A4),BM$3-1),campInfo,2)) ->  | DB4: =IF(INDEX(campsByItinerary,numericItinerary($A4),BD$3-1)="","",VLOOKUP(INDEX(campsByItinerary,numericItinerary($A4),BD$3-1),campInfo,12)) -> South | DC4: =IF(INDEX(campsByItinerary,numericItinerary($A4),BE$3-1)="","",VLOOKUP(INDEX(campsByItinerary,numericItinerary($A4),BE$3-1),campInfo,12)) -> South | DD4: =IF(INDEX(campsByItinerary,numericItinerary($A4),BF$3-1)="","",VLOOKUP(INDEX(campsByItinerary,numericItinerary($A4),BF$3-1),campInfo,12)) -> North & South | DE4: =IF(INDEX(campsByItinerary,numericItinerary($A4),BG$3-1)="","",VLOOKUP(INDEX(campsByItinerary,numericItinerary($A4),BG$3-1),campInfo,12)) -> North | DF4: =IF(INDEX(campsByItinerary,numericItinerary($A4),BH$3-1)="","",VLOOKUP(INDEX(campsByItinerary,numericItinerary($A4),BH$3-1),campInfo,12)) -> North | DG4: =IF(INDEX(campsByItinerary,numericItinerary($A4),BI$3-1)="","",VLOOKUP(INDEX(campsByItinerary,numericItinerary($A4),BI$3-1),campInfo,12)) -> North | DH4: =IF(INDEX(campsByItinerary,numericItinerary($A4),BJ$3-1)="","",VLOOKUP(INDEX(campsByItinerary,numericItinerary($A4),BJ$3-1),campInfo,12)) -> North | DI4: =IF(INDEX(campsByItinerary,numericItinerary($A4),BK$3-1)="","",VLOOKUP(INDEX(campsByItinerary,numericItinerary($A4),BK$3-1),campInfo,12)) ->  | DJ4: =IF(INDEX(campsByItinerary,numericItinerary($A4),BL$3-1)="","",VLOOKUP(INDEX(campsByItinerary,numericItinerary($A4),BL$3-1),campInfo,12)) ->  | DK4: =IF(INDEX(campsByItinerary,numericItinerary($A4),BM$3-1)="","",VLOOKUP(INDEX(campsByItinerary,numericItinerary($A4),BM$3-1),campInfo,12)) ->  | DL4: =getfoodPU("First",numericItinerary($A4)) -> 2 | DM4: =getfoodPU("Max",numericItinerary($A4)) -> 2
A5: 9-2 | C5: C | D5: 39 | E5: House Canyon | F5: Indian Writings | G5: Metcalf Station | H5: Bluestem | I5: Pueblano | J5: Black Horse Mine | K5: Maxwell | O5: Camping HQ | R5: Ponil | T5: Baldy Town | Y5: Six Mile Gate | Z5: Maxwell | AA5: =IF(Z5="Hike In","y","") ->  | AB5: =IF(AC5="","",numericItinerary(A5) & ":" & AC5) ->  | AF5: y | AH5: =IF(AA5="y","y","") ->  | AK5: 7157 | AL5: 6979 | AM5: 7220 | AN5: 7495 | AO5: 8069 | AP5: 10750 | AQ5: 8498 | AU5: =IF(AL5<>"",ABS(AK5-AL5),"") -> 178 | AV5: =IF(AM5<>"",ABS(AL5-AM5),"") -> 241 | AW5: =IF(AN5<>"",ABS(AM5-AN5),"") -> 275 | AX5: =IF(AO5<>"",ABS(AN5-AO5),"") -> 574 | AY5: =IF(AP5<>"",ABS(AO5-AP5),"") -> 2681 | AZ5: =IF(AQ5<>"",ABS(AP5-AQ5),"") -> 2252 | BA5: =IF(AR5<>"",ABS(AQ5-AR5),"") ->  | BB5: =IF(AS5<>"",ABS(AR5-AS5),"") ->  | BC5: =IF(AT5<>"",ABS(AS5-AT5),"") ->  | BD5: =IF(INDEX(campsByItinerary,numericItinerary($A5),BD$3-1)="","",VLOOKUP(INDEX(campsByItinerary,numericItinerary($A5),BD$3-1),campInfo,8)) ->  | BE5: =IF(INDEX(campsByItinerary,numericItinerary($A5),BE$3-1)="","",VLOOKUP(INDEX(campsByItinerary,numericItinerary($A5),BE$3-1),campInfo,8)) -> Y | BF5: =IF(INDEX(campsByItinerary,numericItinerary($A5),BF$3-1)="","",VLOOKUP(INDEX(campsByItinerary,numericItinerary($A5),BF$3-1),campInfo,8)) -> Y | BG5: =IF(INDEX(campsByItinerary,numericItinerary($A5),BG$3-1)="","",VLOOKUP(INDEX(campsByItinerary,numericItinerary($A5),BG$3-1),campInfo,8)) ->  | BH5: =IF(INDEX(campsByItinerary,numericItinerary($A5),BH$3-1)="","",VLOOKUP(INDEX(campsByItinerary,numericItinerary($A5),BH$3-1),campInfo,8)) -> Y | BI5: =IF(INDEX(campsByItinerary,numericItinerary($A5),BI$3-1)="","",VLOOKUP(INDEX(campsByItinerary,numericItinerary($A5),BI$3-1),campInfo,8)) ->  | BJ5: =IF(INDEX(campsByItinerary,numericItinerary($A5),BJ$3-1)="","",VLOOKUP(INDEX(campsByItinerary,numericItinerary($A5),BJ$3-1),campInfo,8)) ->  | BK5: =IF(INDEX(campsByItinerary,numericItinerary($A5),BK$3-1)="","",VLOOKUP(INDEX(campsByItinerary,numericItinerary($A5),BK$3-1),campInfo,8)) ->  | BL5: =IF(INDEX(campsByItinerary,numericItinerary($A5),BL$3-1)="","",VLOOKUP(INDEX(campsByItinerary,numericItinerary($A5),BL$3-1),campInfo,8)) ->  | BM5: =IF(INDEX(campsByItinerary,numericItinerary($A5),BM$3-1)="","",VLOOKUP(INDEX(campsByItinerary,numericItinerary($A5),BM$3-1),campInfo,8)) ->  | BN5: =IF(BD5="Y","","Y") -> Y | BO5: =IF(BE5="Y","","Y") ->  | BP5: =IF(BF5="Y","","Y") ->  | BQ5: =IF(BG5="Y","","Y") -> Y | BR5: =IF(BH5="Y","","Y") ->  | BS5: =IF(BI5="Y","","Y") -> Y | BT5: =IF(BJ5="Y","","Y") -> Y | BU5: =IF(BK5="Y","","Y") -> Y | BV5: =IF(BL5="Y","","Y") -> Y | BW5: =IF(BM5="Y","","Y") -> Y | BX5: =IF(INDEX(campsByItinerary,numericItinerary($A5),BD$3-1)="","",VLOOKUP(INDEX(campsByItinerary,numericItinerary($A5),BD$3-1),campInfo,10)) ->  | BY5: =IF(INDEX(campsByItinerary,numericItinerary($A5),BE$3-1)="","",VLOOKUP(INDEX(campsByItinerary,numericItinerary($A5),BE$3-1),campInfo,10)) ->  | BZ5: =IF(INDEX(campsByItinerary,numericItinerary($A5),BF$3-1)="","",VLOOKUP(INDEX(campsByItinerary,numericItinerary($A5),BF$3-1),campInfo,10)) ->  | CA5: =IF(INDEX(campsByItinerary,numericItinerary($A5),BG$3-1)="","",VLOOKUP(INDEX(campsByItinerary,numericItinerary($A5),BG$3-1),campInfo,10)) -> Y | CB5: =IF(INDEX(campsByItinerary,numericItinerary($A5),BH$3-1)="","",VLOOKUP(INDEX(campsByItinerary,numericItinerary($A5),BH$3-1),campInfo,10)) ->  | CC5: =IF(INDEX(campsByItinerary,numericItinerary($A5),BI$3-1)="","",VLOOKUP(INDEX(campsByItinerary,numericItinerary($A5),BI$3-1),campInfo,10)) -> Y | CD5: =IF(INDEX(campsByItinerary,numericItinerary($A5),BJ$3-1)="","",VLOOKUP(INDEX(campsByItinerary,numericItinerary($A5),BJ$3-1),campInfo,10)) ->  | CE5: =IF(INDEX(campsByItinerary,numericItinerary($A5),BK$3-1)="","",VLOOKUP(INDEX(campsByItinerary,numericItinerary($A5),BK$3-1),campInfo,10)) ->  | CF5: =IF(INDEX(campsByItinerary,numericItinerary($A5),BL$3-1)="","",VLOOKUP(INDEX(campsByItinerary,numericItinerary($A5),BL$3-1),campInfo,10)) ->  | CG5: =IF(INDEX(campsByItinerary,numericItinerary($A5),BM$3-1)="","",VLOOKUP(INDEX(campsByItinerary,numericItinerary($A5),BM$3-1),campInfo,10)) ->  | CP5: Y | CQ5: Y | CR5: =INDEX(campsByItinerary,numericItinerary($A5),BD$3-1) -> House Canyon | CS5: =IF(INDEX(campsByItinerary,numericItinerary($A5),BE$3-1)="","",VLOOKUP(INDEX(campsByItinerary,numericItinerary($A5),BE$3-1),campInfo,2)) -> North | CT5: =IF(INDEX(campsByItinerary,numericItinerary($A5),BF$3-1)="","",VLOOKUP(INDEX(campsByItinerary,numericItinerary($A5),BF$3-1),campInfo,2)) -> North | CU5: =IF(INDEX(campsByItinerary,numericItinerary($A5),BG$3-1)="","",VLOOKUP(INDEX(campsByItinerary,numericItinerary($A5),BG$3-1),campInfo,2)) -> North | CV5: =IF(INDEX(campsByItinerary,numericItinerary($A5),BH$3-1)="","",VLOOKUP(INDEX(campsByItinerary,numericItinerary($A5),BH$3-1),campInfo,2)) -> North | CW5: =IF(INDEX(campsByItinerary,numericItinerary($A5),BI$3-1)="","",VLOOKUP(INDEX(campsByItinerary,numericItinerary($A5),BI$3-1),campInfo,2)) -> North | CX5: =IF(INDEX(campsByItinerary,numericItinerary($A5),BJ$3-1)="","",VLOOKUP(INDEX(campsByItinerary,numericItinerary($A5),BJ$3-1),campInfo,2)) -> North | CY5: =IF(INDEX(campsByItinerary,numericItinerary($A5),BK$3-1)="","",VLOOKUP(INDEX(campsByItinerary,numericItinerary($A5),BK$3-1),campInfo,2)) ->  | CZ5: =IF(INDEX(campsByItinerary,numericItinerary($A5),BL$3-1)="","",VLOOKUP(INDEX(campsByItinerary,numericItinerary($A5),BL$3-1),campInfo,2)) ->  | DA5: =IF(INDEX(campsByItinerary,numericItinerary($A5),BM$3-1)="","",VLOOKUP(INDEX(campsByItinerary,numericItinerary($A5),BM$3-1),campInfo,2)) ->  | DB5: =IF(INDEX(campsByItinerary,numericItinerary($A5),BD$3-1)="","",VLOOKUP(INDEX(campsByItinerary,numericItinerary($A5),BD$3-1),campInfo,12)) -> North | DC5: =IF(INDEX(campsByItinerary,numericItinerary($A5),BE$3-1)="","",VLOOKUP(INDEX(campsByItinerary,numericItinerary($A5),BE$3-1),campInfo,12)) -> North | DD5: =IF(INDEX(campsByItinerary,numericItinerary($A5),BF$3-1)="","",VLOOKUP(INDEX(campsByItinerary,numericItinerary($A5),BF$3-1),campInfo,12)) -> North | DE5: =IF(INDEX(campsByItinerary,numericItinerary($A5),BG$3-1)="","",VLOOKUP(INDEX(campsByItinerary,numericItinerary($A5),BG$3-1),campInfo,12)) -> North | DF5: =IF(INDEX(campsByItinerary,numericItinerary($A5),BH$3-1)="","",VLOOKUP(INDEX(campsByItinerary,numericItinerary($A5),BH$3-1),campInfo,12)) -> North | DG5: =IF(INDEX(campsByItinerary,numericItinerary($A5),BI$3-1)="","",VLOOKUP(INDEX(campsByItinerary,numericItinerary($A5),BI$3-1),campInfo,12)) -> North | DH5: =IF(INDEX(campsByItinerary,numericItinerary($A5),BJ$3-1)="","",VLOOKUP(INDEX(campsByItinerary,numericItinerary($A5),BJ$3-1),campInfo,12)) -> North | DI5: =IF(INDEX(campsByItinerary,numericItinerary($A5),BK$3-1)="","",VLOOKUP(INDEX(campsByItinerary,numericItinerary($A5),BK$3-1),campInfo,12)) ->  | DJ5: =IF(INDEX(campsByItinerary,numericItinerary($A5),BL$3-1)="","",VLOOKUP(INDEX(campsByItinerary,numericItinerary($A5),BL$3-1),campInfo,12)) ->  | DK5: =IF(INDEX(campsByItinerary,numericItinerary($A5),BM$3-1)="","",VLOOKUP(INDEX(campsByItinerary,numericItinerary($A5),BM$3-1),campInfo,12)) ->  | DL5: =getfoodPU("First",numericItinerary($A5)) -> 3 | DM5: =getfoodPU("Max",numericItinerary($A5)) -> 3
A6: 9-3 | C6: C | D6: 41 | E6: Ponderosa Park | F6: Miners Park | G6: Black Mountain | H6: Beaubien | I6: Beaubien | J6: Comanche Peak | K6: Clear Creek | O6: Camping HQ | Q6: Miners Park | T6: Phillips Junction | Y6: Webster | Z6: Tolby Creek | AB6: =IF(AC6="","",numericItinerary(A6) & ":" & AC6) ->  | AG6: y | AJ6: y | AK6: 8004 | AL6: 7977 | AM6: 8991 | AN6: 9330 | AO6: 9330 | AP6: 11070 | AQ6: 10240 | AU6: 27 | AV6: 1014 | AW6: 339 | AX6: 0 | AY6: 1740 | AZ6: 830 | BD6: =IF(INDEX(campsByItinerary,numericItinerary($A6),BD$3-1)="","",VLOOKUP(INDEX(campsByItinerary,numericItinerary($A6),BD$3-1),campInfo,8)) ->  | BE6: =IF(INDEX(campsByItinerary,numericItinerary($A6),BE$3-1)="","",VLOOKUP(INDEX(campsByItinerary,numericItinerary($A6),BE$3-1),campInfo,8)) -> Y | BF6: =IF(INDEX(campsByItinerary,numericItinerary($A6),BF$3-1)="","",VLOOKUP(INDEX(campsByItinerary,numericItinerary($A6),BF$3-1),campInfo,8)) -> Y | BG6: =IF(INDEX(campsByItinerary,numericItinerary($A6),BG$3-1)="","",VLOOKUP(INDEX(campsByItinerary,numericItinerary($A6),BG$3-1),campInfo,8)) -> Y | BH6: =IF(INDEX(campsByItinerary,numericItinerary($A6),BH$3-1)="","",VLOOKUP(INDEX(campsByItinerary,numericItinerary($A6),BH$3-1),campInfo,8)) -> Y | BI6: =IF(INDEX(campsByItinerary,numericItinerary($A6),BI$3-1)="","",VLOOKUP(INDEX(campsByItinerary,numericItinerary($A6),BI$3-1),campInfo,8)) ->  | BJ6: =IF(INDEX(campsByItinerary,numericItinerary($A6),BJ$3-1)="","",VLOOKUP(INDEX(campsByItinerary,numericItinerary($A6),BJ$3-1),campInfo,8)) -> Y | BK6: =IF(INDEX(campsByItinerary,numericItinerary($A6),BK$3-1)="","",VLOOKUP(INDEX(campsByItinerary,numericItinerary($A6),BK$3-1),campInfo,8)) ->  | BL6: =IF(INDEX(campsByItinerary,numericItinerary($A6),BL$3-1)="","",VLOOKUP(INDEX(campsByItinerary,numericItinerary($A6),BL$3-1),campInfo,8)) ->  | BM6: =IF(INDEX(campsByItinerary,numericItinerary($A6),BM$3-1)="","",VLOOKUP(INDEX(campsByItinerary,numericItinerary($A6),BM$3-1),campInfo,8)) ->  | BN6: Y | BS6: Y | BU6: Y | BV6: Y | BW6: Y | BX6: =IF(INDEX(campsByItinerary,numericItinerary($A6),BD$3-1)="","",VLOOKUP(INDEX(campsByItinerary,numericItinerary($A6),BD$3-1),campInfo,10)) -> Y | BY6: =IF(INDEX(campsByItinerary,numericItinerary($A6),BE$3-1)="","",VLOOKUP(INDEX(campsByItinerary,numericItinerary($A6),BE$3-1),campInfo,10)) ->  | BZ6: =IF(INDEX(campsByItinerary,numericItinerary($A6),BF$3-1)="","",VLOOKUP(INDEX(campsByItinerary,numericItinerary($A6),BF$3-1),campInfo,10)) ->  | CA6: =IF(INDEX(campsByItinerary,numericItinerary($A6),BG$3-1)="","",VLOOKUP(INDEX(campsByItinerary,numericItinerary($A6),BG$3-1),campInfo,10)) ->  | CB6: =IF(INDEX(campsByItinerary,numericItinerary($A6),BH$3-1)="","",VLOOKUP(INDEX(campsByItinerary,numericItinerary($A6),BH$3-1),campInfo,10)) ->  | CC6: =IF(INDEX(campsByItinerary,numericItinerary($A6),BI$3-1)="","",VLOOKUP(INDEX(campsByItinerary,numericItinerary($A6),BI$3-1),campInfo,10)) -> Y | CD6: =IF(INDEX(campsByItinerary,numericItinerary($A6),BJ$3-1)="","",VLOOKUP(INDEX(campsByItinerary,numericItinerary($A6),BJ$3-1),campInfo,10)) ->  | CE6: =IF(INDEX(campsByItinerary,numericItinerary($A6),BK$3-1)="","",VLOOKUP(INDEX(campsByItinerary,numericItinerary($A6),BK$3-1),campInfo,10)) ->  | CF6: =IF(INDEX(campsByItinerary,numericItinerary($A6),BL$3-1)="","",VLOOKUP(INDEX(campsByItinerary,numericItinerary($A6),BL$3-1),campInfo,10)) ->  | CG6: =IF(INDEX(campsByItinerary,numericItinerary($A6),BM$3-1)="","",VLOOKUP(INDEX(campsByItinerary,numericItinerary($A6),BM$3-1),campInfo,10)) ->  | CL6: Y | CP6: Y | CQ6: Y | CR6: =INDEX(campsByItinerary,numericItinerary($A6),BD$3-1) -> Ponderosa Park | CS6: =IF(INDEX(campsByItinerary,numericItinerary($A6),BE$3-1)="","",VLOOKUP(INDEX(campsByItinerary,numericItinerary($A6),BE$3-1),campInfo,2)) -> South | CT6: =IF(INDEX(campsByItinerary,numericItinerary($A6),BF$3-1)="","",VLOOKUP(INDEX(campsByItinerary,numericItinerary($A6),BF$3-1),campInfo,2)) -> South | CU6: =IF(INDEX(campsByItinerary,numericItinerary($A6),BG$3-1)="","",VLOOKUP(INDEX(campsByItinerary,numericItinerary($A6),BG$3-1),campInfo,2)) -> South | CV6: =IF(INDEX(campsByItinerary,numericItinerary($A6),BH$3-1)="","",VLOOKUP(INDEX(campsByItinerary,numericItinerary($A6),BH$3-1),campInfo,2)) -> South | CW6: =IF(INDEX(campsByItinerary,numericItinerary($A6),BI$3-1)="","",VLOOKUP(INDEX(campsByItinerary,numericItinerary($A6),BI$3-1),campInfo,2)) -> Central | CX6: =IF(INDEX(campsByItinerary,numericItinerary($A6),BJ$3-1)="","",VLOOKUP(INDEX(campsByItinerary,numericItinerary($A6),BJ$3-1),campInfo,2)) -> Central | CY6: =IF(INDEX(campsByItinerary,numericItinerary($A6),BK$3-1)="","",VLOOKUP(INDEX(campsByItinerary,numericItinerary($A6),BK$3-1),campInfo,2)) ->  | CZ6: =IF(INDEX(campsByItinerary,numericItinerary($A6),BL$3-1)="","",VLOOKUP(INDEX(campsByItinerary,numericItinerary($A6),BL$3-1),campInfo,2)) ->  | DA6: =IF(INDEX(campsByItinerary,numericItinerary($A6),BM$3-1)="","",VLOOKUP(INDEX(campsByItinerary,numericItinerary($A6),BM$3-1),campInfo,2)) ->  | DB6: =IF(INDEX(campsByItinerary,numericItinerary($A6),BD$3-1)="","",VLOOKUP(INDEX(campsByItinerary,numericItinerary($A6),BD$3-1),campInfo,12)) -> South | DC6: =IF(INDEX(campsByItinerary,numericItinerary($A6),BE$3-1)="","",VLOOKUP(INDEX(campsByItinerary,numericItinerary($A6),BE$3-1),campInfo,12)) -> South | DD6: =IF(INDEX(campsByItinerary,numericItinerary($A6),BF$3-1)="","",VLOOKUP(INDEX(campsByItinerary,numericItinerary($A6),BF$3-1),campInfo,12)) -> South | DE6: =IF(INDEX(campsByItinerary,numericItinerary($A6),BG$3-1)="","",VLOOKUP(INDEX(campsByItinerary,numericItinerary($A6),BG$3-1),campInfo,12)) -> South | DF6: =IF(INDEX(campsByItinerary,numericItinerary($A6),BH$3-1)="","",VLOOKUP(INDEX(campsByItinerary,numericItinerary($A6),BH$3-1),campInfo,12)) -> South | DG6: =IF(INDEX(campsByItinerary,numericItinerary($A6),BI$3-1)="","",VLOOKUP(INDEX(campsByItinerary,numericItinerary($A6),BI$3-1),campInfo,12)) -> South | DH6: =IF(INDEX(campsByItinerary,numericItinerary($A6),BJ$3-1)="","",VLOOKUP(INDEX(campsByItinerary,numericItinerary($A6),BJ$3-1),campInfo,12)) -> South | DI6: =IF(INDEX(campsByItinerary,numericItinerary($A6),BK$3-1)="","",VLOOKUP(INDEX(campsByItinerary,numericItinerary($A6),BK$3-1),campInfo,12)) ->  | DJ6: =IF(INDEX(campsByItinerary,numericItinerary($A6),BL$3-1)="","",VLOOKUP(INDEX(campsByItinerary,numericItinerary($A6),BL$3-1),campInfo,12)) ->  | DK6: =IF(INDEX(campsByItinerary,numericItinerary($A6),BM$3-1)="","",VLOOKUP(INDEX(campsByItinerary,numericItinerary($A6),BM$3-1),campInfo,12)) ->  | DL6: =getfoodPU("First",numericItinerary($A6)) -> 2 | DM6: =getfoodPU("Max",numericItinerary($A6)) -> 2
A7: 9-4 | C7: C | D7: 44 | E7: Heck Meadow | F7: Clarks Fork | G7: Cimarroncito | H7: Whistle Punk | I7: Sawmill | J7: Divide | K7: Tolby Headwaters | O7: Camping HQ | Q7: Cimarroncito | S7: Sawmill | Y7: Hike Out | Z7: Tolby Creek | AB7: =IF(AC7="","",numericItinerary(A7) & ":" & AC7) ->  | AG7: y | AJ7: y | AK7: 7085 | AL7: 7515 | AM7: 8137 | AN7: 10052 | AO7: 9193 | AP7: 10509 | AQ7: 9219 | AU7: 430 | AV7: 622 | AW7: 1915 | AX7: 859 | AY7: 1316 | AZ7: 1290 | BD7: =IF(INDEX(campsByItinerary,numericItinerary($A7),BD$3-1)="","",VLOOKUP(INDEX(campsByItinerary,numericItinerary($A7),BD$3-1),campInfo,8)) ->  | BE7: =IF(INDEX(campsByItinerary,numericItinerary($A7),BE$3-1)="","",VLOOKUP(INDEX(campsByItinerary,numericItinerary($A7),BE$3-1),campInfo,8)) -> Y | BF7: =IF(INDEX(campsByItinerary,numericItinerary($A7),BF$3-1)="","",VLOOKUP(INDEX(campsByItinerary,numericItinerary($A7),BF$3-1),campInfo,8)) -> Y | BG7: =IF(INDEX(campsByItinerary,numericItinerary($A7),BG$3-1)="","",VLOOKUP(INDEX(campsByItinerary,numericItinerary($A7),BG$3-1),campInfo,8)) ->  | BH7: =IF(INDEX(campsByItinerary,numericItinerary($A7),BH$3-1)="","",VLOOKUP(INDEX(campsByItinerary,numericItinerary($A7),BH$3-1),campInfo,8)) -> Y | BI7: =IF(INDEX(campsByItinerary,numericItinerary($A7),BI$3-1)="","",VLOOKUP(INDEX(campsByItinerary,numericItinerary($A7),BI$3-1),campInfo,8)) ->  | BJ7: =IF(INDEX(campsByItinerary,numericItinerary($A7),BJ$3-1)="","",VLOOKUP(INDEX(campsByItinerary,numericItinerary($A7),BJ$3-1),campInfo,8)) ->  | BK7: =IF(INDEX(campsByItinerary,numericItinerary($A7),BK$3-1)="","",VLOOKUP(INDEX(campsByItinerary,numericItinerary($A7),BK$3-1),campInfo,8)) ->  | BL7: =IF(INDEX(campsByItinerary,numericItinerary($A7),BL$3-1)="","",VLOOKUP(INDEX(campsByItinerary,numericItinerary($A7),BL$3-1),campInfo,8)) ->  | BM7: =IF(INDEX(campsByItinerary,numericItinerary($A7),BM$3-1)="","",VLOOKUP(INDEX(campsByItinerary,numericItinerary($A7),BM$3-1),campInfo,8)) ->  | BN7: Y | BQ7: Y | BS7: Y | BT7: Y | BU7: Y | BV7: Y | BW7: Y | BX7: =IF(INDEX(campsByItinerary,numericItinerary($A7),BD$3-1)="","",VLOOKUP(INDEX(campsByItinerary,numericItinerary($A7),BD$3-1),campInfo,10)) -> Y | BY7: =IF(INDEX(campsByItinerary,numericItinerary($A7),BE$3-1)="","",VLOOKUP(INDEX(campsByItinerary,numericItinerary($A7),BE$3-1),campInfo,10)) ->  | BZ7: =IF(INDEX(campsByItinerary,numericItinerary($A7),BF$3-1)="","",VLOOKUP(INDEX(campsByItinerary,numericItinerary($A7),BF$3-1),campInfo,10)) ->  | CA7: =IF(INDEX(campsByItinerary,numericItinerary($A7),BG$3-1)="","",VLOOKUP(INDEX(campsByItinerary,numericItinerary($A7),BG$3-1),campInfo,10)) ->  | CB7: =IF(INDEX(campsByItinerary,numericItinerary($A7),BH$3-1)="","",VLOOKUP(INDEX(campsByItinerary,numericItinerary($A7),BH$3-1),campInfo,10)) ->  | CC7: =IF(INDEX(campsByItinerary,numericItinerary($A7),BI$3-1)="","",VLOOKUP(INDEX(campsByItinerary,numericItinerary($A7),BI$3-1),campInfo,10)) -> Y | CD7: =IF(INDEX(campsByItinerary,numericItinerary($A7),BJ$3-1)="","",VLOOKUP(INDEX(campsByItinerary,numericItinerary($A7),BJ$3-1),campInfo,10)) ->  | CE7: =IF(INDEX(campsByItinerary,numericItinerary($A7),BK$3-1)="","",VLOOKUP(INDEX(campsByItinerary,numericItinerary($A7),BK$3-1),campInfo,10)) ->  | CF7: =IF(INDEX(campsByItinerary,numericItinerary($A7),BL$3-1)="","",VLOOKUP(INDEX(campsByItinerary,numericItinerary($A7),BL$3-1),campInfo,10)) ->  | CG7: =IF(INDEX(campsByItinerary,numericItinerary($A7),BM$3-1)="","",VLOOKUP(INDEX(campsByItinerary,numericItinerary($A7),BM$3-1),campInfo,10)) ->  | CP7: Y | CQ7: Y | CR7: =INDEX(campsByItinerary,numericItinerary($A7),BD$3-1) -> Heck Meadow | CS7: =IF(INDEX(campsByItinerary,numericItinerary($A7),BE$3-1)="","",VLOOKUP(INDEX(campsByItinerary,numericItinerary($A7),BE$3-1),campInfo,2)) -> Central | CT7: =IF(INDEX(campsByItinerary,numericItinerary($A7),BF$3-1)="","",VLOOKUP(INDEX(campsByItinerary,numericItinerary($A7),BF$3-1),campInfo,2)) -> Central | CU7: =IF(INDEX(campsByItinerary,numericItinerary($A7),BG$3-1)="","",VLOOKUP(INDEX(campsByItinerary,numericItinerary($A7),BG$3-1),campInfo,2)) -> Central | CV7: =IF(INDEX(campsByItinerary,numericItinerary($A7),BH$3-1)="","",VLOOKUP(INDEX(campsByItinerary,numericItinerary($A7),BH$3-1),campInfo,2)) -> Central | CW7: =IF(INDEX(campsByItinerary,numericItinerary($A7),BI$3-1)="","",VLOOKUP(INDEX(campsByItinerary,numericItinerary($A7),BI$3-1),campInfo,2)) -> South | CX7: =IF(INDEX(campsByItinerary,numericItinerary($A7),BJ$3-1)="","",VLOOKUP(INDEX(campsByItinerary,numericItinerary($A7),BJ$3-1),campInfo,2)) -> South | CY7: =IF(INDEX(campsByItinerary,numericItinerary($A7),BK$3-1)="","",VLOOKUP(INDEX(campsByItinerary,numericItinerary($A7),BK$3-1),campInfo,2)) ->  | CZ7: =IF(INDEX(campsByItinerary,numericItinerary($A7),BL$3-1)="","",VLOOKUP(INDEX(campsByItinerary,numericItinerary($A7),BL$3-1),campInfo,2)) ->  | DA7: =IF(INDEX(campsByItinerary,numericItinerary($A7),BM$3-1)="","",VLOOKUP(INDEX(campsByItinerary,numericItinerary($A7),BM$3-1),campInfo,2)) ->  | DB7: =IF(INDEX(campsByItinerary,numericItinerary($A7),BD$3-1)="","",VLOOKUP(INDEX(campsByItinerary,numericItinerary($A7),BD$3-1),campInfo,12)) -> South | DC7: =IF(INDEX(campsByItinerary,numericItinerary($A7),BE$3-1)="","",VLOOKUP(INDEX(campsByItinerary,numericItinerary($A7),BE$3-1),campInfo,12)) -> South | DD7: =IF(INDEX(campsByItinerary,numericItinerary($A7),BF$3-1)="","",VLOOKUP(INDEX(campsByItinerary,numericItinerary($A7),BF$3-1),campInfo,12)) -> South | DE7: =IF(INDEX(campsByItinerary,numericItinerary($A7),BG$3-1)="","",VLOOKUP(INDEX(campsByItinerary,numericItinerary($A7),BG$3-1),campInfo,12)) -> South | DF7: =IF(INDEX(campsByItinerary,numericItinerary($A7),BH$3-1)="","",VLOOKUP(INDEX(campsByItinerary,numericItinerary($A7),BH$3-1),campInfo,12)) -> South | DG7: =IF(INDEX(campsByItinerary,numericItinerary($A7),BI$3-1)="","",VLOOKUP(INDEX(campsByItinerary,numericItinerary($A7),BI$3-1),campInfo,12)) -> South | DH7: =IF(INDEX(campsByItinerary,numericItinerary($A7),BJ$3-1)="","",VLOOKUP(INDEX(campsByItinerary,numericItinerary($A7),BJ$3-1),campInfo,12)) -> South | DI7: =IF(INDEX(campsByItinerary,numericItinerary($A7),BK$3-1)="","",VLOOKUP(INDEX(campsByItinerary,numericItinerary($A7),BK$3-1),campInfo,12)) ->  | DJ7: =IF(INDEX(campsByItinerary,numericItinerary($A7),BL$3-1)="","",VLOOKUP(INDEX(campsByItinerary,numericItinerary($A7),BL$3-1),campInfo,12)) ->  | DK7: =IF(INDEX(campsByItinerary,numericItinerary($A7),BM$3-1)="","",VLOOKUP(INDEX(campsByItinerary,numericItinerary($A7),BM$3-1),campInfo,12)) ->  | DL7: =getfoodPU("First",numericItinerary($A7)) -> 2 | DM7: =getfoodPU("Max",numericItinerary($A7)) -> 2
A8: 9-5 | C8: R | D8: 46 | E8: Dean Skyline | F8: Upper Dean Cow | G8: French Henry | H8: Copper Park | I8: Copper Park | J8: Rich Cabins | K8: Ponil | O8: Camping HQ | R8: Baldy Town | T8: Rich Cabins | Y8: Ponil | Z8: Ponil | AB8: =IF(AC8="","",numericItinerary(A8) & ":" & AC8) ->  | AF8: y | AK8: 7967 | AL8: 8254 | AM8: 9635 | AN8: 10530 | AO8: 10530 | AP8: 7728 | AQ8: 7150 | AU8: 287 | AV8: 1381 | AW8: 895 | AX8: 0 | AY8: 2802 | AZ8: 578 | BD8: =IF(INDEX(campsByItinerary,numericItinerary($A8),BD$3-1)="","",VLOOKUP(INDEX(campsByItinerary,numericItinerary($A8),BD$3-1),campInfo,8)) ->  | BE8: =IF(INDEX(campsByItinerary,numericItinerary($A8),BE$3-1)="","",VLOOKUP(INDEX(campsByItinerary,numericItinerary($A8),BE$3-1),campInfo,8)) ->  | BF8: =IF(INDEX(campsByItinerary,numericItinerary($A8),BF$3-1)="","",VLOOKUP(INDEX(campsByItinerary,numericItinerary($A8),BF$3-1),campInfo,8)) -> Y | BG8: =IF(INDEX(campsByItinerary,numericItinerary($A8),BG$3-1)="","",VLOOKUP(INDEX(campsByItinerary,numericItinerary($A8),BG$3-1),campInfo,8)) ->  | BH8: =IF(INDEX(campsByItinerary,numericItinerary($A8),BH$3-1)="","",VLOOKUP(INDEX(campsByItinerary,numericItinerary($A8),BH$3-1),campInfo,8)) ->  | BI8: =IF(INDEX(campsByItinerary,numericItinerary($A8),BI$3-1)="","",VLOOKUP(INDEX(campsByItinerary,numericItinerary($A8),BI$3-1),campInfo,8)) -> Y | BJ8: =IF(INDEX(campsByItinerary,numericItinerary($A8),BJ$3-1)="","",VLOOKUP(INDEX(campsByItinerary,numericItinerary($A8),BJ$3-1),campInfo,8)) -> Y | BK8: =IF(INDEX(campsByItinerary,numericItinerary($A8),BK$3-1)="","",VLOOKUP(INDEX(campsByItinerary,numericItinerary($A8),BK$3-1),campInfo,8)) ->  | BL8: =IF(INDEX(campsByItinerary,numericItinerary($A8),BL$3-1)="","",VLOOKUP(INDEX(campsByItinerary,numericItinerary($A8),BL$3-1),campInfo,8)) ->  | BM8: =IF(INDEX(campsByItinerary,numericItinerary($A8),BM$3-1)="","",VLOOKUP(INDEX(campsByItinerary,numericItinerary($A8),BM$3-1),campInfo,8)) ->  | BN8: Y | BO8: Y | BQ8: Y | BR8: Y | BU8: Y | BV8: Y | BW8: Y | BX8: =IF(INDEX(campsByItinerary,numericItinerary($A8),BD$3-1)="","",VLOOKUP(INDEX(campsByItinerary,numericItinerary($A8),BD$3-1),campInfo,10)) -> Y | BY8: =IF(INDEX(campsByItinerary,numericItinerary($A8),BE$3-1)="","",VLOOKUP(INDEX(campsByItinerary,numericItinerary($A8),BE$3-1),campInfo,10)) ->  | BZ8: =IF(INDEX(campsByItinerary,numericItinerary($A8),BF$3-1)="","",VLOOKUP(INDEX(campsByItinerary,numericItinerary($A8),BF$3-1),campInfo,10)) ->  | CA8: =IF(INDEX(campsByItinerary,numericItinerary($A8),BG$3-1)="","",VLOOKUP(INDEX(campsByItinerary,numericItinerary($A8),BG$3-1),campInfo,10)) ->  | CB8: =IF(INDEX(campsByItinerary,numericItinerary($A8),BH$3-1)="","",VLOOKUP(INDEX(campsByItinerary,numericItinerary($A8),BH$3-1),campInfo,10)) ->  | CC8: =IF(INDEX(campsByItinerary,numericItinerary($A8),BI$3-1)="","",VLOOKUP(INDEX(campsByItinerary,numericItinerary($A8),BI$3-1),campInfo,10)) ->  | CD8: =IF(INDEX(campsByItinerary,numericItinerary($A8),BJ$3-1)="","",VLOOKUP(INDEX(campsByItinerary,numericItinerary($A8),BJ$3-1),campInfo,10)) ->  | CE8: =IF(INDEX(campsByItinerary,numericItinerary($A8),BK$3-1)="","",VLOOKUP(INDEX(campsByItinerary,numericItinerary($A8),BK$3-1),campInfo,10)) ->  | CF8: =IF(INDEX(campsByItinerary,numericItinerary($A8),BL$3-1)="","",VLOOKUP(INDEX(campsByItinerary,numericItinerary($A8),BL$3-1),campInfo,10)) ->  | CG8: =IF(INDEX(campsByItinerary,numericItinerary($A8),BM$3-1)="","",VLOOKUP(INDEX(campsByItinerary,numericItinerary($A8),BM$3-1),campInfo,10)) ->  | CL8: Y | CP8: Y | CQ8: Y | CR8: =INDEX(campsByItinerary,numericItinerary($A8),BD$3-1) -> Dean Skyline | CS8: =IF(INDEX(campsByItinerary,numericItinerary($A8),BE$3-1)="","",VLOOKUP(INDEX(campsByItinerary,numericItinerary($A8),BE$3-1),campInfo,2)) -> North | CT8: =IF(INDEX(campsByItinerary,numericItinerary($A8),BF$3-1)="","",VLOOKUP(INDEX(campsByItinerary,numericItinerary($A8),BF$3-1),campInfo,2)) -> North | CU8: =IF(INDEX(campsByItinerary,numericItinerary($A8),BG$3-1)="","",VLOOKUP(INDEX(campsByItinerary,numericItinerary($A8),BG$3-1),campInfo,2)) -> North | CV8: =IF(INDEX(campsByItinerary,numericItinerary($A8),BH$3-1)="","",VLOOKUP(INDEX(campsByItinerary,numericItinerary($A8),BH$3-1),campInfo,2)) -> North | CW8: =IF(INDEX(campsByItinerary,numericItinerary($A8),BI$3-1)="","",VLOOKUP(INDEX(campsByItinerary,numericItinerary($A8),BI$3-1),campInfo,2)) -> Valle Vidal | CX8: =IF(INDEX(campsByItinerary,numericItinerary($A8),BJ$3-1)="","",VLOOKUP(INDEX(campsByItinerary,numericItinerary($A8),BJ$3-1),campInfo,2)) -> North | CY8: =IF(INDEX(campsByItinerary,numericItinerary($A8),BK$3-1)="","",VLOOKUP(INDEX(campsByItinerary,numericItinerary($A8),BK$3-1),campInfo,2)) ->  | CZ8: =IF(INDEX(campsByItinerary,numericItinerary($A8),BL$3-1)="","",VLOOKUP(INDEX(campsByItinerary,numericItinerary($A8),BL$3-1),campInfo,2)) ->  | DA8: =IF(INDEX(campsByItinerary,numericItinerary($A8),BM$3-1)="","",VLOOKUP(INDEX(campsByItinerary,numericItinerary($A8),BM$3-1),campInfo,2)) ->  | DB8: =IF(INDEX(campsByItinerary,numericItinerary($A8),BD$3-1)="","",VLOOKUP(INDEX(campsByItinerary,numericItinerary($A8),BD$3-1),campInfo,12)) -> North | DC8: =IF(INDEX(campsByItinerary,numericItinerary($A8),BE$3-1)="","",VLOOKUP(INDEX(campsByItinerary,numericItinerary($A8),BE$3-1),campInfo,12)) -> North | DD8: =IF(INDEX(campsByItinerary,numericItinerary($A8),BF$3-1)="","",VLOOKUP(INDEX(campsByItinerary,numericItinerary($A8),BF$3-1),campInfo,12)) -> North | DE8: =IF(INDEX(campsByItinerary,numericItinerary($A8),BG$3-1)="","",VLOOKUP(INDEX(campsByItinerary,numericItinerary($A8),BG$3-1),campInfo,12)) -> North | DF8: =IF(INDEX(campsByItinerary,numericItinerary($A8),BH$3-1)="","",VLOOKUP(INDEX(campsByItinerary,numericItinerary($A8),BH$3-1),campInfo,12)) -> North | DG8: =IF(INDEX(campsByItinerary,numericItinerary($A8),BI$3-1)="","",VLOOKUP(INDEX(campsByItinerary,numericItinerary($A8),BI$3-1),campInfo,12)) -> North | DH8: =IF(INDEX(campsByItinerary,numericItinerary($A8),BJ$3-1)="","",VLOOKUP(INDEX(campsByItinerary,numericItinerary($A8),BJ$3-1),campInfo,12)) -> North | DI8: =IF(INDEX(campsByItinerary,numericItinerary($A8),BK$3-1)="","",VLOOKUP(INDEX(campsByItinerary,numericItinerary($A8),BK$3-1),campInfo,12)) ->  | DJ8: =IF(INDEX(campsByItinerary,numericItinerary($A8),BL$3-1)="","",VLOOKUP(INDEX(campsByItinerary,numericItinerary($A8),BL$3-1),campInfo,12)) ->  | DK8: =IF(INDEX(campsByItinerary,numericItinerary($A8),BM$3-1)="","",VLOOKUP(INDEX(campsByItinerary,numericItinerary($A8),BM$3-1),campInfo,12)) ->  | DL8: =getfoodPU("First",numericItinerary($A8)) -> 3 | DM8: =getfoodPU("Max",numericItinerary($A8)) -> 3
A9: 9-6 | C9: R | D9: 46 | E9: Sioux | F9: Pueblano | G9: Touch-Me-Not Creek | H9: Touch-Me-Not Creek | I9: Baldy Skyline | J9: Upper Dean Cow | K9: Cimarroncita | O9: Camping HQ | Q9: Baldy Town | U9: Cimarroncita | Y9: Ponil | Z9: Ute Park | AB9: =IF(AC9="","",numericItinerary(A9) & ":" & AC9) ->  | AF9: y | AK9: 7382 | AL9: 8069 | AM9: 8855 | AN9: 8855 | AO9: 9140 | AP9: 8254 | AQ9: 7373 | AU9: 687 | AV9: 786 | AW9: 0 | AX9: 285 | AY9: 886 | AZ9: 881 | BD9: =IF(INDEX(campsByItinerary,numericItinerary($A9),BD$3-1)="","",VLOOKUP(INDEX(campsByItinerary,numericItinerary($A9),BD$3-1),campInfo,8)) ->  | BE9: =IF(INDEX(campsByItinerary,numericItinerary($A9),BE$3-1)="","",VLOOKUP(INDEX(campsByItinerary,numericItinerary($A9),BE$3-1),campInfo,8)) -> Y | BF9: =IF(INDEX(campsByItinerary,numericItinerary($A9),BF$3-1)="","",VLOOKUP(INDEX(campsByItinerary,numericItinerary($A9),BF$3-1),campInfo,8)) ->  | BG9: =IF(INDEX(campsByItinerary,numericItinerary($A9),BG$3-1)="","",VLOOKUP(INDEX(campsByItinerary,numericItinerary($A9),BG$3-1),campInfo,8)) ->  | BH9: =IF(INDEX(campsByItinerary,numericItinerary($A9),BH$3-1)="","",VLOOKUP(INDEX(campsByItinerary,numericItinerary($A9),BH$3-1),campInfo,8)) ->  | BI9: =IF(INDEX(campsByItinerary,numericItinerary($A9),BI$3-1)="","",VLOOKUP(INDEX(campsByItinerary,numericItinerary($A9),BI$3-1),campInfo,8)) ->  | BJ9: =IF(INDEX(campsByItinerary,numericItinerary($A9),BJ$3-1)="","",VLOOKUP(INDEX(campsByItinerary,numericItinerary($A9),BJ$3-1),campInfo,8)) -> Y | BK9: =IF(INDEX(campsByItinerary,numericItinerary($A9),BK$3-1)="","",VLOOKUP(INDEX(campsByItinerary,numericItinerary($A9),BK$3-1),campInfo,8)) ->  | BL9: =IF(INDEX(campsByItinerary,numericItinerary($A9),BL$3-1)="","",VLOOKUP(INDEX(campsByItinerary,numericItinerary($A9),BL$3-1),campInfo,8)) ->  | BM9: =IF(INDEX(campsByItinerary,numericItinerary($A9),BM$3-1)="","",VLOOKUP(INDEX(campsByItinerary,numericItinerary($A9),BM$3-1),campInfo,8)) ->  | BN9: Y | BP9: Y | BQ9: Y | BR9: Y | BS9: Y | BU9: Y | BV9: Y | BW9: Y | BX9: =IF(INDEX(campsByItinerary,numericItinerary($A9),BD$3-1)="","",VLOOKUP(INDEX(campsByItinerary,numericItinerary($A9),BD$3-1),campInfo,10)) ->  | BY9: =IF(INDEX(campsByItinerary,numericItinerary($A9),BE$3-1)="","",VLOOKUP(INDEX(campsByItinerary,numericItinerary($A9),BE$3-1),campInfo,10)) ->  | BZ9: =IF(INDEX(campsByItinerary,numericItinerary($A9),BF$3-1)="","",VLOOKUP(INDEX(campsByItinerary,numericItinerary($A9),BF$3-1),campInfo,10)) ->  | CA9: =IF(INDEX(campsByItinerary,numericItinerary($A9),BG$3-1)="","",VLOOKUP(INDEX(campsByItinerary,numericItinerary($A9),BG$3-1),campInfo,10)) ->  | CB9: =IF(INDEX(campsByItinerary,numericItinerary($A9),BH$3-1)="","",VLOOKUP(INDEX(campsByItinerary,numericItinerary($A9),BH$3-1),campInfo,10)) ->  | CC9: =IF(INDEX(campsByItinerary,numericItinerary($A9),BI$3-1)="","",VLOOKUP(INDEX(campsByItinerary,numericItinerary($A9),BI$3-1),campInfo,10)) ->  | CD9: =IF(INDEX(campsByItinerary,numericItinerary($A9),BJ$3-1)="","",VLOOKUP(INDEX(campsByItinerary,numericItinerary($A9),BJ$3-1),campInfo,10)) ->  | CE9: =IF(INDEX(campsByItinerary,numericItinerary($A9),BK$3-1)="","",VLOOKUP(INDEX(campsByItinerary,numericItinerary($A9),BK$3-1),campInfo,10)) ->  | CF9: =IF(INDEX(campsByItinerary,numericItinerary($A9),BL$3-1)="","",VLOOKUP(INDEX(campsByItinerary,numericItinerary($A9),BL$3-1),campInfo,10)) ->  | CG9: =IF(INDEX(campsByItinerary,numericItinerary($A9),BM$3-1)="","",VLOOKUP(INDEX(campsByItinerary,numericItinerary($A9),BM$3-1),campInfo,10)) ->  | CK9: Y | CP9: Y | CQ9: Y | CR9: =INDEX(campsByItinerary,numericItinerary($A9),BD$3-1) -> Sioux | CS9: =IF(INDEX(campsByItinerary,numericItinerary($A9),BE$3-1)="","",VLOOKUP(INDEX(campsByItinerary,numericItinerary($A9),BE$3-1),campInfo,2)) -> North | CT9: =IF(INDEX(campsByItinerary,numericItinerary($A9),BF$3-1)="","",VLOOKUP(INDEX(campsByItinerary,numericItinerary($A9),BF$3-1),campInfo,2)) -> North | CU9: =IF(INDEX(campsByItinerary,numericItinerary($A9),BG$3-1)="","",VLOOKUP(INDEX(campsByItinerary,numericItinerary($A9),BG$3-1),campInfo,2)) -> North | CV9: =IF(INDEX(campsByItinerary,numericItinerary($A9),BH$3-1)="","",VLOOKUP(INDEX(campsByItinerary,numericItinerary($A9),BH$3-1),campInfo,2)) -> North | CW9: =IF(INDEX(campsByItinerary,numericItinerary($A9),BI$3-1)="","",VLOOKUP(INDEX(campsByItinerary,numericItinerary($A9),BI$3-1),campInfo,2)) -> North | CX9: =IF(INDEX(campsByItinerary,numericItinerary($A9),BJ$3-1)="","",VLOOKUP(INDEX(campsByItinerary,numericItinerary($A9),BJ$3-1),campInfo,2)) -> Central | CY9: =IF(INDEX(campsByItinerary,numericItinerary($A9),BK$3-1)="","",VLOOKUP(INDEX(campsByItinerary,numericItinerary($A9),BK$3-1),campInfo,2)) ->  | CZ9: =IF(INDEX(campsByItinerary,numericItinerary($A9),BL$3-1)="","",VLOOKUP(INDEX(campsByItinerary,numericItinerary($A9),BL$3-1),campInfo,2)) ->  | DA9: =IF(INDEX(campsByItinerary,numericItinerary($A9),BM$3-1)="","",VLOOKUP(INDEX(campsByItinerary,numericItinerary($A9),BM$3-1),campInfo,2)) ->  | DB9: =IF(INDEX(campsByItinerary,numericItinerary($A9),BD$3-1)="","",VLOOKUP(INDEX(campsByItinerary,numericItinerary($A9),BD$3-1),campInfo,12)) -> North | DC9: =IF(INDEX(campsByItinerary,numericItinerary($A9),BE$3-1)="","",VLOOKUP(INDEX(campsByItinerary,numericItinerary($A9),BE$3-1),campInfo,12)) -> North | DD9: =IF(INDEX(campsByItinerary,numericItinerary($A9),BF$3-1)="","",VLOOKUP(INDEX(campsByItinerary,numericItinerary($A9),BF$3-1),campInfo,12)) -> North | DE9: =IF(INDEX(campsByItinerary,numericItinerary($A9),BG$3-1)="","",VLOOKUP(INDEX(campsByItinerary,numericItinerary($A9),BG$3-1),campInfo,12)) -> North | DF9: =IF(INDEX(campsByItinerary,numericItinerary($A9),BH$3-1)="","",VLOOKUP(INDEX(campsByItinerary,numericItinerary($A9),BH$3-1),campInfo,12)) -> North | DG9: =IF(INDEX(campsByItinerary,numericItinerary($A9),BI$3-1)="","",VLOOKUP(INDEX(campsByItinerary,numericItinerary($A9),BI$3-1),campInfo,12)) -> North | DH9: =IF(INDEX(campsByItinerary,numericItinerary($A9),BJ$3-1)="","",VLOOKUP(INDEX(campsByItinerary,numericItinerary($A9),BJ$3-1),campInfo,12)) -> North & South | DI9: =IF(INDEX(campsByItinerary,numericItinerary($A9),BK$3-1)="","",VLOOKUP(INDEX(campsByItinerary,numericItinerary($A9),BK$3-1),campInfo,12)) ->  | DJ9: =IF(INDEX(campsByItinerary,numericItinerary($A9),BL$3-1)="","",VLOOKUP(INDEX(campsByItinerary,numericItinerary($A9),BL$3-1),campInfo,12)) ->  | DK9: =IF(INDEX(campsByItinerary,numericItinerary($A9),BM$3-1)="","",VLOOKUP(INDEX(campsByItinerary,numericItinerary($A9),BM$3-1),campInfo,12)) ->  | DL9: =getfoodPU("First",numericItinerary($A9)) -> 2 | DM9: =getfoodPU("Max",numericItinerary($A9)) -> 4
A10: 9-7 | C10: R | D10: 46 | E10: McBride Canyon | F10: Metcalf Station | G10: Ponil | H10: Pueblano | I10: Azurite | J10: Azurite | K10: Miranda | O10: Camping HQ | Q10: Ponil | T10: Baldy Town | Y10: Six Mile Gate | Z10: Maxwell | AB10: =IF(AC10="","",numericItinerary(A10) & ":" & AC10) ->  | AF10: y | AJ10: y | AK10: 7105 | AL10: 7220 | AM10: 7150 | AN10: 8069 | AO10: 10640 | AP10: 10640 | AQ10: 8898 | AU10: 115 | AV10: 70 | AW10: 919 | AX10: 2571 | AY10: 0 | AZ10: 1742 | BD10: =IF(INDEX(campsByItinerary,numericItinerary($A10),BD$3-1)="","",VLOOKUP(INDEX(campsByItinerary,numericItinerary($A10),BD$3-1),campInfo,8)) ->  | BE10: =IF(INDEX(campsByItinerary,numericItinerary($A10),BE$3-1)="","",VLOOKUP(INDEX(campsByItinerary,numericItinerary($A10),BE$3-1),campInfo,8)) -> Y | BF10: =IF(INDEX(campsByItinerary,numericItinerary($A10),BF$3-1)="","",VLOOKUP(INDEX(campsByItinerary,numericItinerary($A10),BF$3-1),campInfo,8)) -> Y | BG10: =IF(INDEX(campsByItinerary,numericItinerary($A10),BG$3-1)="","",VLOOKUP(INDEX(campsByItinerary,numericItinerary($A10),BG$3-1),campInfo,8)) -> Y | BH10: =IF(INDEX(campsByItinerary,numericItinerary($A10),BH$3-1)="","",VLOOKUP(INDEX(campsByItinerary,numericItinerary($A10),BH$3-1),campInfo,8)) ->  | BI10: =IF(INDEX(campsByItinerary,numericItinerary($A10),BI$3-1)="","",VLOOKUP(INDEX(campsByItinerary,numericItinerary($A10),BI$3-1),campInfo,8)) ->  | BJ10: =IF(INDEX(campsByItinerary,numericItinerary($A10),BJ$3-1)="","",VLOOKUP(INDEX(campsByItinerary,numericItinerary($A10),BJ$3-1),campInfo,8)) -> Y | BK10: =IF(INDEX(campsByItinerary,numericItinerary($A10),BK$3-1)="","",VLOOKUP(INDEX(campsByItinerary,numericItinerary($A10),BK$3-1),campInfo,8)) ->  | BL10: =IF(INDEX(campsByItinerary,numericItinerary($A10),BL$3-1)="","",VLOOKUP(INDEX(campsByItinerary,numericItinerary($A10),BL$3-1),campInfo,8)) ->  | BM10: =IF(INDEX(campsByItinerary,numericItinerary($A10),BM$3-1)="","",VLOOKUP(INDEX(campsByItinerary,numericItinerary($A10),BM$3-1),campInfo,8)) ->  | BN10: Y | BR10: Y | BS10: Y | BU10: Y | BV10: Y | BW10: Y | BX10: =IF(INDEX(campsByItinerary,numericItinerary($A10),BD$3-1)="","",VLOOKUP(INDEX(campsByItinerary,numericItinerary($A10),BD$3-1),campInfo,10)) -> Y | BY10: =IF(INDEX(campsByItinerary,numericItinerary($A10),BE$3-1)="","",VLOOKUP(INDEX(campsByItinerary,numericItinerary($A10),BE$3-1),campInfo,10)) ->  | BZ10: =IF(INDEX(campsByItinerary,numericItinerary($A10),BF$3-1)="","",VLOOKUP(INDEX(campsByItinerary,numericItinerary($A10),BF$3-1),campInfo,10)) ->  | CA10: =IF(INDEX(campsByItinerary,numericItinerary($A10),BG$3-1)="","",VLOOKUP(INDEX(campsByItinerary,numericItinerary($A10),BG$3-1),campInfo,10)) ->  | CB10: =IF(INDEX(campsByItinerary,numericItinerary($A10),BH$3-1)="","",VLOOKUP(INDEX(campsByItinerary,numericItinerary($A10),BH$3-1),campInfo,10)) -> Y | CC10: =IF(INDEX(campsByItinerary,numericItinerary($A10),BI$3-1)="","",VLOOKUP(INDEX(campsByItinerary,numericItinerary($A10),BI$3-1),campInfo,10)) -> Y | CD10: =IF(INDEX(campsByItinerary,numericItinerary($A10),BJ$3-1)="","",VLOOKUP(INDEX(campsByItinerary,numericItinerary($A10),BJ$3-1),campInfo,10)) ->  | CE10: =IF(INDEX(campsByItinerary,numericItinerary($A10),BK$3-1)="","",VLOOKUP(INDEX(campsByItinerary,numericItinerary($A10),BK$3-1),campInfo,10)) ->  | CF10: =IF(INDEX(campsByItinerary,numericItinerary($A10),BL$3-1)="","",VLOOKUP(INDEX(campsByItinerary,numericItinerary($A10),BL$3-1),campInfo,10)) ->  | CG10: =IF(INDEX(campsByItinerary,numericItinerary($A10),BM$3-1)="","",VLOOKUP(INDEX(campsByItinerary,numericItinerary($A10),BM$3-1),campInfo,10)) ->  | CM10: Y | CP10: Y | CQ10: Y | CR10: =INDEX(campsByItinerary,numericItinerary($A10),BD$3-1) -> McBride Canyon | CS10: =IF(INDEX(campsByItinerary,numericItinerary($A10),BE$3-1)="","",VLOOKUP(INDEX(campsByItinerary,numericItinerary($A10),BE$3-1),campInfo,2)) -> North | CT10: =IF(INDEX(campsByItinerary,numericItinerary($A10),BF$3-1)="","",VLOOKUP(INDEX(campsByItinerary,numericItinerary($A10),BF$3-1),campInfo,2)) -> North | CU10: =IF(INDEX(campsByItinerary,numericItinerary($A10),BG$3-1)="","",VLOOKUP(INDEX(campsByItinerary,numericItinerary($A10),BG$3-1),campInfo,2)) -> North | CV10: =IF(INDEX(campsByItinerary,numericItinerary($A10),BH$3-1)="","",VLOOKUP(INDEX(campsByItinerary,numericItinerary($A10),BH$3-1),campInfo,2)) -> North | CW10: =IF(INDEX(campsByItinerary,numericItinerary($A10),BI$3-1)="","",VLOOKUP(INDEX(campsByItinerary,numericItinerary($A10),BI$3-1),campInfo,2)) -> North | CX10: =IF(INDEX(campsByItinerary,numericItinerary($A10),BJ$3-1)="","",VLOOKUP(INDEX(campsByItinerary,numericItinerary($A10),BJ$3-1),campInfo,2)) -> North | CY10: =IF(INDEX(campsByItinerary,numericItinerary($A10),BK$3-1)="","",VLOOKUP(INDEX(campsByItinerary,numericItinerary($A10),BK$3-1),campInfo,2)) ->  | CZ10: =IF(INDEX(campsByItinerary,numericItinerary($A10),BL$3-1)="","",VLOOKUP(INDEX(campsByItinerary,numericItinerary($A10),BL$3-1),campInfo,2)) ->  | DA10: =IF(INDEX(campsByItinerary,numericItinerary($A10),BM$3-1)="","",VLOOKUP(INDEX(campsByItinerary,numericItinerary($A10),BM$3-1),campInfo,2)) ->  | DB10: =IF(INDEX(campsByItinerary,numericItinerary($A10),BD$3-1)="","",VLOOKUP(INDEX(campsByItinerary,numericItinerary($A10),BD$3-1),campInfo,12)) -> North | DC10: =IF(INDEX(campsByItinerary,numericItinerary($A10),BE$3-1)="","",VLOOKUP(INDEX(campsByItinerary,numericItinerary($A10),BE$3-1),campInfo,12)) -> North | DD10: =IF(INDEX(campsByItinerary,numericItinerary($A10),BF$3-1)="","",VLOOKUP(INDEX(campsByItinerary,numericItinerary($A10),BF$3-1),campInfo,12)) -> North | DE10: =IF(INDEX(campsByItinerary,numericItinerary($A10),BG$3-1)="","",VLOOKUP(INDEX(campsByItinerary,numericItinerary($A10),BG$3-1),campInfo,12)) -> North | DF10: =IF(INDEX(campsByItinerary,numericItinerary($A10),BH$3-1)="","",VLOOKUP(INDEX(campsByItinerary,numericItinerary($A10),BH$3-1),campInfo,12)) -> North | DG10: =IF(INDEX(campsByItinerary,numericItinerary($A10),BI$3-1)="","",VLOOKUP(INDEX(campsByItinerary,numericItinerary($A10),BI$3-1),campInfo,12)) -> North | DH10: =IF(INDEX(campsByItinerary,numericItinerary($A10),BJ$3-1)="","",VLOOKUP(INDEX(campsByItinerary,numericItinerary($A10),BJ$3-1),campInfo,12)) -> North | DI10: =IF(INDEX(campsByItinerary,numericItinerary($A10),BK$3-1)="","",VLOOKUP(INDEX(campsByItinerary,numericItinerary($A10),BK$3-1),campInfo,12)) ->  | DJ10: =IF(INDEX(campsByItinerary,numericItinerary($A10),BL$3-1)="","",VLOOKUP(INDEX(campsByItinerary,numericItinerary($A10),BL$3-1),campInfo,12)) ->  | DK10: =IF(INDEX(campsByItinerary,numericItinerary($A10),BM$3-1)="","",VLOOKUP(INDEX(campsByItinerary,numericItinerary($A10),BM$3-1),campInfo,12)) ->  | DL10: =getfoodPU("First",numericItinerary($A10)) -> 2 | DM10: =getfoodPU("Max",numericItinerary($A10)) -> 2
A11: 9-8 | C11: R | D11: 46 | E11: Aguila | F11: Miners Park | G11: Clarks Fork | H11: Cimarroncito | I11: Lamberts Mine | J11: Thunder Ridge | K11: American Creek | O11: Camping HQ | Q11: Miners Park | S11: Cimarroncito | Y11: Lovers Leap | Z11: Tolby Creek | AB11: =IF(AC11="","",numericItinerary(A11) & ":" & AC11) ->  | AG11: y | AJ11: y | AK11: 8282 | AL11: 7977 | AM11: 7515 | AN11: 8137 | AO11: 8957 | AP11: 10490 | AQ11: 9815 | AU11: 305 | AV11: 462 | AW11: 622 | AX11: 820 | AY11: 1533 | AZ11: 675 | BD11: =IF(INDEX(campsByItinerary,numericItinerary($A11),BD$3-1)="","",VLOOKUP(INDEX(campsByItinerary,numericItinerary($A11),BD$3-1),campInfo,8)) ->  | BE11: =IF(INDEX(campsByItinerary,numericItinerary($A11),BE$3-1)="","",VLOOKUP(INDEX(campsByItinerary,numericItinerary($A11),BE$3-1),campInfo,8)) -> Y | BF11: =IF(INDEX(campsByItinerary,numericItinerary($A11),BF$3-1)="","",VLOOKUP(INDEX(campsByItinerary,numericItinerary($A11),BF$3-1),campInfo,8)) -> Y | BG11: =IF(INDEX(campsByItinerary,numericItinerary($A11),BG$3-1)="","",VLOOKUP(INDEX(campsByItinerary,numericItinerary($A11),BG$3-1),campInfo,8)) -> Y | BH11: =IF(INDEX(campsByItinerary,numericItinerary($A11),BH$3-1)="","",VLOOKUP(INDEX(campsByItinerary,numericItinerary($A11),BH$3-1),campInfo,8)) ->  | BI11: =IF(INDEX(campsByItinerary,numericItinerary($A11),BI$3-1)="","",VLOOKUP(INDEX(campsByItinerary,numericItinerary($A11),BI$3-1),campInfo,8)) ->  | BJ11: =IF(INDEX(campsByItinerary,numericItinerary($A11),BJ$3-1)="","",VLOOKUP(INDEX(campsByItinerary,numericItinerary($A11),BJ$3-1),campInfo,8)) ->  | BK11: =IF(INDEX(campsByItinerary,numericItinerary($A11),BK$3-1)="","",VLOOKUP(INDEX(campsByItinerary,numericItinerary($A11),BK$3-1),campInfo,8)) ->  | BL11: =IF(INDEX(campsByItinerary,numericItinerary($A11),BL$3-1)="","",VLOOKUP(INDEX(campsByItinerary,numericItinerary($A11),BL$3-1),campInfo,8)) ->  | BM11: =IF(INDEX(campsByItinerary,numericItinerary($A11),BM$3-1)="","",VLOOKUP(INDEX(campsByItinerary,numericItinerary($A11),BM$3-1),campInfo,8)) ->  | BN11: Y | BR11: Y | BS11: Y | BT11: Y | BU11: Y | BV11: Y | BW11: Y | BX11: =IF(INDEX(campsByItinerary,numericItinerary($A11),BD$3-1)="","",VLOOKUP(INDEX(campsByItinerary,numericItinerary($A11),BD$3-1),campInfo,10)) ->  | BY11: =IF(INDEX(campsByItinerary,numericItinerary($A11),BE$3-1)="","",VLOOKUP(INDEX(campsByItinerary,numericItinerary($A11),BE$3-1),campInfo,10)) ->  | BZ11: =IF(INDEX(campsByItinerary,numericItinerary($A11),BF$3-1)="","",VLOOKUP(INDEX(campsByItinerary,numericItinerary($A11),BF$3-1),campInfo,10)) ->  | CA11: =IF(INDEX(campsByItinerary,numericItinerary($A11),BG$3-1)="","",VLOOKUP(INDEX(campsByItinerary,numericItinerary($A11),BG$3-1),campInfo,10)) ->  | CB11: =IF(INDEX(campsByItinerary,numericItinerary($A11),BH$3-1)="","",VLOOKUP(INDEX(campsByItinerary,numericItinerary($A11),BH$3-1),campInfo,10)) ->  | CC11: =IF(INDEX(campsByItinerary,numericItinerary($A11),BI$3-1)="","",VLOOKUP(INDEX(campsByItinerary,numericItinerary($A11),BI$3-1),campInfo,10)) -> Y | CD11: =IF(INDEX(campsByItinerary,numericItinerary($A11),BJ$3-1)="","",VLOOKUP(INDEX(campsByItinerary,numericItinerary($A11),BJ$3-1),campInfo,10)) ->  | CE11: =IF(INDEX(campsByItinerary,numericItinerary($A11),BK$3-1)="","",VLOOKUP(INDEX(campsByItinerary,numericItinerary($A11),BK$3-1),campInfo,10)) ->  | CF11: =IF(INDEX(campsByItinerary,numericItinerary($A11),BL$3-1)="","",VLOOKUP(INDEX(campsByItinerary,numericItinerary($A11),BL$3-1),campInfo,10)) ->  | CG11: =IF(INDEX(campsByItinerary,numericItinerary($A11),BM$3-1)="","",VLOOKUP(INDEX(campsByItinerary,numericItinerary($A11),BM$3-1),campInfo,10)) ->  | CP11: Y | CQ11: Y | CR11: =INDEX(campsByItinerary,numericItinerary($A11),BD$3-1) -> Aguila | CS11: =IF(INDEX(campsByItinerary,numericItinerary($A11),BE$3-1)="","",VLOOKUP(INDEX(campsByItinerary,numericItinerary($A11),BE$3-1),campInfo,2)) -> South | CT11: =IF(INDEX(campsByItinerary,numericItinerary($A11),BF$3-1)="","",VLOOKUP(INDEX(campsByItinerary,numericItinerary($A11),BF$3-1),campInfo,2)) -> Central | CU11: =IF(INDEX(campsByItinerary,numericItinerary($A11),BG$3-1)="","",VLOOKUP(INDEX(campsByItinerary,numericItinerary($A11),BG$3-1),campInfo,2)) -> Central | CV11: =IF(INDEX(campsByItinerary,numericItinerary($A11),BH$3-1)="","",VLOOKUP(INDEX(campsByItinerary,numericItinerary($A11),BH$3-1),campInfo,2)) -> Central | CW11: =IF(INDEX(campsByItinerary,numericItinerary($A11),BI$3-1)="","",VLOOKUP(INDEX(campsByItinerary,numericItinerary($A11),BI$3-1),campInfo,2)) -> Central | CX11: =IF(INDEX(campsByItinerary,numericItinerary($A11),BJ$3-1)="","",VLOOKUP(INDEX(campsByItinerary,numericItinerary($A11),BJ$3-1),campInfo,2)) -> South | CY11: =IF(INDEX(campsByItinerary,numericItinerary($A11),BK$3-1)="","",VLOOKUP(INDEX(campsByItinerary,numericItinerary($A11),BK$3-1),campInfo,2)) ->  | CZ11: =IF(INDEX(campsByItinerary,numericItinerary($A11),BL$3-1)="","",VLOOKUP(INDEX(campsByItinerary,numericItinerary($A11),BL$3-1),campInfo,2)) ->  | DA11: =IF(INDEX(campsByItinerary,numericItinerary($A11),BM$3-1)="","",VLOOKUP(INDEX(campsByItinerary,numericItinerary($A11),BM$3-1),campInfo,2)) ->  | DB11: =IF(INDEX(campsByItinerary,numericItinerary($A11),BD$3-1)="","",VLOOKUP(INDEX(campsByItinerary,numericItinerary($A11),BD$3-1),campInfo,12)) -> South | DC11: =IF(INDEX(campsByItinerary,numericItinerary($A11),BE$3-1)="","",VLOOKUP(INDEX(campsByItinerary,numericItinerary($A11),BE$3-1),campInfo,12)) -> South | DD11: =IF(INDEX(campsByItinerary,numericItinerary($A11),BF$3-1)="","",VLOOKUP(INDEX(campsByItinerary,numericItinerary($A11),BF$3-1),campInfo,12)) -> South | DE11: =IF(INDEX(campsByItinerary,numericItinerary($A11),BG$3-1)="","",VLOOKUP(INDEX(campsByItinerary,numericItinerary($A11),BG$3-1),campInfo,12)) -> South | DF11: =IF(INDEX(campsByItinerary,numericItinerary($A11),BH$3-1)="","",VLOOKUP(INDEX(campsByItinerary,numericItinerary($A11),BH$3-1),campInfo,12)) -> South | DG11: =IF(INDEX(campsByItinerary,numericItinerary($A11),BI$3-1)="","",VLOOKUP(INDEX(campsByItinerary,numericItinerary($A11),BI$3-1),campInfo,12)) -> South | DH11: =IF(INDEX(campsByItinerary,numericItinerary($A11),BJ$3-1)="","",VLOOKUP(INDEX(campsByItinerary,numericItinerary($A11),BJ$3-1),campInfo,12)) -> South | DI11: =IF(INDEX(campsByItinerary,numericItinerary($A11),BK$3-1)="","",VLOOKUP(INDEX(campsByItinerary,numericItinerary($A11),BK$3-1),campInfo,12)) ->  | DJ11: =IF(INDEX(campsByItinerary,numericItinerary($A11),BL$3-1)="","",VLOOKUP(INDEX(campsByItinerary,numericItinerary($A11),BL$3-1),campInfo,12)) ->  | DK11: =IF(INDEX(campsByItinerary,numericItinerary($A11),BM$3-1)="","",VLOOKUP(INDEX(campsByItinerary,numericItinerary($A11),BM$3-1),campInfo,12)) ->  | DL11: =getfoodPU("First",numericItinerary($A11)) -> 2 | DM11: =getfoodPU("Max",numericItinerary($A11)) -> 2
A12: 9-9 | C12: S | D12: 49 | E12: Arrowhead | F12: Hunting Lodge | G12: Sawmill | H12: Cimarroncita | I12: Upper Dean Cow | J12: Black Horse Mine | K12: Touch-Me-Not Creek | O12: Camping HQ | Q12: Sawmill | T12: Baldy Town | Y12: Webster | Z12: Maxwell | AB12: =IF(AC12="","",numericItinerary(A12) & ":" & AC12) -> 9:6 | AC12: 6 | AD12: Bear Canyon | AE12: N | AF12: y | AK12: 7644 | AL12: 7776 | AM12: 9193 | AN12: 7373 | AO12: 8254 | AP12: 10750 | AQ12: 8855 | AU12: 132 | AV12: 1417 | AW12: 1820 | AX12: 881 | AY12: 2496 | AZ12: 1895 | BD12: =IF(INDEX(campsByItinerary,numericItinerary($A12),BD$3-1)="","",VLOOKUP(INDEX(campsByItinerary,numericItinerary($A12),BD$3-1),campInfo,8)) ->  | BE12: =IF(INDEX(campsByItinerary,numericItinerary($A12),BE$3-1)="","",VLOOKUP(INDEX(campsByItinerary,numericItinerary($A12),BE$3-1),campInfo,8)) -> N | BF12: =IF(INDEX(campsByItinerary,numericItinerary($A12),BF$3-1)="","",VLOOKUP(INDEX(campsByItinerary,numericItinerary($A12),BF$3-1),campInfo,8)) -> Y | BG12: =IF(INDEX(campsByItinerary,numericItinerary($A12),BG$3-1)="","",VLOOKUP(INDEX(campsByItinerary,numericItinerary($A12),BG$3-1),campInfo,8)) -> Y | BH12: =IF(INDEX(campsByItinerary,numericItinerary($A12),BH$3-1)="","",VLOOKUP(INDEX(campsByItinerary,numericItinerary($A12),BH$3-1),campInfo,8)) ->  | BI12: =IF(INDEX(campsByItinerary,numericItinerary($A12),BI$3-1)="","",VLOOKUP(INDEX(campsByItinerary,numericItinerary($A12),BI$3-1),campInfo,8)) ->  | BJ12: =IF(INDEX(campsByItinerary,numericItinerary($A12),BJ$3-1)="","",VLOOKUP(INDEX(campsByItinerary,numericItinerary($A12),BJ$3-1),campInfo,8)) ->  | BK12: =IF(INDEX(campsByItinerary,numericItinerary($A12),BK$3-1)="","",VLOOKUP(INDEX(campsByItinerary,numericItinerary($A12),BK$3-1),campInfo,8)) ->  | BL12: =IF(INDEX(campsByItinerary,numericItinerary($A12),BL$3-1)="","",VLOOKUP(INDEX(campsByItinerary,numericItinerary($A12),BL$3-1),campInfo,8)) ->  | BM12: =IF(INDEX(campsByItinerary,numericItinerary($A12),BM$3-1)="","",VLOOKUP(INDEX(campsByItinerary,numericItinerary($A12),BM$3-1),campInfo,8)) ->  | BN12: Y | BO12: Y | BR12: Y | BS12: Y | BT12: Y | BU12: Y | BV12: Y | BW12: Y | BX12: =IF(INDEX(campsByItinerary,numericItinerary($A12),BD$3-1)="","",VLOOKUP(INDEX(campsByItinerary,numericItinerary($A12),BD$3-1),campInfo,10)) -> Y | BY12: =IF(INDEX(campsByItinerary,numericItinerary($A12),BE$3-1)="","",VLOOKUP(INDEX(campsByItinerary,numericItinerary($A12),BE$3-1),campInfo,10)) ->  | BZ12: =IF(INDEX(campsByItinerary,numericItinerary($A12),BF$3-1)="","",VLOOKUP(INDEX(campsByItinerary,numericItinerary($A12),BF$3-1),campInfo,10)) ->  | CA12: =IF(INDEX(campsByItinerary,numericItinerary($A12),BG$3-1)="","",VLOOKUP(INDEX(campsByItinerary,numericItinerary($A12),BG$3-1),campInfo,10)) ->  | CB12: =IF(INDEX(campsByItinerary,numericItinerary($A12),BH$3-1)="","",VLOOKUP(INDEX(campsByItinerary,numericItinerary($A12),BH$3-1),campInfo,10)) ->  | CC12: =IF(INDEX(campsByItinerary,numericItinerary($A12),BI$3-1)="","",VLOOKUP(INDEX(campsByItinerary,numericItinerary($A12),BI$3-1),campInfo,10)) -> Y | CD12: =IF(INDEX(campsByItinerary,numericItinerary($A12),BJ$3-1)="","",VLOOKUP(INDEX(campsByItinerary,numericItinerary($A12),BJ$3-1),campInfo,10)) ->  | CE12: =IF(INDEX(campsByItinerary,numericItinerary($A12),BK$3-1)="","",VLOOKUP(INDEX(campsByItinerary,numericItinerary($A12),BK$3-1),campInfo,10)) ->  | CF12: =IF(INDEX(campsByItinerary,numericItinerary($A12),BL$3-1)="","",VLOOKUP(INDEX(campsByItinerary,numericItinerary($A12),BL$3-1),campInfo,10)) ->  | CG12: =IF(INDEX(campsByItinerary,numericItinerary($A12),BM$3-1)="","",VLOOKUP(INDEX(campsByItinerary,numericItinerary($A12),BM$3-1),campInfo,10)) ->  | CP12: Y | CQ12: Y | CR12: =INDEX(campsByItinerary,numericItinerary($A12),BD$3-1) -> Arrowhead | CS12: =IF(INDEX(campsByItinerary,numericItinerary($A12),BE$3-1)="","",VLOOKUP(INDEX(campsByItinerary,numericItinerary($A12),BE$3-1),campInfo,2)) -> Central | CT12: =IF(INDEX(campsByItinerary,numericItinerary($A12),BF$3-1)="","",VLOOKUP(INDEX(campsByItinerary,numericItinerary($A12),BF$3-1),campInfo,2)) -> Central | CU12: =IF(INDEX(campsByItinerary,numericItinerary($A12),BG$3-1)="","",VLOOKUP(INDEX(campsByItinerary,numericItinerary($A12),BG$3-1),campInfo,2)) -> Central | CV12: =IF(INDEX(campsByItinerary,numericItinerary($A12),BH$3-1)="","",VLOOKUP(INDEX(campsByItinerary,numericItinerary($A12),BH$3-1),campInfo,2)) -> North | CW12: =IF(INDEX(campsByItinerary,numericItinerary($A12),BI$3-1)="","",VLOOKUP(INDEX(campsByItinerary,numericItinerary($A12),BI$3-1),campInfo,2)) -> North | CX12: =IF(INDEX(campsByItinerary,numericItinerary($A12),BJ$3-1)="","",VLOOKUP(INDEX(campsByItinerary,numericItinerary($A12),BJ$3-1),campInfo,2)) -> North | CY12: =IF(INDEX(campsByItinerary,numericItinerary($A12),BK$3-1)="","",VLOOKUP(INDEX(campsByItinerary,numericItinerary($A12),BK$3-1),campInfo,2)) ->  | CZ12: =IF(INDEX(campsByItinerary,numericItinerary($A12),BL$3-1)="","",VLOOKUP(INDEX(campsByItinerary,numericItinerary($A12),BL$3-1),campInfo,2)) ->  | DA12: =IF(INDEX(campsByItinerary,numericItinerary($A12),BM$3-1)="","",VLOOKUP(INDEX(campsByItinerary,numericItinerary($A12),BM$3-1),campInfo,2)) ->  | DB12: =IF(INDEX(campsByItinerary,numericItinerary($A12),BD$3-1)="","",VLOOKUP(INDEX(campsByItinerary,numericItinerary($A12),BD$3-1),campInfo,12)) -> South | DC12: =IF(INDEX(campsByItinerary,numericItinerary($A12),BE$3-1)="","",VLOOKUP(INDEX(campsByItinerary,numericItinerary($A12),BE$3-1),campInfo,12)) -> South | DD12: =IF(INDEX(campsByItinerary,numericItinerary($A12),BF$3-1)="","",VLOOKUP(INDEX(campsByItinerary,numericItinerary($A12),BF$3-1),campInfo,12)) -> South | DE12: =IF(INDEX(campsByItinerary,numericItinerary($A12),BG$3-1)="","",VLOOKUP(INDEX(campsByItinerary,numericItinerary($A12),BG$3-1),campInfo,12)) -> North & South | DF12: =IF(INDEX(campsByItinerary,numericItinerary($A12),BH$3-1)="","",VLOOKUP(INDEX(campsByItinerary,numericItinerary($A12),BH$3-1),campInfo,12)) -> North | DG12: =IF(INDEX(campsByItinerary,numericItinerary($A12),BI$3-1)="","",VLOOKUP(INDEX(campsByItinerary,numericItinerary($A12),BI$3-1),campInfo,12)) -> North | DH12: =IF(INDEX(campsByItinerary,numericItinerary($A12),BJ$3-1)="","",VLOOKUP(INDEX(campsByItinerary,numericItinerary($A12),BJ$3-1),campInfo,12)) -> North | DI12: =IF(INDEX(campsByItinerary,numericItinerary($A12),BK$3-1)="","",VLOOKUP(INDEX(campsByItinerary,numericItinerary($A12),BK$3-1),campInfo,12)) ->  | DJ12: =IF(INDEX(campsByItinerary,numericItinerary($A12),BL$3-1)="","",VLOOKUP(INDEX(campsByItinerary,numericItinerary($A12),BL$3-1),campInfo,12)) ->  | DK12: =IF(INDEX(campsByItinerary,numericItinerary($A12),BM$3-1)="","",VLOOKUP(INDEX(campsByItinerary,numericItinerary($A12),BM$3-1),campInfo,12)) ->  | DL12: =getfoodPU("First",numericItinerary($A12)) -> 2 | DM12: =getfoodPU("Max",numericItinerary($A12)) -> 2
A13: 9-10 | C13: S | D13: 50 | E13: Line | F13: Fish Camp | G13: Apache Springs | H13: Porcupine | I13: Miners Park | J13: Urraca | K13: Stockade Ridge | O13: Camping HQ | Q13: Apache Springs | S13: Miners Park | Y13: Zastrow | Z13: Hike In | AA13: y | AB13: =IF(AC13="","",numericItinerary(A13) & ":" & AC13) ->  | AH13: y | AI13: y | AK13: 8125 | AL13: 8564 | AM13: 9409 | AN13: 9152 | AO13: 7977 | AP13: 7968 | AQ13: 7519 | AU13: 439 | AV13: 845 | AW13: 257 | AX13: 1175 | AY13: 9 | AZ13: 449 | BD13: =IF(INDEX(campsByItinerary,numericItinerary($A13),BD$3-1)="","",VLOOKUP(INDEX(campsByItinerary,numericItinerary($A13),BD$3-1),campInfo,8)) ->  | BE13: =IF(INDEX(campsByItinerary,numericItinerary($A13),BE$3-1)="","",VLOOKUP(INDEX(campsByItinerary,numericItinerary($A13),BE$3-1),campInfo,8)) -> Y | BF13: =IF(INDEX(campsByItinerary,numericItinerary($A13),BF$3-1)="","",VLOOKUP(INDEX(campsByItinerary,numericItinerary($A13),BF$3-1),campInfo,8)) -> Y | BG13: =IF(INDEX(campsByItinerary,numericItinerary($A13),BG$3-1)="","",VLOOKUP(INDEX(campsByItinerary,numericItinerary($A13),BG$3-1),campInfo,8)) ->  | BH13: =IF(INDEX(campsByItinerary,numericItinerary($A13),BH$3-1)="","",VLOOKUP(INDEX(campsByItinerary,numericItinerary($A13),BH$3-1),campInfo,8)) -> Y | BI13: =IF(INDEX(campsByItinerary,numericItinerary($A13),BI$3-1)="","",VLOOKUP(INDEX(campsByItinerary,numericItinerary($A13),BI$3-1),campInfo,8)) -> Y | BJ13: =IF(INDEX(campsByItinerary,numericItinerary($A13),BJ$3-1)="","",VLOOKUP(INDEX(campsByItinerary,numericItinerary($A13),BJ$3-1),campInfo,8)) ->  | BK13: =IF(INDEX(campsByItinerary,numericItinerary($A13),BK$3-1)="","",VLOOKUP(INDEX(campsByItinerary,numericItinerary($A13),BK$3-1),campInfo,8)) ->  | BL13: =IF(INDEX(campsByItinerary,numericItinerary($A13),BL$3-1)="","",VLOOKUP(INDEX(campsByItinerary,numericItinerary($A13),BL$3-1),campInfo,8)) ->  | BM13: =IF(INDEX(campsByItinerary,numericItinerary($A13),BM$3-1)="","",VLOOKUP(INDEX(campsByItinerary,numericItinerary($A13),BM$3-1),campInfo,8)) ->  | BN13: Y | BQ13: Y | BT13: Y | BU13: Y | BV13: Y | BW13: Y | BX13: =IF(INDEX(campsByItinerary,numericItinerary($A13),BD$3-1)="","",VLOOKUP(INDEX(campsByItinerary,numericItinerary($A13),BD$3-1),campInfo,10)) ->  | BY13: =IF(INDEX(campsByItinerary,numericItinerary($A13),BE$3-1)="","",VLOOKUP(INDEX(campsByItinerary,numericItinerary($A13),BE$3-1),campInfo,10)) ->  | BZ13: =IF(INDEX(campsByItinerary,numericItinerary($A13),BF$3-1)="","",VLOOKUP(INDEX(campsByItinerary,numericItinerary($A13),BF$3-1),campInfo,10)) ->  | CA13: =IF(INDEX(campsByItinerary,numericItinerary($A13),BG$3-1)="","",VLOOKUP(INDEX(campsByItinerary,numericItinerary($A13),BG$3-1),campInfo,10)) ->  | CB13: =IF(INDEX(campsByItinerary,numericItinerary($A13),BH$3-1)="","",VLOOKUP(INDEX(campsByItinerary,numericItinerary($A13),BH$3-1),campInfo,10)) ->  | CC13: =IF(INDEX(campsByItinerary,numericItinerary($A13),BI$3-1)="","",VLOOKUP(INDEX(campsByItinerary,numericItinerary($A13),BI$3-1),campInfo,10)) ->  | CD13: =IF(INDEX(campsByItinerary,numericItinerary($A13),BJ$3-1)="","",VLOOKUP(INDEX(campsByItinerary,numericItinerary($A13),BJ$3-1),campInfo,10)) -> Y | CE13: =IF(INDEX(campsByItinerary,numericItinerary($A13),BK$3-1)="","",VLOOKUP(INDEX(campsByItinerary,numericItinerary($A13),BK$3-1),campInfo,10)) ->  | CF13: =IF(INDEX(campsByItinerary,numericItinerary($A13),BL$3-1)="","",VLOOKUP(INDEX(campsByItinerary,numericItinerary($A13),BL$3-1),campInfo,10)) ->  | CG13: =IF(INDEX(campsByItinerary,numericItinerary($A13),BM$3-1)="","",VLOOKUP(INDEX(campsByItinerary,numericItinerary($A13),BM$3-1),campInfo,10)) ->  | CP13: Y | CQ13: Y | CR13: =INDEX(campsByItinerary,numericItinerary($A13),BD$3-1) -> Line | CS13: =IF(INDEX(campsByItinerary,numericItinerary($A13),BE$3-1)="","",VLOOKUP(INDEX(campsByItinerary,numericItinerary($A13),BE$3-1),campInfo,2)) -> South | CT13: =IF(INDEX(campsByItinerary,numericItinerary($A13),BF$3-1)="","",VLOOKUP(INDEX(campsByItinerary,numericItinerary($A13),BF$3-1),campInfo,2)) -> South | CU13: =IF(INDEX(campsByItinerary,numericItinerary($A13),BG$3-1)="","",VLOOKUP(INDEX(campsByItinerary,numericItinerary($A13),BG$3-1),campInfo,2)) -> South | CV13: =IF(INDEX(campsByItinerary,numericItinerary($A13),BH$3-1)="","",VLOOKUP(INDEX(campsByItinerary,numericItinerary($A13),BH$3-1),campInfo,2)) -> South | CW13: =IF(INDEX(campsByItinerary,numericItinerary($A13),BI$3-1)="","",VLOOKUP(INDEX(campsByItinerary,numericItinerary($A13),BI$3-1),campInfo,2)) -> South | CX13: =IF(INDEX(campsByItinerary,numericItinerary($A13),BJ$3-1)="","",VLOOKUP(INDEX(campsByItinerary,numericItinerary($A13),BJ$3-1),campInfo,2)) -> South | CY13: =IF(INDEX(campsByItinerary,numericItinerary($A13),BK$3-1)="","",VLOOKUP(INDEX(campsByItinerary,numericItinerary($A13),BK$3-1),campInfo,2)) ->  | CZ13: =IF(INDEX(campsByItinerary,numericItinerary($A13),BL$3-1)="","",VLOOKUP(INDEX(campsByItinerary,numericItinerary($A13),BL$3-1),campInfo,2)) ->  | DA13: =IF(INDEX(campsByItinerary,numericItinerary($A13),BM$3-1)="","",VLOOKUP(INDEX(campsByItinerary,numericItinerary($A13),BM$3-1),campInfo,2)) ->  | DB13: =IF(INDEX(campsByItinerary,numericItinerary($A13),BD$3-1)="","",VLOOKUP(INDEX(campsByItinerary,numericItinerary($A13),BD$3-1),campInfo,12)) -> South | DC13: =IF(INDEX(campsByItinerary,numericItinerary($A13),BE$3-1)="","",VLOOKUP(INDEX(campsByItinerary,numericItinerary($A13),BE$3-1),campInfo,12)) -> South | DD13: =IF(INDEX(campsByItinerary,numericItinerary($A13),BF$3-1)="","",VLOOKUP(INDEX(campsByItinerary,numericItinerary($A13),BF$3-1),campInfo,12)) -> South | DE13: =IF(INDEX(campsByItinerary,numericItinerary($A13),BG$3-1)="","",VLOOKUP(INDEX(campsByItinerary,numericItinerary($A13),BG$3-1),campInfo,12)) -> South | DF13: =IF(INDEX(campsByItinerary,numericItinerary($A13),BH$3-1)="","",VLOOKUP(INDEX(campsByItinerary,numericItinerary($A13),BH$3-1),campInfo,12)) -> South | DG13: =IF(INDEX(campsByItinerary,numericItinerary($A13),BI$3-1)="","",VLOOKUP(INDEX(campsByItinerary,numericItinerary($A13),BI$3-1),campInfo,12)) -> South | DH13: =IF(INDEX(campsByItinerary,numericItinerary($A13),BJ$3-1)="","",VLOOKUP(INDEX(campsByItinerary,numericItinerary($A13),BJ$3-1),campInfo,12)) -> South | DI13: =IF(INDEX(campsByItinerary,numericItinerary($A13),BK$3-1)="","",VLOOKUP(INDEX(campsByItinerary,numericItinerary($A13),BK$3-1),campInfo,12)) ->  | DJ13: =IF(INDEX(campsByItinerary,numericItinerary($A13),BL$3-1)="","",VLOOKUP(INDEX(campsByItinerary,numericItinerary($A13),BL$3-1),campInfo,12)) ->  | DK13: =IF(INDEX(campsByItinerary,numericItinerary($A13),BM$3-1)="","",VLOOKUP(INDEX(campsByItinerary,numericItinerary($A13),BM$3-1),campInfo,12)) ->  | DL13: =getfoodPU("First",numericItinerary($A13)) -> 2 | DM13: =getfoodPU("Max",numericItinerary($A13)) -> 2
A14: 9-11 | C14: S | D14: 51 | E14: Abreu | F14: Crater Lake | G14: Beaubien | H14: Comanche Creek | I14: Red Hills | J14: Black Mountain | K14: Shaefers Pass | O14: Camping HQ | R14: Phillips Junction | Y14: Zastrow | Z14: Hike In | AA14: y | AB14: =IF(AC14="","",numericItinerary(A14) & ":" & AC14) ->  | AG14: y | AH14: y | AI14: y | AJ14: y | AK14: 7217 | AL14: 8398 | AM14: 9330 | AN14: 9600 | AO14: 10280 | AP14: 8991 | AQ14: 8724 | AU14: 1181 | AV14: 932 | AW14: 270 | AX14: 680 | AY14: 1289 | AZ14: 267 | BD14: =IF(INDEX(campsByItinerary,numericItinerary($A14),BD$3-1)="","",VLOOKUP(INDEX(campsByItinerary,numericItinerary($A14),BD$3-1),campInfo,8)) -> Y | BE14: =IF(INDEX(campsByItinerary,numericItinerary($A14),BE$3-1)="","",VLOOKUP(INDEX(campsByItinerary,numericItinerary($A14),BE$3-1),campInfo,8)) -> Y | BF14: =IF(INDEX(campsByItinerary,numericItinerary($A14),BF$3-1)="","",VLOOKUP(INDEX(campsByItinerary,numericItinerary($A14),BF$3-1),campInfo,8)) -> Y | BG14: =IF(INDEX(campsByItinerary,numericItinerary($A14),BG$3-1)="","",VLOOKUP(INDEX(campsByItinerary,numericItinerary($A14),BG$3-1),campInfo,8)) ->  | BH14: =IF(INDEX(campsByItinerary,numericItinerary($A14),BH$3-1)="","",VLOOKUP(INDEX(campsByItinerary,numericItinerary($A14),BH$3-1),campInfo,8)) ->  | BI14: =IF(INDEX(campsByItinerary,numericItinerary($A14),BI$3-1)="","",VLOOKUP(INDEX(campsByItinerary,numericItinerary($A14),BI$3-1),campInfo,8)) -> Y | BJ14: =IF(INDEX(campsByItinerary,numericItinerary($A14),BJ$3-1)="","",VLOOKUP(INDEX(campsByItinerary,numericItinerary($A14),BJ$3-1),campInfo,8)) ->  | BK14: =IF(INDEX(campsByItinerary,numericItinerary($A14),BK$3-1)="","",VLOOKUP(INDEX(campsByItinerary,numericItinerary($A14),BK$3-1),campInfo,8)) ->  | BL14: =IF(INDEX(campsByItinerary,numericItinerary($A14),BL$3-1)="","",VLOOKUP(INDEX(campsByItinerary,numericItinerary($A14),BL$3-1),campInfo,8)) ->  | BM14: =IF(INDEX(campsByItinerary,numericItinerary($A14),BM$3-1)="","",VLOOKUP(INDEX(campsByItinerary,numericItinerary($A14),BM$3-1),campInfo,8)) ->  | BQ14: Y | BR14: Y | BT14: Y | BU14: Y | BV14: Y | BW14: Y | BX14: =IF(INDEX(campsByItinerary,numericItinerary($A14),BD$3-1)="","",VLOOKUP(INDEX(campsByItinerary,numericItinerary($A14),BD$3-1),campInfo,10)) ->  | BY14: =IF(INDEX(campsByItinerary,numericItinerary($A14),BE$3-1)="","",VLOOKUP(INDEX(campsByItinerary,numericItinerary($A14),BE$3-1),campInfo,10)) ->  | BZ14: =IF(INDEX(campsByItinerary,numericItinerary($A14),BF$3-1)="","",VLOOKUP(INDEX(campsByItinerary,numericItinerary($A14),BF$3-1),campInfo,10)) ->  | CA14: =IF(INDEX(campsByItinerary,numericItinerary($A14),BG$3-1)="","",VLOOKUP(INDEX(campsByItinerary,numericItinerary($A14),BG$3-1),campInfo,10)) ->  | CB14: =IF(INDEX(campsByItinerary,numericItinerary($A14),BH$3-1)="","",VLOOKUP(INDEX(campsByItinerary,numericItinerary($A14),BH$3-1),campInfo,10)) ->  | CC14: =IF(INDEX(campsByItinerary,numericItinerary($A14),BI$3-1)="","",VLOOKUP(INDEX(campsByItinerary,numericItinerary($A14),BI$3-1),campInfo,10)) ->  | CD14: =IF(INDEX(campsByItinerary,numericItinerary($A14),BJ$3-1)="","",VLOOKUP(INDEX(campsByItinerary,numericItinerary($A14),BJ$3-1),campInfo,10)) -> Y | CE14: =IF(INDEX(campsByItinerary,numericItinerary($A14),BK$3-1)="","",VLOOKUP(INDEX(campsByItinerary,numericItinerary($A14),BK$3-1),campInfo,10)) ->  | CF14: =IF(INDEX(campsByItinerary,numericItinerary($A14),BL$3-1)="","",VLOOKUP(INDEX(campsByItinerary,numericItinerary($A14),BL$3-1),campInfo,10)) ->  | CG14: =IF(INDEX(campsByItinerary,numericItinerary($A14),BM$3-1)="","",VLOOKUP(INDEX(campsByItinerary,numericItinerary($A14),BM$3-1),campInfo,10)) ->  | CP14: Y | CQ14: Y | CR14: =INDEX(campsByItinerary,numericItinerary($A14),BD$3-1) -> Abreu | CS14: =IF(INDEX(campsByItinerary,numericItinerary($A14),BE$3-1)="","",VLOOKUP(INDEX(campsByItinerary,numericItinerary($A14),BE$3-1),campInfo,2)) -> South | CT14: =IF(INDEX(campsByItinerary,numericItinerary($A14),BF$3-1)="","",VLOOKUP(INDEX(campsByItinerary,numericItinerary($A14),BF$3-1),campInfo,2)) -> South | CU14: =IF(INDEX(campsByItinerary,numericItinerary($A14),BG$3-1)="","",VLOOKUP(INDEX(campsByItinerary,numericItinerary($A14),BG$3-1),campInfo,2)) -> South | CV14: =IF(INDEX(campsByItinerary,numericItinerary($A14),BH$3-1)="","",VLOOKUP(INDEX(campsByItinerary,numericItinerary($A14),BH$3-1),campInfo,2)) -> South | CW14: =IF(INDEX(campsByItinerary,numericItinerary($A14),BI$3-1)="","",VLOOKUP(INDEX(campsByItinerary,numericItinerary($A14),BI$3-1),campInfo,2)) -> South | CX14: =IF(INDEX(campsByItinerary,numericItinerary($A14),BJ$3-1)="","",VLOOKUP(INDEX(campsByItinerary,numericItinerary($A14),BJ$3-1),campInfo,2)) -> Central | CY14: =IF(INDEX(campsByItinerary,numericItinerary($A14),BK$3-1)="","",VLOOKUP(INDEX(campsByItinerary,numericItinerary($A14),BK$3-1),campInfo,2)) ->  | CZ14: =IF(INDEX(campsByItinerary,numericItinerary($A14),BL$3-1)="","",VLOOKUP(INDEX(campsByItinerary,numericItinerary($A14),BL$3-1),campInfo,2)) ->  | DA14: =IF(INDEX(campsByItinerary,numericItinerary($A14),BM$3-1)="","",VLOOKUP(INDEX(campsByItinerary,numericItinerary($A14),BM$3-1),campInfo,2)) ->  | DB14: =IF(INDEX(campsByItinerary,numericItinerary($A14),BD$3-1)="","",VLOOKUP(INDEX(campsByItinerary,numericItinerary($A14),BD$3-1),campInfo,12)) -> South | DC14: =IF(INDEX(campsByItinerary,numericItinerary($A14),BE$3-1)="","",VLOOKUP(INDEX(campsByItinerary,numericItinerary($A14),BE$3-1),campInfo,12)) -> South | DD14: =IF(INDEX(campsByItinerary,numericItinerary($A14),BF$3-1)="","",VLOOKUP(INDEX(campsByItinerary,numericItinerary($A14),BF$3-1),campInfo,12)) -> South | DE14: =IF(INDEX(campsByItinerary,numericItinerary($A14),BG$3-1)="","",VLOOKUP(INDEX(campsByItinerary,numericItinerary($A14),BG$3-1),campInfo,12)) -> South | DF14: =IF(INDEX(campsByItinerary,numericItinerary($A14),BH$3-1)="","",VLOOKUP(INDEX(campsByItinerary,numericItinerary($A14),BH$3-1),campInfo,12)) -> South | DG14: =IF(INDEX(campsByItinerary,numericItinerary($A14),BI$3-1)="","",VLOOKUP(INDEX(campsByItinerary,numericItinerary($A14),BI$3-1),campInfo,12)) -> South | DH14: =IF(INDEX(campsByItinerary,numericItinerary($A14),BJ$3-1)="","",VLOOKUP(INDEX(campsByItinerary,numericItinerary($A14),BJ$3-1),campInfo,12)) -> South | DI14: =IF(INDEX(campsByItinerary,numericItinerary($A14),BK$3-1)="","",VLOOKUP(INDEX(campsByItinerary,numericItinerary($A14),BK$3-1),campInfo,12)) ->  | DJ14: =IF(INDEX(campsByItinerary,numericItinerary($A14),BL$3-1)="","",VLOOKUP(INDEX(campsByItinerary,numericItinerary($A14),BL$3-1),campInfo,12)) ->  | DK14: =IF(INDEX(campsByItinerary,numericItinerary($A14),BM$3-1)="","",VLOOKUP(INDEX(campsByItinerary,numericItinerary($A14),BM$3-1),campInfo,12)) ->  | DL14: =getfoodPU("First",numericItinerary($A14)) -> 3 | DM14: =getfoodPU("Max",numericItinerary($A14)) -> 3
A15: 9-12 | C15: S | D15: 52 | E15: Line | F15: Crags | G15: Apache Springs | H15: Beaubien | I15: Crooked Creek | J15: Mount Phillips | K15: American Creek | O15: Camping HQ | Q15: Apache Springs | S15: Phillips Junction | Y15: Zastrow | Z15: Tolby Creek | AB15: =IF(AC15="","",numericItinerary(A15) & ":" & AC15) ->  | AG15: y | AJ15: y | AK15: 8125 | AL15: 8058 | AM15: 9409 | AN15: 9330 | AO15: 9360 | AP15: 11650 | AQ15: 9815 | AU15: 67 | AV15: 1351 | AW15: 79 | AX15: 30 | AY15: 2290 | AZ15: 1835 | BD15: =IF(INDEX(campsByItinerary,numericItinerary($A15),BD$3-1)="","",VLOOKUP(INDEX(campsByItinerary,numericItinerary($A15),BD$3-1),campInfo,8)) ->  | BE15: =IF(INDEX(campsByItinerary,numericItinerary($A15),BE$3-1)="","",VLOOKUP(INDEX(campsByItinerary,numericItinerary($A15),BE$3-1),campInfo,8)) ->  | BF15: =IF(INDEX(campsByItinerary,numericItinerary($A15),BF$3-1)="","",VLOOKUP(INDEX(campsByItinerary,numericItinerary($A15),BF$3-1),campInfo,8)) -> Y | BG15: =IF(INDEX(campsByItinerary,numericItinerary($A15),BG$3-1)="","",VLOOKUP(INDEX(campsByItinerary,numericItinerary($A15),BG$3-1),campInfo,8)) -> Y | BH15: =IF(INDEX(campsByItinerary,numericItinerary($A15),BH$3-1)="","",VLOOKUP(INDEX(campsByItinerary,numericItinerary($A15),BH$3-1),campInfo,8)) -> Y | BI15: =IF(INDEX(campsByItinerary,numericItinerary($A15),BI$3-1)="","",VLOOKUP(INDEX(campsByItinerary,numericItinerary($A15),BI$3-1),campInfo,8)) ->  | BJ15: =IF(INDEX(campsByItinerary,numericItinerary($A15),BJ$3-1)="","",VLOOKUP(INDEX(campsByItinerary,numericItinerary($A15),BJ$3-1),campInfo,8)) ->  | BK15: =IF(INDEX(campsByItinerary,numericItinerary($A15),BK$3-1)="","",VLOOKUP(INDEX(campsByItinerary,numericItinerary($A15),BK$3-1),campInfo,8)) ->  | BL15: =IF(INDEX(campsByItinerary,numericItinerary($A15),BL$3-1)="","",VLOOKUP(INDEX(campsByItinerary,numericItinerary($A15),BL$3-1),campInfo,8)) ->  | BM15: =IF(INDEX(campsByItinerary,numericItinerary($A15),BM$3-1)="","",VLOOKUP(INDEX(campsByItinerary,numericItinerary($A15),BM$3-1),campInfo,8)) ->  | BN15: Y | BO15: Y | BS15: Y | BT15: Y | BU15: Y | BV15: Y | BW15: Y | BX15: =IF(INDEX(campsByItinerary,numericItinerary($A15),BD$3-1)="","",VLOOKUP(INDEX(campsByItinerary,numericItinerary($A15),BD$3-1),campInfo,10)) ->  | BY15: =IF(INDEX(campsByItinerary,numericItinerary($A15),BE$3-1)="","",VLOOKUP(INDEX(campsByItinerary,numericItinerary($A15),BE$3-1),campInfo,10)) ->  | BZ15: =IF(INDEX(campsByItinerary,numericItinerary($A15),BF$3-1)="","",VLOOKUP(INDEX(campsByItinerary,numericItinerary($A15),BF$3-1),campInfo,10)) ->  | CA15: =IF(INDEX(campsByItinerary,numericItinerary($A15),BG$3-1)="","",VLOOKUP(INDEX(campsByItinerary,numericItinerary($A15),BG$3-1),campInfo,10)) ->  | CB15: =IF(INDEX(campsByItinerary,numericItinerary($A15),BH$3-1)="","",VLOOKUP(INDEX(campsByItinerary,numericItinerary($A15),BH$3-1),campInfo,10)) ->  | CC15: =IF(INDEX(campsByItinerary,numericItinerary($A15),BI$3-1)="","",VLOOKUP(INDEX(campsByItinerary,numericItinerary($A15),BI$3-1),campInfo,10)) -> Y | CD15: =IF(INDEX(campsByItinerary,numericItinerary($A15),BJ$3-1)="","",VLOOKUP(INDEX(campsByItinerary,numericItinerary($A15),BJ$3-1),campInfo,10)) ->  | CE15: =IF(INDEX(campsByItinerary,numericItinerary($A15),BK$3-1)="","",VLOOKUP(INDEX(campsByItinerary,numericItinerary($A15),BK$3-1),campInfo,10)) ->  | CF15: =IF(INDEX(campsByItinerary,numericItinerary($A15),BL$3-1)="","",VLOOKUP(INDEX(campsByItinerary,numericItinerary($A15),BL$3-1),campInfo,10)) ->  | CG15: =IF(INDEX(campsByItinerary,numericItinerary($A15),BM$3-1)="","",VLOOKUP(INDEX(campsByItinerary,numericItinerary($A15),BM$3-1),campInfo,10)) ->  | CP15: Y | CQ15: Y | CR15: =INDEX(campsByItinerary,numericItinerary($A15),BD$3-1) -> Line | CS15: =IF(INDEX(campsByItinerary,numericItinerary($A15),BE$3-1)="","",VLOOKUP(INDEX(campsByItinerary,numericItinerary($A15),BE$3-1),campInfo,2)) -> South | CT15: =IF(INDEX(campsByItinerary,numericItinerary($A15),BF$3-1)="","",VLOOKUP(INDEX(campsByItinerary,numericItinerary($A15),BF$3-1),campInfo,2)) -> South | CU15: =IF(INDEX(campsByItinerary,numericItinerary($A15),BG$3-1)="","",VLOOKUP(INDEX(campsByItinerary,numericItinerary($A15),BG$3-1),campInfo,2)) -> South | CV15: =IF(INDEX(campsByItinerary,numericItinerary($A15),BH$3-1)="","",VLOOKUP(INDEX(campsByItinerary,numericItinerary($A15),BH$3-1),campInfo,2)) -> South | CW15: =IF(INDEX(campsByItinerary,numericItinerary($A15),BI$3-1)="","",VLOOKUP(INDEX(campsByItinerary,numericItinerary($A15),BI$3-1),campInfo,2)) -> Central | CX15: =IF(INDEX(campsByItinerary,numericItinerary($A15),BJ$3-1)="","",VLOOKUP(INDEX(campsByItinerary,numericItinerary($A15),BJ$3-1),campInfo,2)) -> South | CY15: =IF(INDEX(campsByItinerary,numericItinerary($A15),BK$3-1)="","",VLOOKUP(INDEX(campsByItinerary,numericItinerary($A15),BK$3-1),campInfo,2)) ->  | CZ15: =IF(INDEX(campsByItinerary,numericItinerary($A15),BL$3-1)="","",VLOOKUP(INDEX(campsByItinerary,numericItinerary($A15),BL$3-1),campInfo,2)) ->  | DA15: =IF(INDEX(campsByItinerary,numericItinerary($A15),BM$3-1)="","",VLOOKUP(INDEX(campsByItinerary,numericItinerary($A15),BM$3-1),campInfo,2)) ->  | DB15: =IF(INDEX(campsByItinerary,numericItinerary($A15),BD$3-1)="","",VLOOKUP(INDEX(campsByItinerary,numericItinerary($A15),BD$3-1),campInfo,12)) -> South | DC15: =IF(INDEX(campsByItinerary,numericItinerary($A15),BE$3-1)="","",VLOOKUP(INDEX(campsByItinerary,numericItinerary($A15),BE$3-1),campInfo,12)) -> South | DD15: =IF(INDEX(campsByItinerary,numericItinerary($A15),BF$3-1)="","",VLOOKUP(INDEX(campsByItinerary,numericItinerary($A15),BF$3-1),campInfo,12)) -> South | DE15: =IF(INDEX(campsByItinerary,numericItinerary($A15),BG$3-1)="","",VLOOKUP(INDEX(campsByItinerary,numericItinerary($A15),BG$3-1),campInfo,12)) -> South | DF15: =IF(INDEX(campsByItinerary,numericItinerary($A15),BH$3-1)="","",VLOOKUP(INDEX(campsByItinerary,numericItinerary($A15),BH$3-1),campInfo,12)) -> South | DG15: =IF(INDEX(campsByItinerary,numericItinerary($A15),BI$3-1)="","",VLOOKUP(INDEX(campsByItinerary,numericItinerary($A15),BI$3-1),campInfo,12)) -> South | DH15: =IF(INDEX(campsByItinerary,numericItinerary($A15),BJ$3-1)="","",VLOOKUP(INDEX(campsByItinerary,numericItinerary($A15),BJ$3-1),campInfo,12)) -> South | DI15: =IF(INDEX(campsByItinerary,numericItinerary($A15),BK$3-1)="","",VLOOKUP(INDEX(campsByItinerary,numericItinerary($A15),BK$3-1),campInfo,12)) ->  | DJ15: =IF(INDEX(campsByItinerary,numericItinerary($A15),BL$3-1)="","",VLOOKUP(INDEX(campsByItinerary,numericItinerary($A15),BL$3-1),campInfo,12)) ->  | DK15: =IF(INDEX(campsByItinerary,numericItinerary($A15),BM$3-1)="","",VLOOKUP(INDEX(campsByItinerary,numericItinerary($A15),BM$3-1),campInfo,12)) ->  | DL15: =getfoodPU("First",numericItinerary($A15)) -> 2 | DM15: =getfoodPU("Max",numericItinerary($A15)) -> 2
A16: 9-13 | C16: SS | D16: 50 | E16: Harlan | F16: Devil's Wash Basin | G16: Sawmill | H16: Mount Phillips | I16: Porcupine | J16: Beaubien | K16: Shaefers Pass | O16: Camping HQ | Q16: Sawmill | T16: Phillips Junction | Y16: Turkey Creek | Z16: Hike In | AA16: y | AB16: =IF(AC16="","",numericItinerary(A16) & ":" & AC16) ->  | AG16: y | AH16: y | AJ16: y | AK16: 7550 | AL16: 8515 | AM16: 9193 | AN16: 11650 | AO16: 9152 | AP16: 9330 | AQ16: 8724 | AU16: 965 | AV16: 678 | AW16: 2457 | AX16: 2498 | AY16: 178 | AZ16: 606 | BD16: =IF(INDEX(campsByItinerary,numericItinerary($A16),BD$3-1)="","",VLOOKUP(INDEX(campsByItinerary,numericItinerary($A16),BD$3-1),campInfo,8)) -> Y | BE16: =IF(INDEX(campsByItinerary,numericItinerary($A16),BE$3-1)="","",VLOOKUP(INDEX(campsByItinerary,numericItinerary($A16),BE$3-1),campInfo,8)) ->  | BF16: =IF(INDEX(campsByItinerary,numericItinerary($A16),BF$3-1)="","",VLOOKUP(INDEX(campsByItinerary,numericItinerary($A16),BF$3-1),campInfo,8)) -> Y | BG16: =IF(INDEX(campsByItinerary,numericItinerary($A16),BG$3-1)="","",VLOOKUP(INDEX(campsByItinerary,numericItinerary($A16),BG$3-1),campInfo,8)) ->  | BH16: =IF(INDEX(campsByItinerary,numericItinerary($A16),BH$3-1)="","",VLOOKUP(INDEX(campsByItinerary,numericItinerary($A16),BH$3-1),campInfo,8)) ->  | BI16: =IF(INDEX(campsByItinerary,numericItinerary($A16),BI$3-1)="","",VLOOKUP(INDEX(campsByItinerary,numericItinerary($A16),BI$3-1),campInfo,8)) -> Y | BJ16: =IF(INDEX(campsByItinerary,numericItinerary($A16),BJ$3-1)="","",VLOOKUP(INDEX(campsByItinerary,numericItinerary($A16),BJ$3-1),campInfo,8)) ->  | BK16: =IF(INDEX(campsByItinerary,numericItinerary($A16),BK$3-1)="","",VLOOKUP(INDEX(campsByItinerary,numericItinerary($A16),BK$3-1),campInfo,8)) ->  | BL16: =IF(INDEX(campsByItinerary,numericItinerary($A16),BL$3-1)="","",VLOOKUP(INDEX(campsByItinerary,numericItinerary($A16),BL$3-1),campInfo,8)) ->  | BM16: =IF(INDEX(campsByItinerary,numericItinerary($A16),BM$3-1)="","",VLOOKUP(INDEX(campsByItinerary,numericItinerary($A16),BM$3-1),campInfo,8)) ->  | BO16: Y | BQ16: Y | BR16: Y | BT16: Y | BU16: Y | BV16: Y | BW16: Y | BX16: =IF(INDEX(campsByItinerary,numericItinerary($A16),BD$3-1)="","",VLOOKUP(INDEX(campsByItinerary,numericItinerary($A16),BD$3-1),campInfo,10)) ->  | BY16: =IF(INDEX(campsByItinerary,numericItinerary($A16),BE$3-1)="","",VLOOKUP(INDEX(campsByItinerary,numericItinerary($A16),BE$3-1),campInfo,10)) -> Y | BZ16: =IF(INDEX(campsByItinerary,numericItinerary($A16),BF$3-1)="","",VLOOKUP(INDEX(campsByItinerary,numericItinerary($A16),BF$3-1),campInfo,10)) ->  | CA16: =IF(INDEX(campsByItinerary,numericItinerary($A16),BG$3-1)="","",VLOOKUP(INDEX(campsByItinerary,numericItinerary($A16),BG$3-1),campInfo,10)) -> Y | CB16: =IF(INDEX(campsByItinerary,numericItinerary($A16),BH$3-1)="","",VLOOKUP(INDEX(campsByItinerary,numericItinerary($A16),BH$3-1),campInfo,10)) ->  | CC16: =IF(INDEX(campsByItinerary,numericItinerary($A16),BI$3-1)="","",VLOOKUP(INDEX(campsByItinerary,numericItinerary($A16),BI$3-1),campInfo,10)) ->  | CD16: =IF(INDEX(campsByItinerary,numericItinerary($A16),BJ$3-1)="","",VLOOKUP(INDEX(campsByItinerary,numericItinerary($A16),BJ$3-1),campInfo,10)) -> Y | CE16: =IF(INDEX(campsByItinerary,numericItinerary($A16),BK$3-1)="","",VLOOKUP(INDEX(campsByItinerary,numericItinerary($A16),BK$3-1),campInfo,10)) ->  | CF16: =IF(INDEX(campsByItinerary,numericItinerary($A16),BL$3-1)="","",VLOOKUP(INDEX(campsByItinerary,numericItinerary($A16),BL$3-1),campInfo,10)) ->  | CG16: =IF(INDEX(campsByItinerary,numericItinerary($A16),BM$3-1)="","",VLOOKUP(INDEX(campsByItinerary,numericItinerary($A16),BM$3-1),campInfo,10)) ->  | CP16: Y | CQ16: Y | CR16: =INDEX(campsByItinerary,numericItinerary($A16),BD$3-1) -> Harlan | CS16: =IF(INDEX(campsByItinerary,numericItinerary($A16),BE$3-1)="","",VLOOKUP(INDEX(campsByItinerary,numericItinerary($A16),BE$3-1),campInfo,2)) -> Central | CT16: =IF(INDEX(campsByItinerary,numericItinerary($A16),BF$3-1)="","",VLOOKUP(INDEX(campsByItinerary,numericItinerary($A16),BF$3-1),campInfo,2)) -> Central | CU16: =IF(INDEX(campsByItinerary,numericItinerary($A16),BG$3-1)="","",VLOOKUP(INDEX(campsByItinerary,numericItinerary($A16),BG$3-1),campInfo,2)) -> Central | CV16: =IF(INDEX(campsByItinerary,numericItinerary($A16),BH$3-1)="","",VLOOKUP(INDEX(campsByItinerary,numericItinerary($A16),BH$3-1),campInfo,2)) -> South | CW16: =IF(INDEX(campsByItinerary,numericItinerary($A16),BI$3-1)="","",VLOOKUP(INDEX(campsByItinerary,numericItinerary($A16),BI$3-1),campInfo,2)) -> South | CX16: =IF(INDEX(campsByItinerary,numericItinerary($A16),BJ$3-1)="","",VLOOKUP(INDEX(campsByItinerary,numericItinerary($A16),BJ$3-1),campInfo,2)) -> Central | CY16: =IF(INDEX(campsByItinerary,numericItinerary($A16),BK$3-1)="","",VLOOKUP(INDEX(campsByItinerary,numericItinerary($A16),BK$3-1),campInfo,2)) ->  | CZ16: =IF(INDEX(campsByItinerary,numericItinerary($A16),BL$3-1)="","",VLOOKUP(INDEX(campsByItinerary,numericItinerary($A16),BL$3-1),campInfo,2)) ->  | DA16: =IF(INDEX(campsByItinerary,numericItinerary($A16),BM$3-1)="","",VLOOKUP(INDEX(campsByItinerary,numericItinerary($A16),BM$3-1),campInfo,2)) ->  | DB16: =IF(INDEX(campsByItinerary,numericItinerary($A16),BD$3-1)="","",VLOOKUP(INDEX(campsByItinerary,numericItinerary($A16),BD$3-1),campInfo,12)) -> South | DC16: =IF(INDEX(campsByItinerary,numericItinerary($A16),BE$3-1)="","",VLOOKUP(INDEX(campsByItinerary,numericItinerary($A16),BE$3-1),campInfo,12)) -> South | DD16: =IF(INDEX(campsByItinerary,numericItinerary($A16),BF$3-1)="","",VLOOKUP(INDEX(campsByItinerary,numericItinerary($A16),BF$3-1),campInfo,12)) -> South | DE16: =IF(INDEX(campsByItinerary,numericItinerary($A16),BG$3-1)="","",VLOOKUP(INDEX(campsByItinerary,numericItinerary($A16),BG$3-1),campInfo,12)) -> South | DF16: =IF(INDEX(campsByItinerary,numericItinerary($A16),BH$3-1)="","",VLOOKUP(INDEX(campsByItinerary,numericItinerary($A16),BH$3-1),campInfo,12)) -> South | DG16: =IF(INDEX(campsByItinerary,numericItinerary($A16),BI$3-1)="","",VLOOKUP(INDEX(campsByItinerary,numericItinerary($A16),BI$3-1),campInfo,12)) -> South | DH16: =IF(INDEX(campsByItinerary,numericItinerary($A16),BJ$3-1)="","",VLOOKUP(INDEX(campsByItinerary,numericItinerary($A16),BJ$3-1),campInfo,12)) -> South | DI16: =IF(INDEX(campsByItinerary,numericItinerary($A16),BK$3-1)="","",VLOOKUP(INDEX(campsByItinerary,numericItinerary($A16),BK$3-1),campInfo,12)) ->  | DJ16: =IF(INDEX(campsByItinerary,numericItinerary($A16),BL$3-1)="","",VLOOKUP(INDEX(campsByItinerary,numericItinerary($A16),BL$3-1),campInfo,12)) ->  | DK16: =IF(INDEX(campsByItinerary,numericItinerary($A16),BM$3-1)="","",VLOOKUP(INDEX(campsByItinerary,numericItinerary($A16),BM$3-1),campInfo,12)) ->  | DL16: =getfoodPU("First",numericItinerary($A16)) -> 2 | DM16: =getfoodPU("Max",numericItinerary($A16)) -> 2
A17: 9-14 | C17: SS | D17: 56 | E17: Flume Canyon | F17: Pueblano | G17: Ewells Park | H17: Ewells Park | I17: Head of Dean | J17: Minnette Meadows | K17: Harlan | O17: Camping HQ | R17: Baldy Town | T17: Cimarroncita | Y17: Ponil | Z17: Turkey Creek | AB17: =IF(AC17="","",numericItinerary(A17) & ":" & AC17) ->  | AF17: y | AK17: 7715 | AL17: 8069 | AM17: 9373 | AN17: 9373 | AO17: 8754 | AP17: 7703 | AQ17: 7550 | AU17: 354 | AV17: 1304 | AW17: 0 | AX17: 619 | AY17: 1051 | AZ17: 153 | BD17: =IF(INDEX(campsByItinerary,numericItinerary($A17),BD$3-1)="","",VLOOKUP(INDEX(campsByItinerary,numericItinerary($A17),BD$3-1),campInfo,8)) ->  | BE17: =IF(INDEX(campsByItinerary,numericItinerary($A17),BE$3-1)="","",VLOOKUP(INDEX(campsByItinerary,numericItinerary($A17),BE$3-1),campInfo,8)) -> Y | BF17: =IF(INDEX(campsByItinerary,numericItinerary($A17),BF$3-1)="","",VLOOKUP(INDEX(campsByItinerary,numericItinerary($A17),BF$3-1),campInfo,8)) ->  | BG17: =IF(INDEX(campsByItinerary,numericItinerary($A17),BG$3-1)="","",VLOOKUP(INDEX(campsByItinerary,numericItinerary($A17),BG$3-1),campInfo,8)) ->  | BH17: =IF(INDEX(campsByItinerary,numericItinerary($A17),BH$3-1)="","",VLOOKUP(INDEX(campsByItinerary,numericItinerary($A17),BH$3-1),campInfo,8)) -> Y | BI17: =IF(INDEX(campsByItinerary,numericItinerary($A17),BI$3-1)="","",VLOOKUP(INDEX(campsByItinerary,numericItinerary($A17),BI$3-1),campInfo,8)) ->  | BJ17: =IF(INDEX(campsByItinerary,numericItinerary($A17),BJ$3-1)="","",VLOOKUP(INDEX(campsByItinerary,numericItinerary($A17),BJ$3-1),campInfo,8)) -> Y | BK17: =IF(INDEX(campsByItinerary,numericItinerary($A17),BK$3-1)="","",VLOOKUP(INDEX(campsByItinerary,numericItinerary($A17),BK$3-1),campInfo,8)) ->  | BL17: =IF(INDEX(campsByItinerary,numericItinerary($A17),BL$3-1)="","",VLOOKUP(INDEX(campsByItinerary,numericItinerary($A17),BL$3-1),campInfo,8)) ->  | BM17: =IF(INDEX(campsByItinerary,numericItinerary($A17),BM$3-1)="","",VLOOKUP(INDEX(campsByItinerary,numericItinerary($A17),BM$3-1),campInfo,8)) ->  | BN17: Y | BP17: Y | BQ17: Y | BS17: Y | BU17: Y | BV17: Y | BW17: Y | BX17: =IF(INDEX(campsByItinerary,numericItinerary($A17),BD$3-1)="","",VLOOKUP(INDEX(campsByItinerary,numericItinerary($A17),BD$3-1),campInfo,10)) ->  | BY17: =IF(INDEX(campsByItinerary,numericItinerary($A17),BE$3-1)="","",VLOOKUP(INDEX(campsByItinerary,numericItinerary($A17),BE$3-1),campInfo,10)) ->  | BZ17: =IF(INDEX(campsByItinerary,numericItinerary($A17),BF$3-1)="","",VLOOKUP(INDEX(campsByItinerary,numericItinerary($A17),BF$3-1),campInfo,10)) ->  | CA17: =IF(INDEX(campsByItinerary,numericItinerary($A17),BG$3-1)="","",VLOOKUP(INDEX(campsByItinerary,numericItinerary($A17),BG$3-1),campInfo,10)) ->  | CB17: =IF(INDEX(campsByItinerary,numericItinerary($A17),BH$3-1)="","",VLOOKUP(INDEX(campsByItinerary,numericItinerary($A17),BH$3-1),campInfo,10)) ->  | CC17: =IF(INDEX(campsByItinerary,numericItinerary($A17),BI$3-1)="","",VLOOKUP(INDEX(campsByItinerary,numericItinerary($A17),BI$3-1),campInfo,10)) -> Y | CD17: =IF(INDEX(campsByItinerary,numericItinerary($A17),BJ$3-1)="","",VLOOKUP(INDEX(campsByItinerary,numericItinerary($A17),BJ$3-1),campInfo,10)) ->  | CE17: =IF(INDEX(campsByItinerary,numericItinerary($A17),BK$3-1)="","",VLOOKUP(INDEX(campsByItinerary,numericItinerary($A17),BK$3-1),campInfo,10)) ->  | CF17: =IF(INDEX(campsByItinerary,numericItinerary($A17),BL$3-1)="","",VLOOKUP(INDEX(campsByItinerary,numericItinerary($A17),BL$3-1),campInfo,10)) ->  | CG17: =IF(INDEX(campsByItinerary,numericItinerary($A17),BM$3-1)="","",VLOOKUP(INDEX(campsByItinerary,numericItinerary($A17),BM$3-1),campInfo,10)) ->  | CK17: Y | CP17: Y | CQ17: Y | CR17: =INDEX(campsByItinerary,numericItinerary($A17),BD$3-1) -> Flume Canyon | CS17: =IF(INDEX(campsByItinerary,numericItinerary($A17),BE$3-1)="","",VLOOKUP(INDEX(campsByItinerary,numericItinerary($A17),BE$3-1),campInfo,2)) -> North | CT17: =IF(INDEX(campsByItinerary,numericItinerary($A17),BF$3-1)="","",VLOOKUP(INDEX(campsByItinerary,numericItinerary($A17),BF$3-1),campInfo,2)) -> North | CU17: =IF(INDEX(campsByItinerary,numericItinerary($A17),BG$3-1)="","",VLOOKUP(INDEX(campsByItinerary,numericItinerary($A17),BG$3-1),campInfo,2)) -> North | CV17: =IF(INDEX(campsByItinerary,numericItinerary($A17),BH$3-1)="","",VLOOKUP(INDEX(campsByItinerary,numericItinerary($A17),BH$3-1),campInfo,2)) -> North | CW17: =IF(INDEX(campsByItinerary,numericItinerary($A17),BI$3-1)="","",VLOOKUP(INDEX(campsByItinerary,numericItinerary($A17),BI$3-1),campInfo,2)) -> Central | CX17: =IF(INDEX(campsByItinerary,numericItinerary($A17),BJ$3-1)="","",VLOOKUP(INDEX(campsByItinerary,numericItinerary($A17),BJ$3-1),campInfo,2)) -> Central | CY17: =IF(INDEX(campsByItinerary,numericItinerary($A17),BK$3-1)="","",VLOOKUP(INDEX(campsByItinerary,numericItinerary($A17),BK$3-1),campInfo,2)) ->  | CZ17: =IF(INDEX(campsByItinerary,numericItinerary($A17),BL$3-1)="","",VLOOKUP(INDEX(campsByItinerary,numericItinerary($A17),BL$3-1),campInfo,2)) ->  | DA17: =IF(INDEX(campsByItinerary,numericItinerary($A17),BM$3-1)="","",VLOOKUP(INDEX(campsByItinerary,numericItinerary($A17),BM$3-1),campInfo,2)) ->  | DB17: =IF(INDEX(campsByItinerary,numericItinerary($A17),BD$3-1)="","",VLOOKUP(INDEX(campsByItinerary,numericItinerary($A17),BD$3-1),campInfo,12)) -> North | DC17: =IF(INDEX(campsByItinerary,numericItinerary($A17),BE$3-1)="","",VLOOKUP(INDEX(campsByItinerary,numericItinerary($A17),BE$3-1),campInfo,12)) -> North | DD17: =IF(INDEX(campsByItinerary,numericItinerary($A17),BF$3-1)="","",VLOOKUP(INDEX(campsByItinerary,numericItinerary($A17),BF$3-1),campInfo,12)) -> North | DE17: =IF(INDEX(campsByItinerary,numericItinerary($A17),BG$3-1)="","",VLOOKUP(INDEX(campsByItinerary,numericItinerary($A17),BG$3-1),campInfo,12)) -> North | DF17: =IF(INDEX(campsByItinerary,numericItinerary($A17),BH$3-1)="","",VLOOKUP(INDEX(campsByItinerary,numericItinerary($A17),BH$3-1),campInfo,12)) -> North | DG17: =IF(INDEX(campsByItinerary,numericItinerary($A17),BI$3-1)="","",VLOOKUP(INDEX(campsByItinerary,numericItinerary($A17),BI$3-1),campInfo,12)) -> South | DH17: =IF(INDEX(campsByItinerary,numericItinerary($A17),BJ$3-1)="","",VLOOKUP(INDEX(campsByItinerary,numericItinerary($A17),BJ$3-1),campInfo,12)) -> South | DI17: =IF(INDEX(campsByItinerary,numericItinerary($A17),BK$3-1)="","",VLOOKUP(INDEX(campsByItinerary,numericItinerary($A17),BK$3-1),campInfo,12)) ->  | DJ17: =IF(INDEX(campsByItinerary,numericItinerary($A17),BL$3-1)="","",VLOOKUP(INDEX(campsByItinerary,numericItinerary($A17),BL$3-1),campInfo,12)) ->  | DK17: =IF(INDEX(campsByItinerary,numericItinerary($A17),BM$3-1)="","",VLOOKUP(INDEX(campsByItinerary,numericItinerary($A17),BM$3-1),campInfo,12)) ->  | DL17: =getfoodPU("First",numericItinerary($A17)) -> 3 | DM17: =getfoodPU("Max",numericItinerary($A17)) -> 3
A18: 9-15 | C18: SS | D18: 70 | E18: Bluestem | F18: Pueblano | G18: Copper Park | H18: Head of Dean | I18: Cimarroncita | J18: Whistle Punk | K18: Clarks Fork | O18: Camping HQ | S18: Cimarroncita | Y18: Ponil | Z18: Hike In | AA18: y | AB18: =IF(AC18="","",numericItinerary(A18) & ":" & AC18) ->  | AF18: y | AH18: y | AJ18: y | AK18: 7495 | AL18: 8069 | AM18: 10530 | AN18: 8754 | AO18: 7373 | AP18: 10052 | AQ18: 7515 | AU18: 574 | AV18: 2461 | AW18: 1776 | AX18: 1381 | AY18: 2679 | AZ18: 2537 | BD18: =IF(INDEX(campsByItinerary,numericItinerary($A18),BD$3-1)="","",VLOOKUP(INDEX(campsByItinerary,numericItinerary($A18),BD$3-1),campInfo,8)) ->  | BE18: =IF(INDEX(campsByItinerary,numericItinerary($A18),BE$3-1)="","",VLOOKUP(INDEX(campsByItinerary,numericItinerary($A18),BE$3-1),campInfo,8)) -> Y | BF18: =IF(INDEX(campsByItinerary,numericItinerary($A18),BF$3-1)="","",VLOOKUP(INDEX(campsByItinerary,numericItinerary($A18),BF$3-1),campInfo,8)) ->  | BG18: =IF(INDEX(campsByItinerary,numericItinerary($A18),BG$3-1)="","",VLOOKUP(INDEX(campsByItinerary,numericItinerary($A18),BG$3-1),campInfo,8)) -> Y | BH18: =IF(INDEX(campsByItinerary,numericItinerary($A18),BH$3-1)="","",VLOOKUP(INDEX(campsByItinerary,numericItinerary($A18),BH$3-1),campInfo,8)) -> Y | BI18: =IF(INDEX(campsByItinerary,numericItinerary($A18),BI$3-1)="","",VLOOKUP(INDEX(campsByItinerary,numericItinerary($A18),BI$3-1),campInfo,8)) ->  | BJ18: =IF(INDEX(campsByItinerary,numericItinerary($A18),BJ$3-1)="","",VLOOKUP(INDEX(campsByItinerary,numericItinerary($A18),BJ$3-1),campInfo,8)) -> Y | BK18: =IF(INDEX(campsByItinerary,numericItinerary($A18),BK$3-1)="","",VLOOKUP(INDEX(campsByItinerary,numericItinerary($A18),BK$3-1),campInfo,8)) ->  | BL18: =IF(INDEX(campsByItinerary,numericItinerary($A18),BL$3-1)="","",VLOOKUP(INDEX(campsByItinerary,numericItinerary($A18),BL$3-1),campInfo,8)) ->  | BM18: =IF(INDEX(campsByItinerary,numericItinerary($A18),BM$3-1)="","",VLOOKUP(INDEX(campsByItinerary,numericItinerary($A18),BM$3-1),campInfo,8)) ->  | BN18: Y | BP18: Y | BS18: Y | BU18: Y | BV18: Y | BW18: Y | BX18: =IF(INDEX(campsByItinerary,numericItinerary($A18),BD$3-1)="","",VLOOKUP(INDEX(campsByItinerary,numericItinerary($A18),BD$3-1),campInfo,10)) -> Y | BY18: =IF(INDEX(campsByItinerary,numericItinerary($A18),BE$3-1)="","",VLOOKUP(INDEX(campsByItinerary,numericItinerary($A18),BE$3-1),campInfo,10)) ->  | BZ18: =IF(INDEX(campsByItinerary,numericItinerary($A18),BF$3-1)="","",VLOOKUP(INDEX(campsByItinerary,numericItinerary($A18),BF$3-1),campInfo,10)) ->  | CA18: =IF(INDEX(campsByItinerary,numericItinerary($A18),BG$3-1)="","",VLOOKUP(INDEX(campsByItinerary,numericItinerary($A18),BG$3-1),campInfo,10)) ->  | CB18: =IF(INDEX(campsByItinerary,numericItinerary($A18),BH$3-1)="","",VLOOKUP(INDEX(campsByItinerary,numericItinerary($A18),BH$3-1),campInfo,10)) ->  | CC18: =IF(INDEX(campsByItinerary,numericItinerary($A18),BI$3-1)="","",VLOOKUP(INDEX(campsByItinerary,numericItinerary($A18),BI$3-1),campInfo,10)) ->  | CD18: =IF(INDEX(campsByItinerary,numericItinerary($A18),BJ$3-1)="","",VLOOKUP(INDEX(campsByItinerary,numericItinerary($A18),BJ$3-1),campInfo,10)) ->  | CE18: =IF(INDEX(campsByItinerary,numericItinerary($A18),BK$3-1)="","",VLOOKUP(INDEX(campsByItinerary,numericItinerary($A18),BK$3-1),campInfo,10)) ->  | CF18: =IF(INDEX(campsByItinerary,numericItinerary($A18),BL$3-1)="","",VLOOKUP(INDEX(campsByItinerary,numericItinerary($A18),BL$3-1),campInfo,10)) ->  | CG18: =IF(INDEX(campsByItinerary,numericItinerary($A18),BM$3-1)="","",VLOOKUP(INDEX(campsByItinerary,numericItinerary($A18),BM$3-1),campInfo,10)) ->  | CP18: Y | CQ18: Y | CR18: =INDEX(campsByItinerary,numericItinerary($A18),BD$3-1) -> Bluestem | CS18: =IF(INDEX(campsByItinerary,numericItinerary($A18),BE$3-1)="","",VLOOKUP(INDEX(campsByItinerary,numericItinerary($A18),BE$3-1),campInfo,2)) -> North | CT18: =IF(INDEX(campsByItinerary,numericItinerary($A18),BF$3-1)="","",VLOOKUP(INDEX(campsByItinerary,numericItinerary($A18),BF$3-1),campInfo,2)) -> North | CU18: =IF(INDEX(campsByItinerary,numericItinerary($A18),BG$3-1)="","",VLOOKUP(INDEX(campsByItinerary,numericItinerary($A18),BG$3-1),campInfo,2)) -> North | CV18: =IF(INDEX(campsByItinerary,numericItinerary($A18),BH$3-1)="","",VLOOKUP(INDEX(campsByItinerary,numericItinerary($A18),BH$3-1),campInfo,2)) -> Central | CW18: =IF(INDEX(campsByItinerary,numericItinerary($A18),BI$3-1)="","",VLOOKUP(INDEX(campsByItinerary,numericItinerary($A18),BI$3-1),campInfo,2)) -> Central | CX18: =IF(INDEX(campsByItinerary,numericItinerary($A18),BJ$3-1)="","",VLOOKUP(INDEX(campsByItinerary,numericItinerary($A18),BJ$3-1),campInfo,2)) -> Central | CY18: =IF(INDEX(campsByItinerary,numericItinerary($A18),BK$3-1)="","",VLOOKUP(INDEX(campsByItinerary,numericItinerary($A18),BK$3-1),campInfo,2)) ->  | CZ18: =IF(INDEX(campsByItinerary,numericItinerary($A18),BL$3-1)="","",VLOOKUP(INDEX(campsByItinerary,numericItinerary($A18),BL$3-1),campInfo,2)) ->  | DA18: =IF(INDEX(campsByItinerary,numericItinerary($A18),BM$3-1)="","",VLOOKUP(INDEX(campsByItinerary,numericItinerary($A18),BM$3-1),campInfo,2)) ->  | DB18: =IF(INDEX(campsByItinerary,numericItinerary($A18),BD$3-1)="","",VLOOKUP(INDEX(campsByItinerary,numericItinerary($A18),BD$3-1),campInfo,12)) -> North | DC18: =IF(INDEX(campsByItinerary,numericItinerary($A18),BE$3-1)="","",VLOOKUP(INDEX(campsByItinerary,numericItinerary($A18),BE$3-1),campInfo,12)) -> North | DD18: =IF(INDEX(campsByItinerary,numericItinerary($A18),BF$3-1)="","",VLOOKUP(INDEX(campsByItinerary,numericItinerary($A18),BF$3-1),campInfo,12)) -> North | DE18: =IF(INDEX(campsByItinerary,numericItinerary($A18),BG$3-1)="","",VLOOKUP(INDEX(campsByItinerary,numericItinerary($A18),BG$3-1),campInfo,12)) -> North | DF18: =IF(INDEX(campsByItinerary,numericItinerary($A18),BH$3-1)="","",VLOOKUP(INDEX(campsByItinerary,numericItinerary($A18),BH$3-1),campInfo,12)) -> North & South | DG18: =IF(INDEX(campsByItinerary,numericItinerary($A18),BI$3-1)="","",VLOOKUP(INDEX(campsByItinerary,numericItinerary($A18),BI$3-1),campInfo,12)) -> South | DH18: =IF(INDEX(campsByItinerary,numericItinerary($A18),BJ$3-1)="","",VLOOKUP(INDEX(campsByItinerary,numericItinerary($A18),BJ$3-1),campInfo,12)) -> South | DI18: =IF(INDEX(campsByItinerary,numericItinerary($A18),BK$3-1)="","",VLOOKUP(INDEX(campsByItinerary,numericItinerary($A18),BK$3-1),campInfo,12)) ->  | DJ18: =IF(INDEX(campsByItinerary,numericItinerary($A18),BL$3-1)="","",VLOOKUP(INDEX(campsByItinerary,numericItinerary($A18),BL$3-1),campInfo,12)) ->  | DK18: =IF(INDEX(campsByItinerary,numericItinerary($A18),BM$3-1)="","",VLOOKUP(INDEX(campsByItinerary,numericItinerary($A18),BM$3-1),campInfo,12)) ->  | DL18: =getfoodPU("First",numericItinerary($A18)) -> 4 | DM18: =getfoodPU("Max",numericItinerary($A18)) -> 4
BD19: =IF(INDEX(campsByItinerary,numericItinerary($A19),BD$3-1)="","",VLOOKUP(INDEX(campsByItinerary,numericItinerary($A19),BD$3-1),campInfo,8)) ->  | BE19: =IF(INDEX(campsByItinerary,numericItinerary($A19),BE$3-1)="","",VLOOKUP(INDEX(campsByItinerary,numericItinerary($A19),BE$3-1),campInfo,8)) ->  | BF19: =IF(INDEX(campsByItinerary,numericItinerary($A19),BF$3-1)="","",VLOOKUP(INDEX(campsByItinerary,numericItinerary($A19),BF$3-1),campInfo,8)) ->  | BG19: =IF(INDEX(campsByItinerary,numericItinerary($A19),BG$3-1)="","",VLOOKUP(INDEX(campsByItinerary,numericItinerary($A19),BG$3-1),campInfo,8)) ->  | BH19: =IF(INDEX(campsByItinerary,numericItinerary($A19),BH$3-1)="","",VLOOKUP(INDEX(campsByItinerary,numericItinerary($A19),BH$3-1),campInfo,8)) ->  | BI19: =IF(INDEX(campsByItinerary,numericItinerary($A19),BI$3-1)="","",VLOOKUP(INDEX(campsByItinerary,numericItinerary($A19),BI$3-1),campInfo,8)) ->  | BJ19: =IF(INDEX(campsByItinerary,numericItinerary($A19),BJ$3-1)="","",VLOOKUP(INDEX(campsByItinerary,numericItinerary($A19),BJ$3-1),campInfo,8)) ->  | BK19: =IF(INDEX(campsByItinerary,numericItinerary($A19),BK$3-1)="","",VLOOKUP(INDEX(campsByItinerary,numericItinerary($A19),BK$3-1),campInfo,8)) ->  | BL19: =IF(INDEX(campsByItinerary,numericItinerary($A19),BL$3-1)="","",VLOOKUP(INDEX(campsByItinerary,numericItinerary($A19),BL$3-1),campInfo,8)) ->  | BM19: =IF(INDEX(campsByItinerary,numericItinerary($A19),BM$3-1)="","",VLOOKUP(INDEX(campsByItinerary,numericItinerary($A19),BM$3-1),campInfo,8)) ->  | BX19: =IF(INDEX(campsByItinerary,numericItinerary($A19),BD$3-1)="","",VLOOKUP(INDEX(campsByItinerary,numericItinerary($A19),BD$3-1),campInfo,10)) ->  | BY19: =IF(INDEX(campsByItinerary,numericItinerary($A19),BE$3-1)="","",VLOOKUP(INDEX(campsByItinerary,numericItinerary($A19),BE$3-1),campInfo,10)) ->  | BZ19: =IF(INDEX(campsByItinerary,numericItinerary($A19),BF$3-1)="","",VLOOKUP(INDEX(campsByItinerary,numericItinerary($A19),BF$3-1),campInfo,10)) ->  | CA19: =IF(INDEX(campsByItinerary,numericItinerary($A19),BG$3-1)="","",VLOOKUP(INDEX(campsByItinerary,numericItinerary($A19),BG$3-1),campInfo,10)) ->  | CB19: =IF(INDEX(campsByItinerary,numericItinerary($A19),BH$3-1)="","",VLOOKUP(INDEX(campsByItinerary,numericItinerary($A19),BH$3-1),campInfo,10)) ->  | CC19: =IF(INDEX(campsByItinerary,numericItinerary($A19),BI$3-1)="","",VLOOKUP(INDEX(campsByItinerary,numericItinerary($A19),BI$3-1),campInfo,10)) ->  | CD19: =IF(INDEX(campsByItinerary,numericItinerary($A19),BJ$3-1)="","",VLOOKUP(INDEX(campsByItinerary,numericItinerary($A19),BJ$3-1),campInfo,10)) ->  | CE19: =IF(INDEX(campsByItinerary,numericItinerary($A19),BK$3-1)="","",VLOOKUP(INDEX(campsByItinerary,numericItinerary($A19),BK$3-1),campInfo,10)) ->  | CF19: =IF(INDEX(campsByItinerary,numericItinerary($A19),BL$3-1)="","",VLOOKUP(INDEX(campsByItinerary,numericItinerary($A19),BL$3-1),campInfo,10)) ->  | CG19: =IF(INDEX(campsByItinerary,numericItinerary($A19),BM$3-1)="","",VLOOKUP(INDEX(campsByItinerary,numericItinerary($A19),BM$3-1),campInfo,10)) ->  | CI19: Y | CJ19: Y | CK19: Y | CL19: Y | CM19: Y | CN19: Y | CO19: Y | CP19: Y | CQ19: Y | CR19: =INDEX(campsByItinerary,numericItinerary($A19),BD$3-1) ->  | CS19: =IF(INDEX(campsByItinerary,numericItinerary($A19),BE$3-1)="","",VLOOKUP(INDEX(campsByItinerary,numericItinerary($A19),BE$3-1),campInfo,2)) ->  | CT19: =IF(INDEX(campsByItinerary,numericItinerary($A19),BF$3-1)="","",VLOOKUP(INDEX(campsByItinerary,numericItinerary($A19),BF$3-1),campInfo,2)) ->  | CU19: =IF(INDEX(campsByItinerary,numericItinerary($A19),BG$3-1)="","",VLOOKUP(INDEX(campsByItinerary,numericItinerary($A19),BG$3-1),campInfo,2)) ->  | CV19: =IF(INDEX(campsByItinerary,numericItinerary($A19),BH$3-1)="","",VLOOKUP(INDEX(campsByItinerary,numericItinerary($A19),BH$3-1),campInfo,2)) ->  | CW19: =IF(INDEX(campsByItinerary,numericItinerary($A19),BI$3-1)="","",VLOOKUP(INDEX(campsByItinerary,numericItinerary($A19),BI$3-1),campInfo,2)) ->  | CX19: =IF(INDEX(campsByItinerary,numericItinerary($A19),BJ$3-1)="","",VLOOKUP(INDEX(campsByItinerary,numericItinerary($A19),BJ$3-1),campInfo,2)) ->  | CY19: =IF(INDEX(campsByItinerary,numericItinerary($A19),BK$3-1)="","",VLOOKUP(INDEX(campsByItinerary,numericItinerary($A19),BK$3-1),campInfo,2)) ->  | CZ19: =IF(INDEX(campsByItinerary,numericItinerary($A19),BL$3-1)="","",VLOOKUP(INDEX(campsByItinerary,numericItinerary($A19),BL$3-1),campInfo,2)) ->  | DA19: =IF(INDEX(campsByItinerary,numericItinerary($A19),BM$3-1)="","",VLOOKUP(INDEX(campsByItinerary,numericItinerary($A19),BM$3-1),campInfo,2)) ->  | DB19: =IF(INDEX(campsByItinerary,numericItinerary($A19),BD$3-1)="","",VLOOKUP(INDEX(campsByItinerary,numericItinerary($A19),BD$3-1),campInfo,12)) ->  | DC19: =IF(INDEX(campsByItinerary,numericItinerary($A19),BE$3-1)="","",VLOOKUP(INDEX(campsByItinerary,numericItinerary($A19),BE$3-1),campInfo,12)) ->  | DD19: =IF(INDEX(campsByItinerary,numericItinerary($A19),BF$3-1)="","",VLOOKUP(INDEX(campsByItinerary,numericItinerary($A19),BF$3-1),campInfo,12)) ->  | DE19: =IF(INDEX(campsByItinerary,numericItinerary($A19),BG$3-1)="","",VLOOKUP(INDEX(campsByItinerary,numericItinerary($A19),BG$3-1),campInfo,12)) ->  | DF19: =IF(INDEX(campsByItinerary,numericItinerary($A19),BH$3-1)="","",VLOOKUP(INDEX(campsByItinerary,numericItinerary($A19),BH$3-1),campInfo,12)) ->  | DG19: =IF(INDEX(campsByItinerary,numericItinerary($A19),BI$3-1)="","",VLOOKUP(INDEX(campsByItinerary,numericItinerary($A19),BI$3-1),campInfo,12)) ->  | DH19: =IF(INDEX(campsByItinerary,numericItinerary($A19),BJ$3-1)="","",VLOOKUP(INDEX(campsByItinerary,numericItinerary($A19),BJ$3-1),campInfo,12)) ->  | DI19: =IF(INDEX(campsByItinerary,numericItinerary($A19),BK$3-1)="","",VLOOKUP(INDEX(campsByItinerary,numericItinerary($A19),BK$3-1),campInfo,12)) ->  | DJ19: =IF(INDEX(campsByItinerary,numericItinerary($A19),BL$3-1)="","",VLOOKUP(INDEX(campsByItinerary,numericItinerary($A19),BL$3-1),campInfo,12)) ->  | DK19: =IF(INDEX(campsByItinerary,numericItinerary($A19),BM$3-1)="","",VLOOKUP(INDEX(campsByItinerary,numericItinerary($A19),BM$3-1),campInfo,12)) ->  | DL19: =getfoodPU("First",numericItinerary($A19)) ->  | DM19: =getfoodPU("Max",numericItinerary($A19)) -> 
BD20: =IF(INDEX(campsByItinerary,numericItinerary($A20),BD$3-1)="","",VLOOKUP(INDEX(campsByItinerary,numericItinerary($A20),BD$3-1),campInfo,8)) ->  | BE20: =IF(INDEX(campsByItinerary,numericItinerary($A20),BE$3-1)="","",VLOOKUP(INDEX(campsByItinerary,numericItinerary($A20),BE$3-1),campInfo,8)) ->  | BF20: =IF(INDEX(campsByItinerary,numericItinerary($A20),BF$3-1)="","",VLOOKUP(INDEX(campsByItinerary,numericItinerary($A20),BF$3-1),campInfo,8)) ->  | BG20: =IF(INDEX(campsByItinerary,numericItinerary($A20),BG$3-1)="","",VLOOKUP(INDEX(campsByItinerary,numericItinerary($A20),BG$3-1),campInfo,8)) ->  | BH20: =IF(INDEX(campsByItinerary,numericItinerary($A20),BH$3-1)="","",VLOOKUP(INDEX(campsByItinerary,numericItinerary($A20),BH$3-1),campInfo,8)) ->  | BI20: =IF(INDEX(campsByItinerary,numericItinerary($A20),BI$3-1)="","",VLOOKUP(INDEX(campsByItinerary,numericItinerary($A20),BI$3-1),campInfo,8)) ->  | BJ20: =IF(INDEX(campsByItinerary,numericItinerary($A20),BJ$3-1)="","",VLOOKUP(INDEX(campsByItinerary,numericItinerary($A20),BJ$3-1),campInfo,8)) ->  | BK20: =IF(INDEX(campsByItinerary,numericItinerary($A20),BK$3-1)="","",VLOOKUP(INDEX(campsByItinerary,numericItinerary($A20),BK$3-1),campInfo,8)) ->  | BL20: =IF(INDEX(campsByItinerary,numericItinerary($A20),BL$3-1)="","",VLOOKUP(INDEX(campsByItinerary,numericItinerary($A20),BL$3-1),campInfo,8)) ->  | BM20: =IF(INDEX(campsByItinerary,numericItinerary($A20),BM$3-1)="","",VLOOKUP(INDEX(campsByItinerary,numericItinerary($A20),BM$3-1),campInfo,8)) ->  | BX20: =IF(INDEX(campsByItinerary,numericItinerary($A20),BD$3-1)="","",VLOOKUP(INDEX(campsByItinerary,numericItinerary($A20),BD$3-1),campInfo,10)) ->  | BY20: =IF(INDEX(campsByItinerary,numericItinerary($A20),BE$3-1)="","",VLOOKUP(INDEX(campsByItinerary,numericItinerary($A20),BE$3-1),campInfo,10)) ->  | BZ20: =IF(INDEX(campsByItinerary,numericItinerary($A20),BF$3-1)="","",VLOOKUP(INDEX(campsByItinerary,numericItinerary($A20),BF$3-1),campInfo,10)) ->  | CA20: =IF(INDEX(campsByItinerary,numericItinerary($A20),BG$3-1)="","",VLOOKUP(INDEX(campsByItinerary,numericItinerary($A20),BG$3-1),campInfo,10)) ->  | CB20: =IF(INDEX(campsByItinerary,numericItinerary($A20),BH$3-1)="","",VLOOKUP(INDEX(campsByItinerary,numericItinerary($A20),BH$3-1),campInfo,10)) ->  | CC20: =IF(INDEX(campsByItinerary,numericItinerary($A20),BI$3-1)="","",VLOOKUP(INDEX(campsByItinerary,numericItinerary($A20),BI$3-1),campInfo,10)) ->  | CD20: =IF(INDEX(campsByItinerary,numericItinerary($A20),BJ$3-1)="","",VLOOKUP(INDEX(campsByItinerary,numericItinerary($A20),BJ$3-1),campInfo,10)) ->  | CE20: =IF(INDEX(campsByItinerary,numericItinerary($A20),BK$3-1)="","",VLOOKUP(INDEX(campsByItinerary,numericItinerary($A20),BK$3-1),campInfo,10)) ->  | CF20: =IF(INDEX(campsByItinerary,numericItinerary($A20),BL$3-1)="","",VLOOKUP(INDEX(campsByItinerary,numericItinerary($A20),BL$3-1),campInfo,10)) ->  | CG20: =IF(INDEX(campsByItinerary,numericItinerary($A20),BM$3-1)="","",VLOOKUP(INDEX(campsByItinerary,numericItinerary($A20),BM$3-1),campInfo,10)) ->  | CI20: Y | CJ20: Y | CK20: Y | CL20: Y | CM20: Y | CN20: Y | CO20: Y | CP20: Y | CQ20: Y | CR20: =INDEX(campsByItinerary,numericItinerary($A20),BD$3-1) ->  | CS20: =IF(INDEX(campsByItinerary,numericItinerary($A20),BE$3-1)="","",VLOOKUP(INDEX(campsByItinerary,numericItinerary($A20),BE$3-1),campInfo,2)) ->  | CT20: =IF(INDEX(campsByItinerary,numericItinerary($A20),BF$3-1)="","",VLOOKUP(INDEX(campsByItinerary,numericItinerary($A20),BF$3-1),campInfo,2)) ->  | CU20: =IF(INDEX(campsByItinerary,numericItinerary($A20),BG$3-1)="","",VLOOKUP(INDEX(campsByItinerary,numericItinerary($A20),BG$3-1),campInfo,2)) ->  | CV20: =IF(INDEX(campsByItinerary,numericItinerary($A20),BH$3-1)="","",VLOOKUP(INDEX(campsByItinerary,numericItinerary($A20),BH$3-1),campInfo,2)) ->  | CW20: =IF(INDEX(campsByItinerary,numericItinerary($A20),BI$3-1)="","",VLOOKUP(INDEX(campsByItinerary,numericItinerary($A20),BI$3-1),campInfo,2)) ->  | CX20: =IF(INDEX(campsByItinerary,numericItinerary($A20),BJ$3-1)="","",VLOOKUP(INDEX(campsByItinerary,numericItinerary($A20),BJ$3-1),campInfo,2)) ->  | CY20: =IF(INDEX(campsByItinerary,numericItinerary($A20),BK$3-1)="","",VLOOKUP(INDEX(campsByItinerary,numericItinerary($A20),BK$3-1),campInfo,2)) ->  | CZ20: =IF(INDEX(campsByItinerary,numericItinerary($A20),BL$3-1)="","",VLOOKUP(INDEX(campsByItinerary,numericItinerary($A20),BL$3-1),campInfo,2)) ->  | DA20: =IF(INDEX(campsByItinerary,numericItinerary($A20),BM$3-1)="","",VLOOKUP(INDEX(campsByItinerary,numericItinerary($A20),BM$3-1),campInfo,2)) ->  | DB20: =IF(INDEX(campsByItinerary,numericItinerary($A20),BD$3-1)="","",VLOOKUP(INDEX(campsByItinerary,numericItinerary($A20),BD$3-1),campInfo,12)) ->  | DC20: =IF(INDEX(campsByItinerary,numericItinerary($A20),BE$3-1)="","",VLOOKUP(INDEX(campsByItinerary,numericItinerary($A20),BE$3-1),campInfo,12)) ->  | DD20: =IF(INDEX(campsByItinerary,numericItinerary($A20),BF$3-1)="","",VLOOKUP(INDEX(campsByItinerary,numericItinerary($A20),BF$3-1),campInfo,12)) ->  | DE20: =IF(INDEX(campsByItinerary,numericItinerary($A20),BG$3-1)="","",VLOOKUP(INDEX(campsByItinerary,numericItinerary($A20),BG$3-1),campInfo,12)) ->  | DF20: =IF(INDEX(campsByItinerary,numericItinerary($A20),BH$3-1)="","",VLOOKUP(INDEX(campsByItinerary,numericItinerary($A20),BH$3-1),campInfo,12)) ->  | DG20: =IF(INDEX(campsByItinerary,numericItinerary($A20),BI$3-1)="","",VLOOKUP(INDEX(campsByItinerary,numericItinerary($A20),BI$3-1),campInfo,12)) ->  | DH20: =IF(INDEX(campsByItinerary,numericItinerary($A20),BJ$3-1)="","",VLOOKUP(INDEX(campsByItinerary,numericItinerary($A20),BJ$3-1),campInfo,12)) ->  | DI20: =IF(INDEX(campsByItinerary,numericItinerary($A20),BK$3-1)="","",VLOOKUP(INDEX(campsByItinerary,numericItinerary($A20),BK$3-1),campInfo,12)) ->  | DJ20: =IF(INDEX(campsByItinerary,numericItinerary($A20),BL$3-1)="","",VLOOKUP(INDEX(campsByItinerary,numericItinerary($A20),BL$3-1),campInfo,12)) ->  | DK20: =IF(INDEX(campsByItinerary,numericItinerary($A20),BM$3-1)="","",VLOOKUP(INDEX(campsByItinerary,numericItinerary($A20),BM$3-1),campInfo,12)) ->  | DL20: =getfoodPU("First",numericItinerary($A20)) ->  | DM20: =getfoodPU("Max",numericItinerary($A20)) -> 
BD21: =IF(INDEX(campsByItinerary,numericItinerary($A21),BD$3-1)="","",VLOOKUP(INDEX(campsByItinerary,numericItinerary($A21),BD$3-1),campInfo,8)) ->  | BE21: =IF(INDEX(campsByItinerary,numericItinerary($A21),BE$3-1)="","",VLOOKUP(INDEX(campsByItinerary,numericItinerary($A21),BE$3-1),campInfo,8)) ->  | BF21: =IF(INDEX(campsByItinerary,numericItinerary($A21),BF$3-1)="","",VLOOKUP(INDEX(campsByItinerary,numericItinerary($A21),BF$3-1),campInfo,8)) ->  | BG21: =IF(INDEX(campsByItinerary,numericItinerary($A21),BG$3-1)="","",VLOOKUP(INDEX(campsByItinerary,numericItinerary($A21),BG$3-1),campInfo,8)) ->  | BH21: =IF(INDEX(campsByItinerary,numericItinerary($A21),BH$3-1)="","",VLOOKUP(INDEX(campsByItinerary,numericItinerary($A21),BH$3-1),campInfo,8)) ->  | BI21: =IF(INDEX(campsByItinerary,numericItinerary($A21),BI$3-1)="","",VLOOKUP(INDEX(campsByItinerary,numericItinerary($A21),BI$3-1),campInfo,8)) ->  | BJ21: =IF(INDEX(campsByItinerary,numericItinerary($A21),BJ$3-1)="","",VLOOKUP(INDEX(campsByItinerary,numericItinerary($A21),BJ$3-1),campInfo,8)) ->  | BK21: =IF(INDEX(campsByItinerary,numericItinerary($A21),BK$3-1)="","",VLOOKUP(INDEX(campsByItinerary,numericItinerary($A21),BK$3-1),campInfo,8)) ->  | BL21: =IF(INDEX(campsByItinerary,numericItinerary($A21),BL$3-1)="","",VLOOKUP(INDEX(campsByItinerary,numericItinerary($A21),BL$3-1),campInfo,8)) ->  | BM21: =IF(INDEX(campsByItinerary,numericItinerary($A21),BM$3-1)="","",VLOOKUP(INDEX(campsByItinerary,numericItinerary($A21),BM$3-1),campInfo,8)) ->  | BX21: =IF(INDEX(campsByItinerary,numericItinerary($A21),BD$3-1)="","",VLOOKUP(INDEX(campsByItinerary,numericItinerary($A21),BD$3-1),campInfo,10)) ->  | BY21: =IF(INDEX(campsByItinerary,numericItinerary($A21),BE$3-1)="","",VLOOKUP(INDEX(campsByItinerary,numericItinerary($A21),BE$3-1),campInfo,10)) ->  | BZ21: =IF(INDEX(campsByItinerary,numericItinerary($A21),BF$3-1)="","",VLOOKUP(INDEX(campsByItinerary,numericItinerary($A21),BF$3-1),campInfo,10)) ->  | CA21: =IF(INDEX(campsByItinerary,numericItinerary($A21),BG$3-1)="","",VLOOKUP(INDEX(campsByItinerary,numericItinerary($A21),BG$3-1),campInfo,10)) ->  | CB21: =IF(INDEX(campsByItinerary,numericItinerary($A21),BH$3-1)="","",VLOOKUP(INDEX(campsByItinerary,numericItinerary($A21),BH$3-1),campInfo,10)) ->  | CC21: =IF(INDEX(campsByItinerary,numericItinerary($A21),BI$3-1)="","",VLOOKUP(INDEX(campsByItinerary,numericItinerary($A21),BI$3-1),campInfo,10)) ->  | CD21: =IF(INDEX(campsByItinerary,numericItinerary($A21),BJ$3-1)="","",VLOOKUP(INDEX(campsByItinerary,numericItinerary($A21),BJ$3-1),campInfo,10)) ->  | CE21: =IF(INDEX(campsByItinerary,numericItinerary($A21),BK$3-1)="","",VLOOKUP(INDEX(campsByItinerary,numericItinerary($A21),BK$3-1),campInfo,10)) ->  | CF21: =IF(INDEX(campsByItinerary,numericItinerary($A21),BL$3-1)="","",VLOOKUP(INDEX(campsByItinerary,numericItinerary($A21),BL$3-1),campInfo,10)) ->  | CG21: =IF(INDEX(campsByItinerary,numericItinerary($A21),BM$3-1)="","",VLOOKUP(INDEX(campsByItinerary,numericItinerary($A21),BM$3-1),campInfo,10)) ->  | CI21: Y | CJ21: Y | CK21: Y | CL21: Y | CM21: Y | CN21: Y | CO21: Y | CP21: Y | CQ21: Y | CR21: =INDEX(campsByItinerary,numericItinerary($A21),BD$3-1) ->  | CS21: =IF(INDEX(campsByItinerary,numericItinerary($A21),BE$3-1)="","",VLOOKUP(INDEX(campsByItinerary,numericItinerary($A21),BE$3-1),campInfo,2)) ->  | CT21: =IF(INDEX(campsByItinerary,numericItinerary($A21),BF$3-1)="","",VLOOKUP(INDEX(campsByItinerary,numericItinerary($A21),BF$3-1),campInfo,2)) ->  | CU21: =IF(INDEX(campsByItinerary,numericItinerary($A21),BG$3-1)="","",VLOOKUP(INDEX(campsByItinerary,numericItinerary($A21),BG$3-1),campInfo,2)) ->  | CV21: =IF(INDEX(campsByItinerary,numericItinerary($A21),BH$3-1)="","",VLOOKUP(INDEX(campsByItinerary,numericItinerary($A21),BH$3-1),campInfo,2)) ->  | CW21: =IF(INDEX(campsByItinerary,numericItinerary($A21),BI$3-1)="","",VLOOKUP(INDEX(campsByItinerary,numericItinerary($A21),BI$3-1),campInfo,2)) ->  | CX21: =IF(INDEX(campsByItinerary,numericItinerary($A21),BJ$3-1)="","",VLOOKUP(INDEX(campsByItinerary,numericItinerary($A21),BJ$3-1),campInfo,2)) ->  | CY21: =IF(INDEX(campsByItinerary,numericItinerary($A21),BK$3-1)="","",VLOOKUP(INDEX(campsByItinerary,numericItinerary($A21),BK$3-1),campInfo,2)) ->  | CZ21: =IF(INDEX(campsByItinerary,numericItinerary($A21),BL$3-1)="","",VLOOKUP(INDEX(campsByItinerary,numericItinerary($A21),BL$3-1),campInfo,2)) ->  | DA21: =IF(INDEX(campsByItinerary,numericItinerary($A21),BM$3-1)="","",VLOOKUP(INDEX(campsByItinerary,numericItinerary($A21),BM$3-1),campInfo,2)) ->  | DB21: =IF(INDEX(campsByItinerary,numericItinerary($A21),BD$3-1)="","",VLOOKUP(INDEX(campsByItinerary,numericItinerary($A21),BD$3-1),campInfo,12)) ->  | DC21: =IF(INDEX(campsByItinerary,numericItinerary($A21),BE$3-1)="","",VLOOKUP(INDEX(campsByItinerary,numericItinerary($A21),BE$3-1),campInfo,12)) ->  | DD21: =IF(INDEX(campsByItinerary,numericItinerary($A21),BF$3-1)="","",VLOOKUP(INDEX(campsByItinerary,numericItinerary($A21),BF$3-1),campInfo,12)) ->  | DE21: =IF(INDEX(campsByItinerary,numericItinerary($A21),BG$3-1)="","",VLOOKUP(INDEX(campsByItinerary,numericItinerary($A21),BG$3-1),campInfo,12)) ->  | DF21: =IF(INDEX(campsByItinerary,numericItinerary($A21),BH$3-1)="","",VLOOKUP(INDEX(campsByItinerary,numericItinerary($A21),BH$3-1),campInfo,12)) ->  | DG21: =IF(INDEX(campsByItinerary,numericItinerary($A21),BI$3-1)="","",VLOOKUP(INDEX(campsByItinerary,numericItinerary($A21),BI$3-1),campInfo,12)) ->  | DH21: =IF(INDEX(campsByItinerary,numericItinerary($A21),BJ$3-1)="","",VLOOKUP(INDEX(campsByItinerary,numericItinerary($A21),BJ$3-1),campInfo,12)) ->  | DI21: =IF(INDEX(campsByItinerary,numericItinerary($A21),BK$3-1)="","",VLOOKUP(INDEX(campsByItinerary,numericItinerary($A21),BK$3-1),campInfo,12)) ->  | DJ21: =IF(INDEX(campsByItinerary,numericItinerary($A21),BL$3-1)="","",VLOOKUP(INDEX(campsByItinerary,numericItinerary($A21),BL$3-1),campInfo,12)) ->  | DK21: =IF(INDEX(campsByItinerary,numericItinerary($A21),BM$3-1)="","",VLOOKUP(INDEX(campsByItinerary,numericItinerary($A21),BM$3-1),campInfo,12)) ->  | DL21: =getfoodPU("First",numericItinerary($A21)) ->  | DM21: =getfoodPU("Max",numericItinerary($A21)) -> 
BD22: =IF(INDEX(campsByItinerary,numericItinerary($A22),BD$3-1)="","",VLOOKUP(INDEX(campsByItinerary,numericItinerary($A22),BD$3-1),campInfo,8)) ->  | BE22: =IF(INDEX(campsByItinerary,numericItinerary($A22),BE$3-1)="","",VLOOKUP(INDEX(campsByItinerary,numericItinerary($A22),BE$3-1),campInfo,8)) ->  | BF22: =IF(INDEX(campsByItinerary,numericItinerary($A22),BF$3-1)="","",VLOOKUP(INDEX(campsByItinerary,numericItinerary($A22),BF$3-1),campInfo,8)) ->  | BG22: =IF(INDEX(campsByItinerary,numericItinerary($A22),BG$3-1)="","",VLOOKUP(INDEX(campsByItinerary,numericItinerary($A22),BG$3-1),campInfo,8)) ->  | BH22: =IF(INDEX(campsByItinerary,numericItinerary($A22),BH$3-1)="","",VLOOKUP(INDEX(campsByItinerary,numericItinerary($A22),BH$3-1),campInfo,8)) ->  | BI22: =IF(INDEX(campsByItinerary,numericItinerary($A22),BI$3-1)="","",VLOOKUP(INDEX(campsByItinerary,numericItinerary($A22),BI$3-1),campInfo,8)) ->  | BJ22: =IF(INDEX(campsByItinerary,numericItinerary($A22),BJ$3-1)="","",VLOOKUP(INDEX(campsByItinerary,numericItinerary($A22),BJ$3-1),campInfo,8)) ->  | BK22: =IF(INDEX(campsByItinerary,numericItinerary($A22),BK$3-1)="","",VLOOKUP(INDEX(campsByItinerary,numericItinerary($A22),BK$3-1),campInfo,8)) ->  | BL22: =IF(INDEX(campsByItinerary,numericItinerary($A22),BL$3-1)="","",VLOOKUP(INDEX(campsByItinerary,numericItinerary($A22),BL$3-1),campInfo,8)) ->  | BM22: =IF(INDEX(campsByItinerary,numericItinerary($A22),BM$3-1)="","",VLOOKUP(INDEX(campsByItinerary,numericItinerary($A22),BM$3-1),campInfo,8)) ->  | BX22: =IF(INDEX(campsByItinerary,numericItinerary($A22),BD$3-1)="","",VLOOKUP(INDEX(campsByItinerary,numericItinerary($A22),BD$3-1),campInfo,10)) ->  | BY22: =IF(INDEX(campsByItinerary,numericItinerary($A22),BE$3-1)="","",VLOOKUP(INDEX(campsByItinerary,numericItinerary($A22),BE$3-1),campInfo,10)) ->  | BZ22: =IF(INDEX(campsByItinerary,numericItinerary($A22),BF$3-1)="","",VLOOKUP(INDEX(campsByItinerary,numericItinerary($A22),BF$3-1),campInfo,10)) ->  | CA22: =IF(INDEX(campsByItinerary,numericItinerary($A22),BG$3-1)="","",VLOOKUP(INDEX(campsByItinerary,numericItinerary($A22),BG$3-1),campInfo,10)) ->  | CB22: =IF(INDEX(campsByItinerary,numericItinerary($A22),BH$3-1)="","",VLOOKUP(INDEX(campsByItinerary,numericItinerary($A22),BH$3-1),campInfo,10)) ->  | CC22: =IF(INDEX(campsByItinerary,numericItinerary($A22),BI$3-1)="","",VLOOKUP(INDEX(campsByItinerary,numericItinerary($A22),BI$3-1),campInfo,10)) ->  | CD22: =IF(INDEX(campsByItinerary,numericItinerary($A22),BJ$3-1)="","",VLOOKUP(INDEX(campsByItinerary,numericItinerary($A22),BJ$3-1),campInfo,10)) ->  | CE22: =IF(INDEX(campsByItinerary,numericItinerary($A22),BK$3-1)="","",VLOOKUP(INDEX(campsByItinerary,numericItinerary($A22),BK$3-1),campInfo,10)) ->  | CF22: =IF(INDEX(campsByItinerary,numericItinerary($A22),BL$3-1)="","",VLOOKUP(INDEX(campsByItinerary,numericItinerary($A22),BL$3-1),campInfo,10)) ->  | CG22: =IF(INDEX(campsByItinerary,numericItinerary($A22),BM$3-1)="","",VLOOKUP(INDEX(campsByItinerary,numericItinerary($A22),BM$3-1),campInfo,10)) ->  | CI22: Y | CJ22: Y | CK22: Y | CL22: Y | CM22: Y | CN22: Y | CO22: Y | CP22: Y | CQ22: Y | CR22: =INDEX(campsByItinerary,numericItinerary($A22),BD$3-1) ->  | CS22: =IF(INDEX(campsByItinerary,numericItinerary($A22),BE$3-1)="","",VLOOKUP(INDEX(campsByItinerary,numericItinerary($A22),BE$3-1),campInfo,2)) ->  | CT22: =IF(INDEX(campsByItinerary,numericItinerary($A22),BF$3-1)="","",VLOOKUP(INDEX(campsByItinerary,numericItinerary($A22),BF$3-1),campInfo,2)) ->  | CU22: =IF(INDEX(campsByItinerary,numericItinerary($A22),BG$3-1)="","",VLOOKUP(INDEX(campsByItinerary,numericItinerary($A22),BG$3-1),campInfo,2)) ->  | CV22: =IF(INDEX(campsByItinerary,numericItinerary($A22),BH$3-1)="","",VLOOKUP(INDEX(campsByItinerary,numericItinerary($A22),BH$3-1),campInfo,2)) ->  | CW22: =IF(INDEX(campsByItinerary,numericItinerary($A22),BI$3-1)="","",VLOOKUP(INDEX(campsByItinerary,numericItinerary($A22),BI$3-1),campInfo,2)) ->  | CX22: =IF(INDEX(campsByItinerary,numericItinerary($A22),BJ$3-1)="","",VLOOKUP(INDEX(campsByItinerary,numericItinerary($A22),BJ$3-1),campInfo,2)) ->  | CY22: =IF(INDEX(campsByItinerary,numericItinerary($A22),BK$3-1)="","",VLOOKUP(INDEX(campsByItinerary,numericItinerary($A22),BK$3-1),campInfo,2)) ->  | CZ22: =IF(INDEX(campsByItinerary,numericItinerary($A22),BL$3-1)="","",VLOOKUP(INDEX(campsByItinerary,numericItinerary($A22),BL$3-1),campInfo,2)) ->  | DA22: =IF(INDEX(campsByItinerary,numericItinerary($A22),BM$3-1)="","",VLOOKUP(INDEX(campsByItinerary,numericItinerary($A22),BM$3-1),campInfo,2)) ->  | DB22: =IF(INDEX(campsByItinerary,numericItinerary($A22),BD$3-1)="","",VLOOKUP(INDEX(campsByItinerary,numericItinerary($A22),BD$3-1),campInfo,12)) ->  | DC22: =IF(INDEX(campsByItinerary,numericItinerary($A22),BE$3-1)="","",VLOOKUP(INDEX(campsByItinerary,numericItinerary($A22),BE$3-1),campInfo,12)) ->  | DD22: =IF(INDEX(campsByItinerary,numericItinerary($A22),BF$3-1)="","",VLOOKUP(INDEX(campsByItinerary,numericItinerary($A22),BF$3-1),campInfo,12)) ->  | DE22: =IF(INDEX(campsByItinerary,numericItinerary($A22),BG$3-1)="","",VLOOKUP(INDEX(campsByItinerary,numericItinerary($A22),BG$3-1),campInfo,12)) ->  | DF22: =IF(INDEX(campsByItinerary,numericItinerary($A22),BH$3-1)="","",VLOOKUP(INDEX(campsByItinerary,numericItinerary($A22),BH$3-1),campInfo,12)) ->  | DG22: =IF(INDEX(campsByItinerary,numericItinerary($A22),BI$3-1)="","",VLOOKUP(INDEX(campsByItinerary,numericItinerary($A22),BI$3-1),campInfo,12)) ->  | DH22: =IF(INDEX(campsByItinerary,numericItinerary($A22),BJ$3-1)="","",VLOOKUP(INDEX(campsByItinerary,numericItinerary($A22),BJ$3-1),campInfo,12)) ->  | DI22: =IF(INDEX(campsByItinerary,numericItinerary($A22),BK$3-1)="","",VLOOKUP(INDEX(campsByItinerary,numericItinerary($A22),BK$3-1),campInfo,12)) ->  | DJ22: =IF(INDEX(campsByItinerary,numericItinerary($A22),BL$3-1)="","",VLOOKUP(INDEX(campsByItinerary,numericItinerary($A22),BL$3-1),campInfo,12)) ->  | DK22: =IF(INDEX(campsByItinerary,numericItinerary($A22),BM$3-1)="","",VLOOKUP(INDEX(campsByItinerary,numericItinerary($A22),BM$3-1),campInfo,12)) ->  | DL22: =getfoodPU("First",numericItinerary($A22)) ->  | DM22: =getfoodPU("Max",numericItinerary($A22)) -> 
BD23: =IF(INDEX(campsByItinerary,numericItinerary($A23),BD$3-1)="","",VLOOKUP(INDEX(campsByItinerary,numericItinerary($A23),BD$3-1),campInfo,8)) ->  | BE23: =IF(INDEX(campsByItinerary,numericItinerary($A23),BE$3-1)="","",VLOOKUP(INDEX(campsByItinerary,numericItinerary($A23),BE$3-1),campInfo,8)) ->  | BF23: =IF(INDEX(campsByItinerary,numericItinerary($A23),BF$3-1)="","",VLOOKUP(INDEX(campsByItinerary,numericItinerary($A23),BF$3-1),campInfo,8)) ->  | BG23: =IF(INDEX(campsByItinerary,numericItinerary($A23),BG$3-1)="","",VLOOKUP(INDEX(campsByItinerary,numericItinerary($A23),BG$3-1),campInfo,8)) ->  | BH23: =IF(INDEX(campsByItinerary,numericItinerary($A23),BH$3-1)="","",VLOOKUP(INDEX(campsByItinerary,numericItinerary($A23),BH$3-1),campInfo,8)) ->  | BI23: =IF(INDEX(campsByItinerary,numericItinerary($A23),BI$3-1)="","",VLOOKUP(INDEX(campsByItinerary,numericItinerary($A23),BI$3-1),campInfo,8)) ->  | BJ23: =IF(INDEX(campsByItinerary,numericItinerary($A23),BJ$3-1)="","",VLOOKUP(INDEX(campsByItinerary,numericItinerary($A23),BJ$3-1),campInfo,8)) ->  | BK23: =IF(INDEX(campsByItinerary,numericItinerary($A23),BK$3-1)="","",VLOOKUP(INDEX(campsByItinerary,numericItinerary($A23),BK$3-1),campInfo,8)) ->  | BL23: =IF(INDEX(campsByItinerary,numericItinerary($A23),BL$3-1)="","",VLOOKUP(INDEX(campsByItinerary,numericItinerary($A23),BL$3-1),campInfo,8)) ->  | BM23: =IF(INDEX(campsByItinerary,numericItinerary($A23),BM$3-1)="","",VLOOKUP(INDEX(campsByItinerary,numericItinerary($A23),BM$3-1),campInfo,8)) ->  | BX23: =IF(INDEX(campsByItinerary,numericItinerary($A23),BD$3-1)="","",VLOOKUP(INDEX(campsByItinerary,numericItinerary($A23),BD$3-1),campInfo,10)) ->  | BY23: =IF(INDEX(campsByItinerary,numericItinerary($A23),BE$3-1)="","",VLOOKUP(INDEX(campsByItinerary,numericItinerary($A23),BE$3-1),campInfo,10)) ->  | BZ23: =IF(INDEX(campsByItinerary,numericItinerary($A23),BF$3-1)="","",VLOOKUP(INDEX(campsByItinerary,numericItinerary($A23),BF$3-1),campInfo,10)) ->  | CA23: =IF(INDEX(campsByItinerary,numericItinerary($A23),BG$3-1)="","",VLOOKUP(INDEX(campsByItinerary,numericItinerary($A23),BG$3-1),campInfo,10)) ->  | CB23: =IF(INDEX(campsByItinerary,numericItinerary($A23),BH$3-1)="","",VLOOKUP(INDEX(campsByItinerary,numericItinerary($A23),BH$3-1),campInfo,10)) ->  | CC23: =IF(INDEX(campsByItinerary,numericItinerary($A23),BI$3-1)="","",VLOOKUP(INDEX(campsByItinerary,numericItinerary($A23),BI$3-1),campInfo,10)) ->  | CD23: =IF(INDEX(campsByItinerary,numericItinerary($A23),BJ$3-1)="","",VLOOKUP(INDEX(campsByItinerary,numericItinerary($A23),BJ$3-1),campInfo,10)) ->  | CE23: =IF(INDEX(campsByItinerary,numericItinerary($A23),BK$3-1)="","",VLOOKUP(INDEX(campsByItinerary,numericItinerary($A23),BK$3-1),campInfo,10)) ->  | CF23: =IF(INDEX(campsByItinerary,numericItinerary($A23),BL$3-1)="","",VLOOKUP(INDEX(campsByItinerary,numericItinerary($A23),BL$3-1),campInfo,10)) ->  | CG23: =IF(INDEX(campsByItinerary,numericItinerary($A23),BM$3-1)="","",VLOOKUP(INDEX(campsByItinerary,numericItinerary($A23),BM$3-1),campInfo,10)) ->  | CI23: Y | CJ23: Y | CK23: Y | CL23: Y | CM23: Y | CN23: Y | CO23: Y | CP23: Y | CQ23: Y | CR23: =INDEX(campsByItinerary,numericItinerary($A23),BD$3-1) ->  | CS23: =IF(INDEX(campsByItinerary,numericItinerary($A23),BE$3-1)="","",VLOOKUP(INDEX(campsByItinerary,numericItinerary($A23),BE$3-1),campInfo,2)) ->  | CT23: =IF(INDEX(campsByItinerary,numericItinerary($A23),BF$3-1)="","",VLOOKUP(INDEX(campsByItinerary,numericItinerary($A23),BF$3-1),campInfo,2)) ->  | CU23: =IF(INDEX(campsByItinerary,numericItinerary($A23),BG$3-1)="","",VLOOKUP(INDEX(campsByItinerary,numericItinerary($A23),BG$3-1),campInfo,2)) ->  | CV23: =IF(INDEX(campsByItinerary,numericItinerary($A23),BH$3-1)="","",VLOOKUP(INDEX(campsByItinerary,numericItinerary($A23),BH$3-1),campInfo,2)) ->  | CW23: =IF(INDEX(campsByItinerary,numericItinerary($A23),BI$3-1)="","",VLOOKUP(INDEX(campsByItinerary,numericItinerary($A23),BI$3-1),campInfo,2)) ->  | CX23: =IF(INDEX(campsByItinerary,numericItinerary($A23),BJ$3-1)="","",VLOOKUP(INDEX(campsByItinerary,numericItinerary($A23),BJ$3-1),campInfo,2)) ->  | CY23: =IF(INDEX(campsByItinerary,numericItinerary($A23),BK$3-1)="","",VLOOKUP(INDEX(campsByItinerary,numericItinerary($A23),BK$3-1),campInfo,2)) ->  | CZ23: =IF(INDEX(campsByItinerary,numericItinerary($A23),BL$3-1)="","",VLOOKUP(INDEX(campsByItinerary,numericItinerary($A23),BL$3-1),campInfo,2)) ->  | DA23: =IF(INDEX(campsByItinerary,numericItinerary($A23),BM$3-1)="","",VLOOKUP(INDEX(campsByItinerary,numericItinerary($A23),BM$3-1),campInfo,2)) ->  | DB23: =IF(INDEX(campsByItinerary,numericItinerary($A23),BD$3-1)="","",VLOOKUP(INDEX(campsByItinerary,numericItinerary($A23),BD$3-1),campInfo,12)) ->  | DC23: =IF(INDEX(campsByItinerary,numericItinerary($A23),BE$3-1)="","",VLOOKUP(INDEX(campsByItinerary,numericItinerary($A23),BE$3-1),campInfo,12)) ->  | DD23: =IF(INDEX(campsByItinerary,numericItinerary($A23),BF$3-1)="","",VLOOKUP(INDEX(campsByItinerary,numericItinerary($A23),BF$3-1),campInfo,12)) ->  | DE23: =IF(INDEX(campsByItinerary,numericItinerary($A23),BG$3-1)="","",VLOOKUP(INDEX(campsByItinerary,numericItinerary($A23),BG$3-1),campInfo,12)) ->  | DF23: =IF(INDEX(campsByItinerary,numericItinerary($A23),BH$3-1)="","",VLOOKUP(INDEX(campsByItinerary,numericItinerary($A23),BH$3-1),campInfo,12)) ->  | DG23: =IF(INDEX(campsByItinerary,numericItinerary($A23),BI$3-1)="","",VLOOKUP(INDEX(campsByItinerary,numericItinerary($A23),BI$3-1),campInfo,12)) ->  | DH23: =IF(INDEX(campsByItinerary,numericItinerary($A23),BJ$3-1)="","",VLOOKUP(INDEX(campsByItinerary,numericItinerary($A23),BJ$3-1),campInfo,12)) ->  | DI23: =IF(INDEX(campsByItinerary,numericItinerary($A23),BK$3-1)="","",VLOOKUP(INDEX(campsByItinerary,numericItinerary($A23),BK$3-1),campInfo,12)) ->  | DJ23: =IF(INDEX(campsByItinerary,numericItinerary($A23),BL$3-1)="","",VLOOKUP(INDEX(campsByItinerary,numericItinerary($A23),BL$3-1),campInfo,12)) ->  | DK23: =IF(INDEX(campsByItinerary,numericItinerary($A23),BM$3-1)="","",VLOOKUP(INDEX(campsByItinerary,numericItinerary($A23),BM$3-1),campInfo,12)) ->  | DL23: =getfoodPU("First",numericItinerary($A23)) ->  | DM23: =getfoodPU("Max",numericItinerary($A23)) -> 
BD24: =IF(INDEX(campsByItinerary,numericItinerary($A24),BD$3-1)="","",VLOOKUP(INDEX(campsByItinerary,numericItinerary($A24),BD$3-1),campInfo,8)) ->  | BE24: =IF(INDEX(campsByItinerary,numericItinerary($A24),BE$3-1)="","",VLOOKUP(INDEX(campsByItinerary,numericItinerary($A24),BE$3-1),campInfo,8)) ->  | BF24: =IF(INDEX(campsByItinerary,numericItinerary($A24),BF$3-1)="","",VLOOKUP(INDEX(campsByItinerary,numericItinerary($A24),BF$3-1),campInfo,8)) ->  | BG24: =IF(INDEX(campsByItinerary,numericItinerary($A24),BG$3-1)="","",VLOOKUP(INDEX(campsByItinerary,numericItinerary($A24),BG$3-1),campInfo,8)) ->  | BH24: =IF(INDEX(campsByItinerary,numericItinerary($A24),BH$3-1)="","",VLOOKUP(INDEX(campsByItinerary,numericItinerary($A24),BH$3-1),campInfo,8)) ->  | BI24: =IF(INDEX(campsByItinerary,numericItinerary($A24),BI$3-1)="","",VLOOKUP(INDEX(campsByItinerary,numericItinerary($A24),BI$3-1),campInfo,8)) ->  | BJ24: =IF(INDEX(campsByItinerary,numericItinerary($A24),BJ$3-1)="","",VLOOKUP(INDEX(campsByItinerary,numericItinerary($A24),BJ$3-1),campInfo,8)) ->  | BK24: =IF(INDEX(campsByItinerary,numericItinerary($A24),BK$3-1)="","",VLOOKUP(INDEX(campsByItinerary,numericItinerary($A24),BK$3-1),campInfo,8)) ->  | BL24: =IF(INDEX(campsByItinerary,numericItinerary($A24),BL$3-1)="","",VLOOKUP(INDEX(campsByItinerary,numericItinerary($A24),BL$3-1),campInfo,8)) ->  | BM24: =IF(INDEX(campsByItinerary,numericItinerary($A24),BM$3-1)="","",VLOOKUP(INDEX(campsByItinerary,numericItinerary($A24),BM$3-1),campInfo,8)) ->  | BX24: =IF(INDEX(campsByItinerary,numericItinerary($A24),BD$3-1)="","",VLOOKUP(INDEX(campsByItinerary,numericItinerary($A24),BD$3-1),campInfo,10)) ->  | BY24: =IF(INDEX(campsByItinerary,numericItinerary($A24),BE$3-1)="","",VLOOKUP(INDEX(campsByItinerary,numericItinerary($A24),BE$3-1),campInfo,10)) ->  | BZ24: =IF(INDEX(campsByItinerary,numericItinerary($A24),BF$3-1)="","",VLOOKUP(INDEX(campsByItinerary,numericItinerary($A24),BF$3-1),campInfo,10)) ->  | CA24: =IF(INDEX(campsByItinerary,numericItinerary($A24),BG$3-1)="","",VLOOKUP(INDEX(campsByItinerary,numericItinerary($A24),BG$3-1),campInfo,10)) ->  | CB24: =IF(INDEX(campsByItinerary,numericItinerary($A24),BH$3-1)="","",VLOOKUP(INDEX(campsByItinerary,numericItinerary($A24),BH$3-1),campInfo,10)) ->  | CC24: =IF(INDEX(campsByItinerary,numericItinerary($A24),BI$3-1)="","",VLOOKUP(INDEX(campsByItinerary,numericItinerary($A24),BI$3-1),campInfo,10)) ->  | CD24: =IF(INDEX(campsByItinerary,numericItinerary($A24),BJ$3-1)="","",VLOOKUP(INDEX(campsByItinerary,numericItinerary($A24),BJ$3-1),campInfo,10)) ->  | CE24: =IF(INDEX(campsByItinerary,numericItinerary($A24),BK$3-1)="","",VLOOKUP(INDEX(campsByItinerary,numericItinerary($A24),BK$3-1),campInfo,10)) ->  | CF24: =IF(INDEX(campsByItinerary,numericItinerary($A24),BL$3-1)="","",VLOOKUP(INDEX(campsByItinerary,numericItinerary($A24),BL$3-1),campInfo,10)) ->  | CG24: =IF(INDEX(campsByItinerary,numericItinerary($A24),BM$3-1)="","",VLOOKUP(INDEX(campsByItinerary,numericItinerary($A24),BM$3-1),campInfo,10)) ->  | CI24: Y | CJ24: Y | CK24: Y | CL24: Y | CM24: Y | CN24: Y | CO24: Y | CP24: Y | CQ24: Y | CR24: =INDEX(campsByItinerary,numericItinerary($A24),BD$3-1) ->  | CS24: =IF(INDEX(campsByItinerary,numericItinerary($A24),BE$3-1)="","",VLOOKUP(INDEX(campsByItinerary,numericItinerary($A24),BE$3-1),campInfo,2)) ->  | CT24: =IF(INDEX(campsByItinerary,numericItinerary($A24),BF$3-1)="","",VLOOKUP(INDEX(campsByItinerary,numericItinerary($A24),BF$3-1),campInfo,2)) ->  | CU24: =IF(INDEX(campsByItinerary,numericItinerary($A24),BG$3-1)="","",VLOOKUP(INDEX(campsByItinerary,numericItinerary($A24),BG$3-1),campInfo,2)) ->  | CV24: =IF(INDEX(campsByItinerary,numericItinerary($A24),BH$3-1)="","",VLOOKUP(INDEX(campsByItinerary,numericItinerary($A24),BH$3-1),campInfo,2)) ->  | CW24: =IF(INDEX(campsByItinerary,numericItinerary($A24),BI$3-1)="","",VLOOKUP(INDEX(campsByItinerary,numericItinerary($A24),BI$3-1),campInfo,2)) ->  | CX24: =IF(INDEX(campsByItinerary,numericItinerary($A24),BJ$3-1)="","",VLOOKUP(INDEX(campsByItinerary,numericItinerary($A24),BJ$3-1),campInfo,2)) ->  | CY24: =IF(INDEX(campsByItinerary,numericItinerary($A24),BK$3-1)="","",VLOOKUP(INDEX(campsByItinerary,numericItinerary($A24),BK$3-1),campInfo,2)) ->  | CZ24: =IF(INDEX(campsByItinerary,numericItinerary($A24),BL$3-1)="","",VLOOKUP(INDEX(campsByItinerary,numericItinerary($A24),BL$3-1),campInfo,2)) ->  | DA24: =IF(INDEX(campsByItinerary,numericItinerary($A24),BM$3-1)="","",VLOOKUP(INDEX(campsByItinerary,numericItinerary($A24),BM$3-1),campInfo,2)) ->  | DB24: =IF(INDEX(campsByItinerary,numericItinerary($A24),BD$3-1)="","",VLOOKUP(INDEX(campsByItinerary,numericItinerary($A24),BD$3-1),campInfo,12)) ->  | DC24: =IF(INDEX(campsByItinerary,numericItinerary($A24),BE$3-1)="","",VLOOKUP(INDEX(campsByItinerary,numericItinerary($A24),BE$3-1),campInfo,12)) ->  | DD24: =IF(INDEX(campsByItinerary,numericItinerary($A24),BF$3-1)="","",VLOOKUP(INDEX(campsByItinerary,numericItinerary($A24),BF$3-1),campInfo,12)) ->  | DE24: =IF(INDEX(campsByItinerary,numericItinerary($A24),BG$3-1)="","",VLOOKUP(INDEX(campsByItinerary,numericItinerary($A24),BG$3-1),campInfo,12)) ->  | DF24: =IF(INDEX(campsByItinerary,numericItinerary($A24),BH$3-1)="","",VLOOKUP(INDEX(campsByItinerary,numericItinerary($A24),BH$3-1),campInfo,12)) ->  | DG24: =IF(INDEX(campsByItinerary,numericItinerary($A24),BI$3-1)="","",VLOOKUP(INDEX(campsByItinerary,numericItinerary($A24),BI$3-1),campInfo,12)) ->  | DH24: =IF(INDEX(campsByItinerary,numericItinerary($A24),BJ$3-1)="","",VLOOKUP(INDEX(campsByItinerary,numericItinerary($A24),BJ$3-1),campInfo,12)) ->  | DI24: =IF(INDEX(campsByItinerary,numericItinerary($A24),BK$3-1)="","",VLOOKUP(INDEX(campsByItinerary,numericItinerary($A24),BK$3-1),campInfo,12)) ->  | DJ24: =IF(INDEX(campsByItinerary,numericItinerary($A24),BL$3-1)="","",VLOOKUP(INDEX(campsByItinerary,numericItinerary($A24),BL$3-1),campInfo,12)) ->  | DK24: =IF(INDEX(campsByItinerary,numericItinerary($A24),BM$3-1)="","",VLOOKUP(INDEX(campsByItinerary,numericItinerary($A24),BM$3-1),campInfo,12)) ->  | DL24: =getfoodPU("First",numericItinerary($A24)) ->  | DM24: =getfoodPU("Max",numericItinerary($A24)) -> 
BD25: =IF(INDEX(campsByItinerary,numericItinerary($A25),BD$3-1)="","",VLOOKUP(INDEX(campsByItinerary,numericItinerary($A25),BD$3-1),campInfo,8)) ->  | BE25: =IF(INDEX(campsByItinerary,numericItinerary($A25),BE$3-1)="","",VLOOKUP(INDEX(campsByItinerary,numericItinerary($A25),BE$3-1),campInfo,8)) ->  | BF25: =IF(INDEX(campsByItinerary,numericItinerary($A25),BF$3-1)="","",VLOOKUP(INDEX(campsByItinerary,numericItinerary($A25),BF$3-1),campInfo,8)) ->  | BG25: =IF(INDEX(campsByItinerary,numericItinerary($A25),BG$3-1)="","",VLOOKUP(INDEX(campsByItinerary,numericItinerary($A25),BG$3-1),campInfo,8)) ->  | BH25: =IF(INDEX(campsByItinerary,numericItinerary($A25),BH$3-1)="","",VLOOKUP(INDEX(campsByItinerary,numericItinerary($A25),BH$3-1),campInfo,8)) ->  | BI25: =IF(INDEX(campsByItinerary,numericItinerary($A25),BI$3-1)="","",VLOOKUP(INDEX(campsByItinerary,numericItinerary($A25),BI$3-1),campInfo,8)) ->  | BJ25: =IF(INDEX(campsByItinerary,numericItinerary($A25),BJ$3-1)="","",VLOOKUP(INDEX(campsByItinerary,numericItinerary($A25),BJ$3-1),campInfo,8)) ->  | BK25: =IF(INDEX(campsByItinerary,numericItinerary($A25),BK$3-1)="","",VLOOKUP(INDEX(campsByItinerary,numericItinerary($A25),BK$3-1),campInfo,8)) ->  | BL25: =IF(INDEX(campsByItinerary,numericItinerary($A25),BL$3-1)="","",VLOOKUP(INDEX(campsByItinerary,numericItinerary($A25),BL$3-1),campInfo,8)) ->  | BM25: =IF(INDEX(campsByItinerary,numericItinerary($A25),BM$3-1)="","",VLOOKUP(INDEX(campsByItinerary,numericItinerary($A25),BM$3-1),campInfo,8)) ->  | BX25: =IF(INDEX(campsByItinerary,numericItinerary($A25),BD$3-1)="","",VLOOKUP(INDEX(campsByItinerary,numericItinerary($A25),BD$3-1),campInfo,10)) ->  | BY25: =IF(INDEX(campsByItinerary,numericItinerary($A25),BE$3-1)="","",VLOOKUP(INDEX(campsByItinerary,numericItinerary($A25),BE$3-1),campInfo,10)) ->  | BZ25: =IF(INDEX(campsByItinerary,numericItinerary($A25),BF$3-1)="","",VLOOKUP(INDEX(campsByItinerary,numericItinerary($A25),BF$3-1),campInfo,10)) ->  | CA25: =IF(INDEX(campsByItinerary,numericItinerary($A25),BG$3-1)="","",VLOOKUP(INDEX(campsByItinerary,numericItinerary($A25),BG$3-1),campInfo,10)) ->  | CB25: =IF(INDEX(campsByItinerary,numericItinerary($A25),BH$3-1)="","",VLOOKUP(INDEX(campsByItinerary,numericItinerary($A25),BH$3-1),campInfo,10)) ->  | CC25: =IF(INDEX(campsByItinerary,numericItinerary($A25),BI$3-1)="","",VLOOKUP(INDEX(campsByItinerary,numericItinerary($A25),BI$3-1),campInfo,10)) ->  | CD25: =IF(INDEX(campsByItinerary,numericItinerary($A25),BJ$3-1)="","",VLOOKUP(INDEX(campsByItinerary,numericItinerary($A25),BJ$3-1),campInfo,10)) ->  | CE25: =IF(INDEX(campsByItinerary,numericItinerary($A25),BK$3-1)="","",VLOOKUP(INDEX(campsByItinerary,numericItinerary($A25),BK$3-1),campInfo,10)) ->  | CF25: =IF(INDEX(campsByItinerary,numericItinerary($A25),BL$3-1)="","",VLOOKUP(INDEX(campsByItinerary,numericItinerary($A25),BL$3-1),campInfo,10)) ->  | CG25: =IF(INDEX(campsByItinerary,numericItinerary($A25),BM$3-1)="","",VLOOKUP(INDEX(campsByItinerary,numericItinerary($A25),BM$3-1),campInfo,10)) ->  | CI25: Y | CJ25: Y | CK25: Y | CL25: Y | CM25: Y | CN25: Y | CO25: Y | CP25: Y | CQ25: Y | CR25: =INDEX(campsByItinerary,numericItinerary($A25),BD$3-1) ->  | CS25: =IF(INDEX(campsByItinerary,numericItinerary($A25),BE$3-1)="","",VLOOKUP(INDEX(campsByItinerary,numericItinerary($A25),BE$3-1),campInfo,2)) ->  | CT25: =IF(INDEX(campsByItinerary,numericItinerary($A25),BF$3-1)="","",VLOOKUP(INDEX(campsByItinerary,numericItinerary($A25),BF$3-1),campInfo,2)) ->  | CU25: =IF(INDEX(campsByItinerary,numericItinerary($A25),BG$3-1)="","",VLOOKUP(INDEX(campsByItinerary,numericItinerary($A25),BG$3-1),campInfo,2)) ->  | CV25: =IF(INDEX(campsByItinerary,numericItinerary($A25),BH$3-1)="","",VLOOKUP(INDEX(campsByItinerary,numericItinerary($A25),BH$3-1),campInfo,2)) ->  | CW25: =IF(INDEX(campsByItinerary,numericItinerary($A25),BI$3-1)="","",VLOOKUP(INDEX(campsByItinerary,numericItinerary($A25),BI$3-1),campInfo,2)) ->  | CX25: =IF(INDEX(campsByItinerary,numericItinerary($A25),BJ$3-1)="","",VLOOKUP(INDEX(campsByItinerary,numericItinerary($A25),BJ$3-1),campInfo,2)) ->  | CY25: =IF(INDEX(campsByItinerary,numericItinerary($A25),BK$3-1)="","",VLOOKUP(INDEX(campsByItinerary,numericItinerary($A25),BK$3-1),campInfo,2)) ->  | CZ25: =IF(INDEX(campsByItinerary,numericItinerary($A25),BL$3-1)="","",VLOOKUP(INDEX(campsByItinerary,numericItinerary($A25),BL$3-1),campInfo,2)) ->  | DA25: =IF(INDEX(campsByItinerary,numericItinerary($A25),BM$3-1)="","",VLOOKUP(INDEX(campsByItinerary,numericItinerary($A25),BM$3-1),campInfo,2)) ->  | DB25: =IF(INDEX(campsByItinerary,numericItinerary($A25),BD$3-1)="","",VLOOKUP(INDEX(campsByItinerary,numericItinerary($A25),BD$3-1),campInfo,12)) ->  | DC25: =IF(INDEX(campsByItinerary,numericItinerary($A25),BE$3-1)="","",VLOOKUP(INDEX(campsByItinerary,numericItinerary($A25),BE$3-1),campInfo,12)) ->  | DD25: =IF(INDEX(campsByItinerary,numericItinerary($A25),BF$3-1)="","",VLOOKUP(INDEX(campsByItinerary,numericItinerary($A25),BF$3-1),campInfo,12)) ->  | DE25: =IF(INDEX(campsByItinerary,numericItinerary($A25),BG$3-1)="","",VLOOKUP(INDEX(campsByItinerary,numericItinerary($A25),BG$3-1),campInfo,12)) ->  | DF25: =IF(INDEX(campsByItinerary,numericItinerary($A25),BH$3-1)="","",VLOOKUP(INDEX(campsByItinerary,numericItinerary($A25),BH$3-1),campInfo,12)) ->  | DG25: =IF(INDEX(campsByItinerary,numericItinerary($A25),BI$3-1)="","",VLOOKUP(INDEX(campsByItinerary,numericItinerary($A25),BI$3-1),campInfo,12)) ->  | DH25: =IF(INDEX(campsByItinerary,numericItinerary($A25),BJ$3-1)="","",VLOOKUP(INDEX(campsByItinerary,numericItinerary($A25),BJ$3-1),campInfo,12)) ->  | DI25: =IF(INDEX(campsByItinerary,numericItinerary($A25),BK$3-1)="","",VLOOKUP(INDEX(campsByItinerary,numericItinerary($A25),BK$3-1),campInfo,12)) ->  | DJ25: =IF(INDEX(campsByItinerary,numericItinerary($A25),BL$3-1)="","",VLOOKUP(INDEX(campsByItinerary,numericItinerary($A25),BL$3-1),campInfo,12)) ->  | DK25: =IF(INDEX(campsByItinerary,numericItinerary($A25),BM$3-1)="","",VLOOKUP(INDEX(campsByItinerary,numericItinerary($A25),BM$3-1),campInfo,12)) ->  | DL25: =getfoodPU("First",numericItinerary($A25)) ->  | DM25: =getfoodPU("Max",numericItinerary($A25)) -> 
BD26: =IF(INDEX(campsByItinerary,numericItinerary($A26),BD$3-1)="","",VLOOKUP(INDEX(campsByItinerary,numericItinerary($A26),BD$3-1),campInfo,8)) ->  | BE26: =IF(INDEX(campsByItinerary,numericItinerary($A26),BE$3-1)="","",VLOOKUP(INDEX(campsByItinerary,numericItinerary($A26),BE$3-1),campInfo,8)) ->  | BF26: =IF(INDEX(campsByItinerary,numericItinerary($A26),BF$3-1)="","",VLOOKUP(INDEX(campsByItinerary,numericItinerary($A26),BF$3-1),campInfo,8)) ->  | BG26: =IF(INDEX(campsByItinerary,numericItinerary($A26),BG$3-1)="","",VLOOKUP(INDEX(campsByItinerary,numericItinerary($A26),BG$3-1),campInfo,8)) ->  | BH26: =IF(INDEX(campsByItinerary,numericItinerary($A26),BH$3-1)="","",VLOOKUP(INDEX(campsByItinerary,numericItinerary($A26),BH$3-1),campInfo,8)) ->  | BI26: =IF(INDEX(campsByItinerary,numericItinerary($A26),BI$3-1)="","",VLOOKUP(INDEX(campsByItinerary,numericItinerary($A26),BI$3-1),campInfo,8)) ->  | BJ26: =IF(INDEX(campsByItinerary,numericItinerary($A26),BJ$3-1)="","",VLOOKUP(INDEX(campsByItinerary,numericItinerary($A26),BJ$3-1),campInfo,8)) ->  | BK26: =IF(INDEX(campsByItinerary,numericItinerary($A26),BK$3-1)="","",VLOOKUP(INDEX(campsByItinerary,numericItinerary($A26),BK$3-1),campInfo,8)) ->  | BL26: =IF(INDEX(campsByItinerary,numericItinerary($A26),BL$3-1)="","",VLOOKUP(INDEX(campsByItinerary,numericItinerary($A26),BL$3-1),campInfo,8)) ->  | BM26: =IF(INDEX(campsByItinerary,numericItinerary($A26),BM$3-1)="","",VLOOKUP(INDEX(campsByItinerary,numericItinerary($A26),BM$3-1),campInfo,8)) ->  | BX26: =IF(INDEX(campsByItinerary,numericItinerary($A26),BD$3-1)="","",VLOOKUP(INDEX(campsByItinerary,numericItinerary($A26),BD$3-1),campInfo,10)) ->  | BY26: =IF(INDEX(campsByItinerary,numericItinerary($A26),BE$3-1)="","",VLOOKUP(INDEX(campsByItinerary,numericItinerary($A26),BE$3-1),campInfo,10)) ->  | BZ26: =IF(INDEX(campsByItinerary,numericItinerary($A26),BF$3-1)="","",VLOOKUP(INDEX(campsByItinerary,numericItinerary($A26),BF$3-1),campInfo,10)) ->  | CA26: =IF(INDEX(campsByItinerary,numericItinerary($A26),BG$3-1)="","",VLOOKUP(INDEX(campsByItinerary,numericItinerary($A26),BG$3-1),campInfo,10)) ->  | CB26: =IF(INDEX(campsByItinerary,numericItinerary($A26),BH$3-1)="","",VLOOKUP(INDEX(campsByItinerary,numericItinerary($A26),BH$3-1),campInfo,10)) ->  | CC26: =IF(INDEX(campsByItinerary,numericItinerary($A26),BI$3-1)="","",VLOOKUP(INDEX(campsByItinerary,numericItinerary($A26),BI$3-1),campInfo,10)) ->  | CD26: =IF(INDEX(campsByItinerary,numericItinerary($A26),BJ$3-1)="","",VLOOKUP(INDEX(campsByItinerary,numericItinerary($A26),BJ$3-1),campInfo,10)) ->  | CE26: =IF(INDEX(campsByItinerary,numericItinerary($A26),BK$3-1)="","",VLOOKUP(INDEX(campsByItinerary,numericItinerary($A26),BK$3-1),campInfo,10)) ->  | CF26: =IF(INDEX(campsByItinerary,numericItinerary($A26),BL$3-1)="","",VLOOKUP(INDEX(campsByItinerary,numericItinerary($A26),BL$3-1),campInfo,10)) ->  | CG26: =IF(INDEX(campsByItinerary,numericItinerary($A26),BM$3-1)="","",VLOOKUP(INDEX(campsByItinerary,numericItinerary($A26),BM$3-1),campInfo,10)) ->  | CI26: Y | CJ26: Y | CK26: Y | CL26: Y | CM26: Y | CN26: Y | CO26: Y | CP26: Y | CQ26: Y | CR26: =INDEX(campsByItinerary,numericItinerary($A26),BD$3-1) ->  | CS26: =IF(INDEX(campsByItinerary,numericItinerary($A26),BE$3-1)="","",VLOOKUP(INDEX(campsByItinerary,numericItinerary($A26),BE$3-1),campInfo,2)) ->  | CT26: =IF(INDEX(campsByItinerary,numericItinerary($A26),BF$3-1)="","",VLOOKUP(INDEX(campsByItinerary,numericItinerary($A26),BF$3-1),campInfo,2)) ->  | CU26: =IF(INDEX(campsByItinerary,numericItinerary($A26),BG$3-1)="","",VLOOKUP(INDEX(campsByItinerary,numericItinerary($A26),BG$3-1),campInfo,2)) ->  | CV26: =IF(INDEX(campsByItinerary,numericItinerary($A26),BH$3-1)="","",VLOOKUP(INDEX(campsByItinerary,numericItinerary($A26),BH$3-1),campInfo,2)) ->  | CW26: =IF(INDEX(campsByItinerary,numericItinerary($A26),BI$3-1)="","",VLOOKUP(INDEX(campsByItinerary,numericItinerary($A26),BI$3-1),campInfo,2)) ->  | CX26: =IF(INDEX(campsByItinerary,numericItinerary($A26),BJ$3-1)="","",VLOOKUP(INDEX(campsByItinerary,numericItinerary($A26),BJ$3-1),campInfo,2)) ->  | CY26: =IF(INDEX(campsByItinerary,numericItinerary($A26),BK$3-1)="","",VLOOKUP(INDEX(campsByItinerary,numericItinerary($A26),BK$3-1),campInfo,2)) ->  | CZ26: =IF(INDEX(campsByItinerary,numericItinerary($A26),BL$3-1)="","",VLOOKUP(INDEX(campsByItinerary,numericItinerary($A26),BL$3-1),campInfo,2)) ->  | DA26: =IF(INDEX(campsByItinerary,numericItinerary($A26),BM$3-1)="","",VLOOKUP(INDEX(campsByItinerary,numericItinerary($A26),BM$3-1),campInfo,2)) ->  | DB26: =IF(INDEX(campsByItinerary,numericItinerary($A26),BD$3-1)="","",VLOOKUP(INDEX(campsByItinerary,numericItinerary($A26),BD$3-1),campInfo,12)) ->  | DC26: =IF(INDEX(campsByItinerary,numericItinerary($A26),BE$3-1)="","",VLOOKUP(INDEX(campsByItinerary,numericItinerary($A26),BE$3-1),campInfo,12)) ->  | DD26: =IF(INDEX(campsByItinerary,numericItinerary($A26),BF$3-1)="","",VLOOKUP(INDEX(campsByItinerary,numericItinerary($A26),BF$3-1),campInfo,12)) ->  | DE26: =IF(INDEX(campsByItinerary,numericItinerary($A26),BG$3-1)="","",VLOOKUP(INDEX(campsByItinerary,numericItinerary($A26),BG$3-1),campInfo,12)) ->  | DF26: =IF(INDEX(campsByItinerary,numericItinerary($A26),BH$3-1)="","",VLOOKUP(INDEX(campsByItinerary,numericItinerary($A26),BH$3-1),campInfo,12)) ->  | DG26: =IF(INDEX(campsByItinerary,numericItinerary($A26),BI$3-1)="","",VLOOKUP(INDEX(campsByItinerary,numericItinerary($A26),BI$3-1),campInfo,12)) ->  | DH26: =IF(INDEX(campsByItinerary,numericItinerary($A26),BJ$3-1)="","",VLOOKUP(INDEX(campsByItinerary,numericItinerary($A26),BJ$3-1),campInfo,12)) ->  | DI26: =IF(INDEX(campsByItinerary,numericItinerary($A26),BK$3-1)="","",VLOOKUP(INDEX(campsByItinerary,numericItinerary($A26),BK$3-1),campInfo,12)) ->  | DJ26: =IF(INDEX(campsByItinerary,numericItinerary($A26),BL$3-1)="","",VLOOKUP(INDEX(campsByItinerary,numericItinerary($A26),BL$3-1),campInfo,12)) ->  | DK26: =IF(INDEX(campsByItinerary,numericItinerary($A26),BM$3-1)="","",VLOOKUP(INDEX(campsByItinerary,numericItinerary($A26),BM$3-1),campInfo,12)) ->  | DL26: =getfoodPU("First",numericItinerary($A26)) ->  | DM26: =getfoodPU("Max",numericItinerary($A26)) -> 
BD27: =IF(INDEX(campsByItinerary,numericItinerary($A27),BD$3-1)="","",VLOOKUP(INDEX(campsByItinerary,numericItinerary($A27),BD$3-1),campInfo,8)) ->  | BE27: =IF(INDEX(campsByItinerary,numericItinerary($A27),BE$3-1)="","",VLOOKUP(INDEX(campsByItinerary,numericItinerary($A27),BE$3-1),campInfo,8)) ->  | BF27: =IF(INDEX(campsByItinerary,numericItinerary($A27),BF$3-1)="","",VLOOKUP(INDEX(campsByItinerary,numericItinerary($A27),BF$3-1),campInfo,8)) ->  | BG27: =IF(INDEX(campsByItinerary,numericItinerary($A27),BG$3-1)="","",VLOOKUP(INDEX(campsByItinerary,numericItinerary($A27),BG$3-1),campInfo,8)) ->  | BH27: =IF(INDEX(campsByItinerary,numericItinerary($A27),BH$3-1)="","",VLOOKUP(INDEX(campsByItinerary,numericItinerary($A27),BH$3-1),campInfo,8)) ->  | BI27: =IF(INDEX(campsByItinerary,numericItinerary($A27),BI$3-1)="","",VLOOKUP(INDEX(campsByItinerary,numericItinerary($A27),BI$3-1),campInfo,8)) ->  | BJ27: =IF(INDEX(campsByItinerary,numericItinerary($A27),BJ$3-1)="","",VLOOKUP(INDEX(campsByItinerary,numericItinerary($A27),BJ$3-1),campInfo,8)) ->  | BK27: =IF(INDEX(campsByItinerary,numericItinerary($A27),BK$3-1)="","",VLOOKUP(INDEX(campsByItinerary,numericItinerary($A27),BK$3-1),campInfo,8)) ->  | BL27: =IF(INDEX(campsByItinerary,numericItinerary($A27),BL$3-1)="","",VLOOKUP(INDEX(campsByItinerary,numericItinerary($A27),BL$3-1),campInfo,8)) ->  | BM27: =IF(INDEX(campsByItinerary,numericItinerary($A27),BM$3-1)="","",VLOOKUP(INDEX(campsByItinerary,numericItinerary($A27),BM$3-1),campInfo,8)) ->  | BX27: =IF(INDEX(campsByItinerary,numericItinerary($A27),BD$3-1)="","",VLOOKUP(INDEX(campsByItinerary,numericItinerary($A27),BD$3-1),campInfo,10)) ->  | BY27: =IF(INDEX(campsByItinerary,numericItinerary($A27),BE$3-1)="","",VLOOKUP(INDEX(campsByItinerary,numericItinerary($A27),BE$3-1),campInfo,10)) ->  | BZ27: =IF(INDEX(campsByItinerary,numericItinerary($A27),BF$3-1)="","",VLOOKUP(INDEX(campsByItinerary,numericItinerary($A27),BF$3-1),campInfo,10)) ->  | CA27: =IF(INDEX(campsByItinerary,numericItinerary($A27),BG$3-1)="","",VLOOKUP(INDEX(campsByItinerary,numericItinerary($A27),BG$3-1),campInfo,10)) ->  | CB27: =IF(INDEX(campsByItinerary,numericItinerary($A27),BH$3-1)="","",VLOOKUP(INDEX(campsByItinerary,numericItinerary($A27),BH$3-1),campInfo,10)) ->  | CC27: =IF(INDEX(campsByItinerary,numericItinerary($A27),BI$3-1)="","",VLOOKUP(INDEX(campsByItinerary,numericItinerary($A27),BI$3-1),campInfo,10)) ->  | CD27: =IF(INDEX(campsByItinerary,numericItinerary($A27),BJ$3-1)="","",VLOOKUP(INDEX(campsByItinerary,numericItinerary($A27),BJ$3-1),campInfo,10)) ->  | CE27: =IF(INDEX(campsByItinerary,numericItinerary($A27),BK$3-1)="","",VLOOKUP(INDEX(campsByItinerary,numericItinerary($A27),BK$3-1),campInfo,10)) ->  | CF27: =IF(INDEX(campsByItinerary,numericItinerary($A27),BL$3-1)="","",VLOOKUP(INDEX(campsByItinerary,numericItinerary($A27),BL$3-1),campInfo,10)) ->  | CG27: =IF(INDEX(campsByItinerary,numericItinerary($A27),BM$3-1)="","",VLOOKUP(INDEX(campsByItinerary,numericItinerary($A27),BM$3-1),campInfo,10)) ->  | CI27: Y | CJ27: Y | CK27: Y | CL27: Y | CM27: Y | CN27: Y | CO27: Y | CP27: Y | CQ27: Y | CR27: =INDEX(campsByItinerary,numericItinerary($A27),BD$3-1) ->  | CS27: =IF(INDEX(campsByItinerary,numericItinerary($A27),BE$3-1)="","",VLOOKUP(INDEX(campsByItinerary,numericItinerary($A27),BE$3-1),campInfo,2)) ->  | CT27: =IF(INDEX(campsByItinerary,numericItinerary($A27),BF$3-1)="","",VLOOKUP(INDEX(campsByItinerary,numericItinerary($A27),BF$3-1),campInfo,2)) ->  | CU27: =IF(INDEX(campsByItinerary,numericItinerary($A27),BG$3-1)="","",VLOOKUP(INDEX(campsByItinerary,numericItinerary($A27),BG$3-1),campInfo,2)) ->  | CV27: =IF(INDEX(campsByItinerary,numericItinerary($A27),BH$3-1)="","",VLOOKUP(INDEX(campsByItinerary,numericItinerary($A27),BH$3-1),campInfo,2)) ->  | CW27: =IF(INDEX(campsByItinerary,numericItinerary($A27),BI$3-1)="","",VLOOKUP(INDEX(campsByItinerary,numericItinerary($A27),BI$3-1),campInfo,2)) ->  | CX27: =IF(INDEX(campsByItinerary,numericItinerary($A27),BJ$3-1)="","",VLOOKUP(INDEX(campsByItinerary,numericItinerary($A27),BJ$3-1),campInfo,2)) ->  | CY27: =IF(INDEX(campsByItinerary,numericItinerary($A27),BK$3-1)="","",VLOOKUP(INDEX(campsByItinerary,numericItinerary($A27),BK$3-1),campInfo,2)) ->  | CZ27: =IF(INDEX(campsByItinerary,numericItinerary($A27),BL$3-1)="","",VLOOKUP(INDEX(campsByItinerary,numericItinerary($A27),BL$3-1),campInfo,2)) ->  | DA27: =IF(INDEX(campsByItinerary,numericItinerary($A27),BM$3-1)="","",VLOOKUP(INDEX(campsByItinerary,numericItinerary($A27),BM$3-1),campInfo,2)) ->  | DB27: =IF(INDEX(campsByItinerary,numericItinerary($A27),BD$3-1)="","",VLOOKUP(INDEX(campsByItinerary,numericItinerary($A27),BD$3-1),campInfo,12)) ->  | DC27: =IF(INDEX(campsByItinerary,numericItinerary($A27),BE$3-1)="","",VLOOKUP(INDEX(campsByItinerary,numericItinerary($A27),BE$3-1),campInfo,12)) ->  | DD27: =IF(INDEX(campsByItinerary,numericItinerary($A27),BF$3-1)="","",VLOOKUP(INDEX(campsByItinerary,numericItinerary($A27),BF$3-1),campInfo,12)) ->  | DE27: =IF(INDEX(campsByItinerary,numericItinerary($A27),BG$3-1)="","",VLOOKUP(INDEX(campsByItinerary,numericItinerary($A27),BG$3-1),campInfo,12)) ->  | DF27: =IF(INDEX(campsByItinerary,numericItinerary($A27),BH$3-1)="","",VLOOKUP(INDEX(campsByItinerary,numericItinerary($A27),BH$3-1),campInfo,12)) ->  | DG27: =IF(INDEX(campsByItinerary,numericItinerary($A27),BI$3-1)="","",VLOOKUP(INDEX(campsByItinerary,numericItinerary($A27),BI$3-1),campInfo,12)) ->  | DH27: =IF(INDEX(campsByItinerary,numericItinerary($A27),BJ$3-1)="","",VLOOKUP(INDEX(campsByItinerary,numericItinerary($A27),BJ$3-1),campInfo,12)) ->  | DI27: =IF(INDEX(campsByItinerary,numericItinerary($A27),BK$3-1)="","",VLOOKUP(INDEX(campsByItinerary,numericItinerary($A27),BK$3-1),campInfo,12)) ->  | DJ27: =IF(INDEX(campsByItinerary,numericItinerary($A27),BL$3-1)="","",VLOOKUP(INDEX(campsByItinerary,numericItinerary($A27),BL$3-1),campInfo,12)) ->  | DK27: =IF(INDEX(campsByItinerary,numericItinerary($A27),BM$3-1)="","",VLOOKUP(INDEX(campsByItinerary,numericItinerary($A27),BM$3-1),campInfo,12)) ->  | DL27: =getfoodPU("First",numericItinerary($A27)) ->  | DM27: =getfoodPU("Max",numericItinerary($A27)) -> 
BD28: =IF(INDEX(campsByItinerary,numericItinerary($A28),BD$3-1)="","",VLOOKUP(INDEX(campsByItinerary,numericItinerary($A28),BD$3-1),campInfo,8)) ->  | BE28: =IF(INDEX(campsByItinerary,numericItinerary($A28),BE$3-1)="","",VLOOKUP(INDEX(campsByItinerary,numericItinerary($A28),BE$3-1),campInfo,8)) ->  | BF28: =IF(INDEX(campsByItinerary,numericItinerary($A28),BF$3-1)="","",VLOOKUP(INDEX(campsByItinerary,numericItinerary($A28),BF$3-1),campInfo,8)) ->  | BG28: =IF(INDEX(campsByItinerary,numericItinerary($A28),BG$3-1)="","",VLOOKUP(INDEX(campsByItinerary,numericItinerary($A28),BG$3-1),campInfo,8)) ->  | BH28: =IF(INDEX(campsByItinerary,numericItinerary($A28),BH$3-1)="","",VLOOKUP(INDEX(campsByItinerary,numericItinerary($A28),BH$3-1),campInfo,8)) ->  | BI28: =IF(INDEX(campsByItinerary,numericItinerary($A28),BI$3-1)="","",VLOOKUP(INDEX(campsByItinerary,numericItinerary($A28),BI$3-1),campInfo,8)) ->  | BJ28: =IF(INDEX(campsByItinerary,numericItinerary($A28),BJ$3-1)="","",VLOOKUP(INDEX(campsByItinerary,numericItinerary($A28),BJ$3-1),campInfo,8)) ->  | BK28: =IF(INDEX(campsByItinerary,numericItinerary($A28),BK$3-1)="","",VLOOKUP(INDEX(campsByItinerary,numericItinerary($A28),BK$3-1),campInfo,8)) ->  | BL28: =IF(INDEX(campsByItinerary,numericItinerary($A28),BL$3-1)="","",VLOOKUP(INDEX(campsByItinerary,numericItinerary($A28),BL$3-1),campInfo,8)) ->  | BM28: =IF(INDEX(campsByItinerary,numericItinerary($A28),BM$3-1)="","",VLOOKUP(INDEX(campsByItinerary,numericItinerary($A28),BM$3-1),campInfo,8)) ->  | BX28: =IF(INDEX(campsByItinerary,numericItinerary($A28),BD$3-1)="","",VLOOKUP(INDEX(campsByItinerary,numericItinerary($A28),BD$3-1),campInfo,10)) ->  | BY28: =IF(INDEX(campsByItinerary,numericItinerary($A28),BE$3-1)="","",VLOOKUP(INDEX(campsByItinerary,numericItinerary($A28),BE$3-1),campInfo,10)) ->  | BZ28: =IF(INDEX(campsByItinerary,numericItinerary($A28),BF$3-1)="","",VLOOKUP(INDEX(campsByItinerary,numericItinerary($A28),BF$3-1),campInfo,10)) ->  | CA28: =IF(INDEX(campsByItinerary,numericItinerary($A28),BG$3-1)="","",VLOOKUP(INDEX(campsByItinerary,numericItinerary($A28),BG$3-1),campInfo,10)) ->  | CB28: =IF(INDEX(campsByItinerary,numericItinerary($A28),BH$3-1)="","",VLOOKUP(INDEX(campsByItinerary,numericItinerary($A28),BH$3-1),campInfo,10)) ->  | CC28: =IF(INDEX(campsByItinerary,numericItinerary($A28),BI$3-1)="","",VLOOKUP(INDEX(campsByItinerary,numericItinerary($A28),BI$3-1),campInfo,10)) ->  | CD28: =IF(INDEX(campsByItinerary,numericItinerary($A28),BJ$3-1)="","",VLOOKUP(INDEX(campsByItinerary,numericItinerary($A28),BJ$3-1),campInfo,10)) ->  | CE28: =IF(INDEX(campsByItinerary,numericItinerary($A28),BK$3-1)="","",VLOOKUP(INDEX(campsByItinerary,numericItinerary($A28),BK$3-1),campInfo,10)) ->  | CF28: =IF(INDEX(campsByItinerary,numericItinerary($A28),BL$3-1)="","",VLOOKUP(INDEX(campsByItinerary,numericItinerary($A28),BL$3-1),campInfo,10)) ->  | CG28: =IF(INDEX(campsByItinerary,numericItinerary($A28),BM$3-1)="","",VLOOKUP(INDEX(campsByItinerary,numericItinerary($A28),BM$3-1),campInfo,10)) ->  | CI28: Y | CJ28: Y | CK28: Y | CL28: Y | CM28: Y | CN28: Y | CO28: Y | CP28: Y | CQ28: Y | CR28: =INDEX(campsByItinerary,numericItinerary($A28),BD$3-1) ->  | CS28: =IF(INDEX(campsByItinerary,numericItinerary($A28),BE$3-1)="","",VLOOKUP(INDEX(campsByItinerary,numericItinerary($A28),BE$3-1),campInfo,2)) ->  | CT28: =IF(INDEX(campsByItinerary,numericItinerary($A28),BF$3-1)="","",VLOOKUP(INDEX(campsByItinerary,numericItinerary($A28),BF$3-1),campInfo,2)) ->  | CU28: =IF(INDEX(campsByItinerary,numericItinerary($A28),BG$3-1)="","",VLOOKUP(INDEX(campsByItinerary,numericItinerary($A28),BG$3-1),campInfo,2)) ->  | CV28: =IF(INDEX(campsByItinerary,numericItinerary($A28),BH$3-1)="","",VLOOKUP(INDEX(campsByItinerary,numericItinerary($A28),BH$3-1),campInfo,2)) ->  | CW28: =IF(INDEX(campsByItinerary,numericItinerary($A28),BI$3-1)="","",VLOOKUP(INDEX(campsByItinerary,numericItinerary($A28),BI$3-1),campInfo,2)) ->  | CX28: =IF(INDEX(campsByItinerary,numericItinerary($A28),BJ$3-1)="","",VLOOKUP(INDEX(campsByItinerary,numericItinerary($A28),BJ$3-1),campInfo,2)) ->  | CY28: =IF(INDEX(campsByItinerary,numericItinerary($A28),BK$3-1)="","",VLOOKUP(INDEX(campsByItinerary,numericItinerary($A28),BK$3-1),campInfo,2)) ->  | CZ28: =IF(INDEX(campsByItinerary,numericItinerary($A28),BL$3-1)="","",VLOOKUP(INDEX(campsByItinerary,numericItinerary($A28),BL$3-1),campInfo,2)) ->  | DA28: =IF(INDEX(campsByItinerary,numericItinerary($A28),BM$3-1)="","",VLOOKUP(INDEX(campsByItinerary,numericItinerary($A28),BM$3-1),campInfo,2)) ->  | DB28: =IF(INDEX(campsByItinerary,numericItinerary($A28),BD$3-1)="","",VLOOKUP(INDEX(campsByItinerary,numericItinerary($A28),BD$3-1),campInfo,12)) ->  | DC28: =IF(INDEX(campsByItinerary,numericItinerary($A28),BE$3-1)="","",VLOOKUP(INDEX(campsByItinerary,numericItinerary($A28),BE$3-1),campInfo,12)) ->  | DD28: =IF(INDEX(campsByItinerary,numericItinerary($A28),BF$3-1)="","",VLOOKUP(INDEX(campsByItinerary,numericItinerary($A28),BF$3-1),campInfo,12)) ->  | DE28: =IF(INDEX(campsByItinerary,numericItinerary($A28),BG$3-1)="","",VLOOKUP(INDEX(campsByItinerary,numericItinerary($A28),BG$3-1),campInfo,12)) ->  | DF28: =IF(INDEX(campsByItinerary,numericItinerary($A28),BH$3-1)="","",VLOOKUP(INDEX(campsByItinerary,numericItinerary($A28),BH$3-1),campInfo,12)) ->  | DG28: =IF(INDEX(campsByItinerary,numericItinerary($A28),BI$3-1)="","",VLOOKUP(INDEX(campsByItinerary,numericItinerary($A28),BI$3-1),campInfo,12)) ->  | DH28: =IF(INDEX(campsByItinerary,numericItinerary($A28),BJ$3-1)="","",VLOOKUP(INDEX(campsByItinerary,numericItinerary($A28),BJ$3-1),campInfo,12)) ->  | DI28: =IF(INDEX(campsByItinerary,numericItinerary($A28),BK$3-1)="","",VLOOKUP(INDEX(campsByItinerary,numericItinerary($A28),BK$3-1),campInfo,12)) ->  | DJ28: =IF(INDEX(campsByItinerary,numericItinerary($A28),BL$3-1)="","",VLOOKUP(INDEX(campsByItinerary,numericItinerary($A28),BL$3-1),campInfo,12)) ->  | DK28: =IF(INDEX(campsByItinerary,numericItinerary($A28),BM$3-1)="","",VLOOKUP(INDEX(campsByItinerary,numericItinerary($A28),BM$3-1),campInfo,12)) ->  | DL28: =getfoodPU("First",numericItinerary($A28)) ->  | DM28: =getfoodPU("Max",numericItinerary($A28)) -> 
BD29: =IF(INDEX(campsByItinerary,numericItinerary($A29),BD$3-1)="","",VLOOKUP(INDEX(campsByItinerary,numericItinerary($A29),BD$3-1),campInfo,8)) ->  | BE29: =IF(INDEX(campsByItinerary,numericItinerary($A29),BE$3-1)="","",VLOOKUP(INDEX(campsByItinerary,numericItinerary($A29),BE$3-1),campInfo,8)) ->  | BF29: =IF(INDEX(campsByItinerary,numericItinerary($A29),BF$3-1)="","",VLOOKUP(INDEX(campsByItinerary,numericItinerary($A29),BF$3-1),campInfo,8)) ->  | BG29: =IF(INDEX(campsByItinerary,numericItinerary($A29),BG$3-1)="","",VLOOKUP(INDEX(campsByItinerary,numericItinerary($A29),BG$3-1),campInfo,8)) ->  | BH29: =IF(INDEX(campsByItinerary,numericItinerary($A29),BH$3-1)="","",VLOOKUP(INDEX(campsByItinerary,numericItinerary($A29),BH$3-1),campInfo,8)) ->  | BI29: =IF(INDEX(campsByItinerary,numericItinerary($A29),BI$3-1)="","",VLOOKUP(INDEX(campsByItinerary,numericItinerary($A29),BI$3-1),campInfo,8)) ->  | BJ29: =IF(INDEX(campsByItinerary,numericItinerary($A29),BJ$3-1)="","",VLOOKUP(INDEX(campsByItinerary,numericItinerary($A29),BJ$3-1),campInfo,8)) ->  | BK29: =IF(INDEX(campsByItinerary,numericItinerary($A29),BK$3-1)="","",VLOOKUP(INDEX(campsByItinerary,numericItinerary($A29),BK$3-1),campInfo,8)) ->  | BL29: =IF(INDEX(campsByItinerary,numericItinerary($A29),BL$3-1)="","",VLOOKUP(INDEX(campsByItinerary,numericItinerary($A29),BL$3-1),campInfo,8)) ->  | BM29: =IF(INDEX(campsByItinerary,numericItinerary($A29),BM$3-1)="","",VLOOKUP(INDEX(campsByItinerary,numericItinerary($A29),BM$3-1),campInfo,8)) ->  | BX29: =IF(INDEX(campsByItinerary,numericItinerary($A29),BD$3-1)="","",VLOOKUP(INDEX(campsByItinerary,numericItinerary($A29),BD$3-1),campInfo,10)) ->  | BY29: =IF(INDEX(campsByItinerary,numericItinerary($A29),BE$3-1)="","",VLOOKUP(INDEX(campsByItinerary,numericItinerary($A29),BE$3-1),campInfo,10)) ->  | BZ29: =IF(INDEX(campsByItinerary,numericItinerary($A29),BF$3-1)="","",VLOOKUP(INDEX(campsByItinerary,numericItinerary($A29),BF$3-1),campInfo,10)) ->  | CA29: =IF(INDEX(campsByItinerary,numericItinerary($A29),BG$3-1)="","",VLOOKUP(INDEX(campsByItinerary,numericItinerary($A29),BG$3-1),campInfo,10)) ->  | CB29: =IF(INDEX(campsByItinerary,numericItinerary($A29),BH$3-1)="","",VLOOKUP(INDEX(campsByItinerary,numericItinerary($A29),BH$3-1),campInfo,10)) ->  | CC29: =IF(INDEX(campsByItinerary,numericItinerary($A29),BI$3-1)="","",VLOOKUP(INDEX(campsByItinerary,numericItinerary($A29),BI$3-1),campInfo,10)) ->  | CD29: =IF(INDEX(campsByItinerary,numericItinerary($A29),BJ$3-1)="","",VLOOKUP(INDEX(campsByItinerary,numericItinerary($A29),BJ$3-1),campInfo,10)) ->  | CE29: =IF(INDEX(campsByItinerary,numericItinerary($A29),BK$3-1)="","",VLOOKUP(INDEX(campsByItinerary,numericItinerary($A29),BK$3-1),campInfo,10)) ->  | CF29: =IF(INDEX(campsByItinerary,numericItinerary($A29),BL$3-1)="","",VLOOKUP(INDEX(campsByItinerary,numericItinerary($A29),BL$3-1),campInfo,10)) ->  | CG29: =IF(INDEX(campsByItinerary,numericItinerary($A29),BM$3-1)="","",VLOOKUP(INDEX(campsByItinerary,numericItinerary($A29),BM$3-1),campInfo,10)) ->  | CI29: Y | CJ29: Y | CK29: Y | CL29: Y | CM29: Y | CN29: Y | CO29: Y | CP29: Y | CQ29: Y | CR29: =INDEX(campsByItinerary,numericItinerary($A29),BD$3-1) ->  | CS29: =IF(INDEX(campsByItinerary,numericItinerary($A29),BE$3-1)="","",VLOOKUP(INDEX(campsByItinerary,numericItinerary($A29),BE$3-1),campInfo,2)) ->  | CT29: =IF(INDEX(campsByItinerary,numericItinerary($A29),BF$3-1)="","",VLOOKUP(INDEX(campsByItinerary,numericItinerary($A29),BF$3-1),campInfo,2)) ->  | CU29: =IF(INDEX(campsByItinerary,numericItinerary($A29),BG$3-1)="","",VLOOKUP(INDEX(campsByItinerary,numericItinerary($A29),BG$3-1),campInfo,2)) ->  | CV29: =IF(INDEX(campsByItinerary,numericItinerary($A29),BH$3-1)="","",VLOOKUP(INDEX(campsByItinerary,numericItinerary($A29),BH$3-1),campInfo,2)) ->  | CW29: =IF(INDEX(campsByItinerary,numericItinerary($A29),BI$3-1)="","",VLOOKUP(INDEX(campsByItinerary,numericItinerary($A29),BI$3-1),campInfo,2)) ->  | CX29: =IF(INDEX(campsByItinerary,numericItinerary($A29),BJ$3-1)="","",VLOOKUP(INDEX(campsByItinerary,numericItinerary($A29),BJ$3-1),campInfo,2)) ->  | CY29: =IF(INDEX(campsByItinerary,numericItinerary($A29),BK$3-1)="","",VLOOKUP(INDEX(campsByItinerary,numericItinerary($A29),BK$3-1),campInfo,2)) ->  | CZ29: =IF(INDEX(campsByItinerary,numericItinerary($A29),BL$3-1)="","",VLOOKUP(INDEX(campsByItinerary,numericItinerary($A29),BL$3-1),campInfo,2)) ->  | DA29: =IF(INDEX(campsByItinerary,numericItinerary($A29),BM$3-1)="","",VLOOKUP(INDEX(campsByItinerary,numericItinerary($A29),BM$3-1),campInfo,2)) ->  | DB29: =IF(INDEX(campsByItinerary,numericItinerary($A29),BD$3-1)="","",VLOOKUP(INDEX(campsByItinerary,numericItinerary($A29),BD$3-1),campInfo,12)) ->  | DC29: =IF(INDEX(campsByItinerary,numericItinerary($A29),BE$3-1)="","",VLOOKUP(INDEX(campsByItinerary,numericItinerary($A29),BE$3-1),campInfo,12)) ->  | DD29: =IF(INDEX(campsByItinerary,numericItinerary($A29),BF$3-1)="","",VLOOKUP(INDEX(campsByItinerary,numericItinerary($A29),BF$3-1),campInfo,12)) ->  | DE29: =IF(INDEX(campsByItinerary,numericItinerary($A29),BG$3-1)="","",VLOOKUP(INDEX(campsByItinerary,numericItinerary($A29),BG$3-1),campInfo,12)) ->  | DF29: =IF(INDEX(campsByItinerary,numericItinerary($A29),BH$3-1)="","",VLOOKUP(INDEX(campsByItinerary,numericItinerary($A29),BH$3-1),campInfo,12)) ->  | DG29: =IF(INDEX(campsByItinerary,numericItinerary($A29),BI$3-1)="","",VLOOKUP(INDEX(campsByItinerary,numericItinerary($A29),BI$3-1),campInfo,12)) ->  | DH29: =IF(INDEX(campsByItinerary,numericItinerary($A29),BJ$3-1)="","",VLOOKUP(INDEX(campsByItinerary,numericItinerary($A29),BJ$3-1),campInfo,12)) ->  | DI29: =IF(INDEX(campsByItinerary,numericItinerary($A29),BK$3-1)="","",VLOOKUP(INDEX(campsByItinerary,numericItinerary($A29),BK$3-1),campInfo,12)) ->  | DJ29: =IF(INDEX(campsByItinerary,numericItinerary($A29),BL$3-1)="","",VLOOKUP(INDEX(campsByItinerary,numericItinerary($A29),BL$3-1),campInfo,12)) ->  | DK29: =IF(INDEX(campsByItinerary,numericItinerary($A29),BM$3-1)="","",VLOOKUP(INDEX(campsByItinerary,numericItinerary($A29),BM$3-1),campInfo,12)) ->  | DL29: =getfoodPU("First",numericItinerary($A29)) ->  | DM29: =getfoodPU("Max",numericItinerary($A29)) -> 
BD30: =IF(INDEX(campsByItinerary,numericItinerary($A30),BD$3-1)="","",VLOOKUP(INDEX(campsByItinerary,numericItinerary($A30),BD$3-1),campInfo,8)) ->  | BE30: =IF(INDEX(campsByItinerary,numericItinerary($A30),BE$3-1)="","",VLOOKUP(INDEX(campsByItinerary,numericItinerary($A30),BE$3-1),campInfo,8)) ->  | BF30: =IF(INDEX(campsByItinerary,numericItinerary($A30),BF$3-1)="","",VLOOKUP(INDEX(campsByItinerary,numericItinerary($A30),BF$3-1),campInfo,8)) ->  | BG30: =IF(INDEX(campsByItinerary,numericItinerary($A30),BG$3-1)="","",VLOOKUP(INDEX(campsByItinerary,numericItinerary($A30),BG$3-1),campInfo,8)) ->  | BH30: =IF(INDEX(campsByItinerary,numericItinerary($A30),BH$3-1)="","",VLOOKUP(INDEX(campsByItinerary,numericItinerary($A30),BH$3-1),campInfo,8)) ->  | BI30: =IF(INDEX(campsByItinerary,numericItinerary($A30),BI$3-1)="","",VLOOKUP(INDEX(campsByItinerary,numericItinerary($A30),BI$3-1),campInfo,8)) ->  | BJ30: =IF(INDEX(campsByItinerary,numericItinerary($A30),BJ$3-1)="","",VLOOKUP(INDEX(campsByItinerary,numericItinerary($A30),BJ$3-1),campInfo,8)) ->  | BK30: =IF(INDEX(campsByItinerary,numericItinerary($A30),BK$3-1)="","",VLOOKUP(INDEX(campsByItinerary,numericItinerary($A30),BK$3-1),campInfo,8)) ->  | BL30: =IF(INDEX(campsByItinerary,numericItinerary($A30),BL$3-1)="","",VLOOKUP(INDEX(campsByItinerary,numericItinerary($A30),BL$3-1),campInfo,8)) ->  | BM30: =IF(INDEX(campsByItinerary,numericItinerary($A30),BM$3-1)="","",VLOOKUP(INDEX(campsByItinerary,numericItinerary($A30),BM$3-1),campInfo,8)) ->  | BX30: =IF(INDEX(campsByItinerary,numericItinerary($A30),BD$3-1)="","",VLOOKUP(INDEX(campsByItinerary,numericItinerary($A30),BD$3-1),campInfo,10)) ->  | BY30: =IF(INDEX(campsByItinerary,numericItinerary($A30),BE$3-1)="","",VLOOKUP(INDEX(campsByItinerary,numericItinerary($A30),BE$3-1),campInfo,10)) ->  | BZ30: =IF(INDEX(campsByItinerary,numericItinerary($A30),BF$3-1)="","",VLOOKUP(INDEX(campsByItinerary,numericItinerary($A30),BF$3-1),campInfo,10)) ->  | CA30: =IF(INDEX(campsByItinerary,numericItinerary($A30),BG$3-1)="","",VLOOKUP(INDEX(campsByItinerary,numericItinerary($A30),BG$3-1),campInfo,10)) ->  | CB30: =IF(INDEX(campsByItinerary,numericItinerary($A30),BH$3-1)="","",VLOOKUP(INDEX(campsByItinerary,numericItinerary($A30),BH$3-1),campInfo,10)) ->  | CC30: =IF(INDEX(campsByItinerary,numericItinerary($A30),BI$3-1)="","",VLOOKUP(INDEX(campsByItinerary,numericItinerary($A30),BI$3-1),campInfo,10)) ->  | CD30: =IF(INDEX(campsByItinerary,numericItinerary($A30),BJ$3-1)="","",VLOOKUP(INDEX(campsByItinerary,numericItinerary($A30),BJ$3-1),campInfo,10)) ->  | CE30: =IF(INDEX(campsByItinerary,numericItinerary($A30),BK$3-1)="","",VLOOKUP(INDEX(campsByItinerary,numericItinerary($A30),BK$3-1),campInfo,10)) ->  | CF30: =IF(INDEX(campsByItinerary,numericItinerary($A30),BL$3-1)="","",VLOOKUP(INDEX(campsByItinerary,numericItinerary($A30),BL$3-1),campInfo,10)) ->  | CG30: =IF(INDEX(campsByItinerary,numericItinerary($A30),BM$3-1)="","",VLOOKUP(INDEX(campsByItinerary,numericItinerary($A30),BM$3-1),campInfo,10)) ->  | CI30: Y | CJ30: Y | CK30: Y | CL30: Y | CM30: Y | CN30: Y | CO30: Y | CP30: Y | CQ30: Y | CR30: =INDEX(campsByItinerary,numericItinerary($A30),BD$3-1) ->  | CS30: =IF(INDEX(campsByItinerary,numericItinerary($A30),BE$3-1)="","",VLOOKUP(INDEX(campsByItinerary,numericItinerary($A30),BE$3-1),campInfo,2)) ->  | CT30: =IF(INDEX(campsByItinerary,numericItinerary($A30),BF$3-1)="","",VLOOKUP(INDEX(campsByItinerary,numericItinerary($A30),BF$3-1),campInfo,2)) ->  | CU30: =IF(INDEX(campsByItinerary,numericItinerary($A30),BG$3-1)="","",VLOOKUP(INDEX(campsByItinerary,numericItinerary($A30),BG$3-1),campInfo,2)) ->  | CV30: =IF(INDEX(campsByItinerary,numericItinerary($A30),BH$3-1)="","",VLOOKUP(INDEX(campsByItinerary,numericItinerary($A30),BH$3-1),campInfo,2)) ->  | CW30: =IF(INDEX(campsByItinerary,numericItinerary($A30),BI$3-1)="","",VLOOKUP(INDEX(campsByItinerary,numericItinerary($A30),BI$3-1),campInfo,2)) ->  | CX30: =IF(INDEX(campsByItinerary,numericItinerary($A30),BJ$3-1)="","",VLOOKUP(INDEX(campsByItinerary,numericItinerary($A30),BJ$3-1),campInfo,2)) ->  | CY30: =IF(INDEX(campsByItinerary,numericItinerary($A30),BK$3-1)="","",VLOOKUP(INDEX(campsByItinerary,numericItinerary($A30),BK$3-1),campInfo,2)) ->  | CZ30: =IF(INDEX(campsByItinerary,numericItinerary($A30),BL$3-1)="","",VLOOKUP(INDEX(campsByItinerary,numericItinerary($A30),BL$3-1),campInfo,2)) ->  | DA30: =IF(INDEX(campsByItinerary,numericItinerary($A30),BM$3-1)="","",VLOOKUP(INDEX(campsByItinerary,numericItinerary($A30),BM$3-1),campInfo,2)) ->  | DB30: =IF(INDEX(campsByItinerary,numericItinerary($A30),BD$3-1)="","",VLOOKUP(INDEX(campsByItinerary,numericItinerary($A30),BD$3-1),campInfo,12)) ->  | DC30: =IF(INDEX(campsByItinerary,numericItinerary($A30),BE$3-1)="","",VLOOKUP(INDEX(campsByItinerary,numericItinerary($A30),BE$3-1),campInfo,12)) ->  | DD30: =IF(INDEX(campsByItinerary,numericItinerary($A30),BF$3-1)="","",VLOOKUP(INDEX(campsByItinerary,numericItinerary($A30),BF$3-1),campInfo,12)) ->  | DE30: =IF(INDEX(campsByItinerary,numericItinerary($A30),BG$3-1)="","",VLOOKUP(INDEX(campsByItinerary,numericItinerary($A30),BG$3-1),campInfo,12)) ->  | DF30: =IF(INDEX(campsByItinerary,numericItinerary($A30),BH$3-1)="","",VLOOKUP(INDEX(campsByItinerary,numericItinerary($A30),BH$3-1),campInfo,12)) ->  | DG30: =IF(INDEX(campsByItinerary,numericItinerary($A30),BI$3-1)="","",VLOOKUP(INDEX(campsByItinerary,numericItinerary($A30),BI$3-1),campInfo,12)) ->  | DH30: =IF(INDEX(campsByItinerary,numericItinerary($A30),BJ$3-1)="","",VLOOKUP(INDEX(campsByItinerary,numericItinerary($A30),BJ$3-1),campInfo,12)) ->  | DI30: =IF(INDEX(campsByItinerary,numericItinerary($A30),BK$3-1)="","",VLOOKUP(INDEX(campsByItinerary,numericItinerary($A30),BK$3-1),campInfo,12)) ->  | DJ30: =IF(INDEX(campsByItinerary,numericItinerary($A30),BL$3-1)="","",VLOOKUP(INDEX(campsByItinerary,numericItinerary($A30),BL$3-1),campInfo,12)) ->  | DK30: =IF(INDEX(campsByItinerary,numericItinerary($A30),BM$3-1)="","",VLOOKUP(INDEX(campsByItinerary,numericItinerary($A30),BM$3-1),campInfo,12)) ->  | DL30: =getfoodPU("First",numericItinerary($A30)) ->  | DM30: =getfoodPU("Max",numericItinerary($A30)) -> 
